Workbook

Sheet BUPA CARE PRODUCTS
AB1: Franja Fronteriza Norte | AC1: Asegurados totales | AD1: =COUNTA(C14:C16) -> 3 | AG1: =IF(OR(C11="Cancún",C11=AB1,C12="Si"),0.16,0.16)*IF(D8="",1,"Error") -> 0.16
B2: SEGURO DE GASTOS MEDICOS MAYORES: Productos Bupa Care — México | AB2: Aguascalientes | AC2: adultos | AD2: =COUNTIF(C14:C16,">17") -> 2
AB3: Baja California Norte
B4: Cotización para: | C4: Juan Vidal | AB4: Baja California Sur | AC4: RPF
AB5: Campeche | AC5: Anual | AD5: 0 | AE5: 1
AB6: Cancún | AC6: Semestral | AD6: 0.045 | AE6: 2
AB7: Coahuila | AC7: Trimestral | AD7: 0.075 | AE7: 4
D8: =IF(AND(ISERROR(VLOOKUP(C11,'Fórmulas Cotización'!AV41:AV52,1,FALSE)),C12="Si"),"ERROR!: Cotización inválida. No existe frontera en este estado","") ->  | AB8: Colima | AC8: Mensual | AD8: 0.11 | AE8: 12
AB9: Chiapas | AD9: =VLOOKUP($C$17,$AC$5:$AE$8,2,FALSE) -> 0.11 | AE9: =VLOOKUP($C$17,$AC$5:$AE$8,3,FALSE) -> 12
AB10: Chihuahua
B11: Estado | C11: Distrito Federal | G11: COBERTURAS ADICIONALES
B12: IVA Franja fronteriza? | C12: No | AB12: Distrito Federal
G13: Trasplante de órganos | I13: No Contratada | AB13: Durango
B14: Edad Titular | C14: 22 | G14: Complicaciones del embarazo | I14: Contratada | AB14: Guanajuato
B15: Edad Cónyuge | C15: 33 | G15: Padecimientos Congénitos | I15: Contratada | AB15: Guerrero (solo Acapulco y Zihuatanejo)
B16: No. de dependientes | C16: 2 | AB16: Guerrero (excepto Acapulco y Zihuatanejo)
B17: Forma de pago | C17: Mensual | AB17: Hidalgo
AB18: Jalisco
O19: Prima fraccionada | AB19: Edo. Mexico (solo área metropolitana)
B20: Producto | C20: Deducible (dentro/fuera país) | E20: Titular | F20: Cónyuge | G20: Dependientes | H20: Cob. Adicionales | I20: Tarifa Total | J20: Derecho Póliza | K20: RPF | L20: Prima neta | M20: IVA | N20: Prima Anual | O20: 1er. Recibo | P20: Recibos Subsecuentes | AB20: Edo. Mexico (excepto área metropolitana)
B21: Diamond | C21: 1000 | D21: 2000 | E21: =TRANSPOSE('Fórmulas Cotización'!P6:T7) -> 178287.5 | F21: 250700 | G21: =TRANSPOSE('Fórmulas Cotización'!P13:T13) -> 108087.5 | H21: No aplica | I21: =SUM(E21:H21) -> 537075 | J21: 937.5 | K21: =$AD$9*(I21) -> 59078.25 | L21: =I21+J21+K21 -> 597090.75 | M21: =L21*$AG$1 -> 95534.52 | N21: =L21+M21 -> 692625.27 | O21: =(I21/$AE$9*(1+$AD$9)+J21)*(1+$AG$1) -> 58715.6475 | P21: =IF($C$17="Anual",0,I21/$AE$9*(1+$AD$9)*(1+$AG$1)) -> 57628.1475 | AB21: Michoacán
C22: 2000 | D22: 3000 | E22: 127012.5 | F22: 178525 | G22: 76887.5 | H22: No aplica | I22: =SUM(E22:H22) -> 382425 | J22: 937.5 | K22: =$AD$9*(I22) -> 42066.75 | L22: =I22+J22+K22 -> 425429.25 | M22: =L22*$AG$1 -> 68068.68 | N22: =L22+M22 -> 493497.93 | O22: =(I22/$AE$9*(1+$AD$9)+J22)*(1+$AG$1) -> 42121.7025 | P22: =IF($C$17="Anual",0,I22/$AE$9*(1+$AD$9)*(1+$AG$1)) -> 41034.2025 | AB22: Morelos
C23: 5000 | D23: 5000 | E23: 95362.5 | F23: 133975 | G23: 57637.5 | H23: =IF($I$14="Contratada",'Fórmulas Cotización'!$E$23,0) -> 3100 | I23: =SUM(E23:H23) -> 290075 | J23: 937.5 | K23: =$AD$9*(I23) -> 31908.25 | L23: =I23+J23+K23 -> 322920.75 | M23: =L23*$AG$1 -> 51667.32 | N23: =L23+M23 -> 374588.07 | O23: =(I23/$AE$9*(1+$AD$9)+J23)*(1+$AG$1) -> 32212.5475 | P23: =IF($C$17="Anual",0,I23/$AE$9*(1+$AD$9)*(1+$AG$1)) -> 31125.0475 | AB23: Nayarit
C24: 10000 | D24: 10000 | E24: 72725 | F24: 102112.5 | G24: 43862.5 | H24: =IF($I$14="Contratada",'Fórmulas Cotización'!$E$23,0) -> 3100 | I24: =SUM(E24:H24) -> 221800 | J24: 937.5 | K24: =$AD$9*(I24) -> 24398 | L24: =I24+J24+K24 -> 247135.5 | M24: =L24*$AG$1 -> 39541.68 | N24: =L24+M24 -> 286677.18 | O24: =(I24/$AE$9*(1+$AD$9)+J24)*(1+$AG$1) -> 24886.64 | P24: =IF($C$17="Anual",0,I24/$AE$9*(1+$AD$9)*(1+$AG$1)) -> 23799.14 | AB24: Nuevo León
C25: 20000 | D25: 20000 | E25: 57537.5 | F25: 80737.5 | G25: 34625 | H25: =IF($I$14="Contratada",'Fórmulas Cotización'!$E$23,0) -> 3100 | I25: =SUM(E25:H25) -> 176000 | J25: 937.5 | K25: =$AD$9*(I25) -> 19360 | L25: =I25+J25+K25 -> 196297.5 | M25: =L25*$AG$1 -> 31407.6 | N25: =L25+M25 -> 227705.1 | O25: =(I25/$AE$9*(1+$AD$9)+J25)*(1+$AG$1) -> 19972.3 | P25: =IF($C$17="Anual",0,I25/$AE$9*(1+$AD$9)*(1+$AG$1)) -> 18884.8 | AB25: Oaxaca
AB26: Puebla
O27: Prima fraccionada | AB27: Querétaro
C28: Deducible (dentro/fuera país) | E28: Titular | F28: Cónyuge | G28: Dependientes | H28: Cob. Adicionales | I28: Tarifa Total | J28: Derecho Póliza | K28: RPF | L28: Prima neta | M28: IVA | N28: Prima Anual | O28: 1er. Recibo | P28: Recibos Subsecuentes | AB28: Quintana Roo
B29: Complete | C29: 1000 | D29: 2000 | E29: =TRANSPOSE('Fórmulas Cotización'!J6:N7) -> 159450 | F29: 228050 | G29: =TRANSPOSE('Fórmulas Cotización'!J13:N13) -> 95812.5 | H29: No aplica | I29: =SUM(E29:H29) -> 483312.5 | J29: 937.5 | K29: =$AD$9*(I29) -> 53164.375 | L29: =I29+J29+K29 -> 537414.375 | M29: =L29*$AG$1 -> 85986.3 | N29: =L29+M29 -> 623400.675 | O29: =(I29/$AE$9*(1+$AD$9)+J29)*(1+$AG$1) -> 52946.93125 | P29: =IF($C$17="Anual",0,I29/$AE$9*(1+$AD$9)*(1+$AG$1)) -> 51859.43125 | AB29: San Luis Potosí
C30: 2000 | D30: 3000 | E30: 117525 | F30: 168025 | G30: 70512.5 | H30: No aplica | I30: =SUM(E30:H30) -> 356062.5 | J30: 937.5 | K30: =$AD$9*(I30) -> 39166.875 | L30: =I30+J30+K30 -> 396166.875 | M30: =L30*$AG$1 -> 63386.7 | N30: =L30+M30 -> 459553.575 | O30: =(I30/$AE$9*(1+$AD$9)+J30)*(1+$AG$1) -> 39293.00625 | P30: =IF($C$17="Anual",0,I30/$AE$9*(1+$AD$9)*(1+$AG$1)) -> 38205.50625 | AB30: Sinaloa
C31: 5000 | D31: 5000 | E31: 87725 | F31: 125337.5 | G31: 52537.5 | H31: =IF($I$14="Contratada",'Fórmulas Cotización'!$E$24,0) -> 3100 | I31: =SUM(E31:H31) -> 268700 | J31: 937.5 | K31: =$AD$9*(I31) -> 29557 | L31: =I31+J31+K31 -> 299194.5 | M31: =L31*$AG$1 -> 47871.12 | N31: =L31+M31 -> 347065.62 | O31: =(I31/$AE$9*(1+$AD$9)+J31)*(1+$AG$1) -> 29919.01 | P31: =IF($C$17="Anual",0,I31/$AE$9*(1+$AD$9)*(1+$AG$1)) -> 28831.51 | AB31: Sonora
C32: 10000 | D32: 10000 | E32: 67600 | F32: 96525 | G32: 40400 | H32: =IF($I$14="Contratada",'Fórmulas Cotización'!$E$24,0) -> 3100 | I32: =SUM(E32:H32) -> 207625 | J32: 937.5 | K32: =$AD$9*(I32) -> 22838.75 | L32: =I32+J32+K32 -> 231401.25 | M32: =L32*$AG$1 -> 37024.2 | N32: =L32+M32 -> 268425.45 | O32: =(I32/$AE$9*(1+$AD$9)+J32)*(1+$AG$1) -> 23365.6625 | P32: =IF($C$17="Anual",0,I32/$AE$9*(1+$AD$9)*(1+$AG$1)) -> 22278.1625 | AB32: Tabasco
C33: 20000 | D33: 20000 | E33: 52050 | F33: 74250 | G33: 31012.5 | H33: =IF($I$14="Contratada",'Fórmulas Cotización'!$E$24,0) -> 3100 | I33: =SUM(E33:H33) -> 160412.5 | J33: 937.5 | K33: =$AD$9*(I33) -> 17645.375 | L33: =I33+J33+K33 -> 178995.375 | M33: =L33*$AG$1 -> 28639.26 | N33: =L33+M33 -> 207634.635 | O33: =(I33/$AE$9*(1+$AD$9)+J33)*(1+$AG$1) -> 18299.76125 | P33: =IF($C$17="Anual",0,I33/$AE$9*(1+$AD$9)*(1+$AG$1)) -> 17212.26125 | AB33: Tamaulipas
AB34: Tlaxcala
O35: Prima fraccionada | AB35: Veracruz
C36: Deducible (dentro/fuera país) | E36: Titular | F36: Cónyuge | G36: Dependientes | H36: Cob. Adicionales | I36: Tarifa Total | J36: Derecho Póliza | K36: RPF | L36: Prima neta | M36: IVA | N36: Prima Anual | O36: 1er. Recibo | P36: Recibos Subsecuentes | AB36: Yucatán
B37: Advantage | C37: 1000 | D37: 2000 | E37: =TRANSPOSE('Fórmulas Cotización'!D6:H7) -> 128862.5 | F37: 181125 | G37: =TRANSPOSE('Fórmulas Cotización'!D13:H13) -> 77350 | H37: =(IF($I$13="Contratada",'Fórmulas Cotización'!$F$25,0)+IF($I$14="Contratada",'Fórmulas Cotización'!$E$25,0)+IF($I$15="Contratada",'Fórmulas Cotización'!$G$25,0)) -> 6400 | I37: =SUM(E37:H37) -> 393737.5 | J37: 937.5 | K37: =$AD$9*(I37) -> 43311.125 | L37: =I37+J37+K37 -> 437986.125 | M37: =L37*$AG$1 -> 70077.78 | N37: =L37+M37 -> 508063.905 | O37: =(I37/$AE$9*(1+$AD$9)+J37)*(1+$AG$1) -> 43335.53375 | P37: =IF($C$17="Anual",0,I37/$AE$9*(1+$AD$9)*(1+$AG$1)) -> 42248.03375 | AB37: Zacatecas
C38: 2000 | D38: 3000 | E38: 98425 | F38: 138300 | G38: 59000 | H38: =(IF($I$13="Contratada",'Fórmulas Cotización'!$F$25,0)+IF($I$14="Contratada",'Fórmulas Cotización'!$E$25,0)+IF($I$15="Contratada",'Fórmulas Cotización'!$G$25,0)) -> 6400 | I38: =SUM(E38:H38) -> 302125 | J38: 937.5 | K38: =$AD$9*(I38) -> 33233.75 | L38: =I38+J38+K38 -> 336296.25 | M38: =L38*$AG$1 -> 53807.4 | N38: =L38+M38 -> 390103.65 | O38: =(I38/$AE$9*(1+$AD$9)+J38)*(1+$AG$1) -> 33505.5125 | P38: =IF($C$17="Anual",0,I38/$AE$9*(1+$AD$9)*(1+$AG$1)) -> 32418.0125
C39: 5000 | D39: 5000 | E39: 77712.5 | F39: 109125 | G39: 46500 | H39: =(IF($I$13="Contratada",'Fórmulas Cotización'!$F$25,0)+IF($I$14="Contratada",'Fórmulas Cotización'!$E$25,0)+IF($I$15="Contratada",'Fórmulas Cotización'!$G$25,0)) -> 6400 | I39: =SUM(E39:H39) -> 239737.5 | J39: 937.5 | K39: =$AD$9*(I39) -> 26371.125 | L39: =I39+J39+K39 -> 267046.125 | M39: =L39*$AG$1 -> 42727.38 | N39: =L39+M39 -> 309773.505 | O39: =(I39/$AE$9*(1+$AD$9)+J39)*(1+$AG$1) -> 26811.33375 | P39: =IF($C$17="Anual",0,I39/$AE$9*(1+$AD$9)*(1+$AG$1)) -> 25723.83375
C40: 10000 | D40: 10000 | E40: 61700 | F40: 86600 | G40: 36837.5 | H40: =(IF($I$13="Contratada",'Fórmulas Cotización'!$F$25,0)+IF($I$14="Contratada",'Fórmulas Cotización'!$E$25,0)+IF($I$15="Contratada",'Fórmulas Cotización'!$G$25,0)) -> 6400 | I40: =SUM(E40:H40) -> 191537.5 | J40: 937.5 | K40: =$AD$9*(I40) -> 21069.125 | L40: =I40+J40+K40 -> 213544.125 | M40: =L40*$AG$1 -> 34167.06 | N40: =L40+M40 -> 247711.185 | O40: =(I40/$AE$9*(1+$AD$9)+J40)*(1+$AG$1) -> 21639.47375 | P40: =IF($C$17="Anual",0,I40/$AE$9*(1+$AD$9)*(1+$AG$1)) -> 20551.97375
C41: 20000 | D41: 20000 | E41: 45350 | F41: 63587.5 | G41: 26975 | H41: =(IF($I$13="Contratada",'Fórmulas Cotización'!$F$25,0)+IF($I$14="Contratada",'Fórmulas Cotización'!$E$25,0)+IF($I$15="Contratada",'Fórmulas Cotización'!$G$25,0)) -> 6400 | I41: =SUM(E41:H41) -> 142312.5 | J41: 937.5 | K41: =$AD$9*(I41) -> 15654.375 | L41: =I41+J41+K41 -> 158904.375 | M41: =L41*$AG$1 -> 25424.7 | N41: =L41+M41 -> 184329.075 | O41: =(I41/$AE$9*(1+$AD$9)+J41)*(1+$AG$1) -> 16357.63125 | P41: =IF($C$17="Anual",0,I41/$AE$9*(1+$AD$9)*(1+$AG$1)) -> 15270.13125
O43: Prima fraccionada
C44: Deducible (dentro/fuera país) | E44: Titular | F44: Cónyuge | G44: Dependientes | H44: Cob. Adicionales | I44: Tarifa Total | J44: Derecho Póliza | K44: RPF | L44: Prima neta | M44: IVA | N44: Prima Anual | O44: 1er. Recibo | P44: Recibos Subsecuentes
B45: Secure | C45: 1000 | D45: 2000 | E45: =TRANSPOSE('Fórmulas Cotización'!AB6:AF7) -> 92662.5 | F45: 130175 | G45: =TRANSPOSE('Fórmulas Cotización'!AB13:AF13) -> 55037.5 | H45: =(IF($I$13="Contratada",'Fórmulas Cotización'!$F$26,0)+IF($I$14="Contratada",'Fórmulas Cotización'!$E$26,0)+IF($I$15="Contratada",'Fórmulas Cotización'!$G$26,0)) -> 6100 | I45: =SUM(E45:H45) -> 283975 | J45: 937.5 | K45: =$AD$9*(I45) -> 31237.25 | L45: =I45+J45+K45 -> 316149.75 | M45: =L45*$AG$1 -> 50583.96 | N45: =L45+M45 -> 366733.71 | O45: =(I45/$AE$9*(1+$AD$9)+J45)*(1+$AG$1) -> 31558.0175 | P45: =IF($C$17="Anual",0,I45/$AE$9*(1+$AD$9)*(1+$AG$1)) -> 30470.5175
C46: 2000 | D46: 3000 | E46: 74537.5 | F46: 104662.5 | G46: 44200 | H46: =(IF($I$13="Contratada",'Fórmulas Cotización'!$F$26,0)+IF($I$14="Contratada",'Fórmulas Cotización'!$E$26,0)+IF($I$15="Contratada",'Fórmulas Cotización'!$G$26,0)) -> 6100 | I46: =SUM(E46:H46) -> 229500 | J46: 937.5 | K46: =$AD$9*(I46) -> 25245 | L46: =I46+J46+K46 -> 255682.5 | M46: =L46*$AG$1 -> 40909.2 | N46: =L46+M46 -> 296591.7 | O46: =(I46/$AE$9*(1+$AD$9)+J46)*(1+$AG$1) -> 25712.85 | P46: =IF($C$17="Anual",0,I46/$AE$9*(1+$AD$9)*(1+$AG$1)) -> 24625.35
C47: 5000 | D47: 5000 | E47: 48662.5 | F47: 68250 | G47: 28737.5 | H47: =(IF($I$13="Contratada",'Fórmulas Cotización'!$F$26,0)+IF($I$14="Contratada",'Fórmulas Cotización'!$E$26,0)+IF($I$15="Contratada",'Fórmulas Cotización'!$G$26,0)) -> 6100 | I47: =SUM(E47:H47) -> 151750 | J47: 937.5 | K47: =$AD$9*(I47) -> 16692.5 | L47: =I47+J47+K47 -> 169380 | M47: =L47*$AG$1 -> 27100.8 | N47: =L47+M47 -> 196480.8 | O47: =(I47/$AE$9*(1+$AD$9)+J47)*(1+$AG$1) -> 17370.275 | P47: =IF($C$17="Anual",0,I47/$AE$9*(1+$AD$9)*(1+$AG$1)) -> 16282.775
C48: 10000 | D48: 10000 | E48: 40712.5 | F48: 57050 | G48: 23975 | H48: =(IF($I$13="Contratada",'Fórmulas Cotización'!$F$26,0)+IF($I$14="Contratada",'Fórmulas Cotización'!$E$26,0)+IF($I$15="Contratada",'Fórmulas Cotización'!$G$26,0)) -> 6100 | I48: =SUM(E48:H48) -> 127837.5 | J48: 937.5 | K48: =$AD$9*(I48) -> 14062.125 | L48: =I48+J48+K48 -> 142837.125 | M48: =L48*$AG$1 -> 22853.94 | N48: =L48+M48 -> 165691.065 | O48: =(I48/$AE$9*(1+$AD$9)+J48)*(1+$AG$1) -> 14804.46375 | P48: =IF($C$17="Anual",0,I48/$AE$9*(1+$AD$9)*(1+$AG$1)) -> 13716.96375
C49: 20000 | D49: 20000 | E49: 33950 | F49: 47537.5 | G49: 19925 | H49: =(IF($I$13="Contratada",'Fórmulas Cotización'!$F$26,0)+IF($I$14="Contratada",'Fórmulas Cotización'!$E$26,0)+IF($I$15="Contratada",'Fórmulas Cotización'!$G$26,0)) -> 6100 | I49: =SUM(E49:H49) -> 107512.5 | J49: 937.5 | K49: =$AD$9*(I49) -> 11826.375 | L49: =I49+J49+K49 -> 120276.375 | M49: =L49*$AG$1 -> 19244.22 | N49: =L49+M49 -> 139520.595 | O49: =(I49/$AE$9*(1+$AD$9)+J49)*(1+$AG$1) -> 12623.59125 | P49: =IF($C$17="Anual",0,I49/$AE$9*(1+$AD$9)*(1+$AG$1)) -> 11536.09125
O51: Prima fraccionada
C52: Deducible (dentro/fuera país) | E52: Titular | F52: Cónyuge | G52: Dependientes | H52: Cob. Adicionales | I52: Tarifa Total | J52: Derecho Póliza | K52: RPF | L52: Prima neta | M52: IVA | N52: Prima Anual | O52: 1er. Recibo | P52: Recibos Subsecuentes
B53: Essential | C53: 1000 | D53: 2000 | E53: =TRANSPOSE('Fórmulas Cotización'!V6:Z7) -> 71225 | F53: 100000 | G53: =TRANSPOSE('Fórmulas Cotización'!V13:Z13) -> 42225 | H53: =(IF($I$13="Contratada",'Fórmulas Cotización'!$F$27,0)+IF($I$14="Contratada",'Fórmulas Cotización'!$E$27,0)+IF($I$15="Contratada",'Fórmulas Cotización'!$G$27,0)) -> 6400 | I53: =SUM(E53:H53) -> 219850 | J53: 937.5 | K53: =$AD$9*(I53) -> 24183.5 | L53: =I53+J53+K53 -> 244971 | M53: =L53*$AG$1 -> 39195.36 | N53: =L53+M53 -> 284166.36 | O53: =(I53/$AE$9*(1+$AD$9)+J53)*(1+$AG$1) -> 24677.405 | P53: =IF($C$17="Anual",0,I53/$AE$9*(1+$AD$9)*(1+$AG$1)) -> 23589.905
C54: 2000 | D54: 3000 | E54: 56625 | F54: 79450 | G54: 33487.5 | H54: =(IF($I$13="Contratada",'Fórmulas Cotización'!$F$27,0)+IF($I$14="Contratada",'Fórmulas Cotización'!$E$27,0)+IF($I$15="Contratada",'Fórmulas Cotización'!$G$27,0)) -> 6400 | I54: =SUM(E54:H54) -> 175962.5 | J54: 937.5 | K54: =$AD$9*(I54) -> 19355.875 | L54: =I54+J54+K54 -> 196255.875 | M54: =L54*$AG$1 -> 31400.94 | N54: =L54+M54 -> 227656.815 | O54: =(I54/$AE$9*(1+$AD$9)+J54)*(1+$AG$1) -> 19968.27625 | P54: =IF($C$17="Anual",0,I54/$AE$9*(1+$AD$9)*(1+$AG$1)) -> 18880.77625
C55: 5000 | D55: 5000 | E55: 37225 | F55: 52137.5 | G55: 21887.5 | H55: =(IF($I$13="Contratada",'Fórmulas Cotización'!$F$27,0)+IF($I$14="Contratada",'Fórmulas Cotización'!$E$27,0)+IF($I$15="Contratada",'Fórmulas Cotización'!$G$27,0)) -> 6400 | I55: =SUM(E55:H55) -> 117650 | J55: 937.5 | K55: =$AD$9*(I55) -> 12941.5 | L55: =I55+J55+K55 -> 131529 | M55: =L55*$AG$1 -> 21044.64 | N55: =L55+M55 -> 152573.64 | O55: =(I55/$AE$9*(1+$AD$9)+J55)*(1+$AG$1) -> 13711.345 | P55: =IF($C$17="Anual",0,I55/$AE$9*(1+$AD$9)*(1+$AG$1)) -> 12623.845
C56: 10000 | D56: 10000 | E56: 31175 | F56: 43637.5 | G56: 18275 | H56: =(IF($I$13="Contratada",'Fórmulas Cotización'!$F$27,0)+IF($I$14="Contratada",'Fórmulas Cotización'!$E$27,0)+IF($I$15="Contratada",'Fórmulas Cotización'!$G$27,0)) -> 6400 | I56: =SUM(E56:H56) -> 99487.5 | J56: 937.5 | K56: =$AD$9*(I56) -> 10943.625 | L56: =I56+J56+K56 -> 111368.625 | M56: =L56*$AG$1 -> 17818.98 | N56: =L56+M56 -> 129187.605 | O56: =(I56/$AE$9*(1+$AD$9)+J56)*(1+$AG$1) -> 11762.50875 | P56: =IF($C$17="Anual",0,I56/$AE$9*(1+$AD$9)*(1+$AG$1)) -> 10675.00875
C57: 20000 | D57: 20000 | E57: 25675 | F57: 35887.5 | G57: 14987.5 | H57: =(IF($I$13="Contratada",'Fórmulas Cotización'!$F$27,0)+IF($I$14="Contratada",'Fórmulas Cotización'!$E$27,0)+IF($I$15="Contratada",'Fórmulas Cotización'!$G$27,0)) -> 6400 | I57: =SUM(E57:H57) -> 82950 | J57: 937.5 | K57: =$AD$9*(I57) -> 9124.5 | L57: =I57+J57+K57 -> 93012 | M57: =L57*$AG$1 -> 14881.92 | N57: =L57+M57 -> 107893.92 | O57: =(I57/$AE$9*(1+$AD$9)+J57)*(1+$AG$1) -> 9988.035 | P57: =IF($C$17="Anual",0,I57/$AE$9*(1+$AD$9)*(1+$AG$1)) -> 8900.535
C60: Deducible (dentro/fuera país) | E60: Titular | F60: Cónyuge | G60: Dependientes | H60: Cob. Adicionales | I60: Tarifa Total | J60: Derecho Póliza | K60: RPF | L60: Prima neta | M60: IVA | N60: Prima Anual | O60: 1er. Recibo | P60: Recibos Subsecuentes
B61: Total | C61: 1000 | D61: 2000 | E61: =TRANSPOSE('Fórmulas Cotización'!AH6:AL7) -> 76237.5 | F61: 107062.5 | G61: =TRANSPOSE('Fórmulas Cotización'!AH13:AL13) -> 45225 | H61: =(IF($I$13="Contratada",'Fórmulas Cotización'!$F$28,0)+IF($I$14="Contratada",'Fórmulas Cotización'!$E$28,0)+IF($I$15="Contratada",'Fórmulas Cotización'!$G$28,0)) -> 6400 | I61: =SUM(E61:H61) -> 234925 | J61: 937.5 | K61: =$AD$9*(I61) -> 25841.75 | L61: =I61+J61+K61 -> 261704.25 | M61: =L61*$AG$1 -> 41872.68 | N61: =L61+M61 -> 303576.93 | O61: =(I61/$AE$9*(1+$AD$9)+J61)*(1+$AG$1) -> 26294.9525 | P61: =IF($C$17="Anual",0,I61/$AE$9*(1+$AD$9)*(1+$AG$1)) -> 25207.4525
C62: 2000 | D62: 3000 | E62: 60575 | F62: 85012.5 | G62: 35850 | H62: =(IF($I$13="Contratada",'Fórmulas Cotización'!$F$28,0)+IF($I$14="Contratada",'Fórmulas Cotización'!$E$28,0)+IF($I$15="Contratada",'Fórmulas Cotización'!$G$28,0)) -> 6400 | I62: =SUM(E62:H62) -> 187837.5 | J62: 937.5 | K62: =$AD$9*(I62) -> 20662.125 | L62: =I62+J62+K62 -> 209437.125 | M62: =L62*$AG$1 -> 33509.94 | N62: =L62+M62 -> 242947.065 | O62: =(I62/$AE$9*(1+$AD$9)+J62)*(1+$AG$1) -> 21242.46375 | P62: =IF($C$17="Anual",0,I62/$AE$9*(1+$AD$9)*(1+$AG$1)) -> 20154.96375
C63: 5000 | D63: 5000 | E63: 39800 | F63: 55775 | G63: 23425 | H63: =(IF($I$13="Contratada",'Fórmulas Cotización'!$F$28,0)+IF($I$14="Contratada",'Fórmulas Cotización'!$E$28,0)+IF($I$15="Contratada",'Fórmulas Cotización'!$G$28,0)) -> 6400 | I63: =SUM(E63:H63) -> 125400 | J63: 937.5 | K63: =$AD$9*(I63) -> 13794 | L63: =I63+J63+K63 -> 140131.5 | M63: =L63*$AG$1 -> 22421.04 | N63: =L63+M63 -> 162552.54 | O63: =(I63/$AE$9*(1+$AD$9)+J63)*(1+$AG$1) -> 14542.92 | P63: =IF($C$17="Anual",0,I63/$AE$9*(1+$AD$9)*(1+$AG$1)) -> 13455.42
C64: 10000 | D64: 10000 | E64: 33312.5 | F64: 46637.5 | G64: 19550 | H64: =(IF($I$13="Contratada",'Fórmulas Cotización'!$F$28,0)+IF($I$14="Contratada",'Fórmulas Cotización'!$E$28,0)+IF($I$15="Contratada",'Fórmulas Cotización'!$G$28,0)) -> 6400 | I64: =SUM(E64:H64) -> 105900 | J64: 937.5 | K64: =$AD$9*(I64) -> 11649 | L64: =I64+J64+K64 -> 118486.5 | M64: =L64*$AG$1 -> 18957.84 | N64: =L64+M64 -> 137444.34 | O64: =(I64/$AE$9*(1+$AD$9)+J64)*(1+$AG$1) -> 12450.57 | P64: =IF($C$17="Anual",0,I64/$AE$9*(1+$AD$9)*(1+$AG$1)) -> 11363.07
C65: 20000 | D65: 20000 | E65: 27500 | F65: 38462.5 | G65: 16075 | H65: =(IF($I$13="Contratada",'Fórmulas Cotización'!$F$28,0)+IF($I$14="Contratada",'Fórmulas Cotización'!$E$28,0)+IF($I$15="Contratada",'Fórmulas Cotización'!$G$28,0)) -> 6400 | I65: =SUM(E65:H65) -> 88437.5 | J65: 937.5 | K65: =$AD$9*(I65) -> 9728.125 | L65: =I65+J65+K65 -> 99103.125 | M65: =L65*$AG$1 -> 15856.5 | N65: =L65+M65 -> 114959.625 | O65: =(I65/$AE$9*(1+$AD$9)+J65)*(1+$AG$1) -> 10576.84375 | P65: =IF($C$17="Anual",0,I65/$AE$9*(1+$AD$9)*(1+$AG$1)) -> 9489.34375
B67: Los costos presentados son anuales y en pesos mexicanos.
B68: Se aplicarán los recargos por pagos fraccionados de acuerdo a la forma de pago elegida.
B69: Esta cotización tiene una vigencia de 30 días naturales a partir de la fecha de elaboración.
B70: La cobertura de Transplante de órganos está incluida en los planes Diamond y Complete como cobertura básica.
B71: La cobertura de Complicaciones de Maternidad no se ofrece para los planes Diamond y Complete en opciones de deducible 1,000/2,000 y 2,000/3,000
B73: La presente cotización es de carácter informativo, no constituye una solicitud de seguro y/o el monto de la prima definitiva y/o las condiciones de la misma y/o una oferta de aseguramiento en términos del artículo 5to de la Ley Sobre el Contrato de Seguro. La emisión de la póliza así como posibles cambios en la tarifa están sujetos a valoración del riesgo de acuerdo con las políticas de Suscripción de Bupa México y es susceptible de modificaciones, por lo que Bupa podrá aceptar o negar el aseguramiento del riesgo propuesto. Este cotizador es válido del del 1 de Marzo del 2022 al 31 de Diciembre del 2022.
B93: Actualización - 2022

Sheet Bupa Total (hidden)
A1: Zona 1: Ciudad de México (D.F. y área metropolitana) y franja fronteriza norte | H1: Zona 2: Nuevo León, Sonora, Coahuila, Chihuahua, Tamaulipas, Baja California Norte y Baja California Sur | O1: Zona 3: Jalisco, Puebla, Morelos, Estado de México (excepto Área Metropolitana), Quintana Roo, Guerrero (Acapulco y Zihuatanejo), Hidalgo y Querétaro | V1: Zona 4: Sinaloa, Guanajuato, San Luis Potosí, Durango, Aguascalientes, Nayarit, Michoacán, Colima, Zacatecas | AC1: Zona 5: Guerrero (excepto Acapulco y Zihuatanejo), Veracruz, Chiapas, Tabasco, Campeche, Oaxaca, Tlaxcala, Yucatán
A2: Primas de riesgo expresadas en pesos mexicanos | H2: Primas de riesgo expresadas en pesos mexicanos | O2: Primas de riesgo expresadas en pesos mexicanos | V2: Primas de riesgo expresadas en pesos mexicanos | AC2: Primas de riesgo expresadas en pesos mexicanos
A3: Edad | B3: ET21 | C3: ET31 | D3: ET41 | E3: ET51 | F3: ET61 | H3: Edad | I3: ET22 | J3: ET32 | K3: ET42 | L3: ET52 | M3: ET62 | O3: Edad | P3: ET23 | Q3: ET33 | R3: ET43 | S3: ET53 | T3: ET63 | V3: Edad | W3: ET24 | X3: ET34 | Y3: ET44 | Z3: ET54 | AA3: ET64 | AC3: Edad | AD3: ET25 | AE3: ET35 | AF3: ET45 | AG3: ET55 | AH3: ET65
A4: 1 menor | B4: =B105*0.6 -> 17220 | C4: 13650 | D4: 8925 | E4: 7447.5 | F4: 6120 | H4: 1 menor | I4: =I105*0.6 -> 15157.5 | J4: 12015 | K4: 7852.5 | L4: 6555 | M4: 5385 | O4: 1 menor | P4: =P105*0.6 -> 13260 | Q4: 10515 | R4: 6870 | S4: 5730 | T4: 4710 | V4: 1 menor | W4: =W105*0.6 -> 11880 | X4: 9420 | Y4: 6157.5 | Z4: 5137.5 | AA4: 4222.5 | AC4: 1 menor | AD4: =AD105*0.6 -> 10852.5 | AE4: 8602.5 | AF4: 5617.5 | AG4: 4687.5 | AH4: 3855
A5: 2 menor | B5: 27135 | C5: 21510 | D5: 14055 | E5: 11730 | F5: 9645 | H5: 2 menores | I5: 23880 | J5: 18930 | K5: 12375 | L5: 10320 | M5: 8490 | O5: 2 menores | P5: 20895 | Q5: 16567.5 | R5: 10822.5 | S5: 9030 | T5: 7425 | V5: 2 menores | W5: 18720 | X5: 14842.5 | Y5: 9697.5 | Z5: 8092.5 | AA5: 6652.5 | AC5: 2 menores | AD5: 17092.5 | AE5: 13552.5 | AF5: 8857.5 | AG5: 7387.5 | AH5: 6075
A6: 3 menor | B6: 39592.5 | C6: 31387.5 | D6: 20512.5 | E6: 17115 | F6: 14070 | H6: 3 ó más menores | I6: 34837.5 | J6: 27622.5 | K6: 18052.5 | L6: 15060 | M6: 12382.5 | O6: 3 ó más menores | P6: 30480 | Q6: 24165 | R6: 15795 | S6: 13177.5 | T6: 10837.5 | V6: 3 ó más menores | W6: 27315 | X6: 21660 | Y6: 14152.5 | Z6: 11812.5 | AA6: 9712.5 | AC6: 3 ó más menores | AD6: 24945 | AE6: 19777.5 | AF6: 12922.5 | AG6: 10785 | AH6: 8865
A7: 18 | B7: 39720 | C7: 31492.5 | D7: 20580 | E7: 17175 | F7: 14122.5 | H7: 18 | I7: 34957.5 | J7: 27712.5 | K7: 18112.5 | L7: 15112.5 | M7: 12427.5 | O7: 18 | P7: 30585 | Q7: 24247.5 | R7: 15847.5 | S7: 13222.5 | T7: 10875 | V7: 18 | W7: 27412.5 | X7: 21727.5 | Y7: 14197.5 | Z7: 11850 | AA7: 9742.5 | AC7: 18 | AD7: 25027.5 | AE7: 19845 | AF7: 12967.5 | AG7: 10815 | AH7: 8895
A8: 19 | B8: 41332.5 | C8: 32767.5 | D8: 21412.5 | E8: 17865 | F8: 14692.5 | H8: 19 | I8: 36375 | J8: 28837.5 | K8: 18847.5 | L8: 15720 | M8: 12930 | O8: 19 | P8: 31822.5 | Q8: 25230 | R8: 16485 | S8: 13755 | T8: 11310 | V8: 19 | W8: 28515 | X8: 22612.5 | Y8: 14775 | Z8: 12330 | AA8: 10140 | AC8: 19 | AD8: 26040 | AE8: 20647.5 | AF8: 13492.5 | AG8: 11257.5 | AH8: 9255
A9: 20 | B9: 42637.5 | C9: 33802.5 | D9: 22087.5 | E9: 18435 | F9: 15157.5 | H9: 20 | I9: 37522.5 | J9: 29745 | K9: 19440 | L9: 16222.5 | M9: 13335 | O9: 20 | P9: 32827.5 | Q9: 26025 | R9: 17010 | S9: 14190 | T9: 11670 | V9: 20 | W9: 29415 | X9: 23325 | Y9: 15240 | Z9: 12720 | AA9: 10455 | AC9: 20 | AD9: 26857.5 | AE9: 21292.5 | AF9: 13920 | AG9: 11610 | AH9: 9547.5
A10: 21 | B10: =B111*0.6 -> 43980 | C10: =C111*0.6 -> 34867.5 | D10: 22785 | E10: 19012.5 | F10: 15637.5 | H10: 21 | I10: =I111*0.6 -> 38700 | J10: 30682.5 | K10: 20055 | L10: 16732.5 | M10: 13755 | O10: 21 | P10: =P111*0.6 -> 33862.5 | Q10: 26850 | R10: 17550 | S10: 14640 | T10: 12037.5 | V10: 21 | W10: =W111*0.6 -> 30345 | X10: 24060 | Y10: 15720 | Z10: 13117.5 | AA10: 10785 | AC10: 21 | AD10: =AD111*0.6 -> 27705 | AE10: 21967.5 | AF10: 14355 | AG10: 11977.5 | AH10: 9847.5
A11: 22 | B11: 45367.5 | C11: 35970 | D11: 23505 | E11: 19612.5 | F11: 16125 | H11: 22 | I11: 39922.5 | J11: 31657.5 | K11: 20685 | L11: 17257.5 | M11: 14190 | O11: 22 | P11: 34935 | Q11: 27697.5 | R11: 18097.5 | S11: 15105 | T11: 12420 | V11: 22 | W11: 31305 | X11: 24817.5 | Y11: 16222.5 | Z11: 13530 | AA11: 11130 | AC11: 22 | AD11: 28582.5 | AE11: 22665 | AF11: 14812.5 | AG11: 12360 | AH11: 10162.5
A12: 23 | B12: 46800 | C12: 37110 | D12: 24247.5 | E12: 20235 | F12: 16635 | H12: 23 | I12: 41190 | J12: 32655 | K12: 21337.5 | L12: 17805 | M12: 14640 | O12: 23 | P12: 36037.5 | Q12: 28575 | R12: 18675 | S12: 15577.5 | T12: 12810 | V12: 23 | W12: 32295 | X12: 25605 | Y12: 16732.5 | Z12: 13957.5 | AA12: 11482.5 | AC12: 23 | AD12: 29482.5 | AE12: 23377.5 | AF12: 15277.5 | AG12: 12750 | AH12: 10485
A13: 24 | B13: 48277.5 | C13: 38280 | D13: 25012.5 | E13: 20872.5 | F13: 17160 | H13: 24 | I13: 42487.5 | J13: 33682.5 | K13: 22012.5 | L13: 18367.5 | M13: 15105 | O13: 24 | P13: 37177.5 | Q13: 29475 | R13: 19260 | S13: 16072.5 | T13: 13215 | V13: 24 | W13: 33315 | X13: 26415 | Y13: 17257.5 | Z13: 14400 | AA13: 11842.5 | AC13: 24 | AD13: 30420 | AE13: 24112.5 | AF13: 15757.5 | AG13: 13147.5 | AH13: 10815
A14: 25 | B14: 49807.5 | C14: 39487.5 | D14: 25807.5 | E14: 21532.5 | F14: 17700 | H14: 25 | I14: 43830 | J14: 34747.5 | K14: 22710 | L14: 18945 | M14: 15577.5 | O14: 25 | P14: 38347.5 | Q14: 30405 | R14: 19867.5 | S14: 16575 | T14: 13635 | V14: 25 | W14: 34365 | X14: 27247.5 | Y14: 17805 | Z14: 14857.5 | AA14: 12217.5 | AC14: 25 | AD14: 31380 | AE14: 24877.5 | AF14: 16260 | AG14: 13567.5 | AH14: 11152.5
A15: 26 | B15: 51375 | C15: 40732.5 | D15: 26617.5 | E15: 22207.5 | F15: 18262.5 | H15: 26 | I15: 45210 | J15: 35842.5 | K15: 23422.5 | L15: 19545 | M15: 16072.5 | O15: 26 | P15: 39562.5 | Q15: 31365 | R15: 20497.5 | S15: 17100 | T15: 14062.5 | V15: 26 | W15: 35452.5 | X15: 28102.5 | Y15: 18367.5 | Z15: 15322.5 | AA15: 12600 | AC15: 26 | AD15: 32370 | AE15: 25665 | AF15: 16770 | AG15: 13995 | AH15: 11505
A16: 27 | B16: 52995 | C16: 42022.5 | D16: 27457.5 | E16: 22912.5 | F16: 18840 | H16: 27 | I16: 46635 | J16: 36975 | K16: 24165 | L16: 20160 | M16: 16575 | O16: 27 | P16: 40807.5 | Q16: 32355 | R16: 21142.5 | S16: 17640 | T16: 14505 | V16: 27 | W16: 36570 | X16: 28995 | Y16: 18945 | Z16: 15810 | AA16: 12997.5 | AC16: 27 | AD16: 33390 | AE16: 26475 | AF16: 17302.5 | AG16: 14437.5 | AH16: 11865
A17: 28 | B17: 54675 | C17: 43342.5 | D17: 28327.5 | E17: 23632.5 | F17: 19432.5 | H17: 28 | I17: 48112.5 | J17: 38145 | K17: 24930 | L17: 20797.5 | M17: 17100 | O17: 28 | P17: 42097.5 | Q17: 33375 | R17: 21810 | S17: 18195 | T17: 14962.5 | V17: 28 | W17: 37725 | X17: 29910 | Y17: 19545 | Z17: 16305 | AA17: 13410 | AC17: 28 | AD17: 34440 | AE17: 27307.5 | AF17: 17842.5 | AG17: 14887.5 | AH17: 12240
A18: 29 | B18: 56400 | C18: 44715 | D18: 29220 | E18: 24382.5 | F18: 20047.5 | H18: 29 | I18: 49627.5 | J18: 39345 | K18: 25717.5 | L18: 21457.5 | M18: 17640 | O18: 29 | P18: 43425 | Q18: 34432.5 | R18: 22500 | S18: 18772.5 | T18: 15435 | V18: 29 | W18: 38917.5 | X18: 30855 | Y18: 20160 | Z18: 16822.5 | AA18: 13830 | AC18: 29 | AD18: 35527.5 | AE18: 28170 | AF18: 18412.5 | AG18: 15360 | AH18: 12630
A19: 30 | B19: 58177.5 | C19: 46125 | D19: 30142.5 | E19: 25147.5 | F19: 20677.5 | H19: 30 | I19: 51195 | J19: 40590 | K19: 26527.5 | L19: 22132.5 | M19: 18195 | O19: 30 | P19: 44797.5 | Q19: 35520 | R19: 23212.5 | S19: 19365 | T19: 15922.5 | V19: 30 | W19: 40140 | X19: 31830 | Y19: 20797.5 | Z19: 17355 | AA19: 14272.5 | AC19: 30 | AD19: 36652.5 | AE19: 29062.5 | AF19: 18990 | AG19: 15847.5 | AH19: 13027.5
A20: 31 | B20: 60015 | C20: 47580 | D20: 31095 | E20: 25942.5 | F20: 21330 | H20: 31 | I20: 52815 | J20: 41872.5 | K20: 27360 | L20: 22830 | M20: 18772.5 | O20: 31 | P20: 46215 | Q20: 36637.5 | R20: 23940 | S20: 19980 | T20: 16425 | V20: 31 | W20: 41407.5 | X20: 32835 | Y20: 21457.5 | Z20: 17902.5 | AA20: 14722.5 | AC20: 31 | AD20: 37807.5 | AE20: 29977.5 | AF20: 19590 | AG20: 16342.5 | AH20: 13440
A21: 32 | B21: =B122*0.6 -> 61912.5 | C21: 49087.5 | D21: 32077.5 | E21: 26760 | F21: 22005 | H21: 32 | I21: =I122*0.6 -> 54480 | J21: 43192.5 | K21: 28230 | L21: 23550 | M21: 19365 | O21: 32 | P21: =P122*0.6 -> 47670 | Q21: 37792.5 | R21: 24697.5 | S21: 20610 | T21: 16942.5 | V21: 32 | W21: =W122*0.6 -> 42720 | X21: 33870 | Y21: 22132.5 | Z21: 18465 | AA21: 15187.5 | AC21: 32 | AD21: =AD122*0.6 -> 39000 | AE21: 30922.5 | AF21: 20205 | AG21: 16860 | AH21: 13867.5
A22: 33 | B22: 63862.5 | C22: 50632.5 | D22: 33090 | E22: 27607.5 | F22: 22702.5 | H22: 33 | I22: 56197.5 | J22: 44557.5 | K22: 29115 | L22: 24292.5 | M22: 19980 | O22: 33 | P22: 49177.5 | Q22: 38985 | R22: 25477.5 | S22: 21255 | T22: 17482.5 | V22: 33 | W22: 44070 | X22: 34935 | Y22: 22830 | Z22: 19050 | AA22: 15667.5 | AC22: 33 | AD22: 40237.5 | AE22: 31897.5 | AF22: 20842.5 | AG22: 17392.5 | AH22: 14302.5
A23: 34 | B23: 65880 | C23: 52230 | D23: 34132.5 | E23: 28477.5 | F23: 23415 | H23: 34 | I23: 57975 | J23: 45967.5 | K23: 30037.5 | L23: 25065 | M23: 20610 | O23: 34 | P23: 50730 | Q23: 40222.5 | R23: 26280 | S23: 21930 | T23: 18030 | V23: 34 | W23: 45457.5 | X23: 36037.5 | Y23: 23550 | Z23: 19650 | AA23: 16155 | AC23: 34 | AD23: 41505 | AE23: 32910 | AF23: 21502.5 | AG23: 17940 | AH23: 14752.5
A24: 35 | B24: 66225 | C24: 52500 | D24: 34312.5 | E24: 28627.5 | F24: 23542.5 | H24: 35 | I24: 58275 | J24: 46200 | K24: 30195 | L24: 25192.5 | M24: 20715 | O24: 35 | P24: 50992.5 | Q24: 40425 | R24: 26422.5 | S24: 22042.5 | T24: 18127.5 | V24: 35 | W24: 45690 | X24: 36225 | Y24: 23677.5 | Z24: 19755 | AA24: 16245 | AC24: 35 | AD24: 41722.5 | AE24: 33075 | AF24: 21615 | AG24: 18037.5 | AH24: 14827.5
A25: 36 | B25: 67740 | C25: 53707.5 | D25: 35092.5 | E25: 29280 | F25: 24075 | H25: 36 | I25: 59610 | J25: 47257.5 | K25: 30885 | L25: 25770 | M25: 21187.5 | O25: 36 | P25: 52155 | Q25: 41355 | R25: 27022.5 | S25: 22545 | T25: 18540 | V25: 36 | W25: 46740 | X25: 37057.5 | Y25: 24217.5 | Z25: 20205 | AA25: 16612.5 | AC25: 36 | AD25: 42675 | AE25: 33832.5 | AF25: 22110 | AG25: 18450 | AH25: 15172.5
A26: 37 | B26: 69285 | C26: 54930 | D26: 35895 | E26: 29955 | F26: 24630 | H26: 37 | I26: 60975 | J26: 48345 | K26: 31590 | L26: 26355 | M26: 21675 | O26: 37 | P26: 53355 | Q26: 42300 | R26: 27645 | S26: 23062.5 | T26: 18967.5 | V26: 37 | W26: 47805 | X26: 37905 | Y26: 24772.5 | Z26: 20670 | AA26: 16995 | AC26: 37 | AD26: 43650 | AE26: 34605 | AF26: 22620 | AG26: 18870 | AH26: 15517.5
A27: 38 | B27: 70875 | C27: 56190 | D27: 36720 | E27: 30637.5 | F27: 25192.5 | H27: 38 | I27: 62370 | J27: 49447.5 | K27: 32310 | L27: 26962.5 | M27: 22170 | O27: 38 | P27: 54570 | Q27: 43267.5 | R27: 28275 | S27: 23595 | T27: 19395 | V27: 38 | W27: 48900 | X27: 38775 | Y27: 25335 | Z27: 21142.5 | AA27: 17385 | AC27: 38 | AD27: 44647.5 | AE27: 35400 | AF27: 23130 | AG27: 19305 | AH27: 15870
A28: 39 | B28: 72495 | C28: 57480 | D28: 37560 | E28: 31342.5 | F28: 25770 | H28: 39 | I28: 63795 | J28: 50580 | K28: 33052.5 | L28: 27577.5 | M28: 22680 | O28: 39 | P28: 55822.5 | Q28: 44257.5 | R28: 28920 | S28: 24135 | T28: 19845 | V28: 39 | W28: 50025 | X28: 39660 | Y28: 25920 | Z28: 21622.5 | AA28: 17782.5 | AC28: 39 | AD28: 45675 | AE28: 36210 | AF28: 23662.5 | AG28: 19747.5 | AH28: 16237.5
A29: 40 | B29: 74152.5 | C29: 58792.5 | D29: 38422.5 | E29: 32055 | F29: 26362.5 | H29: 40 | I29: 65257.5 | J29: 51735 | K29: 33810 | L29: 28207.5 | M29: 23197.5 | O29: 40 | P29: 57097.5 | Q29: 45270 | R29: 29580 | S29: 24682.5 | T29: 20295 | V29: 40 | W29: 51165 | X29: 40567.5 | Y29: 26512.5 | Z29: 22117.5 | AA29: 18187.5 | AC29: 40 | AD29: 46717.5 | AE29: 37035 | AF29: 24202.5 | AG29: 20197.5 | AH29: 16605
A30: 41 | B30: 75847.5 | C30: 60135 | D30: 39300 | E30: 32790 | F30: 26962.5 | H30: 41 | I30: 66750 | J30: 52920 | K30: 34582.5 | L30: 28852.5 | M30: 23730 | O30: 41 | P30: 58402.5 | Q30: 46305 | R30: 30262.5 | S30: 25245 | T30: 20760 | V30: 41 | W30: 52335 | X30: 41497.5 | Y30: 27120 | Z30: 22627.5 | AA30: 18607.5 | AC30: 41 | AD30: 47782.5 | AE30: 37890 | AF30: 24757.5 | AG30: 20655 | AH30: 16987.5
A31: 42 | B31: 77587.5 | C31: 61515 | D31: 40200 | E31: 33540 | F31: 27577.5 | H31: 42 | I31: 68272.5 | J31: 54135 | K31: 35377.5 | L31: 29512.5 | M31: 24270 | O31: 42 | P31: 59745 | Q31: 47362.5 | R31: 30952.5 | S31: 25830 | T31: 21240 | V31: 42 | W31: 53535 | X31: 42442.5 | Y31: 27735 | Z31: 23145 | AA31: 19027.5 | AC31: 42 | AD31: 48877.5 | AE31: 38752.5 | AF31: 25327.5 | AG31: 21127.5 | AH31: 17377.5
A32: 43 | B32: 79365 | C32: 62917.5 | D32: 41115 | E32: 34305 | F32: 28207.5 | H32: 43 | I32: 69840 | J32: 55372.5 | K32: 36187.5 | L32: 30195 | M32: 24825 | O32: 43 | P32: 61110 | Q32: 48450 | R32: 31665 | S32: 26415 | T32: 21720 | V32: 43 | W32: 54757.5 | X32: 43417.5 | Y32: 28372.5 | Z32: 23670 | AA32: 19462.5 | AC32: 43 | AD32: 49995 | AE32: 39637.5 | AF32: 25905 | AG32: 21615 | AH32: 17775
A33: 44 | B33: 81180 | C33: 64357.5 | D33: 42060 | E33: 35092.5 | F33: 28852.5 | H33: 44 | I33: 71437.5 | J33: 56640 | K33: 37012.5 | L33: 30885 | M33: 25395 | O33: 44 | P33: 62505 | Q33: 49560 | R33: 32385 | S33: 27022.5 | T33: 22222.5 | V33: 44 | W33: 56010 | X33: 44407.5 | Y33: 29017.5 | Z33: 24217.5 | AA33: 19912.5 | AC33: 44 | AD33: 51142.5 | AE33: 40545 | AF33: 26497.5 | AG33: 22110 | AH33: 18180
A34: 45 | B34: 83032.5 | C34: 65835 | D34: 43020 | E34: 35895 | F34: 29520 | H34: 45 | I34: 73072.5 | J34: 57930 | K34: 37860 | L34: 31590 | M34: 25972.5 | O34: 45 | P34: 63937.5 | Q34: 50692.5 | R34: 33127.5 | S34: 27637.5 | T34: 22725 | V34: 45 | W34: 57292.5 | X34: 45427.5 | Y34: 29685 | Z34: 24765 | AA34: 20370 | AC34: 45 | AD34: 52312.5 | AE34: 41475 | AF34: 27105 | AG34: 22612.5 | AH34: 18592.5
A35: 46 | B35: 84937.5 | C35: 67342.5 | D35: 44010 | E35: 36720 | F35: 30195 | H35: 46 | I35: 74745 | J35: 59257.5 | K35: 38722.5 | L35: 32310 | M35: 26565 | O35: 46 | P35: 65400 | Q35: 51855 | R35: 33885 | S35: 28275 | T35: 23250 | V35: 46 | W35: 58605 | X35: 46462.5 | Y35: 30367.5 | Z35: 25335 | AA35: 20835 | AC35: 46 | AD35: 53512.5 | AE35: 42427.5 | AF35: 27727.5 | AG35: 23130 | AH35: 19020
A36: 47 | B36: 86880 | C36: 68880 | D36: 45015 | E36: 37560 | F36: 30885 | H36: 47 | I36: 76455 | J36: 60615 | K36: 39615 | L36: 33052.5 | M36: 27180 | O36: 47 | P36: 66900 | Q36: 53040 | R36: 34657.5 | S36: 28920 | T36: 23782.5 | V36: 47 | W36: 59947.5 | X36: 47527.5 | Y36: 31057.5 | Z36: 25912.5 | AA36: 21307.5 | AC36: 47 | AD36: 54735 | AE36: 43395 | AF36: 28357.5 | AG36: 23662.5 | AH36: 19455
A37: 48 | B37: =B138*0.6 -> 88867.5 | C37: 70455 | D37: 46042.5 | E37: 38415 | F37: 31590 | H37: 48 | I37: =I138*0.6 -> 78202.5 | J37: 62002.5 | K37: 40515 | L37: 33810 | M37: 27795 | O37: 48 | P37: =P138*0.6 -> 68430 | Q37: 54255 | R37: 35452.5 | S37: 29580 | T37: 24322.5 | V37: 48 | W37: =W138*0.6 -> 61320 | X37: 48615 | Y37: 31770 | Z37: 26505 | AA37: 21795 | AC37: 48 | AD37: =AD138*0.6 -> 55987.5 | AE37: 44385 | AF37: 29010 | AG37: 24202.5 | AH37: 19905
A38: 49 | B38: 90900 | C38: 72067.5 | D38: 47100 | E38: 39300 | F38: 32310 | H38: 49 | I38: 79995 | J38: 63420 | K38: 41445 | L38: 34582.5 | M38: 28432.5 | O38: 49 | P38: 69990 | Q38: 55492.5 | R38: 36262.5 | S38: 30255 | T38: 24877.5 | V38: 49 | W38: 62722.5 | X38: 49725 | Y38: 32497.5 | Z38: 27112.5 | AA38: 22297.5 | AC38: 49 | AD38: 57270 | AE38: 45405 | AF38: 29670 | AG38: 24757.5 | AH38: 20355
A39: 50 | B39: 92977.5 | C39: 73717.5 | D39: 48172.5 | E39: 40192.5 | F39: 33052.5 | H39: 50 | I39: 81825 | J39: 64875 | K39: 42390 | L39: 35370 | M39: 29085 | O39: 50 | P39: 71595 | Q39: 56760 | R39: 37095 | S39: 30952.5 | T39: 25447.5 | V39: 50 | W39: 64155 | X39: 50865 | Y39: 33240 | Z39: 27735 | AA39: 22807.5 | AC39: 50 | AD39: 58575 | AE39: 46440 | AF39: 30352.5 | AG39: 25320 | AH39: 20820
A40: 51 | B40: 95107.5 | C40: 75405 | D40: 49275 | E40: 41115 | F40: 33810 | H40: 51 | I40: 83692.5 | J40: 66360 | K40: 43365 | L40: 36180 | M40: 29752.5 | O40: 51 | P40: 73230 | Q40: 58065 | R40: 37942.5 | S40: 31657.5 | T40: 26032.5 | V40: 51 | W40: 65625 | X40: 52027.5 | Y40: 34005 | Z40: 28372.5 | AA40: 23325 | AC40: 51 | AD40: 59917.5 | AE40: 47505 | AF40: 31042.5 | AG40: 25905 | AH40: 21300
A41: 52 | B41: 97282.5 | C41: 77130 | D41: 50407.5 | E41: 42060 | F41: 34582.5 | H41: 52 | I41: 85612.5 | J41: 67875 | K41: 44355 | L41: 37012.5 | M41: 30435 | O41: 52 | P41: 74910 | Q41: 59392.5 | R41: 38812.5 | S41: 32385 | T41: 26625 | V41: 52 | W41: 67125 | X41: 53220 | Y41: 34777.5 | Z41: 29017.5 | AA41: 23865 | AC41: 52 | AD41: 61290 | AE41: 48592.5 | AF41: 31755 | AG41: 26497.5 | AH41: 21787.5
A42: 53 | B42: 99510 | C42: 78900 | D42: 51555 | E42: 43020 | F42: 35370 | H42: 53 | I42: 87570 | J42: 69427.5 | K42: 45375 | L42: 37860 | M42: 31125 | O42: 53 | P42: 76620 | Q42: 60750 | R42: 39697.5 | S42: 33127.5 | T42: 27240 | V42: 53 | W42: 68662.5 | X42: 54435 | Y42: 35572.5 | Z42: 29685 | AA42: 24405 | AC42: 53 | AD42: 62692.5 | AE42: 49702.5 | AF42: 32482.5 | AG42: 27105 | AH42: 22282.5
A43: 54 | B43: 104685 | C43: 82995 | D43: 54240 | E43: 45255 | F43: 37215 | H43: 54 | I43: 92122.5 | J43: 73035 | K43: 47730 | L43: 39825 | M43: 32745 | O43: 54 | P43: 80602.5 | Q43: 63907.5 | R43: 41760 | S43: 34845 | T43: 28650 | V43: 54 | W43: 72232.5 | X43: 57270 | Y43: 37425 | Z43: 31222.5 | AA43: 25672.5 | AC43: 54 | AD43: 65947.5 | AE43: 52290 | AF43: 34170 | AG43: 28507.5 | AH43: 23445
A44: 55 | B44: 110910 | C44: 87937.5 | D44: 57465 | E44: 47947.5 | F44: 39427.5 | H44: 55 | I44: 97605 | J44: 77385 | K44: 50572.5 | L44: 42195 | M44: 34695 | O44: 55 | P44: 85402.5 | Q44: 67710 | R44: 44250 | S44: 36922.5 | T44: 30360 | V44: 55 | W44: 76530 | X44: 60675 | Y44: 39652.5 | Z44: 33082.5 | AA44: 27202.5 | AC44: 55 | AD44: 69877.5 | AE44: 55402.5 | AF44: 36202.5 | AG44: 30210 | AH44: 24840
A45: 56 | B45: 117517.5 | C45: 93172.5 | D45: 60885 | E45: 50805 | F45: 41775 | H45: 56 | I45: 103410 | J45: 81990 | K45: 53580 | L45: 44707.5 | M45: 36757.5 | O45: 56 | P45: 90487.5 | Q45: 71737.5 | R45: 46882.5 | S45: 39120 | T45: 32167.5 | V45: 56 | W45: 81082.5 | X45: 64290 | Y45: 42015 | Z45: 35055 | AA45: 28822.5 | AC45: 56 | AD45: 74032.5 | AE45: 58695 | AF45: 38355 | AG45: 32002.5 | AH45: 26317.5
A46: 57 | B46: 121372.5 | C46: 96225 | D46: 62880 | E46: 52470 | F46: 43140 | H46: 57 | I46: 106807.5 | J46: 84682.5 | K46: 55335 | L46: 46170 | M46: 37965 | O46: 57 | P46: 93457.5 | Q46: 74092.5 | R46: 48420 | S46: 40402.5 | T46: 33217.5 | V46: 57 | W46: 83745 | X46: 66397.5 | Y46: 43387.5 | Z46: 36202.5 | AA46: 29767.5 | AC46: 57 | AD46: 76462.5 | AE46: 60622.5 | AF46: 39615 | AG46: 33052.5 | AH46: 27180
A47: 58 | B47: 128595 | C47: 101955 | D47: 66622.5 | E47: 55590 | F47: 45712.5 | H47: 58 | I47: 113160 | J47: 89722.5 | K47: 58627.5 | L47: 48922.5 | M47: 40222.5 | O47: 58 | P47: 99015 | Q47: 78502.5 | R47: 51300 | S47: 42802.5 | T47: 35197.5 | V47: 58 | W47: 88732.5 | X47: 70350 | Y47: 45975 | Z47: 38355 | AA47: 31537.5 | AC47: 58 | AD47: 81015 | AE47: 64230 | AF47: 41977.5 | AG47: 35025 | AH47: 28800
A48: 59 | B48: 136245 | C48: 108022.5 | D48: 70590 | E48: 58897.5 | F48: 48435 | H48: 59 | I48: 119895 | J48: 95062.5 | K48: 62122.5 | L48: 51832.5 | M48: 42622.5 | O48: 59 | P48: 104910 | Q48: 83175 | R48: 54352.5 | S48: 45352.5 | T48: 37290 | V48: 59 | W48: 94012.5 | X48: 74535 | Y48: 48705 | Z48: 40642.5 | AA48: 33420 | AC48: 59 | AD48: 85837.5 | AE48: 68055 | AF48: 44475 | AG48: 37110 | AH48: 30510
A49: 60 | B49: 144352.5 | C49: 114450 | D49: 74790 | E49: 62407.5 | F49: 51315 | H49: 60 | I49: 127035 | J49: 100717.5 | K49: 65820 | L49: 54915 | M49: 45157.5 | O49: 60 | P49: 111157.5 | Q49: 88125 | R49: 57592.5 | S49: 48052.5 | T49: 39510 | V49: 60 | W49: 99607.5 | X49: 78967.5 | Y49: 51607.5 | Z49: 43057.5 | AA49: 35407.5 | AC49: 60 | AD49: 90945 | AE49: 72105 | AF49: 47122.5 | AG49: 39315 | AH49: 32325
A50: 61 | B50: 152947.5 | C50: 121260 | D50: 79245 | E50: 66120 | F50: 54367.5 | H50: 61 | I50: 134595 | J50: 106710 | K50: 69735 | L50: 58185 | M50: 47842.5 | O50: 61 | P50: 117772.5 | Q50: 93375 | R50: 61020 | S50: 50910 | T50: 41865 | V50: 61 | W50: 105532.5 | X50: 83670 | Y50: 54675 | Z50: 45622.5 | AA50: 37515 | AC50: 61 | AD50: 96360 | AE50: 76395 | AF50: 49920 | AG50: 41655 | AH50: 34252.5
A51: 62 | B51: 162052.5 | C51: 128482.5 | D51: 83962.5 | E51: 70057.5 | F51: 57600 | H51: 62 | I51: 142605 | J51: 113062.5 | K51: 73882.5 | L51: 61650 | M51: 50692.5 | O51: 62 | P51: 124777.5 | Q51: 98932.5 | R51: 64650 | S51: 53940 | T51: 44355 | V51: 62 | W51: 111817.5 | X51: 88650 | Y51: 57930 | Z51: 48337.5 | AA51: 39750 | AC51: 62 | AD51: 102090 | AE51: 80940 | AF51: 52897.5 | AG51: 44137.5 | AH51: 36292.5
A52: 63 | B52: 171697.5 | C52: 136125 | D52: 88957.5 | E52: 74227.5 | F52: 61035 | H52: 63 | I52: 151095 | J52: 119790 | K52: 78285 | L52: 65317.5 | M52: 53707.5 | O52: 63 | P52: 132202.5 | Q52: 104820 | R52: 68497.5 | S52: 57150 | T52: 46995 | V52: 63 | W52: 118470 | X52: 93930 | Y52: 61380 | Z52: 51217.5 | AA52: 42112.5 | AC52: 63 | AD52: 108165 | AE52: 85762.5 | AF52: 56040 | AG52: 46762.5 | AH52: 38452.5
A53: 64 | B53: =B154*0.6 -> 181912.5 | C53: 144225 | D53: 94252.5 | E53: 78645 | F53: 64665 | H53: 64 | I53: =I154*0.6 -> 160080 | J53: 126922.5 | K53: 82942.5 | L53: 69202.5 | M53: 56902.5 | O53: 64 | P53: =P154*0.6 -> 140070 | Q53: 111052.5 | R53: 72577.5 | S53: 60555 | T53: 49792.5 | V53: 64 | W53: =W154*0.6 -> 125520 | X53: 99517.5 | Y53: 65032.5 | Z53: 54262.5 | AA53: 44617.5 | AC53: 64 | AD53: =AD154*0.6 -> 114607.5 | AE53: 90862.5 | AF53: 59377.5 | AG53: 49545 | AH53: 40740
A54: 65 | B54: 192742.5 | C54: 152812.5 | D54: 99862.5 | E54: 83325 | F54: 68512.5 | H54: 65 | I54: 169612.5 | J54: 134475 | K54: 87877.5 | L54: 73320 | M54: 60292.5 | O54: 65 | P54: 148410 | Q54: 117667.5 | R54: 76890 | S54: 64155 | T54: 52755 | V54: 65 | W54: 132990 | X54: 105442.5 | Y54: 68902.5 | Z54: 57495 | AA54: 47272.5 | AC54: 65 | AD54: 121425 | AE54: 96270 | AF54: 62910 | AG54: 52492.5 | AH54: 43162.5
A55: 66 | B55: 204210 | C55: 161910 | D55: 105802.5 | E55: 88282.5 | F55: 72592.5 | H55: 66 | I55: 179707.5 | J55: 142477.5 | K55: 93105 | L55: 77685 | M55: 63877.5 | O55: 66 | P55: 157245 | Q55: 124665 | R55: 81472.5 | S55: 67980 | T55: 55897.5 | V55: 66 | W55: 140902.5 | X55: 111712.5 | Y55: 73005 | Z55: 60915 | AA55: 50085 | AC55: 66 | AD55: 128655 | AE55: 102000 | AF55: 66660 | AG55: 55620 | AH55: 45735
A56: 67 | B56: 218197.5 | C56: 172995 | D56: 113055 | E56: 94327.5 | F56: 77565 | H56: 67 | I56: 192015 | J56: 152235 | K56: 99487.5 | L56: 83010 | M56: 68257.5 | O56: 67 | P56: 168015 | Q56: 133207.5 | R56: 87052.5 | S56: 72630 | T56: 59722.5 | V56: 67 | W56: 150555 | X56: 119370 | Y56: 78007.5 | Z56: 65085 | AA56: 53520 | AC56: 67 | AD56: 137467.5 | AE56: 108990 | AF56: 71220 | AG56: 59430 | AH56: 48862.5
A57: 68 | B57: 233160 | C57: 184860 | D57: 120802.5 | E57: 100800 | F57: 82882.5 | H57: 68 | I57: 205185 | J57: 162675 | K57: 106305 | L57: 88702.5 | M57: 72937.5 | O57: 68 | P57: 179535 | Q57: 142342.5 | R57: 93022.5 | S57: 77610 | T57: 63817.5 | V57: 68 | W57: 160882.5 | X57: 127552.5 | Y57: 83355 | Z57: 69547.5 | AA57: 57187.5 | AC57: 68 | AD57: 146895 | AE57: 116460 | AF57: 76110 | AG57: 63502.5 | AH57: 52215
A58: 69 | B58: 249165 | C58: 197550 | D58: 129097.5 | E58: 107715 | F58: 88575 | H58: 69 | I58: 219270 | J58: 173842.5 | K58: 113602.5 | L58: 94792.5 | M58: 77940 | O58: 69 | P58: 191857.5 | Q58: 152115 | R58: 99405 | S58: 82942.5 | T58: 68197.5 | V58: 69 | W58: 171922.5 | X58: 136312.5 | Y58: 89077.5 | Z58: 74325 | AA58: 61117.5 | AC58: 69 | AD58: 156975 | AE58: 124455 | AF58: 81330 | AG58: 67860 | AH58: 55800
A59: 70 | B59: 264000 | C59: 209310 | D59: 136777.5 | E59: 114127.5 | F59: 93840 | H59: 70 | I59: 232320 | J59: 184192.5 | K59: 120367.5 | L59: 100432.5 | M59: 82582.5 | O59: 70 | P59: 203280 | Q59: 161167.5 | R59: 105322.5 | S59: 87877.5 | T59: 72255 | V59: 70 | W59: 182160 | X59: 144420 | Y59: 94380 | Z59: 78750 | AA59: 64755 | AC59: 70 | AD59: 166320 | AE59: 131865 | AF59: 86175 | AG59: 71902.5 | AH59: 59122.5
A60: 71 | B60: 279712.5 | C60: 221767.5 | D60: 144922.5 | E60: 120922.5 | F60: 99427.5 | H60: 71 | I60: 246142.5 | J60: 195150 | K60: 127530 | L60: 106410 | M60: 87495 | O60: 71 | P60: 215377.5 | Q60: 170760 | R60: 111592.5 | S60: 93105 | T60: 76560 | V60: 71 | W60: 192997.5 | X60: 153015 | Y60: 99997.5 | Z60: 83437.5 | AA60: 68602.5 | AC60: 71 | AD60: 176220 | AE60: 139710 | AF60: 91297.5 | AG60: 76177.5 | AH60: 62640
A61: 72 | B61: 296355 | C61: 234960 | D61: 153547.5 | E61: 128115 | F61: 105345 | H61: 72 | I61: 260797.5 | J61: 206767.5 | K61: 135120 | L61: 112740 | M61: 92700 | O61: 72 | P61: 228195 | Q61: 180922.5 | R61: 118230 | S61: 98647.5 | T61: 81112.5 | V61: 72 | W61: 204487.5 | X61: 162127.5 | Y61: 105945 | Z61: 88402.5 | AA61: 72690 | AC61: 72 | AD61: 186705 | AE61: 148027.5 | AF61: 96735 | AG61: 80715 | AH61: 66367.5
A62: 73 | B62: 313995 | C62: 248947.5 | D62: 162682.5 | E62: 135742.5 | F62: 111615 | H62: 73 | I62: 276315 | J62: 219075 | K62: 143160 | L62: 119452.5 | M62: 98220 | O62: 73 | P62: 241777.5 | Q62: 191692.5 | R62: 125265 | S62: 104520 | T62: 85942.5 | V62: 73 | W62: 216660 | X62: 171772.5 | Y62: 112252.5 | Z62: 93660 | AA62: 77017.5 | AC62: 73 | AD62: 197820 | AE62: 156840 | AF62: 102495 | AG62: 85515 | AH62: 70320
A63: 74 | B63: 332685 | C63: 263760 | D63: 172365 | E63: 143820 | F63: 118260 | H63: 74 | I63: 292762.5 | J63: 232110 | K63: 151680 | L63: 126562.5 | M63: 104070 | O63: 74 | P63: 256170 | Q63: 203100 | R63: 132720 | S63: 110745 | T63: 91057.5 | V63: 74 | W63: 229552.5 | X63: 181995 | Y63: 118935 | Z63: 99232.5 | AA63: 81600 | AC63: 74 | AD63: 209587.5 | AE63: 166170 | AF63: 108592.5 | AG63: 90607.5 | AH63: 74505
A64: 75 | B64: 356302.5 | C64: 282487.5 | D64: 184605 | E64: 154027.5 | F64: 126652.5 | H64: 75 | I64: 313545 | J64: 248587.5 | K64: 162450 | L64: 135547.5 | M64: 111457.5 | O64: 75 | P64: 274350 | Q64: 217515 | R64: 142147.5 | S64: 118605 | T64: 97522.5 | V64: 75 | W64: 245850 | X64: 194917.5 | Y64: 127380 | Z64: 106282.5 | AA64: 87390 | AC64: 75 | AD64: 224467.5 | AE64: 177967.5 | AF64: 116302.5 | AG64: 97042.5 | AH64: 79792.5
A65: 76 | B65: 376552.5 | C65: 298545 | D65: 195097.5 | E65: 162780 | F65: 133852.5 | H65: 76 | I65: 331365 | J65: 262717.5 | K65: 171682.5 | L65: 143250 | M65: 117787.5 | O65: 76 | P65: 289942.5 | Q65: 229875 | R65: 150225 | S65: 125340 | T65: 103065 | V65: 76 | W65: 259822.5 | X65: 205995 | Y65: 134617.5 | Z65: 112320 | AA65: 92355 | AC65: 76 | AD65: 237225 | AE65: 188085 | AF65: 122910 | AG65: 102555 | AH65: 84330
A66: 77 | B66: 394545 | C66: 312810 | D66: 204420 | E66: 170565 | F66: 140250 | H66: 77 | I66: 347197.5 | J66: 275272.5 | K66: 179887.5 | L66: 150097.5 | M66: 123420 | O66: 77 | P66: 303802.5 | Q66: 240862.5 | R66: 157402.5 | S66: 131332.5 | T66: 107992.5 | V66: 77 | W66: 272235 | X66: 215842.5 | Y66: 141052.5 | Z66: 117690 | AA66: 96772.5 | AC66: 77 | AD66: 248565 | AE66: 197070 | AF66: 128782.5 | AG66: 107452.5 | AH66: 88357.5
A67: 78 | B67: 413400 | C67: 327765 | D67: 214192.5 | E67: 178717.5 | F67: 146955 | H67: 78 | I67: 363795 | J67: 288427.5 | K67: 188490 | L67: 157267.5 | M67: 129315 | O67: 78 | P67: 318322.5 | Q67: 252375 | R67: 164925 | S67: 137610 | T67: 113152.5 | V67: 78 | W67: 285247.5 | X67: 226155 | Y67: 147795 | Z67: 123315 | AA67: 101400 | AC67: 78 | AD67: 260445 | AE67: 206490 | AF67: 134940 | AG67: 112590 | AH67: 92580
A68: 79 | B68: 433162.5 | C68: 343425 | D68: 224430 | E68: 187260 | F68: 153975 | H68: 79 | I68: 381180 | J68: 302212.5 | K68: 197497.5 | L68: 164790 | M68: 135495 | O68: 79 | P68: 333532.5 | Q68: 264435 | R68: 172807.5 | S68: 144187.5 | T68: 118560 | V68: 79 | W68: 298882.5 | X68: 236962.5 | Y68: 154852.5 | Z68: 129210 | AA68: 106245 | AC68: 79 | AD68: 272895 | AE68: 216360 | AF68: 141390 | AG68: 117975 | AH68: 97005
A69: 80 | B69: =B170*0.6 -> 453862.5 | C69: 359842.5 | D69: 235155 | E69: 196207.5 | F69: 161332.5 | H69: 80 | I69: =I170*0.6 -> 399397.5 | J69: 316657.5 | K69: 206932.5 | L69: 172665 | M69: 141975 | O69: 80 | P69: =P170*0.6 -> 349477.5 | Q69: 277080 | R69: 181065 | S69: 151080 | T69: 124230 | V69: 80 | W69: =W170*0.6 -> 313170 | X69: 248287.5 | Y69: 162255 | Z69: 135382.5 | AA69: 111322.5 | AC69: 80 | AD69: =AD170*0.6 -> 285937.5 | AE69: 226702.5 | AF69: 148147.5 | AG69: 123607.5 | AH69: 101640
A70: 81 | B70: 475560 | C70: 377040 | D70: 246390 | E70: 205582.5 | F70: 169042.5 | H70: 81 | I70: 418492.5 | J70: 331792.5 | K70: 216825 | L70: 180915 | M70: 148762.5 | O70: 81 | P70: 366180 | Q70: 290317.5 | R70: 189720 | S70: 158302.5 | T70: 130162.5 | V70: 81 | W70: 328132.5 | X70: 260160 | Y70: 170010 | Z70: 141855 | AA70: 116640 | AC70: 81 | AD70: 299602.5 | AE70: 237532.5 | AF70: 155227.5 | AG70: 129517.5 | AH70: 106500
A71: 82 | B71: 498285 | C71: 395062.5 | D71: 258172.5 | E71: 215407.5 | F71: 177127.5 | H71: 82 | I71: 438495 | J71: 347655 | K71: 227190 | L71: 189562.5 | M71: 155872.5 | O71: 82 | P71: 383677.5 | Q71: 304192.5 | R71: 198787.5 | S71: 165870 | T71: 136387.5 | V71: 82 | W71: 343815 | X71: 272587.5 | Y71: 178140 | Z71: 148635 | AA71: 122212.5 | AC71: 82 | AD71: 313920 | AE71: 248887.5 | AF71: 162645 | AG71: 135705 | AH71: 111585
A72: 83 | B72: 522105 | C72: 413940 | D72: 270510 | E72: 225705 | F72: 185587.5 | H72: 83 | I72: 459450 | J72: 364267.5 | K72: 238050 | L72: 198622.5 | M72: 163320 | O72: 83 | P72: 402015 | Q72: 318735 | R72: 208290 | S72: 173790 | T72: 142905 | V72: 83 | W72: 360247.5 | X72: 285622.5 | Y72: 186652.5 | Z72: 155737.5 | AA72: 128055 | AC72: 83 | AD72: 328920 | AE72: 260782.5 | AF72: 170422.5 | AG72: 142192.5 | AH72: 116925
A73: 84 | B73: 547057.5 | C73: 433725 | D73: 283440 | E73: 236490 | F73: 194460 | H73: 84 | I73: 481410 | J73: 381675 | K73: 249427.5 | L73: 208117.5 | M73: 171127.5 | O73: 84 | P73: 421230 | Q73: 333967.5 | R73: 218250 | S73: 182100 | T73: 149737.5 | V73: 84 | W73: 377467.5 | X73: 299272.5 | Y73: 195570 | Z73: 163177.5 | AA73: 134175 | AC73: 84 | AD73: 344647.5 | AE73: 273247.5 | AF73: 178567.5 | AG73: 148987.5 | AH73: 122512.5
D95: ANNUAL RATES - START FROM HERE
A102: Zona 1: Ciudad de México (D.F. y área metropolitana) y franja fronteriza norte | H102: Zona 2: Nuevo León, Sonora, Coahuila, Chihuahua, Tamaulipas, Baja California Norte y Baja California Sur | O102: Zona 3: Jalisco, Puebla, Morelos, Estado de México (excepto Área Metropolitana), Quintana Roo, Guerrero (Acapulco y Zihuatanejo), Hidalgo y Querétaro | V102: Zona 4: Sinaloa, Guanajuato, San Luis Potosí, Durango, Aguascalientes, Nayarit, Michoacán, Colima, Zacatecas | AC102: Zona 5: Guerrero (excepto Acapulco y Zihuatanejo), Veracruz, Chiapas, Tabasco, Campeche, Oaxaca, Tlaxcala, Yucatán
A103: Primas de tarifa expresadas en pesos mexicanos | H103: Primas de tarifa expresadas en pesos mexicanos | O103: Primas de tarifa expresadas en pesos mexicanos | V103: Primas de tarifa expresadas en pesos mexicanos | AC103: Primas de tarifa expresadas en pesos mexicanos
A104: Edad | B104: BT21 | C104: BT31 | D104: BT41 | E104: BT51 | F104: BT61 | H104: Edad | I104: BT22 | J104: BT32 | K104: BT42 | L104: BT52 | M104: BT62 | O104: Edad | P104: BT23 | Q104: BT33 | R104: BT43 | S104: BT53 | T104: BT63 | V104: Edad | W104: BT24 | X104: BT34 | Y104: BT44 | Z104: BT54 | AA104: BT64 | AC104: Edad | AD104: BT25 | AE104: BT35 | AF104: BT45 | AG104: BT55 | AH104: BT65
A105: 1 menor | B105: 28700 | C105: 22750 | D105: 14875 | E105: 12412.5 | F105: 10200 | H105: 1 menor | I105: 25262.5 | J105: 20025 | K105: 13087.5 | L105: 10925 | M105: 8975 | O105: 1 menor | P105: 22100 | Q105: 17525 | R105: 11450 | S105: 9550 | T105: 7850 | V105: 1 menor | W105: 19800 | X105: 15700 | Y105: 10262.5 | Z105: 8562.5 | AA105: 7037.5 | AC105: 1 menor | AD105: 18087.5 | AE105: 14337.5 | AF105: 9362.5 | AG105: 7812.5 | AH105: 6425
A106: 2 menor | B106: 45225 | C106: 35850 | D106: 23425 | E106: 19550 | F106: 16075 | H106: 2 menores | I106: 39800 | J106: 31550 | K106: 20625 | L106: 17200 | M106: 14150 | O106: 2 menores | P106: 34825 | Q106: 27612.5 | R106: 18037.5 | S106: 15050 | T106: 12375 | V106: 2 menores | W106: 31200 | X106: 24737.5 | Y106: 16162.5 | Z106: 13487.5 | AA106: 11087.5 | AC106: 2 menores | AD106: 28487.5 | AE106: 22587.5 | AF106: 14762.5 | AG106: 12312.5 | AH106: 10125
A107: 3 menor | B107: 65987.5 | C107: 52312.5 | D107: 34187.5 | E107: 28525 | F107: 23450 | H107: 3 ó más menores | I107: 58062.5 | J107: 46037.5 | K107: 30087.5 | L107: 25100 | M107: 20637.5 | O107: 3 ó más menores | P107: 50800 | Q107: 40275 | R107: 26325 | S107: 21962.5 | T107: 18062.5 | V107: 3 ó más menores | W107: 45525 | X107: 36100 | Y107: 23587.5 | Z107: 19687.5 | AA107: 16187.5 | AC107: 3 ó más menores | AD107: 41575 | AE107: 32962.5 | AF107: 21537.5 | AG107: 17975 | AH107: 14775
A108: 18 | B108: 66200 | C108: 52487.5 | D108: 34300 | E108: 28625 | F108: 23537.5 | H108: 18 | I108: 58262.5 | J108: 46187.5 | K108: 30187.5 | L108: 25187.5 | M108: 20712.5 | O108: 18 | P108: 50975 | Q108: 40412.5 | R108: 26412.5 | S108: 22037.5 | T108: 18125 | V108: 18 | W108: 45687.5 | X108: 36212.5 | Y108: 23662.5 | Z108: 19750 | AA108: 16237.5 | AC108: 18 | AD108: 41712.5 | AE108: 33075 | AF108: 21612.5 | AG108: 18025 | AH108: 14825
A109: 19 | B109: 68887.5 | C109: 54612.5 | D109: 35687.5 | E109: 29775 | F109: 24487.5 | H109: 19 | I109: 60625 | J109: 48062.5 | K109: 31412.5 | L109: 26200 | M109: 21550 | O109: 19 | P109: 53037.5 | Q109: 42050 | R109: 27475 | S109: 22925 | T109: 18850 | V109: 19 | W109: 47525 | X109: 37687.5 | Y109: 24625 | Z109: 20550 | AA109: 16900 | AC109: 19 | AD109: 43400 | AE109: 34412.5 | AF109: 22487.5 | AG109: 18762.5 | AH109: 15425
A110: 20 | B110: 71062.5 | C110: 56337.5 | D110: 36812.5 | E110: 30725 | F110: 25262.5 | H110: 20 | I110: 62537.5 | J110: 49575 | K110: 32400 | L110: 27037.5 | M110: 22225 | O110: 20 | P110: 54712.5 | Q110: 43375 | R110: 28350 | S110: 23650 | T110: 19450 | V110: 20 | W110: 49025 | X110: 38875 | Y110: 25400 | Z110: 21200 | AA110: 17425 | AC110: 20 | AD110: 44762.5 | AE110: 35487.5 | AF110: 23200 | AG110: 19350 | AH110: 15912.5
A111: 21 | B111: 73300 | C111: 58112.5 | D111: 37975 | E111: 31687.5 | F111: 26062.5 | H111: 21 | I111: 64500 | J111: 51137.5 | K111: 33425 | L111: 27887.5 | M111: 22925 | O111: 21 | P111: 56437.5 | Q111: 44750 | R111: 29250 | S111: 24400 | T111: 20062.5 | V111: 21 | W111: 50575 | X111: 40100 | Y111: 26200 | Z111: 21862.5 | AA111: 17975 | AC111: 21 | AD111: 46175 | AE111: 36612.5 | AF111: 23925 | AG111: 19962.5 | AH111: 16412.5
A112: 22 | B112: 75612.5 | C112: 59950 | D112: 39175 | E112: 32687.5 | F112: 26875 | H112: 22 | I112: 66537.5 | J112: 52762.5 | K112: 34475 | L112: 28762.5 | M112: 23650 | O112: 22 | P112: 58225 | Q112: 46162.5 | R112: 30162.5 | S112: 25175 | T112: 20700 | V112: 22 | W112: 52175 | X112: 41362.5 | Y112: 27037.5 | Z112: 22550 | AA112: 18550 | AC112: 22 | AD112: 47637.5 | AE112: 37775 | AF112: 24687.5 | AG112: 20600 | AH112: 16937.5
A113: 23 | B113: 78000 | C113: 61850 | D113: 40412.5 | E113: 33725 | F113: 27725 | H113: 23 | I113: 68650 | J113: 54425 | K113: 35562.5 | L113: 29675 | M113: 24400 | O113: 23 | P113: 60062.5 | Q113: 47625 | R113: 31125 | S113: 25962.5 | T113: 21350 | V113: 23 | W113: 53825 | X113: 42675 | Y113: 27887.5 | Z113: 23262.5 | AA113: 19137.5 | AC113: 23 | AD113: 49137.5 | AE113: 38962.5 | AF113: 25462.5 | AG113: 21250 | AH113: 17475
A114: 24 | B114: 80462.5 | C114: 63800 | D114: 41687.5 | E114: 34787.5 | F114: 28600 | H114: 24 | I114: 70812.5 | J114: 56137.5 | K114: 36687.5 | L114: 30612.5 | M114: 25175 | O114: 24 | P114: 61962.5 | Q114: 49125 | R114: 32100 | S114: 26787.5 | T114: 22025 | V114: 24 | W114: 55525 | X114: 44025 | Y114: 28762.5 | Z114: 24000 | AA114: 19737.5 | AC114: 24 | AD114: 50700 | AE114: 40187.5 | AF114: 26262.5 | AG114: 21912.5 | AH114: 18025
A115: 25 | B115: 83012.5 | C115: 65812.5 | D115: 43012.5 | E115: 35887.5 | F115: 29500 | H115: 25 | I115: 73050 | J115: 57912.5 | K115: 37850 | L115: 31575 | M115: 25962.5 | O115: 25 | P115: 63912.5 | Q115: 50675 | R115: 33112.5 | S115: 27625 | T115: 22725 | V115: 25 | W115: 57275 | X115: 45412.5 | Y115: 29675 | Z115: 24762.5 | AA115: 20362.5 | AC115: 25 | AD115: 52300 | AE115: 41462.5 | AF115: 27100 | AG115: 22612.5 | AH115: 18587.5
A116: 26 | B116: 85625 | C116: 67887.5 | D116: 44362.5 | E116: 37012.5 | F116: 30437.5 | H116: 26 | I116: 75350 | J116: 59737.5 | K116: 39037.5 | L116: 32575 | M116: 26787.5 | O116: 26 | P116: 65937.5 | Q116: 52275 | R116: 34162.5 | S116: 28500 | T116: 23437.5 | V116: 26 | W116: 59087.5 | X116: 46837.5 | Y116: 30612.5 | Z116: 25537.5 | AA116: 21000 | AC116: 26 | AD116: 53950 | AE116: 42775 | AF116: 27950 | AG116: 23325 | AH116: 19175
A117: 27 | B117: 88325 | C117: 70037.5 | D117: 45762.5 | E117: 38187.5 | F117: 31400 | H117: 27 | I117: 77725 | J117: 61625 | K117: 40275 | L117: 33600 | M117: 27625 | O117: 27 | P117: 68012.5 | Q117: 53925 | R117: 35237.5 | S117: 29400 | T117: 24175 | V117: 27 | W117: 60950 | X117: 48325 | Y117: 31575 | Z117: 26350 | AA117: 21662.5 | AC117: 27 | AD117: 55650 | AE117: 44125 | AF117: 28837.5 | AG117: 24062.5 | AH117: 19775
A118: 28 | B118: 91125 | C118: 72237.5 | D118: 47212.5 | E118: 39387.5 | F118: 32387.5 | H118: 28 | I118: 80187.5 | J118: 63575 | K118: 41550 | L118: 34662.5 | M118: 28500 | O118: 28 | P118: 70162.5 | Q118: 55625 | R118: 36350 | S118: 30325 | T118: 24937.5 | V118: 28 | W118: 62875 | X118: 49850 | Y118: 32575 | Z118: 27175 | AA118: 22350 | AC118: 28 | AD118: 57400 | AE118: 45512.5 | AF118: 29737.5 | AG118: 24812.5 | AH118: 20400
A119: 29 | B119: 94000 | C119: 74525 | D119: 48700 | E119: 40637.5 | F119: 33412.5 | H119: 29 | I119: 82712.5 | J119: 65575 | K119: 42862.5 | L119: 35762.5 | M119: 29400 | O119: 29 | P119: 72375 | Q119: 57387.5 | R119: 37500 | S119: 31287.5 | T119: 25725 | V119: 29 | W119: 64862.5 | X119: 51425 | Y119: 33600 | Z119: 28037.5 | AA119: 23050 | AC119: 29 | AD119: 59212.5 | AE119: 46950 | AF119: 30687.5 | AG119: 25600 | AH119: 21050
A120: 30 | B120: 96962.5 | C120: 76875 | D120: 50237.5 | E120: 41912.5 | F120: 34462.5 | H120: 30 | I120: 85325 | J120: 67650 | K120: 44212.5 | L120: 36887.5 | M120: 30325 | O120: 30 | P120: 74662.5 | Q120: 59200 | R120: 38687.5 | S120: 32275 | T120: 26537.5 | V120: 30 | W120: 66900 | X120: 53050 | Y120: 34662.5 | Z120: 28925 | AA120: 23787.5 | AC120: 30 | AD120: 61087.5 | AE120: 48437.5 | AF120: 31650 | AG120: 26412.5 | AH120: 21712.5
A121: 31 | B121: 100025 | C121: 79300 | D121: 51825 | E121: 43237.5 | F121: 35550 | H121: 31 | I121: 88025 | J121: 69787.5 | K121: 45600 | L121: 38050 | M121: 31287.5 | O121: 31 | P121: 77025 | Q121: 61062.5 | R121: 39900 | S121: 33300 | T121: 27375 | V121: 31 | W121: 69012.5 | X121: 54725 | Y121: 35762.5 | Z121: 29837.5 | AA121: 24537.5 | AC121: 31 | AD121: 63012.5 | AE121: 49962.5 | AF121: 32650 | AG121: 27237.5 | AH121: 22400
A122: 32 | B122: 103187.5 | C122: 81812.5 | D122: 53462.5 | E122: 44600 | F122: 36675 | H122: 32 | I122: 90800 | J122: 71987.5 | K122: 47050 | L122: 39250 | M122: 32275 | O122: 32 | P122: 79450 | Q122: 62987.5 | R122: 41162.5 | S122: 34350 | T122: 28237.5 | V122: 32 | W122: 71200 | X122: 56450 | Y122: 36887.5 | Z122: 30775 | AA122: 25312.5 | AC122: 32 | AD122: 65000 | AE122: 51537.5 | AF122: 33675 | AG122: 28100 | AH122: 23112.5
A123: 33 | B123: 106437.5 | C123: 84387.5 | D123: 55150 | E123: 46012.5 | F123: 37837.5 | H123: 33 | I123: 93662.5 | J123: 74262.5 | K123: 48525 | L123: 40487.5 | M123: 33300 | O123: 33 | P123: 81962.5 | Q123: 64975 | R123: 42462.5 | S123: 35425 | T123: 29137.5 | V123: 33 | W123: 73450 | X123: 58225 | Y123: 38050 | Z123: 31750 | AA123: 26112.5 | AC123: 33 | AD123: 67062.5 | AE123: 53162.5 | AF123: 34737.5 | AG123: 28987.5 | AH123: 23837.5
A124: 34 | B124: 109800 | C124: 87050 | D124: 56887.5 | E124: 47462.5 | F124: 39025 | H124: 34 | I124: 96625 | J124: 76612.5 | K124: 50062.5 | L124: 41775 | M124: 34350 | O124: 34 | P124: 84550 | Q124: 67037.5 | R124: 43800 | S124: 36550 | T124: 30050 | V124: 34 | W124: 75762.5 | X124: 60062.5 | Y124: 39250 | Z124: 32750 | AA124: 26925 | AC124: 34 | AD124: 69175 | AE124: 54850 | AF124: 35837.5 | AG124: 29900 | AH124: 24587.5
A125: 35 | B125: 110375 | C125: 87500 | D125: 57187.5 | E125: 47712.5 | F125: 39237.5 | H125: 35 | I125: 97125 | J125: 77000 | K125: 50325 | L125: 41987.5 | M125: 34525 | O125: 35 | P125: 84987.5 | Q125: 67375 | R125: 44037.5 | S125: 36737.5 | T125: 30212.5 | V125: 35 | W125: 76150 | X125: 60375 | Y125: 39462.5 | Z125: 32925 | AA125: 27075 | AC125: 35 | AD125: 69537.5 | AE125: 55125 | AF125: 36025 | AG125: 30062.5 | AH125: 24712.5
A126: 36 | B126: 112900 | C126: 89512.5 | D126: 58487.5 | E126: 48800 | F126: 40125 | H126: 36 | I126: 99350 | J126: 78762.5 | K126: 51475 | L126: 42950 | M126: 35312.5 | O126: 36 | P126: 86925 | Q126: 68925 | R126: 45037.5 | S126: 37575 | T126: 30900 | V126: 36 | W126: 77900 | X126: 61762.5 | Y126: 40362.5 | Z126: 33675 | AA126: 27687.5 | AC126: 36 | AD126: 71125 | AE126: 56387.5 | AF126: 36850 | AG126: 30750 | AH126: 25287.5
A127: 37 | B127: 115475 | C127: 91550 | D127: 59825 | E127: 49925 | F127: 41050 | H127: 37 | I127: 101625 | J127: 80575 | K127: 52650 | L127: 43925 | M127: 36125 | O127: 37 | P127: 88925 | Q127: 70500 | R127: 46075 | S127: 38437.5 | T127: 31612.5 | V127: 37 | W127: 79675 | X127: 63175 | Y127: 41287.5 | Z127: 34450 | AA127: 28325 | AC127: 37 | AD127: 72750 | AE127: 57675 | AF127: 37700 | AG127: 31450 | AH127: 25862.5
A128: 38 | B128: 118125 | C128: 93650 | D128: 61200 | E128: 51062.5 | F128: 41987.5 | H128: 38 | I128: 103950 | J128: 82412.5 | K128: 53850 | L128: 44937.5 | M128: 36950 | O128: 38 | P128: 90950 | Q128: 72112.5 | R128: 47125 | S128: 39325 | T128: 32325 | V128: 38 | W128: 81500 | X128: 64625 | Y128: 42225 | Z128: 35237.5 | AA128: 28975 | AC128: 38 | AD128: 74412.5 | AE128: 59000 | AF128: 38550 | AG128: 32175 | AH128: 26450
A129: 39 | B129: 120825 | C129: 95800 | D129: 62600 | E129: 52237.5 | F129: 42950 | H129: 39 | I129: 106325 | J129: 84300 | K129: 55087.5 | L129: 45962.5 | M129: 37800 | O129: 39 | P129: 93037.5 | Q129: 73762.5 | R129: 48200 | S129: 40225 | T129: 33075 | V129: 39 | W129: 83375 | X129: 66100 | Y129: 43200 | Z129: 36037.5 | AA129: 29637.5 | AC129: 39 | AD129: 76125 | AE129: 60350 | AF129: 39437.5 | AG129: 32912.5 | AH129: 27062.5
A130: 40 | B130: 123587.5 | C130: 97987.5 | D130: 64037.5 | E130: 53425 | F130: 43937.5 | H130: 40 | I130: 108762.5 | J130: 86225 | K130: 56350 | L130: 47012.5 | M130: 38662.5 | O130: 40 | P130: 95162.5 | Q130: 75450 | R130: 49300 | S130: 41137.5 | T130: 33825 | V130: 40 | W130: 85275 | X130: 67612.5 | Y130: 44187.5 | Z130: 36862.5 | AA130: 30312.5 | AC130: 40 | AD130: 77862.5 | AE130: 61725 | AF130: 40337.5 | AG130: 33662.5 | AH130: 27675
A131: 41 | B131: 126412.5 | C131: 100225 | D131: 65500 | E131: 54650 | F131: 44937.5 | H131: 41 | I131: 111250 | J131: 88200 | K131: 57637.5 | L131: 48087.5 | M131: 39550 | O131: 41 | P131: 97337.5 | Q131: 77175 | R131: 50437.5 | S131: 42075 | T131: 34600 | V131: 41 | W131: 87225 | X131: 69162.5 | Y131: 45200 | Z131: 37712.5 | AA131: 31012.5 | AC131: 41 | AD131: 79637.5 | AE131: 63150 | AF131: 41262.5 | AG131: 34425 | AH131: 28312.5
A132: 42 | B132: 129312.5 | C132: 102525 | D132: 67000 | E132: 55900 | F132: 45962.5 | H132: 42 | I132: 113787.5 | J132: 90225 | K132: 58962.5 | L132: 49187.5 | M132: 40450 | O132: 42 | P132: 99575 | Q132: 78937.5 | R132: 51587.5 | S132: 43050 | T132: 35400 | V132: 42 | W132: 89225 | X132: 70737.5 | Y132: 46225 | Z132: 38575 | AA132: 31712.5 | AC132: 42 | AD132: 81462.5 | AE132: 64587.5 | AF132: 42212.5 | AG132: 35212.5 | AH132: 28962.5
A133: 43 | B133: 132275 | C133: 104862.5 | D133: 68525 | E133: 57175 | F133: 47012.5 | H133: 43 | I133: 116400 | J133: 92287.5 | K133: 60312.5 | L133: 50325 | M133: 41375 | O133: 43 | P133: 101850 | Q133: 80750 | R133: 52775 | S133: 44025 | T133: 36200 | V133: 43 | W133: 91262.5 | X133: 72362.5 | Y133: 47287.5 | Z133: 39450 | AA133: 32437.5 | AC133: 43 | AD133: 83325 | AE133: 66062.5 | AF133: 43175 | AG133: 36025 | AH133: 29625
A134: 44 | B134: 135300 | C134: 107262.5 | D134: 70100 | E134: 58487.5 | F134: 48087.5 | H134: 44 | I134: 119062.5 | J134: 94400 | K134: 61687.5 | L134: 51475 | M134: 42325 | O134: 44 | P134: 104175 | Q134: 82600 | R134: 53975 | S134: 45037.5 | T134: 37037.5 | V134: 44 | W134: 93350 | X134: 74012.5 | Y134: 48362.5 | Z134: 40362.5 | AA134: 33187.5 | AC134: 44 | AD134: 85237.5 | AE134: 67575 | AF134: 44162.5 | AG134: 36850 | AH134: 30300
A135: 45 | B135: 138387.5 | C135: 109725 | D135: 71700 | E135: 59825 | F135: 49200 | H135: 45 | I135: 121787.5 | J135: 96550 | K135: 63100 | L135: 52650 | M135: 43287.5 | O135: 45 | P135: 106562.5 | Q135: 84487.5 | R135: 55212.5 | S135: 46062.5 | T135: 37875 | V135: 45 | W135: 95487.5 | X135: 75712.5 | Y135: 49475 | Z135: 41275 | AA135: 33950 | AC135: 45 | AD135: 87187.5 | AE135: 69125 | AF135: 45175 | AG135: 37687.5 | AH135: 30987.5
A136: 46 | B136: 141562.5 | C136: 112237.5 | D136: 73350 | E136: 61200 | F136: 50325 | H136: 46 | I136: 124575 | J136: 98762.5 | K136: 64537.5 | L136: 53850 | M136: 44275 | O136: 46 | P136: 109000 | Q136: 86425 | R136: 56475 | S136: 47125 | T136: 38750 | V136: 46 | W136: 97675 | X136: 77437.5 | Y136: 50612.5 | Z136: 42225 | AA136: 34725 | AC136: 46 | AD136: 89187.5 | AE136: 70712.5 | AF136: 46212.5 | AG136: 38550 | AH136: 31700
A137: 47 | B137: 144800 | C137: 114800 | D137: 75025 | E137: 62600 | F137: 51475 | H137: 47 | I137: 127425 | J137: 101025 | K137: 66025 | L137: 55087.5 | M137: 45300 | O137: 47 | P137: 111500 | Q137: 88400 | R137: 57762.5 | S137: 48200 | T137: 39637.5 | V137: 47 | W137: 99912.5 | X137: 79212.5 | Y137: 51762.5 | Z137: 43187.5 | AA137: 35512.5 | AC137: 47 | AD137: 91225 | AE137: 72325 | AF137: 47262.5 | AG137: 39437.5 | AH137: 32425
A138: 48 | B138: 148112.5 | C138: 117425 | D138: 76737.5 | E138: 64025 | F138: 52650 | H138: 48 | I138: 130337.5 | J138: 103337.5 | K138: 67525 | L138: 56350 | M138: 46325 | O138: 48 | P138: 114050 | Q138: 90425 | R138: 59087.5 | S138: 49300 | T138: 40537.5 | V138: 48 | W138: 102200 | X138: 81025 | Y138: 52950 | Z138: 44175 | AA138: 36325 | AC138: 48 | AD138: 93312.5 | AE138: 73975 | AF138: 48350 | AG138: 40337.5 | AH138: 33175
A139: 49 | B139: 151500 | C139: 120112.5 | D139: 78500 | E139: 65500 | F139: 53850 | H139: 49 | I139: 133325 | J139: 105700 | K139: 69075 | L139: 57637.5 | M139: 47387.5 | O139: 49 | P139: 116650 | Q139: 92487.5 | R139: 60437.5 | S139: 50425 | T139: 41462.5 | V139: 49 | W139: 104537.5 | X139: 82875 | Y139: 54162.5 | Z139: 45187.5 | AA139: 37162.5 | AC139: 49 | AD139: 95450 | AE139: 75675 | AF139: 49450 | AG139: 41262.5 | AH139: 33925
A140: 50 | B140: 154962.5 | C140: 122862.5 | D140: 80287.5 | E140: 66987.5 | F140: 55087.5 | H140: 50 | I140: 136375 | J140: 108125 | K140: 70650 | L140: 58950 | M140: 48475 | O140: 50 | P140: 119325 | Q140: 94600 | R140: 61825 | S140: 51587.5 | T140: 42412.5 | V140: 50 | W140: 106925 | X140: 84775 | Y140: 55400 | Z140: 46225 | AA140: 38012.5 | AC140: 50 | AD140: 97625 | AE140: 77400 | AF140: 50587.5 | AG140: 42200 | AH140: 34700
A141: 51 | B141: 158512.5 | C141: 125675 | D141: 82125 | E141: 68525 | F141: 56350 | H141: 51 | I141: 139487.5 | J141: 110600 | K141: 72275 | L141: 60300 | M141: 49587.5 | O141: 51 | P141: 122050 | Q141: 96775 | R141: 63237.5 | S141: 52762.5 | T141: 43387.5 | V141: 51 | W141: 109375 | X141: 86712.5 | Y141: 56675 | Z141: 47287.5 | AA141: 38875 | AC141: 51 | AD141: 99862.5 | AE141: 79175 | AF141: 51737.5 | AG141: 43175 | AH141: 35500
A142: 52 | B142: 162137.5 | C142: 128550 | D142: 84012.5 | E142: 70100 | F142: 57637.5 | H142: 52 | I142: 142687.5 | J142: 113125 | K142: 73925 | L142: 61687.5 | M142: 50725 | O142: 52 | P142: 124850 | Q142: 98987.5 | R142: 64687.5 | S142: 53975 | T142: 44375 | V142: 52 | W142: 111875 | X142: 88700 | Y142: 57962.5 | Z142: 48362.5 | AA142: 39775 | AC142: 52 | AD142: 102150 | AE142: 80987.5 | AF142: 52925 | AG142: 44162.5 | AH142: 36312.5
A143: 53 | B143: 165850 | C143: 131500 | D143: 85925 | E143: 71700 | F143: 58950 | H143: 53 | I143: 145950 | J143: 115712.5 | K143: 75625 | L143: 63100 | M143: 51875 | O143: 53 | P143: 127700 | Q143: 101250 | R143: 66162.5 | S143: 55212.5 | T143: 45400 | V143: 53 | W143: 114437.5 | X143: 90725 | Y143: 59287.5 | Z143: 49475 | AA143: 40675 | AC143: 53 | AD143: 104487.5 | AE143: 82837.5 | AF143: 54137.5 | AG143: 45175 | AH143: 37137.5
A144: 54 | B144: 174475 | C144: 138325 | D144: 90400 | E144: 75425 | F144: 62025 | H144: 54 | I144: 153537.5 | J144: 121725 | K144: 79550 | L144: 66375 | M144: 54575 | O144: 54 | P144: 134337.5 | Q144: 106512.5 | R144: 69600 | S144: 58075 | T144: 47750 | V144: 54 | W144: 120387.5 | X144: 95450 | Y144: 62375 | Z144: 52037.5 | AA144: 42787.5 | AC144: 54 | AD144: 109912.5 | AE144: 87150 | AF144: 56950 | AG144: 47512.5 | AH144: 39075
A145: 55 | B145: 184850 | C145: 146562.5 | D145: 95775 | E145: 79912.5 | F145: 65712.5 | H145: 55 | I145: 162675 | J145: 128975 | K145: 84287.5 | L145: 70325 | M145: 57825 | O145: 55 | P145: 142337.5 | Q145: 112850 | R145: 73750 | S145: 61537.5 | T145: 50600 | V145: 55 | W145: 127550 | X145: 101125 | Y145: 66087.5 | Z145: 55137.5 | AA145: 45337.5 | AC145: 55 | AD145: 116462.5 | AE145: 92337.5 | AF145: 60337.5 | AG145: 50350 | AH145: 41400
A146: 56 | B146: 195862.5 | C146: 155287.5 | D146: 101475 | E146: 84675 | F146: 69625 | H146: 56 | I146: 172350 | J146: 136650 | K146: 89300 | L146: 74512.5 | M146: 61262.5 | O146: 56 | P146: 150812.5 | Q146: 119562.5 | R146: 78137.5 | S146: 65200 | T146: 53612.5 | V146: 56 | W146: 135137.5 | X146: 107150 | Y146: 70025 | Z146: 58425 | AA146: 48037.5 | AC146: 56 | AD146: 123387.5 | AE146: 97825 | AF146: 63925 | AG146: 53337.5 | AH146: 43862.5
A147: 57 | B147: 202287.5 | C147: 160375 | D147: 104800 | E147: 87450 | F147: 71900 | H147: 57 | I147: 178012.5 | J147: 141137.5 | K147: 92225 | L147: 76950 | M147: 63275 | O147: 57 | P147: 155762.5 | Q147: 123487.5 | R147: 80700 | S147: 67337.5 | T147: 55362.5 | V147: 57 | W147: 139575 | X147: 110662.5 | Y147: 72312.5 | Z147: 60337.5 | AA147: 49612.5 | AC147: 57 | AD147: 127437.5 | AE147: 101037.5 | AF147: 66025 | AG147: 55087.5 | AH147: 45300
A148: 58 | B148: 214325 | C148: 169925 | D148: 111037.5 | E148: 92650 | F148: 76187.5 | H148: 58 | I148: 188600 | J148: 149537.5 | K148: 97712.5 | L148: 81537.5 | M148: 67037.5 | O148: 58 | P148: 165025 | Q148: 130837.5 | R148: 85500 | S148: 71337.5 | T148: 58662.5 | V148: 58 | W148: 147887.5 | X148: 117250 | Y148: 76625 | Z148: 63925 | AA148: 52562.5 | AC148: 58 | AD148: 135025 | AE148: 107050 | AF148: 69962.5 | AG148: 58375 | AH148: 48000
A149: 59 | B149: 227075 | C149: 180037.5 | D149: 117650 | E149: 98162.5 | F149: 80725 | H149: 59 | I149: 199825 | J149: 158437.5 | K149: 103537.5 | L149: 86387.5 | M149: 71037.5 | O149: 59 | P149: 174850 | Q149: 138625 | R149: 90587.5 | S149: 75587.5 | T149: 62150 | V149: 59 | W149: 156687.5 | X149: 124225 | Y149: 81175 | Z149: 67737.5 | AA149: 55700 | AC149: 59 | AD149: 143062.5 | AE149: 113425 | AF149: 74125 | AG149: 61850 | AH149: 50850
A150: 60 | B150: 240587.5 | C150: 190750 | D150: 124650 | E150: 104012.5 | F150: 85525 | H150: 60 | I150: 211725 | J150: 167862.5 | K150: 109700 | L150: 91525 | M150: 75262.5 | O150: 60 | P150: 185262.5 | Q150: 146875 | R150: 95987.5 | S150: 80087.5 | T150: 65850 | V150: 60 | W150: 166012.5 | X150: 131612.5 | Y150: 86012.5 | Z150: 71762.5 | AA150: 59012.5 | AC150: 60 | AD150: 151575 | AE150: 120175 | AF150: 78537.5 | AG150: 65525 | AH150: 53875
A151: 61 | B151: 254912.5 | C151: 202100 | D151: 132075 | E151: 110200 | F151: 90612.5 | H151: 61 | I151: 224325 | J151: 177850 | K151: 116225 | L151: 96975 | M151: 79737.5 | O151: 61 | P151: 196287.5 | Q151: 155625 | R151: 101700 | S151: 84850 | T151: 69775 | V151: 61 | W151: 175887.5 | X151: 139450 | Y151: 91125 | Z151: 76037.5 | AA151: 62525 | AC151: 61 | AD151: 160600 | AE151: 127325 | AF151: 83200 | AG151: 69425 | AH151: 57087.5
A152: 62 | B152: 270087.5 | C152: 214137.5 | D152: 139937.5 | E152: 116762.5 | F152: 96000 | H152: 62 | I152: 237675 | J152: 188437.5 | K152: 123137.5 | L152: 102750 | M152: 84487.5 | O152: 62 | P152: 207962.5 | Q152: 164887.5 | R152: 107750 | S152: 89900 | T152: 73925 | V152: 62 | W152: 186362.5 | X152: 147750 | Y152: 96550 | Z152: 80562.5 | AA152: 66250 | AC152: 62 | AD152: 170150 | AE152: 134900 | AF152: 88162.5 | AG152: 73562.5 | AH152: 60487.5
A153: 63 | B153: 286162.5 | C153: 226875 | D153: 148262.5 | E153: 123712.5 | F153: 101725 | H153: 63 | I153: 251825 | J153: 199650 | K153: 130475 | L153: 108862.5 | M153: 89512.5 | O153: 63 | P153: 220337.5 | Q153: 174700 | R153: 114162.5 | S153: 95250 | T153: 78325 | V153: 63 | W153: 197450 | X153: 156550 | Y153: 102300 | Z153: 85362.5 | AA153: 70187.5 | AC153: 63 | AD153: 180275 | AE153: 142937.5 | AF153: 93400 | AG153: 77937.5 | AH153: 64087.5
A154: 64 | B154: 303187.5 | C154: 240375 | D154: 157087.5 | E154: 131075 | F154: 107775 | H154: 64 | I154: 266800 | J154: 211537.5 | K154: 138237.5 | L154: 115337.5 | M154: 94837.5 | O154: 64 | P154: 233450 | Q154: 185087.5 | R154: 120962.5 | S154: 100925 | T154: 82987.5 | V154: 64 | W154: 209200 | X154: 165862.5 | Y154: 108387.5 | Z154: 90437.5 | AA154: 74362.5 | AC154: 64 | AD154: 191012.5 | AE154: 151437.5 | AF154: 98962.5 | AG154: 82575 | AH154: 67900
A155: 65 | B155: 321237.5 | C155: 254687.5 | D155: 166437.5 | E155: 138875 | F155: 114187.5 | H155: 65 | I155: 282687.5 | J155: 224125 | K155: 146462.5 | L155: 122200 | M155: 100487.5 | O155: 65 | P155: 247350 | Q155: 196112.5 | R155: 128150 | S155: 106925 | T155: 87925 | V155: 65 | W155: 221650 | X155: 175737.5 | Y155: 114837.5 | Z155: 95825 | AA155: 78787.5 | AC155: 65 | AD155: 202375 | AE155: 160450 | AF155: 104850 | AG155: 87487.5 | AH155: 71937.5
A156: 66 | B156: 340350 | C156: 269850 | D156: 176337.5 | E156: 147137.5 | F156: 120987.5 | H156: 66 | I156: 299512.5 | J156: 237462.5 | K156: 155175 | L156: 129475 | M156: 106462.5 | O156: 66 | P156: 262075 | Q156: 207775 | R156: 135787.5 | S156: 113300 | T156: 93162.5 | V156: 66 | W156: 234837.5 | X156: 186187.5 | Y156: 121675 | Z156: 101525 | AA156: 83475 | AC156: 66 | AD156: 214425 | AE156: 170000 | AF156: 111100 | AG156: 92700 | AH156: 76225
A157: 67 | B157: 363662.5 | C157: 288325 | D157: 188425 | E157: 157212.5 | F157: 129275 | H157: 67 | I157: 320025 | J157: 253725 | K157: 165812.5 | L157: 138350 | M157: 113762.5 | O157: 67 | P157: 280025 | Q157: 222012.5 | R157: 145087.5 | S157: 121050 | T157: 99537.5 | V157: 67 | W157: 250925 | X157: 198950 | Y157: 130012.5 | Z157: 108475 | AA157: 89200 | AC157: 67 | AD157: 229112.5 | AE157: 181650 | AF157: 118700 | AG157: 99050 | AH157: 81437.5
A158: 68 | B158: 388600 | C158: 308100 | D158: 201337.5 | E158: 168000 | F158: 138137.5 | H158: 68 | I158: 341975 | J158: 271125 | K158: 177175 | L158: 147837.5 | M158: 121562.5 | O158: 68 | P158: 299225 | Q158: 237237.5 | R158: 155037.5 | S158: 129350 | T158: 106362.5 | V158: 68 | W158: 268137.5 | X158: 212587.5 | Y158: 138925 | Z158: 115912.5 | AA158: 95312.5 | AC158: 68 | AD158: 244825 | AE158: 194100 | AF158: 126850 | AG158: 105837.5 | AH158: 87025
A159: 69 | B159: 415275 | C159: 329250 | D159: 215162.5 | E159: 179525 | F159: 147625 | H159: 69 | I159: 365450 | J159: 289737.5 | K159: 189337.5 | L159: 157987.5 | M159: 129900 | O159: 69 | P159: 319762.5 | Q159: 253525 | R159: 165675 | S159: 138237.5 | T159: 113662.5 | V159: 69 | W159: 286537.5 | X159: 227187.5 | Y159: 148462.5 | Z159: 123875 | AA159: 101862.5 | AC159: 69 | AD159: 261625 | AE159: 207425 | AF159: 135550 | AG159: 113100 | AH159: 93000
A160: 70 | B160: 440000 | C160: 348850 | D160: 227962.5 | E160: 190212.5 | F160: 156400 | H160: 70 | I160: 387200 | J160: 306987.5 | K160: 200612.5 | L160: 167387.5 | M160: 137637.5 | O160: 70 | P160: 338800 | Q160: 268612.5 | R160: 175537.5 | S160: 146462.5 | T160: 120425 | V160: 70 | W160: 303600 | X160: 240700 | Y160: 157300 | Z160: 131250 | AA160: 107925 | AC160: 70 | AD160: 277200 | AE160: 219775 | AF160: 143625 | AG160: 119837.5 | AH160: 98537.5
A161: 71 | B161: 466187.5 | C161: 369612.5 | D161: 241537.5 | E161: 201537.5 | F161: 165712.5 | H161: 71 | I161: 410237.5 | J161: 325250 | K161: 212550 | L161: 177350 | M161: 145825 | O161: 71 | P161: 358962.5 | Q161: 284600 | R161: 185987.5 | S161: 155175 | T161: 127600 | V161: 71 | W161: 321662.5 | X161: 255025 | Y161: 166662.5 | Z161: 139062.5 | AA161: 114337.5 | AC161: 71 | AD161: 293700 | AE161: 232850 | AF161: 152162.5 | AG161: 126962.5 | AH161: 104400
A162: 72 | B162: 493925 | C162: 391600 | D162: 255912.5 | E162: 213525 | F162: 175575 | H162: 72 | I162: 434662.5 | J162: 344612.5 | K162: 225200 | L162: 187900 | M162: 154500 | O162: 72 | P162: 380325 | Q162: 301537.5 | R162: 197050 | S162: 164412.5 | T162: 135187.5 | V162: 72 | W162: 340812.5 | X162: 270212.5 | Y162: 176575 | Z162: 147337.5 | AA162: 121150 | AC162: 72 | AD162: 311175 | AE162: 246712.5 | AF162: 161225 | AG162: 134525 | AH162: 110612.5
A163: 73 | B163: 523325 | C163: 414912.5 | D163: 271137.5 | E163: 226237.5 | F163: 186025 | H163: 73 | I163: 460525 | J163: 365125 | K163: 238600 | L163: 199087.5 | M163: 163700 | O163: 73 | P163: 402962.5 | Q163: 319487.5 | R163: 208775 | S163: 174200 | T163: 143237.5 | V163: 73 | W163: 361100 | X163: 286287.5 | Y163: 187087.5 | Z163: 156100 | AA163: 128362.5 | AC163: 73 | AD163: 329700 | AE163: 261400 | AF163: 170825 | AG163: 142525 | AH163: 117200
A164: 74 | B164: 554475 | C164: 439600 | D164: 287275 | E164: 239700 | F164: 197100 | H164: 74 | I164: 487937.5 | J164: 386850 | K164: 252800 | L164: 210937.5 | M164: 173450 | O164: 74 | P164: 426950 | Q164: 338500 | R164: 221200 | S164: 184575 | T164: 151762.5 | V164: 74 | W164: 382587.5 | X164: 303325 | Y164: 198225 | Z164: 165387.5 | AA164: 136000 | AC164: 74 | AD164: 349312.5 | AE164: 276950 | AF164: 180987.5 | AG164: 151012.5 | AH164: 124175
A165: 75 | B165: 593837.5 | C165: 470812.5 | D165: 307675 | E165: 256712.5 | F165: 211087.5 | H165: 75 | I165: 522575 | J165: 414312.5 | K165: 270750 | L165: 225912.5 | M165: 185762.5 | O165: 75 | P165: 457250 | Q165: 362525 | R165: 236912.5 | S165: 197675 | T165: 162537.5 | V165: 75 | W165: 409750 | X165: 324862.5 | Y165: 212300 | Z165: 177137.5 | AA165: 145650 | AC165: 75 | AD165: 374112.5 | AE165: 296612.5 | AF165: 193837.5 | AG165: 161737.5 | AH165: 132987.5
A166: 76 | B166: 627587.5 | C166: 497575 | D166: 325162.5 | E166: 271300 | F166: 223087.5 | H166: 76 | I166: 552275 | J166: 437862.5 | K166: 286137.5 | L166: 238750 | M166: 196312.5 | O166: 76 | P166: 483237.5 | Q166: 383125 | R166: 250375 | S166: 208900 | T166: 171775 | V166: 76 | W166: 433037.5 | X166: 343325 | Y166: 224362.5 | Z166: 187200 | AA166: 153925 | AC166: 76 | AD166: 395375 | AE166: 313475 | AF166: 204850 | AG166: 170925 | AH166: 140550
A167: 77 | B167: 657575 | C167: 521350 | D167: 340700 | E167: 284275 | F167: 233750 | H167: 77 | I167: 578662.5 | J167: 458787.5 | K167: 299812.5 | L167: 250162.5 | M167: 205700 | O167: 77 | P167: 506337.5 | Q167: 401437.5 | R167: 262337.5 | S167: 218887.5 | T167: 179987.5 | V167: 77 | W167: 453725 | X167: 359737.5 | Y167: 235087.5 | Z167: 196150 | AA167: 161287.5 | AC167: 77 | AD167: 414275 | AE167: 328450 | AF167: 214637.5 | AG167: 179087.5 | AH167: 147262.5
A168: 78 | B168: 689000 | C168: 546275 | D168: 356987.5 | E168: 297862.5 | F168: 244925 | H168: 78 | I168: 606325 | J168: 480712.5 | K168: 314150 | L168: 262112.5 | M168: 215525 | O168: 78 | P168: 530537.5 | Q168: 420625 | R168: 274875 | S168: 229350 | T168: 188587.5 | V168: 78 | W168: 475412.5 | X168: 376925 | Y168: 246325 | Z168: 205525 | AA168: 169000 | AC168: 78 | AD168: 434075 | AE168: 344150 | AF168: 224900 | AG168: 187650 | AH168: 154300
A169: 79 | B169: 721937.5 | C169: 572375 | D169: 374050 | E169: 312100 | F169: 256625 | H169: 79 | I169: 635300 | J169: 503687.5 | K169: 329162.5 | L169: 274650 | M169: 225825 | O169: 79 | P169: 555887.5 | Q169: 440725 | R169: 288012.5 | S169: 240312.5 | T169: 197600 | V169: 79 | W169: 498137.5 | X169: 394937.5 | Y169: 258087.5 | Z169: 215350 | AA169: 177075 | AC169: 79 | AD169: 454825 | AE169: 360600 | AF169: 235650 | AG169: 196625 | AH169: 161675
A170: 80 | B170: 756437.5 | C170: 599737.5 | D170: 391925 | E170: 327012.5 | F170: 268887.5 | H170: 80 | I170: 665662.5 | J170: 527762.5 | K170: 344887.5 | L170: 287775 | M170: 236625 | O170: 80 | P170: 582462.5 | Q170: 461800 | R170: 301775 | S170: 251800 | T170: 207050 | V170: 80 | W170: 521950 | X170: 413812.5 | Y170: 270425 | Z170: 225637.5 | AA170: 185537.5 | AC170: 80 | AD170: 476562.5 | AE170: 377837.5 | AF170: 246912.5 | AG170: 206012.5 | AH170: 169400
A171: 81 | B171: 792600 | C171: 628400 | D171: 410650 | E171: 342637.5 | F171: 281737.5 | H171: 81 | I171: 697487.5 | J171: 552987.5 | K171: 361375 | L171: 301525 | M171: 247937.5 | O171: 81 | P171: 610300 | Q171: 483862.5 | R171: 316200 | S171: 263837.5 | T171: 216937.5 | V171: 81 | W171: 546887.5 | X171: 433600 | Y171: 283350 | Z171: 236425 | AA171: 194400 | AC171: 81 | AD171: 499337.5 | AE171: 395887.5 | AF171: 258712.5 | AG171: 215862.5 | AH171: 177500
A172: 82 | B172: 830475 | C172: 658437.5 | D172: 430287.5 | E172: 359012.5 | F172: 295212.5 | H172: 82 | I172: 730825 | J172: 579425 | K172: 378650 | L172: 315937.5 | M172: 259787.5 | O172: 82 | P172: 639462.5 | Q172: 506987.5 | R172: 331312.5 | S172: 276450 | T172: 227312.5 | V172: 82 | W172: 573025 | X172: 454312.5 | Y172: 296900 | Z172: 247725 | AA172: 203687.5 | AC172: 82 | AD172: 523200 | AE172: 414812.5 | AF172: 271075 | AG172: 226175 | AH172: 185975
A173: 83 | B173: 870175 | C173: 689900 | D173: 450850 | E173: 376175 | F173: 309312.5 | H173: 83 | I173: 765750 | J173: 607112.5 | K173: 396750 | L173: 331037.5 | M173: 272200 | O173: 83 | P173: 670025 | Q173: 531225 | R173: 347150 | S173: 289650 | T173: 238175 | V173: 83 | W173: 600412.5 | X173: 476037.5 | Y173: 311087.5 | Z173: 259562.5 | AA173: 213425 | AC173: 83 | AD173: 548200 | AE173: 434637.5 | AF173: 284037.5 | AG173: 236987.5 | AH173: 194875
A174: 84 | B174: 911762.5 | C174: 722875 | D174: 472400 | E174: 394150 | F174: 324100 | H174: 84 | I174: 802350 | J174: 636125 | K174: 415712.5 | L174: 346862.5 | M174: 285212.5 | O174: 84 | P174: 702050 | Q174: 556612.5 | R174: 363750 | S174: 303500 | T174: 249562.5 | V174: 84 | W174: 629112.5 | X174: 498787.5 | Y174: 325950 | Z174: 271962.5 | AA174: 223625 | AC174: 84 | AD174: 574412.5 | AE174: 455412.5 | AF174: 297612.5 | AG174: 248312.5 | AH174: 204187.5

Sheet Tarifas Diamond (hidden)
A1: Zona 1: Ciudad de México (D.F. y área metropolitana) y franja fronteriza norte | H1: Zona 2: Nuevo León, Sonora, Coahuila, Chihuahua, Tamaulipas, Baja California Norte y Baja California Sur | O1: Zona 3: Jalisco, Puebla, Morelos, Estado de México (excepto Área Metropolitana), Guerrero (Acapulco y Zihuatanejo), Hidalgo y Querétaro | V1: Zona 4: Sinaloa, Guanajuato, San Luis Potosí, Durango, Aguascalientes, Nayarit, Michoacán, Colima, Quintana Roo, Zacatecas | AC1: Zona 5: Guerrero (excepto Acapulco y Zihuatanejo), Veracruz, Chiapas, Tabasco, Campeche, Oaxaca, Tlaxcala, Yucatán
A2: Primas de riesgo expresadas en pesos mexicanos | H2: Primas de riesgo expresadas en pesos mexicanos | O2: Primas de riesgo expresadas en pesos mexicanos | V2: Primas de riesgo expresadas en pesos mexicanos | AC2: Primas de riesgo expresadas en pesos mexicanos
A3: Edad | B3: DW11 | C3: DW21 | D3: DW31 | E3: DW41 | F3: DW51 | H3: Edad | I3: DW12 | J3: DW22 | K3: DW32 | L3: DW42 | M3: DW52 | O3: Edad | P3: DW13 | Q3: DW23 | R3: DW33 | S3: DW43 | T3: DW53 | V3: Edad | W3: DW14 | X3: DW24 | Y3: DW34 | Z3: DW44 | AA3: DW54 | AC3: Edad | AD3: DW15 | AE3: DW25 | AF3: DW35 | AG3: DW45 | AH3: DW55
A4: 1 menor | B4: =B105*0.6 -> 41160 | C4: =C105*0.6 -> 29280 | D4: =D105*0.6 -> 21945 | E4: =E105*0.6 -> 16702.5 | F4: =F105*0.6 -> 13185 | H4: 1 menor | I4: =I105*0.6 -> 36217.5 | J4: =J105*0.6 -> 25770 | K4: =K105*0.6 -> 19312.5 | L4: =L105*0.6 -> 14700 | M4: =M105*0.6 -> 11602.5 | O4: 1 menor | P4: =P105*0.6 -> 32107.5 | Q4: =Q105*0.6 -> 22837.5 | R4: =R105*0.6 -> 17122.5 | S4: =S105*0.6 -> 13027.5 | T4: =T105*0.6 -> 10282.5 | V4: 1 menor | W4: =W105*0.6 -> 30045 | X4: =X105*0.6 -> 21375 | Y4: =Y105*0.6 -> 16020 | Z4: =Z105*0.6 -> 12195 | AA4: =AA105*0.6 -> 9622.5 | AC4: 1 menor | AD4: =AD105*0.6 -> 27577.5 | AE4: =AE105*0.6 -> 19620 | AF4: =AF105*0.6 -> 14707.5 | AG4: =AG105*0.6 -> 11190 | AH4: =AH105*0.6 -> 8835
A5: 2 menor | B5: =B106*0.6 -> 64852.5 | C5: 46132.5 | D5: 34582.5 | E5: 26317.5 | F5: 20775 | H5: 2 menores | I5: =I106*0.6 -> 57067.5 | J5: 40597.5 | K5: 30435 | L5: 23160 | M5: 18285 | O5: 2 menores | P5: =P106*0.6 -> 50587.5 | Q5: 35985 | R5: 26970 | S5: 20527.5 | T5: 16207.5 | V5: 2 menores | W5: =W106*0.6 -> 47340 | X5: 33675 | Y5: 25245 | Z5: 19215 | AA5: 15165 | AC5: 2 menores | AD5: =AD106*0.6 -> 43455 | AE5: 30907.5 | AF5: 23167.5 | AG5: 17632.5 | AH5: 13920
A6: 3 menor | B6: 93817.5 | C6: 66735 | D6: 50025 | E6: 38077.5 | F6: 30052.5 | H6: 3 ó más menores | I6: 82560 | J6: 58732.5 | K6: 44025 | L6: 33502.5 | M6: 26445 | O6: 3 ó más menores | P6: 73177.5 | Q6: 52057.5 | R6: 39022.5 | S6: 29700 | T6: 23437.5 | V6: 3 ó más menores | W6: 68482.5 | X6: 48720 | Y6: 36517.5 | Z6: 27795 | AA6: 21937.5 | AC6: 3 ó más menores | AD6: 62857.5 | AE6: 44715 | AF6: 33517.5 | AG6: 25507.5 | AH6: 20137.5
A7: 18 | B7: 94132.5 | C7: 66960 | D7: 50197.5 | E7: 38205 | F7: 30157.5 | H7: 18 | I7: 82837.5 | J7: 58927.5 | K7: 44175 | L7: 33622.5 | M7: 26535 | O7: 18 | P7: 73425 | Q7: 52230 | R7: 39150 | S7: 29797.5 | T7: 23520 | V7: 18 | W7: 68715 | X7: 48885 | Y7: 36645 | Z7: 27885 | AA7: 22012.5 | AC7: 18 | AD7: 63067.5 | AE7: 44865 | AF7: 33630 | AG7: 25597.5 | AH7: 20205
A8: 19 | B8: 97102.5 | C8: 69075 | D8: 51780 | E8: 39412.5 | F8: 31110 | H8: 19 | I8: 85455 | J8: 60787.5 | K8: 45570 | L8: 34680 | M8: 27375 | O8: 19 | P8: 75742.5 | Q8: 53880 | R8: 40387.5 | S8: 30742.5 | T8: 24262.5 | V8: 19 | W8: 70890 | X8: 50430 | Y8: 37800 | Z8: 28770 | AA8: 22710 | AC8: 19 | AD8: 65062.5 | AE8: 46282.5 | AF8: 34695 | AG8: 26407.5 | AH8: 20842.5
A9: 20 | B9: 100170 | C9: 71257.5 | D9: 53415 | E9: 40650 | F9: 32085 | H9: 20 | I9: 88147.5 | J9: 62707.5 | K9: 47002.5 | L9: 35775 | M9: 28237.5 | O9: 20 | P9: 78135 | Q9: 55582.5 | R9: 41662.5 | S9: 31710 | T9: 25027.5 | V9: 20 | W9: 73125 | X9: 52020 | Y9: 38992.5 | Z9: 29677.5 | AA9: 23422.5 | AC9: 20 | AD9: 67117.5 | AE9: 47745 | AF9: 35790 | AG9: 27240 | AH9: 21502.5
A10: 21 | B10: 103335 | C10: 73507.5 | D10: 55102.5 | E10: 41940 | F10: 33105 | H10: 21 | I10: 90930 | J10: 64687.5 | K10: 48487.5 | L10: 36907.5 | M10: 29130 | O10: 21 | P10: 80602.5 | Q10: 57337.5 | R10: 42975 | S10: 32707.5 | T10: 25822.5 | V10: 21 | W10: 75435 | X10: 53662.5 | Y10: 40222.5 | Z10: 30615 | AA10: 24165 | AC10: 21 | AD10: 69232.5 | AE10: 49252.5 | AF10: 36915 | AG10: 28095 | AH10: 22177.5
A11: 22 | B11: 106597.5 | C11: 75832.5 | D11: 56842.5 | E11: 43260 | F11: 34147.5 | H11: 22 | I11: 93802.5 | J11: 66727.5 | K11: 50017.5 | L11: 38070 | M11: 30052.5 | O11: 22 | P11: 83145 | Q11: 59145 | R11: 44332.5 | S11: 33742.5 | T11: 26632.5 | V11: 22 | W11: 77812.5 | X11: 55357.5 | Y11: 41490 | Z11: 31582.5 | AA11: 24930 | AC11: 22 | AD11: 71422.5 | AE11: 50805 | AF11: 38085 | AG11: 28987.5 | AH11: 22875
A12: 23 | B12: 109957.5 | C12: 78225 | D12: 58635 | E12: 44625 | F12: 35227.5 | H12: 23 | I12: 96765 | J12: 68835 | K12: 51600 | L12: 39270 | M12: 30997.5 | O12: 23 | P12: 85770 | Q12: 61012.5 | R12: 45735 | S12: 34807.5 | T12: 27472.5 | V12: 23 | W12: 80272.5 | X12: 57105 | Y12: 42802.5 | Z12: 32580 | AA12: 25717.5 | AC12: 23 | AD12: 73672.5 | AE12: 52410 | AF12: 39285 | AG12: 29902.5 | AH12: 23602.5
A13: 24 | B13: 113430 | C13: 80692.5 | D13: 60487.5 | E13: 46035 | F13: 36337.5 | H13: 24 | I13: 99817.5 | J13: 71010 | K13: 53227.5 | L13: 40515 | M13: 31980 | O13: 24 | P13: 88477.5 | Q13: 62940 | R13: 47182.5 | S13: 35910 | T13: 28342.5 | V13: 24 | W13: 82807.5 | X13: 58905 | Y13: 44152.5 | Z13: 33607.5 | AA13: 26527.5 | AC13: 24 | AD13: 75997.5 | AE13: 54067.5 | AF13: 40522.5 | AG13: 30847.5 | AH13: 24345
A14: 25 | B14: 117015 | C14: 83242.5 | D14: 62392.5 | E14: 47490 | F14: 37485 | H14: 25 | I14: 102975 | J14: 73252.5 | K14: 54907.5 | L14: 41790 | M14: 32985 | O14: 25 | P14: 91267.5 | Q14: 64927.5 | R14: 48667.5 | S14: 37042.5 | T14: 29235 | V14: 25 | W14: 85417.5 | X14: 60765 | Y14: 45547.5 | Z14: 34665 | AA14: 27360 | AC14: 25 | AD14: 78397.5 | AE14: 55770 | AF14: 41805 | AG14: 31815 | AH14: 25117.5
A15: 26 | B15: 120705 | C15: 85867.5 | D15: 64365 | E15: 48990 | F15: 38670 | H15: 26 | I15: 106222.5 | J15: 75562.5 | K15: 56640 | L15: 43110 | M15: 34027.5 | O15: 26 | P15: 94155 | Q15: 66975 | R15: 50205 | S15: 38212.5 | T15: 30157.5 | V15: 26 | W15: 88117.5 | X15: 62685 | Y15: 46987.5 | Z15: 35760 | AA15: 28230 | AC15: 26 | AD15: 80872.5 | AE15: 57532.5 | AF15: 43125 | AG15: 32820 | AH15: 25905
A16: 27 | B16: 124515 | C16: 88575 | D16: 66397.5 | E16: 50535 | F16: 39885 | H16: 27 | I16: 109575 | J16: 77947.5 | K16: 58432.5 | L16: 44467.5 | M16: 35100 | O16: 27 | P16: 97125 | Q16: 69090 | R16: 51787.5 | S16: 39420 | T16: 31110 | V16: 27 | W16: 90900 | X16: 64665 | Y16: 48472.5 | Z16: 36892.5 | AA16: 29115 | AC16: 27 | AD16: 83430 | AE16: 59347.5 | AF16: 44490 | AG16: 33855 | AH16: 26722.5
A17: 28 | B17: 128452.5 | C17: 91372.5 | D17: 68490 | E17: 52132.5 | F17: 41145 | H17: 28 | I17: 113032.5 | J17: 80407.5 | K17: 60277.5 | L17: 45877.5 | M17: 36210 | O17: 28 | P17: 100192.5 | Q17: 71272.5 | R17: 53422.5 | S17: 40665 | T17: 32092.5 | V17: 28 | W17: 93765 | X17: 66705 | Y17: 50002.5 | Z17: 38055 | AA17: 30037.5 | AC17: 28 | AD17: 86062.5 | AE17: 61222.5 | AF17: 45892.5 | AG17: 34927.5 | AH17: 27570
A18: 29 | B18: 132502.5 | C18: 94260 | D18: 70657.5 | E18: 53775 | F18: 42450 | H18: 29 | I18: 116602.5 | J18: 82950 | K18: 62175 | L18: 47325 | M18: 37350 | O18: 29 | P18: 103350 | Q18: 73522.5 | R18: 55110 | S18: 41947.5 | T18: 33105 | V18: 29 | W18: 96727.5 | X18: 68812.5 | Y18: 51577.5 | Z18: 39255 | AA18: 30982.5 | AC18: 29 | AD18: 88777.5 | AE18: 63157.5 | AF18: 47340 | AG18: 36030 | AH18: 28440
A19: 30 | B19: 136687.5 | C19: 97237.5 | D19: 72885 | E19: 55470 | F19: 43785 | H19: 30 | I19: 120285 | J19: 85567.5 | K19: 64140 | L19: 48817.5 | M19: 38535 | O19: 30 | P19: 106620 | Q19: 75847.5 | R19: 56850 | S19: 43267.5 | T19: 34155 | V19: 30 | W19: 99780 | X19: 70980 | Y19: 53205 | Z19: 40492.5 | AA19: 31965 | AC19: 30 | AD19: 91582.5 | AE19: 65145 | AF19: 48832.5 | AG19: 37170 | AH19: 29340
A20: 31 | B20: 141000 | C20: 100305 | D20: 75187.5 | E20: 57225 | F20: 45165 | H20: 31 | I20: 124080 | J20: 88267.5 | K20: 66165 | L20: 50355 | M20: 39750 | O20: 31 | P20: 109980 | Q20: 78240 | R20: 58650 | S20: 44632.5 | T20: 35235 | V20: 31 | W20: 102930 | X20: 73222.5 | Y20: 54885 | Z20: 41775 | AA20: 32970 | AC20: 31 | AD20: 94470 | AE20: 67207.5 | AF20: 50377.5 | AG20: 38340 | AH20: 30262.5
A21: 32 | B21: =B122*0.6 -> 145455 | C21: 103470 | D21: 77565 | E21: 59032.5 | F21: 46597.5 | H21: 32 | I21: =I122*0.6 -> 128002.5 | J21: 91057.5 | K21: 68257.5 | L21: 51945 | M21: 41002.5 | O21: 32 | P21: =P122*0.6 -> 113452.5 | Q21: 80707.5 | R21: 60495 | S21: 46042.5 | T21: 36345 | V21: 32 | W21: =W122*0.6 -> 106185 | X21: 75532.5 | Y21: 56617.5 | Z21: 43095 | AA21: 34012.5 | AC21: 32 | AD21: =AD122*0.6 -> 97455 | AE21: 69330 | AF21: 51967.5 | AG21: 39555 | AH21: 31215
A22: 33 | B22: 150045 | C22: 106740 | D22: 80010 | E22: 60892.5 | F22: 48067.5 | H22: 33 | I22: 132045 | J22: 93930 | K22: 70410 | L22: 53587.5 | M22: 42300 | O22: 33 | P22: 117037.5 | Q22: 83257.5 | R22: 62407.5 | S22: 47497.5 | T22: 37492.5 | V22: 33 | W22: 109537.5 | X22: 77917.5 | Y22: 58410 | Z22: 44452.5 | AA22: 35085 | AC22: 33 | AD22: 100530 | AE22: 71512.5 | AF22: 53610 | AG22: 40800 | AH22: 32205
A23: 34 | B23: 154785 | C23: 110107.5 | D23: 82537.5 | E23: 62820 | F23: 49582.5 | H23: 34 | I23: 136207.5 | J23: 96892.5 | K23: 72630 | L23: 55282.5 | M23: 43635 | O23: 34 | P23: 120735 | Q23: 85882.5 | R23: 64380 | S23: 48997.5 | T23: 38677.5 | V23: 34 | W23: 112995 | X23: 80377.5 | Y23: 60255 | Z23: 45855 | AA23: 36195 | AC23: 34 | AD23: 103702.5 | AE23: 73770 | AF23: 55297.5 | AG23: 42090 | AH23: 33217.5
A24: 35 | B24: 155587.5 | C24: 110677.5 | D24: 82965 | E24: 63142.5 | F24: 49837.5 | H24: 35 | I24: 136912.5 | J24: 97395 | K24: 73005 | L24: 55567.5 | M24: 43860 | O24: 35 | P24: 121357.5 | Q24: 86332.5 | R24: 64710 | S24: 49252.5 | T24: 38872.5 | V24: 35 | W24: 113580 | X24: 80797.5 | Y24: 60562.5 | Z24: 46095 | AA24: 36382.5 | AC24: 35 | AD24: 104242.5 | AE24: 74152.5 | AF24: 55582.5 | AG24: 42307.5 | AH24: 33390
A25: 36 | B25: 159150 | C25: 113212.5 | D25: 84862.5 | E25: 64590 | F25: 50977.5 | H25: 36 | I25: 140047.5 | J25: 99630 | K25: 74677.5 | L25: 56835 | M25: 44865 | O25: 36 | P25: 124132.5 | Q25: 88305 | R25: 66195 | S25: 50377.5 | T25: 39765 | V25: 36 | W25: 116175 | X25: 82642.5 | Y25: 61950 | Z25: 47152.5 | AA25: 37215 | AC25: 36 | AD25: 106627.5 | AE25: 75855 | AF25: 56857.5 | AG25: 43275 | AH25: 34155
A26: 37 | B26: 162787.5 | C26: 115800 | D26: 86805 | E26: 66067.5 | F26: 52147.5 | H26: 37 | I26: 143250 | J26: 101910 | K26: 76387.5 | L26: 58140 | M26: 45892.5 | O26: 37 | P26: 126975 | Q26: 90330 | R26: 67710 | S26: 51532.5 | T26: 40672.5 | V26: 37 | W26: 118837.5 | X26: 84532.5 | Y26: 63367.5 | Z26: 48225 | AA26: 38070 | AC26: 37 | AD26: 109065 | AE26: 77587.5 | AF26: 58155 | AG26: 44265 | AH26: 34935
A27: 38 | B27: 166515 | C27: 118455 | D27: 88792.5 | E27: 67575 | F27: 53340 | H27: 38 | I27: 146535 | J27: 104235 | K27: 78135 | L27: 59467.5 | M27: 46942.5 | O27: 38 | P27: 129877.5 | Q27: 92392.5 | R27: 69255 | S27: 52710 | T27: 41602.5 | V27: 38 | W27: 121552.5 | X27: 86467.5 | Y27: 64815 | Z27: 49335 | AA27: 38940 | AC27: 38 | AD27: 111562.5 | AE27: 79365 | AF27: 59490 | AG27: 45277.5 | AH27: 35737.5
A28: 39 | B28: 170325 | C28: 121162.5 | D28: 90825 | E28: 69127.5 | F28: 54562.5 | H28: 39 | I28: 149887.5 | J28: 106620 | K28: 79920 | L28: 60832.5 | M28: 48015 | O28: 39 | P28: 132855 | Q28: 94507.5 | R28: 70845 | S28: 53917.5 | T28: 42555 | V28: 39 | W28: 124335 | X28: 88447.5 | Y28: 66300 | Z28: 50460 | AA28: 39832.5 | AC28: 39 | AD28: 114120 | AE28: 81180 | AF28: 60847.5 | AG28: 46312.5 | AH28: 36555
A29: 40 | B29: 174225 | C29: 123937.5 | D29: 92902.5 | E29: 70710 | F29: 55807.5 | H29: 40 | I29: 153315 | J29: 109065 | K29: 81750 | L29: 62220 | M29: 49110 | O29: 40 | P29: 135892.5 | Q29: 96667.5 | R29: 72465 | S29: 55147.5 | T29: 43530 | V29: 40 | W29: 127185 | X29: 90472.5 | Y29: 67815 | Z29: 51615 | AA29: 40740 | AC29: 40 | AD29: 116730 | AE29: 83040 | AF29: 62242.5 | AG29: 47370 | AH29: 37395
A30: 41 | B30: 178207.5 | C30: 126772.5 | D30: 95025 | E30: 72322.5 | F30: 57090 | H30: 41 | I30: 156825 | J30: 111562.5 | K30: 83625 | L30: 63645 | M30: 50235 | O30: 41 | P30: 139005 | Q30: 98880 | R30: 74122.5 | S30: 56415 | T30: 44527.5 | V30: 41 | W30: 130095 | X30: 92542.5 | Y30: 69367.5 | Z30: 52800 | AA30: 41670 | AC30: 41 | AD30: 119400 | AE30: 84937.5 | AF30: 63667.5 | AG30: 48457.5 | AH30: 38250
A31: 42 | B31: 182287.5 | C31: 129675 | D31: 97200 | E31: 73980 | F31: 58395 | H31: 42 | I31: 160410 | J31: 114112.5 | K31: 85537.5 | L31: 65100 | M31: 51390 | O31: 42 | P31: 142185 | Q31: 101145 | R31: 75817.5 | S31: 57705 | T31: 45547.5 | V31: 42 | W31: 133065 | X31: 94665 | Y31: 70957.5 | Z31: 54007.5 | AA31: 42630 | AC31: 42 | AD31: 122130 | AE31: 86880 | AF31: 65122.5 | AG31: 49567.5 | AH31: 39120
A32: 43 | B32: 186457.5 | C32: 132637.5 | D32: 99427.5 | E32: 75675 | F32: 59730 | H32: 43 | I32: 164085 | J32: 116722.5 | K32: 87495 | L32: 66592.5 | M32: 52560 | O32: 43 | P32: 145440 | Q32: 103462.5 | R32: 77550 | S32: 59025 | T32: 46590 | V32: 43 | W32: 136117.5 | X32: 96825 | Y32: 72577.5 | Z32: 55237.5 | AA32: 43605 | AC32: 43 | AD32: 124927.5 | AE32: 88867.5 | AF32: 66615 | AG32: 50700 | AH32: 40020
A33: 44 | B33: 190725 | C33: 135675 | D33: 101700 | E33: 77407.5 | F33: 61095 | H33: 44 | I33: 167835 | J33: 119392.5 | K33: 89497.5 | L33: 68115 | M33: 53767.5 | O33: 44 | P33: 148762.5 | Q33: 105825 | R33: 79327.5 | S33: 60375 | T33: 47655 | V33: 44 | W33: 139230 | X33: 99045 | Y33: 74242.5 | Z33: 56505 | AA33: 44602.5 | AC33: 44 | AD33: 127785 | AE33: 90900 | AF33: 68137.5 | AG33: 51862.5 | AH33: 40935
A34: 45 | B34: 195090 | C34: 138780 | D34: 104025 | E34: 79177.5 | F34: 62497.5 | H34: 45 | I34: 171675 | J34: 122130 | K34: 91545 | L34: 69675 | M34: 54997.5 | O34: 45 | P34: 152167.5 | Q34: 108247.5 | R34: 81142.5 | S34: 61755 | T34: 48742.5 | V34: 45 | W34: 142417.5 | X34: 101310 | Y34: 75937.5 | Z34: 57795 | AA34: 45622.5 | AC34: 45 | AD34: 130710 | AE34: 92985 | AF34: 69697.5 | AG34: 53047.5 | AH34: 41872.5
A35: 46 | B35: 199552.5 | C35: 141960 | D35: 106410 | E35: 80985 | F35: 63922.5 | H35: 46 | I35: 175605 | J35: 124920 | K35: 93637.5 | L35: 71265 | M35: 56250 | O35: 46 | P35: 155655 | Q35: 110722.5 | R35: 82995 | S35: 63172.5 | T35: 49860 | V35: 46 | W35: 145672.5 | X35: 103627.5 | Y35: 77677.5 | Z35: 59122.5 | AA35: 46665 | AC35: 46 | AD35: 133702.5 | AE35: 95107.5 | AF35: 71295 | AG35: 54262.5 | AH35: 42832.5
A36: 47 | B36: 204120 | C36: 145207.5 | D36: 108840 | E36: 82837.5 | F36: 65385 | H36: 47 | I36: 179625 | J36: 127777.5 | K36: 95782.5 | L36: 72900 | M36: 57540 | O36: 47 | P36: 159210 | Q36: 113257.5 | R36: 84900 | S36: 64612.5 | T36: 51000 | V36: 47 | W36: 149010 | X36: 105997.5 | Y36: 79455 | Z36: 60472.5 | AA36: 47730 | AC36: 47 | AD36: 136762.5 | AE36: 97290 | AF36: 72922.5 | AG36: 55500 | AH36: 43807.5
A37: 48 | B37: =B138*0.6 -> 208792.5 | C37: 148530 | D37: 111337.5 | E37: 84735 | F37: 66885 | H37: 48 | I37: =I138*0.6 -> 183735 | J37: 130702.5 | K37: 97972.5 | L37: 74565 | M37: 58860 | O37: 48 | P37: =P138*0.6 -> 162855 | Q37: 115852.5 | R37: 86842.5 | S37: 66097.5 | T37: 52170 | V37: 48 | W37: =W138*0.6 -> 152415 | X37: 108427.5 | Y37: 81277.5 | Z37: 61860 | AA37: 48825 | AC37: 48 | AD37: =AD138*0.6 -> 139890 | AE37: 99510 | AF37: 74595 | AG37: 56775 | AH37: 44812.5
A38: 49 | B38: 215407.5 | C38: 153232.5 | D38: 114862.5 | E38: 87420 | F38: 69007.5 | H38: 49 | I38: 189562.5 | J38: 134850 | K38: 101077.5 | L38: 76935 | M38: 60720 | O38: 49 | P38: 168022.5 | Q38: 119527.5 | R38: 89595 | S38: 68190 | T38: 53820 | V38: 49 | W38: 157245 | X38: 111862.5 | Y38: 83850 | Z38: 63817.5 | AA38: 50370 | AC38: 49 | AD38: 144322.5 | AE38: 102667.5 | AF38: 76957.5 | AG38: 58575 | AH38: 46230
A39: 50 | B39: 220335 | C39: 156742.5 | D39: 117495 | E39: 89422.5 | F39: 70582.5 | H39: 50 | I39: 193897.5 | J39: 137932.5 | K39: 103395 | L39: 78690 | M39: 62115 | O39: 50 | P39: 171862.5 | Q39: 122257.5 | R39: 91642.5 | S39: 69750 | T39: 55057.5 | V39: 50 | W39: 160845 | X39: 114420 | Y39: 85770 | Z39: 65280 | AA39: 51525 | AC39: 50 | AD39: 147630 | AE39: 105015 | AF39: 78720 | AG39: 59910 | AH39: 47287.5
A40: 51 | B40: 225382.5 | C40: 160327.5 | D40: 120180 | E40: 91470 | F40: 72195 | H40: 51 | I40: 198337.5 | J40: 141090 | K40: 105757.5 | L40: 80490 | M40: 63532.5 | O40: 51 | P40: 175800 | Q40: 125055 | R40: 93742.5 | S40: 71347.5 | T40: 56317.5 | V40: 51 | W40: 164527.5 | X40: 117037.5 | Y40: 87735 | Z40: 66772.5 | AA40: 52702.5 | AC40: 51 | AD40: 151005 | AE40: 107422.5 | AF40: 80520 | AG40: 61282.5 | AH40: 48375
A41: 52 | B41: 230535 | C41: 163995 | D41: 122932.5 | E41: 93562.5 | F41: 73852.5 | H41: 52 | I41: 202875 | J41: 144315 | K41: 108180 | L41: 82335 | M41: 64987.5 | O41: 52 | P41: 179820 | Q41: 127920 | R41: 95887.5 | S41: 72975 | T41: 57600 | V41: 52 | W41: 168292.5 | X41: 119715 | Y41: 89737.5 | Z41: 68302.5 | AA41: 53910 | AC41: 52 | AD41: 154462.5 | AE41: 109875 | AF41: 82365 | AG41: 62685 | AH41: 49477.5
A42: 53 | B42: 235815 | C42: 167752.5 | D42: 125745 | E42: 95700 | F42: 75540 | H42: 53 | I42: 207517.5 | J42: 147622.5 | K42: 110655 | L42: 84217.5 | M42: 66472.5 | O42: 53 | P42: 183937.5 | Q42: 130845 | R42: 98077.5 | S42: 74647.5 | T42: 58920 | V42: 53 | W42: 172147.5 | X42: 122460 | Y42: 91792.5 | Z42: 69862.5 | AA42: 55147.5 | AC42: 53 | AD42: 157995 | AE42: 112395 | AF42: 84247.5 | AG42: 64125 | AH42: 50610
A43: 54 | B43: 248070 | C43: 176467.5 | D43: 132277.5 | E43: 100680 | F43: 79470 | H43: 54 | I43: 218302.5 | J43: 155295 | K43: 116407.5 | L43: 88597.5 | M43: 69930 | O43: 54 | P43: 193492.5 | Q43: 137647.5 | R43: 103177.5 | S43: 78525 | T43: 61980 | V43: 54 | W43: 181087.5 | X43: 128820 | Y43: 96562.5 | Z43: 73492.5 | AA43: 58012.5 | AC43: 54 | AD43: 166207.5 | AE43: 118237.5 | AF43: 88627.5 | AG43: 67455 | AH43: 53242.5
A44: 55 | B44: 262830 | C44: 186975 | D44: 140152.5 | E44: 106672.5 | F44: 84195 | H44: 55 | I44: 231292.5 | J44: 164535 | K44: 123330 | L44: 93870 | M44: 74092.5 | O44: 55 | P44: 205012.5 | Q44: 145837.5 | R44: 109320 | S44: 83205 | T44: 65670 | V44: 55 | W44: 191865 | X44: 136492.5 | Y44: 102307.5 | Z44: 77865 | AA44: 61462.5 | AC44: 55 | AD44: 176100 | AE44: 125272.5 | AF44: 93900 | AG44: 71467.5 | AH44: 56415
A45: 56 | B45: 271455 | C45: 193102.5 | D45: 144750 | E45: 110167.5 | F45: 86955 | H45: 56 | I45: 238882.5 | J45: 169935 | K45: 127380 | L45: 96945 | M45: 76522.5 | O45: 56 | P45: 211732.5 | Q45: 150622.5 | R45: 112905 | S45: 85935 | T45: 67830 | V45: 56 | W45: 198165 | X45: 140970 | Y45: 105667.5 | Z45: 80422.5 | AA45: 63480 | AC45: 56 | AD45: 181875 | AE45: 129382.5 | AF45: 96982.5 | AG45: 73815 | AH45: 58260
A46: 57 | B46: 287610 | C46: 204600 | D46: 153367.5 | E46: 116722.5 | F46: 92130 | H46: 57 | I46: 253095 | J46: 180045 | K46: 134962.5 | L46: 102720 | M46: 81075 | O46: 57 | P46: 224340 | Q46: 159585 | R46: 119625 | S46: 91042.5 | T46: 71865 | V46: 57 | W46: 209955 | X46: 149355 | Y46: 111960 | Z46: 85207.5 | AA46: 67260 | AC46: 57 | AD46: 192697.5 | AE46: 137085 | AF46: 102757.5 | AG46: 78202.5 | AH46: 61732.5
A47: 58 | B47: 304732.5 | C47: 216772.5 | D47: 162495 | E47: 123675 | F47: 97620 | H47: 58 | I47: 268162.5 | J47: 190762.5 | K47: 142995 | L47: 108832.5 | M47: 85905 | O47: 58 | P47: 237690 | Q47: 169087.5 | R47: 126742.5 | S47: 96465 | T47: 76140 | V47: 58 | W47: 222450 | X47: 158250 | Y47: 118620 | Z47: 90277.5 | AA47: 71257.5 | AC47: 58 | AD47: 204172.5 | AE47: 145237.5 | AF47: 108870 | AG47: 82860 | AH47: 65400
A48: 59 | B48: 322867.5 | C48: 229680 | D48: 172162.5 | E48: 131032.5 | F48: 103425 | H48: 59 | I48: 284122.5 | J48: 202117.5 | K48: 151500 | L48: 115312.5 | M48: 91012.5 | O48: 59 | P48: 251835 | Q48: 179145 | R48: 134287.5 | S48: 102202.5 | T48: 80670 | V48: 59 | W48: 235695 | X48: 167662.5 | Y48: 125677.5 | Z48: 95655 | AA48: 75502.5 | AC48: 59 | AD48: 216322.5 | AE48: 153885 | AF48: 115350 | AG48: 87795 | AH48: 69292.5
A49: 60 | B49: 342082.5 | C49: 243345 | D49: 182407.5 | E49: 138832.5 | F49: 109582.5 | H49: 60 | I49: 301035 | J49: 214147.5 | K49: 160522.5 | L49: 122175 | M49: 96435 | O49: 60 | P49: 266827.5 | Q49: 189810 | R49: 142282.5 | S49: 108285 | T49: 85477.5 | V49: 60 | W49: 249720 | X49: 177645 | Y49: 133162.5 | Z49: 101347.5 | AA49: 79995 | AC49: 60 | AD49: 229192.5 | AE49: 163042.5 | AF49: 122212.5 | AG49: 93015 | AH49: 73417.5
A50: 61 | B50: 362445 | C50: 257827.5 | D50: 193267.5 | E50: 147097.5 | F50: 116107.5 | H50: 61 | I50: 318945 | J50: 226890 | K50: 170077.5 | L50: 129442.5 | M50: 102172.5 | O50: 61 | P50: 282705 | Q50: 201105 | R50: 150750 | S50: 114735 | T50: 90562.5 | V50: 61 | W50: 264585 | X50: 188220 | Y50: 141082.5 | Z50: 107377.5 | AA50: 84757.5 | AC50: 61 | AD50: 242835 | AE50: 172747.5 | AF50: 129487.5 | AG50: 98550 | AH50: 77790
A51: 62 | B51: 384015 | C51: 273172.5 | D51: 204765 | E51: 155850 | F51: 123015 | H51: 62 | I51: 337935 | J51: 240397.5 | K51: 180195 | L51: 137145 | M51: 108255 | O51: 62 | P51: 299527.5 | Q51: 213075 | R51: 159720 | S51: 121560 | T51: 95947.5 | V51: 62 | W51: 280327.5 | X51: 199417.5 | Y51: 149482.5 | Z51: 113767.5 | AA51: 89797.5 | AC51: 62 | AD51: 257287.5 | AE51: 183030 | AF51: 137197.5 | AG51: 104415 | AH51: 82417.5
A52: 63 | B52: 406867.5 | C52: 289432.5 | D52: 216952.5 | E52: 165127.5 | F52: 130335 | H52: 63 | I52: 358042.5 | J52: 254700 | K52: 190920 | L52: 145312.5 | M52: 114697.5 | O52: 63 | P52: 317355 | Q52: 225757.5 | R52: 169222.5 | S52: 128797.5 | T52: 101662.5 | V52: 63 | W52: 297015 | X52: 211290 | Y52: 158377.5 | Z52: 120540 | AA52: 95145 | AC52: 63 | AD52: 272602.5 | AE52: 193920 | AF52: 145357.5 | AG52: 110632.5 | AH52: 87322.5
A53: 64 | B53: =B154*0.6 -> 431085 | C53: 306660 | D53: 229867.5 | E53: 174952.5 | F53: 138090 | H53: 64 | I53: =I154*0.6 -> 379350 | J53: 269857.5 | K53: 202282.5 | L53: 153960 | M53: 121522.5 | O53: 64 | P53: =P154*0.6 -> 336247.5 | Q53: 239197.5 | R53: 179295 | S53: 136462.5 | T53: 107715 | V53: 64 | W53: =W154*0.6 -> 314692.5 | X53: 223860 | Y53: 167805 | Z53: 127717.5 | AA53: 100807.5 | AC53: 64 | AD53: =AD154*0.6 -> 288825 | AE53: 205462.5 | AF53: 154012.5 | AG53: 117217.5 | AH53: 92520
A54: 65 | B54: 456742.5 | C54: 324915 | D54: 243547.5 | E54: 185362.5 | F54: 146310 | H54: 65 | I54: 401932.5 | J54: 285922.5 | K54: 214320 | L54: 163117.5 | M54: 128752.5 | O54: 65 | P54: 356257.5 | Q54: 253432.5 | R54: 189967.5 | S54: 144585 | T54: 114120 | V54: 65 | W54: 333420 | X54: 237187.5 | Y54: 177787.5 | Z54: 135315 | AA54: 106807.5 | AC54: 65 | AD54: 306015 | AE54: 217687.5 | AF54: 163177.5 | AG54: 124192.5 | AH54: 98025
A55: 66 | B55: 483922.5 | C55: 344250 | D55: 258045 | E55: 196395 | F55: 155017.5 | H55: 66 | I55: 425850 | J55: 302940 | K55: 227077.5 | L55: 172830 | M55: 136417.5 | O55: 66 | P55: 377460 | Q55: 268515 | R55: 201277.5 | S55: 153187.5 | T55: 120915 | V55: 66 | W55: 353265 | X55: 251302.5 | Y55: 188370 | Z55: 143370 | AA55: 113167.5 | AC55: 66 | AD55: 324225 | AE55: 230647.5 | AF55: 172890 | AG55: 131587.5 | AH55: 103860
A56: 67 | B56: 512722.5 | C56: 364740 | D56: 273405 | E56: 208087.5 | F56: 164242.5 | H56: 67 | I56: 451200 | J56: 320970 | K56: 240592.5 | L56: 183112.5 | M56: 144540 | O56: 67 | P56: 399922.5 | Q56: 284497.5 | R56: 213255 | S56: 162307.5 | T56: 128115 | V56: 67 | W56: 374287.5 | X56: 266257.5 | Y56: 199582.5 | Z56: 151905 | AA56: 119902.5 | AC56: 67 | AD56: 343522.5 | AE56: 244372.5 | AF56: 183180 | AG56: 139417.5 | AH56: 110047.5
A57: 68 | B57: 543240 | C57: 386445 | D57: 289672.5 | E57: 220470 | F57: 174022.5 | H57: 68 | I57: 478050 | J57: 340072.5 | K57: 254910 | L57: 194010 | M57: 153135 | O57: 68 | P57: 423727.5 | Q57: 301425 | R57: 225945 | S57: 171967.5 | T57: 135735 | V57: 68 | W57: 396562.5 | X57: 282105 | Y57: 211462.5 | Z57: 160942.5 | AA57: 127035 | AC57: 68 | AD57: 363967.5 | AE57: 258915 | AF57: 194085 | AG57: 147712.5 | AH57: 116595
A58: 69 | B58: 590460 | C58: 420037.5 | D58: 314850 | E58: 239632.5 | F58: 189150 | H58: 69 | I58: 519600 | J58: 369630 | K58: 277072.5 | L58: 210877.5 | M58: 166447.5 | O58: 69 | P58: 460560 | Q58: 327630 | R58: 245587.5 | S58: 186915 | T58: 147532.5 | V58: 69 | W58: 431032.5 | X58: 306622.5 | Y58: 229845 | Z58: 174930 | AA58: 138075 | AC58: 69 | AD58: 395610 | AE58: 281422.5 | AF58: 210952.5 | AG58: 160552.5 | AH58: 126727.5
A59: 70 | B59: 625597.5 | C59: 445035 | D59: 333592.5 | E59: 253897.5 | F59: 200400 | H59: 70 | I59: 550530 | J59: 391627.5 | K59: 293557.5 | L59: 223425 | M59: 176355 | O59: 70 | P59: 487965 | Q59: 347122.5 | R59: 260197.5 | S59: 198037.5 | T59: 156315 | V59: 70 | W59: 456690 | X59: 324877.5 | Y59: 243525 | Z59: 185340 | AA59: 146295 | AC59: 70 | AD59: 419152.5 | AE59: 298170 | AF59: 223507.5 | AG59: 170107.5 | AH59: 134272.5
A60: 71 | B60: 662835 | C60: 471517.5 | D60: 353445 | E60: 269002.5 | F60: 212332.5 | H60: 71 | I60: 583290 | J60: 414937.5 | K60: 311032.5 | L60: 236722.5 | M60: 186855 | O60: 71 | P60: 517012.5 | Q60: 367785 | R60: 275685 | S60: 209827.5 | T60: 165615 | V60: 71 | W60: 483870 | X60: 344212.5 | Y60: 258015 | Z60: 196372.5 | AA60: 155002.5 | AC60: 71 | AD60: 444097.5 | AE60: 315915 | AF60: 236805 | AG60: 180232.5 | AH60: 142260
A61: 72 | B61: 702285 | C61: 499582.5 | D61: 374482.5 | E61: 285015 | F61: 224970 | H61: 72 | I61: 618007.5 | J61: 439635 | K61: 329542.5 | L61: 250815 | M61: 197970 | O61: 72 | P61: 547777.5 | Q61: 389677.5 | R61: 292095 | S61: 222315 | T61: 175477.5 | V61: 72 | W61: 512662.5 | X61: 364695 | Y61: 273367.5 | Z61: 208065 | AA61: 164227.5 | AC61: 72 | AD61: 470527.5 | AE61: 334717.5 | AF61: 250905 | AG61: 190957.5 | AH61: 150727.5
A62: 73 | B62: 744082.5 | C62: 529320 | D62: 396765 | E62: 301980 | F62: 238357.5 | H62: 73 | I62: 654787.5 | J62: 465795 | K62: 349155 | L62: 265740 | M62: 209752.5 | O62: 73 | P62: 580380 | Q62: 412867.5 | R62: 309480 | S62: 235545 | T62: 185917.5 | V62: 73 | W62: 543180 | X62: 386400 | Y62: 289642.5 | Z62: 220447.5 | AA62: 174000 | AC62: 73 | AD62: 498532.5 | AE62: 354645 | AF62: 265837.5 | AG62: 202327.5 | AH62: 159697.5
A63: 74 | B63: 788362.5 | C63: 560820 | D63: 420382.5 | E63: 319950 | F63: 252540 | H63: 74 | I63: 693757.5 | J63: 493522.5 | K63: 369937.5 | L63: 281557.5 | M63: 222240 | O63: 74 | P63: 614925 | Q63: 437437.5 | R63: 327900 | S63: 249562.5 | T63: 196987.5 | V63: 74 | W63: 575505 | X63: 409395 | Y63: 306877.5 | Z63: 233565 | AA63: 184357.5 | AC63: 74 | AD63: 528202.5 | AE63: 375750 | AF63: 281655 | AG63: 214365 | AH63: 169207.5
A64: 75 | B64: 844335 | C64: 600637.5 | D64: 450225 | E64: 342667.5 | F64: 270472.5 | H64: 75 | I64: 743010 | J64: 528555 | K64: 396202.5 | L64: 301545 | M64: 238012.5 | O64: 75 | P64: 658582.5 | Q64: 468495 | R64: 351180 | S64: 267277.5 | T64: 210967.5 | V64: 75 | W64: 616365 | X64: 438465 | Y64: 328665 | Z64: 250147.5 | AA64: 197445 | AC64: 75 | AD64: 565702.5 | AE64: 402427.5 | AF64: 301650 | AG64: 229590 | AH64: 181215
A65: 76 | B65: 892312.5 | C65: 634770 | D65: 475815 | E65: 362137.5 | F65: 285840 | H65: 76 | I65: 785235 | J65: 558592.5 | K65: 418717.5 | L65: 318682.5 | M65: 251542.5 | O65: 76 | P65: 696007.5 | Q65: 495120 | R65: 371130 | S65: 282465 | T65: 222960 | V65: 76 | W65: 651390 | X65: 463380 | Y65: 347340 | Z65: 264360 | AA65: 208665 | AC65: 76 | AD65: 597847.5 | AE65: 425295 | AF65: 318795 | AG65: 242632.5 | AH65: 191512.5
A66: 77 | B66: 934965 | C66: 665107.5 | D66: 498555 | E66: 379447.5 | F66: 299505 | H66: 77 | I66: 822765 | J66: 585292.5 | K66: 438727.5 | L66: 333915 | M66: 263565 | O66: 77 | P66: 729270 | Q66: 518782.5 | R66: 388875 | S66: 295972.5 | T66: 233610 | V66: 77 | W66: 682522.5 | X66: 485527.5 | Y66: 363945 | Z66: 276997.5 | AA66: 218640 | AC66: 77 | AD66: 626422.5 | AE66: 445620 | AF66: 334035 | AG66: 254227.5 | AH66: 200670
A67: 78 | B67: 979650 | C67: 696892.5 | D67: 522382.5 | E67: 397582.5 | F67: 313822.5 | H67: 78 | I67: 862087.5 | J67: 613267.5 | K67: 459697.5 | L67: 349875 | M67: 276165 | O67: 78 | P67: 764122.5 | Q67: 543577.5 | R67: 407460 | S67: 310117.5 | T67: 244777.5 | V67: 78 | W67: 715140 | X67: 508732.5 | Y67: 381337.5 | Z67: 290235 | AA67: 229087.5 | AC67: 78 | AD67: 656362.5 | AE67: 466920 | AF67: 349995 | AG67: 266377.5 | AH67: 210262.5
A68: 79 | B68: 1026472.5 | C68: 730200 | D68: 547350 | E68: 416587.5 | F68: 328815 | H68: 79 | I68: 903292.5 | J68: 642577.5 | K68: 481665 | L68: 366592.5 | M68: 289357.5 | O68: 79 | P68: 800647.5 | Q68: 569557.5 | R68: 426930 | S68: 324937.5 | T68: 256477.5 | V68: 79 | W68: 749325 | X68: 533047.5 | Y68: 399562.5 | Z68: 304110 | AA68: 240037.5 | AC68: 79 | AD68: 687735 | AE68: 489232.5 | AF68: 366720 | AG68: 279112.5 | AH68: 220305
A69: 80 | B69: =B170*0.6 -> 1075530 | C69: 765097.5 | D69: 573510 | E69: 436492.5 | F69: 344535 | H69: 80 | I69: =I170*0.6 -> 946470 | J69: 673290 | K69: 504690 | L69: 384120 | M69: 303187.5 | O69: 80 | P69: =P170*0.6 -> 838912.5 | Q69: 596775 | R69: 447337.5 | S69: 340470 | T69: 268740 | V69: 80 | W69: =W170*0.6 -> 785137.5 | X69: 558525 | Y69: 418665 | Z69: 318645 | AA69: 251512.5 | AC69: 80 | AD69: =AD170*0.6 -> 720607.5 | AE69: 512617.5 | AF69: 384255 | AG69: 292455 | AH69: 230835
A70: 81 | B70: 1126935 | C70: 801667.5 | D70: 600922.5 | E70: 457357.5 | F70: 360997.5 | H70: 81 | I70: 991702.5 | J70: 705465 | K70: 528810 | L70: 402472.5 | M70: 317677.5 | O70: 81 | P70: 879007.5 | Q70: 625305 | R70: 468720 | S70: 356737.5 | T70: 281580 | V70: 81 | W70: 822660 | X70: 585217.5 | Y70: 438675 | Z70: 333870 | AA70: 263527.5 | AC70: 81 | AD70: 755047.5 | AE70: 537120 | AF70: 402615 | AG70: 306427.5 | AH70: 241867.5
A71: 82 | B71: 1180792.5 | C71: 839985 | D71: 629640 | E71: 479220 | F71: 378255 | H71: 82 | I71: 1039102.5 | J71: 739185 | K71: 554085 | L71: 421710 | M71: 332865 | O71: 82 | P71: 921022.5 | Q71: 655185 | R71: 491122.5 | S71: 373792.5 | T71: 295035 | V71: 82 | W71: 861982.5 | X71: 613185 | Y71: 459637.5 | Z71: 349830 | AA71: 276127.5 | AC71: 82 | AD71: 791130 | AE71: 562792.5 | AF71: 421860 | AG71: 321075 | AH71: 253432.5
A72: 83 | B72: 1237230 | C72: 880132.5 | D72: 659737.5 | E72: 502125 | F72: 396330 | H72: 83 | I72: 1088760 | J72: 774517.5 | K72: 580567.5 | L72: 441870 | M72: 348772.5 | O72: 83 | P72: 965040 | Q72: 686505 | R72: 514590 | S72: 391657.5 | T72: 309142.5 | V72: 83 | W72: 903180 | X72: 642495 | Y72: 481605 | Z72: 366547.5 | AA72: 289320 | AC72: 83 | AD72: 828945 | AE72: 589687.5 | AF72: 442020 | AG72: 336420 | AH72: 265545
A73: 84 | B73: 1296367.5 | C73: 922192.5 | D73: 691267.5 | E73: 526117.5 | F73: 415275 | H73: 84 | I73: 1140802.5 | J73: 811530 | K73: 608310 | L73: 462982.5 | M73: 365445 | O73: 84 | P73: 1011165 | Q73: 719310 | R73: 539190 | S73: 410370 | T73: 323917.5 | V73: 84 | W73: 946350 | X73: 673200 | Y73: 504622.5 | Z73: 384067.5 | AA73: 303150 | AC73: 84 | AD73: 868567.5 | AE73: 617872.5 | AF73: 463147.5 | AG73: 352500 | AH73: 278235
A96: ANUUAL RATES - START FROM HERE
A102: Zona 1: Ciudad de México (D.F. y área metropolitana) y franja fronteriza norte | H102: Zona 2: Nuevo León, Sonora, Coahuila, Chihuahua, Tamaulipas, Baja California Norte y Baja California Sur | O102: Zona 3: Jalisco, Puebla, Morelos, Estado de México (excepto Área Metropolitana), Guerrero (Acapulco y Zihuatanejo), Hidalgo y Querétaro | V102: Zona 4: Sinaloa, Guanajuato, San Luis Potosí, Durango, Aguascalientes, Nayarit, Michoacán, Colima, Quintana Roo, Zacatecas | AC102: Zona 5: Guerrero (excepto Acapulco y Zihuatanejo), Veracruz, Chiapas, Tabasco, Campeche, Oaxaca, Tlaxcala, Yucatán
A103: Primas de tarifa expresadas en pesos mexicanos | H103: Primas de tarifa expresadas en pesos mexicanos | O103: Primas de tarifa expresadas en pesos mexicanos | V103: Primas de tarifa expresadas en pesos mexicanos | AC103: Primas de tarifa expresadas en pesos mexicanos
A104: Edad | B104: DW21 | C104: DW31 | D104: DW41 | E104: DW51 | F104: DW61 | H104: Edad | I104: DW22 | J104: DW32 | K104: DW42 | L104: DW52 | M104: DW62 | O104: Edad | P104: DW23 | Q104: DW33 | R104: DW43 | S104: DW53 | T104: DW63 | V104: Edad | W104: DW24 | X104: DW34 | Y104: DW44 | Z104: DW54 | AA104: DW64 | AC104: Edad | AD104: DW25 | AE104: DW35 | AF104: DW45 | AG104: DW55 | AH104: DW65
A105: 1 menor | B105: 68600 | C105: 48800 | D105: 36575 | E105: 27837.5 | F105: 21975 | H105: 1 menor | I105: 60362.5 | J105: 42950 | K105: 32187.5 | L105: 24500 | M105: 19337.5 | O105: 1 menor | P105: 53512.5 | Q105: 38062.5 | R105: 28537.5 | S105: 21712.5 | T105: 17137.5 | V105: 1 menor | W105: 50075 | X105: 35625 | Y105: 26700 | Z105: 20325 | AA105: 16037.5 | AC105: 1 menor | AD105: 45962.5 | AE105: 32700 | AF105: 24512.5 | AG105: 18650 | AH105: 14725
A106: 2 menor | B106: 108087.5 | C106: 76887.5 | D106: 57637.5 | E106: 43862.5 | F106: 34625 | H106: 2 menores | I106: 95112.5 | J106: 67662.5 | K106: 50725 | L106: 38600 | M106: 30475 | O106: 2 menores | P106: 84312.5 | Q106: 59975 | R106: 44950 | S106: 34212.5 | T106: 27012.5 | V106: 2 menores | W106: 78900 | X106: 56125 | Y106: 42075 | Z106: 32025 | AA106: 25275 | AC106: 2 menores | AD106: 72425 | AE106: 51512.5 | AF106: 38612.5 | AG106: 29387.5 | AH106: 23200
A107: 3 menor | B107: 156362.5 | C107: 111225 | D107: 83375 | E107: 63462.5 | F107: 50087.5 | H107: 3 ó más menores | I107: 137600 | J107: 97887.5 | K107: 73375 | L107: 55837.5 | M107: 44075 | O107: 3 ó más menores | P107: 121962.5 | Q107: 86762.5 | R107: 65037.5 | S107: 49500 | T107: 39062.5 | V107: 3 ó más menores | W107: 114137.5 | X107: 81200 | Y107: 60862.5 | Z107: 46325 | AA107: 36562.5 | AC107: 3 ó más menores | AD107: 104762.5 | AE107: 74525 | AF107: 55862.5 | AG107: 42512.5 | AH107: 33562.5
A108: 18 | B108: 156887.5 | C108: 111600 | D108: 83662.5 | E108: 63675 | F108: 50262.5 | H108: 18 | I108: 138062.5 | J108: 98212.5 | K108: 73625 | L108: 56037.5 | M108: 44225 | O108: 18 | P108: 122375 | Q108: 87050 | R108: 65250 | S108: 49662.5 | T108: 39200 | V108: 18 | W108: 114525 | X108: 81475 | Y108: 61075 | Z108: 46475 | AA108: 36687.5 | AC108: 18 | AD108: 105112.5 | AE108: 74775 | AF108: 56050 | AG108: 42662.5 | AH108: 33675
A109: 19 | B109: 161837.5 | C109: 115125 | D109: 86300 | E109: 65687.5 | F109: 51850 | H109: 19 | I109: 142425 | J109: 101312.5 | K109: 75950 | L109: 57800 | M109: 45625 | O109: 19 | P109: 126237.5 | Q109: 89800 | R109: 67312.5 | S109: 51237.5 | T109: 40437.5 | V109: 19 | W109: 118150 | X109: 84050 | Y109: 63000 | Z109: 47950 | AA109: 37850 | AC109: 19 | AD109: 108437.5 | AE109: 77137.5 | AF109: 57825 | AG109: 44012.5 | AH109: 34737.5
A110: 20 | B110: 166950 | C110: 118762.5 | D110: 89025 | E110: 67750 | F110: 53475 | H110: 20 | I110: 146912.5 | J110: 104512.5 | K110: 78337.5 | L110: 59625 | M110: 47062.5 | O110: 20 | P110: 130225 | Q110: 92637.5 | R110: 69437.5 | S110: 52850 | T110: 41712.5 | V110: 20 | W110: 121875 | X110: 86700 | Y110: 64987.5 | Z110: 49462.5 | AA110: 39037.5 | AC110: 20 | AD110: 111862.5 | AE110: 79575 | AF110: 59650 | AG110: 45400 | AH110: 35837.5
A111: 21 | B111: 172225 | C111: 122512.5 | D111: 91837.5 | E111: 69900 | F111: 55175 | H111: 21 | I111: 151550 | J111: 107812.5 | K111: 80812.5 | L111: 61512.5 | M111: 48550 | O111: 21 | P111: 134337.5 | Q111: 95562.5 | R111: 71625 | S111: 54512.5 | T111: 43037.5 | V111: 21 | W111: 125725 | X111: 89437.5 | Y111: 67037.5 | Z111: 51025 | AA111: 40275 | AC111: 21 | AD111: 115387.5 | AE111: 82087.5 | AF111: 61525 | AG111: 46825 | AH111: 36962.5
A112: 22 | B112: 177662.5 | C112: 126387.5 | D112: 94737.5 | E112: 72100 | F112: 56912.5 | H112: 22 | I112: 156337.5 | J112: 111212.5 | K112: 83362.5 | L112: 63450 | M112: 50087.5 | O112: 22 | P112: 138575 | Q112: 98575 | R112: 73887.5 | S112: 56237.5 | T112: 44387.5 | V112: 22 | W112: 129687.5 | X112: 92262.5 | Y112: 69150 | Z112: 52637.5 | AA112: 41550 | AC112: 22 | AD112: 119037.5 | AE112: 84675 | AF112: 63475 | AG112: 48312.5 | AH112: 38125
A113: 23 | B113: 183262.5 | C113: 130375 | D113: 97725 | E113: 74375 | F113: 58712.5 | H113: 23 | I113: 161275 | J113: 114725 | K113: 86000 | L113: 65450 | M113: 51662.5 | O113: 23 | P113: 142950 | Q113: 101687.5 | R113: 76225 | S113: 58012.5 | T113: 45787.5 | V113: 23 | W113: 133787.5 | X113: 95175 | Y113: 71337.5 | Z113: 54300 | AA113: 42862.5 | AC113: 23 | AD113: 122787.5 | AE113: 87350 | AF113: 65475 | AG113: 49837.5 | AH113: 39337.5
A114: 24 | B114: 189050 | C114: 134487.5 | D114: 100812.5 | E114: 76725 | F114: 60562.5 | H114: 24 | I114: 166362.5 | J114: 118350 | K114: 88712.5 | L114: 67525 | M114: 53300 | O114: 24 | P114: 147462.5 | Q114: 104900 | R114: 78637.5 | S114: 59850 | T114: 47237.5 | V114: 24 | W114: 138012.5 | X114: 98175 | Y114: 73587.5 | Z114: 56012.5 | AA114: 44212.5 | AC114: 24 | AD114: 126662.5 | AE114: 90112.5 | AF114: 67537.5 | AG114: 51412.5 | AH114: 40575
A115: 25 | B115: 195025 | C115: 138737.5 | D115: 103987.5 | E115: 79150 | F115: 62475 | H115: 25 | I115: 171625 | J115: 122087.5 | K115: 91512.5 | L115: 69650 | M115: 54975 | O115: 25 | P115: 152112.5 | Q115: 108212.5 | R115: 81112.5 | S115: 61737.5 | T115: 48725 | V115: 25 | W115: 142362.5 | X115: 101275 | Y115: 75912.5 | Z115: 57775 | AA115: 45600 | AC115: 25 | AD115: 130662.5 | AE115: 92950 | AF115: 69675 | AG115: 53025 | AH115: 41862.5
A116: 26 | B116: 201175 | C116: 143112.5 | D116: 107275 | E116: 81650 | F116: 64450 | H116: 26 | I116: 177037.5 | J116: 125937.5 | K116: 94400 | L116: 71850 | M116: 56712.5 | O116: 26 | P116: 156925 | Q116: 111625 | R116: 83675 | S116: 63687.5 | T116: 50262.5 | V116: 26 | W116: 146862.5 | X116: 104475 | Y116: 78312.5 | Z116: 59600 | AA116: 47050 | AC116: 26 | AD116: 134787.5 | AE116: 95887.5 | AF116: 71875 | AG116: 54700 | AH116: 43175
A117: 27 | B117: 207525 | C117: 147625 | D117: 110662.5 | E117: 84225 | F117: 66475 | H117: 27 | I117: 182625 | J117: 129912.5 | K117: 97387.5 | L117: 74112.5 | M117: 58500 | O117: 27 | P117: 161875 | Q117: 115150 | R117: 86312.5 | S117: 65700 | T117: 51850 | V117: 27 | W117: 151500 | X117: 107775 | Y117: 80787.5 | Z117: 61487.5 | AA117: 48525 | AC117: 27 | AD117: 139050 | AE117: 98912.5 | AF117: 74150 | AG117: 56425 | AH117: 44537.5
A118: 28 | B118: 214087.5 | C118: 152287.5 | D118: 114150 | E118: 86887.5 | F118: 68575 | H118: 28 | I118: 188387.5 | J118: 134012.5 | K118: 100462.5 | L118: 76462.5 | M118: 60350 | O118: 28 | P118: 166987.5 | Q118: 118787.5 | R118: 89037.5 | S118: 67775 | T118: 53487.5 | V118: 28 | W118: 156275 | X118: 111175 | Y118: 83337.5 | Z118: 63425 | AA118: 50062.5 | AC118: 28 | AD118: 143437.5 | AE118: 102037.5 | AF118: 76487.5 | AG118: 58212.5 | AH118: 45950
A119: 29 | B119: 220837.5 | C119: 157100 | D119: 117762.5 | E119: 89625 | F119: 70750 | H119: 29 | I119: 194337.5 | J119: 138250 | K119: 103625 | L119: 78875 | M119: 62250 | O119: 29 | P119: 172250 | Q119: 122537.5 | R119: 91850 | S119: 69912.5 | T119: 55175 | V119: 29 | W119: 161212.5 | X119: 114687.5 | Y119: 85962.5 | Z119: 65425 | AA119: 51637.5 | AC119: 29 | AD119: 147962.5 | AE119: 105262.5 | AF119: 78900 | AG119: 60050 | AH119: 47400
A120: 30 | B120: 227812.5 | C120: 162062.5 | D120: 121475 | E120: 92450 | F120: 72975 | H120: 30 | I120: 200475 | J120: 142612.5 | K120: 106900 | L120: 81362.5 | M120: 64225 | O120: 30 | P120: 177700 | Q120: 126412.5 | R120: 94750 | S120: 72112.5 | T120: 56925 | V120: 30 | W120: 166300 | X120: 118300 | Y120: 88675 | Z120: 67487.5 | AA120: 53275 | AC120: 30 | AD120: 152637.5 | AE120: 108575 | AF120: 81387.5 | AG120: 61950 | AH120: 48900
A121: 31 | B121: 235000 | C121: 167175 | D121: 125312.5 | E121: 95375 | F121: 75275 | H121: 31 | I121: 206800 | J121: 147112.5 | K121: 110275 | L121: 83925 | M121: 66250 | O121: 31 | P121: 183300 | Q121: 130400 | R121: 97750 | S121: 74387.5 | T121: 58725 | V121: 31 | W121: 171550 | X121: 122037.5 | Y121: 91475 | Z121: 69625 | AA121: 54950 | AC121: 31 | AD121: 157450 | AE121: 112012.5 | AF121: 83962.5 | AG121: 63900 | AH121: 50437.5
A122: 32 | B122: 242425 | C122: 172450 | D122: 129275 | E122: 98387.5 | F122: 77662.5 | H122: 32 | I122: 213337.5 | J122: 151762.5 | K122: 113762.5 | L122: 86575 | M122: 68337.5 | O122: 32 | P122: 189087.5 | Q122: 134512.5 | R122: 100825 | S122: 76737.5 | T122: 60575 | V122: 32 | W122: 176975 | X122: 125887.5 | Y122: 94362.5 | Z122: 71825 | AA122: 56687.5 | AC122: 32 | AD122: 162425 | AE122: 115550 | AF122: 86612.5 | AG122: 65925 | AH122: 52025
A123: 33 | B123: 250075 | C123: 177900 | D123: 133350 | E123: 101487.5 | F123: 80112.5 | H123: 33 | I123: 220075 | J123: 156550 | K123: 117350 | L123: 89312.5 | M123: 70500 | O123: 33 | P123: 195062.5 | Q123: 138762.5 | R123: 104012.5 | S123: 79162.5 | T123: 62487.5 | V123: 33 | W123: 182562.5 | X123: 129862.5 | Y123: 97350 | Z123: 74087.5 | AA123: 58475 | AC123: 33 | AD123: 167550 | AE123: 119187.5 | AF123: 89350 | AG123: 68000 | AH123: 53675
A124: 34 | B124: 257975 | C124: 183512.5 | D124: 137562.5 | E124: 104700 | F124: 82637.5 | H124: 34 | I124: 227012.5 | J124: 161487.5 | K124: 121050 | L124: 92137.5 | M124: 72725 | O124: 34 | P124: 201225 | Q124: 143137.5 | R124: 107300 | S124: 81662.5 | T124: 64462.5 | V124: 34 | W124: 188325 | X124: 133962.5 | Y124: 100425 | Z124: 76425 | AA124: 60325 | AC124: 34 | AD124: 172837.5 | AE124: 122950 | AF124: 92162.5 | AG124: 70150 | AH124: 55362.5
A125: 35 | B125: 259312.5 | C125: 184462.5 | D125: 138275 | E125: 105237.5 | F125: 83062.5 | H125: 35 | I125: 228187.5 | J125: 162325 | K125: 121675 | L125: 92612.5 | M125: 73100 | O125: 35 | P125: 202262.5 | Q125: 143887.5 | R125: 107850 | S125: 82087.5 | T125: 64787.5 | V125: 35 | W125: 189300 | X125: 134662.5 | Y125: 100937.5 | Z125: 76825 | AA125: 60637.5 | AC125: 35 | AD125: 173737.5 | AE125: 123587.5 | AF125: 92637.5 | AG125: 70512.5 | AH125: 55650
A126: 36 | B126: 265250 | C126: 188687.5 | D126: 141437.5 | E126: 107650 | F126: 84962.5 | H126: 36 | I126: 233412.5 | J126: 166050 | K126: 124462.5 | L126: 94725 | M126: 74775 | O126: 36 | P126: 206887.5 | Q126: 147175 | R126: 110325 | S126: 83962.5 | T126: 66275 | V126: 36 | W126: 193625 | X126: 137737.5 | Y126: 103250 | Z126: 78587.5 | AA126: 62025 | AC126: 36 | AD126: 177712.5 | AE126: 126425 | AF126: 94762.5 | AG126: 72125 | AH126: 56925
A127: 37 | B127: 271312.5 | C127: 193000 | D127: 144675 | E127: 110112.5 | F127: 86912.5 | H127: 37 | I127: 238750 | J127: 169850 | K127: 127312.5 | L127: 96900 | M127: 76487.5 | O127: 37 | P127: 211625 | Q127: 150550 | R127: 112850 | S127: 85887.5 | T127: 67787.5 | V127: 37 | W127: 198062.5 | X127: 140887.5 | Y127: 105612.5 | Z127: 80375 | AA127: 63450 | AC127: 37 | AD127: 181775 | AE127: 129312.5 | AF127: 96925 | AG127: 73775 | AH127: 58225
A128: 38 | B128: 277525 | C128: 197425 | D128: 147987.5 | E128: 112625 | F128: 88900 | H128: 38 | I128: 244225 | J128: 173725 | K128: 130225 | L128: 99112.5 | M128: 78237.5 | O128: 38 | P128: 216462.5 | Q128: 153987.5 | R128: 115425 | S128: 87850 | T128: 69337.5 | V128: 38 | W128: 202587.5 | X128: 144112.5 | Y128: 108025 | Z128: 82225 | AA128: 64900 | AC128: 38 | AD128: 185937.5 | AE128: 132275 | AF128: 99150 | AG128: 75462.5 | AH128: 59562.5
A129: 39 | B129: 283875 | C129: 201937.5 | D129: 151375 | E129: 115212.5 | F129: 90937.5 | H129: 39 | I129: 249812.5 | J129: 177700 | K129: 133200 | L129: 101387.5 | M129: 80025 | O129: 39 | P129: 221425 | Q129: 157512.5 | R129: 118075 | S129: 89862.5 | T129: 70925 | V129: 39 | W129: 207225 | X129: 147412.5 | Y129: 110500 | Z129: 84100 | AA129: 66387.5 | AC129: 39 | AD129: 190200 | AE129: 135300 | AF129: 101412.5 | AG129: 77187.5 | AH129: 60925
A130: 40 | B130: 290375 | C130: 206562.5 | D130: 154837.5 | E130: 117850 | F130: 93012.5 | H130: 40 | I130: 255525 | J130: 181775 | K130: 136250 | L130: 103700 | M130: 81850 | O130: 40 | P130: 226487.5 | Q130: 161112.5 | R130: 120775 | S130: 91912.5 | T130: 72550 | V130: 40 | W130: 211975 | X130: 150787.5 | Y130: 113025 | Z130: 86025 | AA130: 67900 | AC130: 40 | AD130: 194550 | AE130: 138400 | AF130: 103737.5 | AG130: 78950 | AH130: 62325
A131: 41 | B131: 297012.5 | C131: 211287.5 | D131: 158375 | E131: 120537.5 | F131: 95150 | H131: 41 | I131: 261375 | J131: 185937.5 | K131: 139375 | L131: 106075 | M131: 83725 | O131: 41 | P131: 231675 | Q131: 164800 | R131: 123537.5 | S131: 94025 | T131: 74212.5 | V131: 41 | W131: 216825 | X131: 154237.5 | Y131: 115612.5 | Z131: 88000 | AA131: 69450 | AC131: 41 | AD131: 199000 | AE131: 141562.5 | AF131: 106112.5 | AG131: 80762.5 | AH131: 63750
A132: 42 | B132: 303812.5 | C132: 216125 | D132: 162000 | E132: 123300 | F132: 97325 | H132: 42 | I132: 267350 | J132: 190187.5 | K132: 142562.5 | L132: 108500 | M132: 85650 | O132: 42 | P132: 236975 | Q132: 168575 | R132: 126362.5 | S132: 96175 | T132: 75912.5 | V132: 42 | W132: 221775 | X132: 157775 | Y132: 118262.5 | Z132: 90012.5 | AA132: 71050 | AC132: 42 | AD132: 203550 | AE132: 144800 | AF132: 108537.5 | AG132: 82612.5 | AH132: 65200
A133: 43 | B133: 310762.5 | C133: 221062.5 | D133: 165712.5 | E133: 126125 | F133: 99550 | H133: 43 | I133: 273475 | J133: 194537.5 | K133: 145825 | L133: 110987.5 | M133: 87600 | O133: 43 | P133: 242400 | Q133: 172437.5 | R133: 129250 | S133: 98375 | T133: 77650 | V133: 43 | W133: 226862.5 | X133: 161375 | Y133: 120962.5 | Z133: 92062.5 | AA133: 72675 | AC133: 43 | AD133: 208212.5 | AE133: 148112.5 | AF133: 111025 | AG133: 84500 | AH133: 66700
A134: 44 | B134: 317875 | C134: 226125 | D134: 169500 | E134: 129012.5 | F134: 101825 | H134: 44 | I134: 279725 | J134: 198987.5 | K134: 149162.5 | L134: 113525 | M134: 89612.5 | O134: 44 | P134: 247937.5 | Q134: 176375 | R134: 132212.5 | S134: 100625 | T134: 79425 | V134: 44 | W134: 232050 | X134: 165075 | Y134: 123737.5 | Z134: 94175 | AA134: 74337.5 | AC134: 44 | AD134: 212975 | AE134: 151500 | AF134: 113562.5 | AG134: 86437.5 | AH134: 68225
A135: 45 | B135: 325150 | C135: 231300 | D135: 173375 | E135: 131962.5 | F135: 104162.5 | H135: 45 | I135: 286125 | J135: 203550 | K135: 152575 | L135: 116125 | M135: 91662.5 | O135: 45 | P135: 253612.5 | Q135: 180412.5 | R135: 135237.5 | S135: 102925 | T135: 81237.5 | V135: 45 | W135: 237362.5 | X135: 168850 | Y135: 126562.5 | Z135: 96325 | AA135: 76037.5 | AC135: 45 | AD135: 217850 | AE135: 154975 | AF135: 116162.5 | AG135: 88412.5 | AH135: 69787.5
A136: 46 | B136: 332587.5 | C136: 236600 | D136: 177350 | E136: 134975 | F136: 106537.5 | H136: 46 | I136: 292675 | J136: 208200 | K136: 156062.5 | L136: 118775 | M136: 93750 | O136: 46 | P136: 259425 | Q136: 184537.5 | R136: 138325 | S136: 105287.5 | T136: 83100 | V136: 46 | W136: 242787.5 | X136: 172712.5 | Y136: 129462.5 | Z136: 98537.5 | AA136: 77775 | AC136: 46 | AD136: 222837.5 | AE136: 158512.5 | AF136: 118825 | AG136: 90437.5 | AH136: 71387.5
A137: 47 | B137: 340200 | C137: 242012.5 | D137: 181400 | E137: 138062.5 | F137: 108975 | H137: 47 | I137: 299375 | J137: 212962.5 | K137: 159637.5 | L137: 121500 | M137: 95900 | O137: 47 | P137: 265350 | Q137: 188762.5 | R137: 141500 | S137: 107687.5 | T137: 85000 | V137: 47 | W137: 248350 | X137: 176662.5 | Y137: 132425 | Z137: 100787.5 | AA137: 79550 | AC137: 47 | AD137: 227937.5 | AE137: 162150 | AF137: 121537.5 | AG137: 92500 | AH137: 73012.5
A138: 48 | B138: 347987.5 | C138: 247550 | D138: 185562.5 | E138: 141225 | F138: 111475 | H138: 48 | I138: 306225 | J138: 217837.5 | K138: 163287.5 | L138: 124275 | M138: 98100 | O138: 48 | P138: 271425 | Q138: 193087.5 | R138: 144737.5 | S138: 110162.5 | T138: 86950 | V138: 48 | W138: 254025 | X138: 180712.5 | Y138: 135462.5 | Z138: 103100 | AA138: 81375 | AC138: 48 | AD138: 233150 | AE138: 165850 | AF138: 124325 | AG138: 94625 | AH138: 74687.5
A139: 49 | B139: 359012.5 | C139: 255387.5 | D139: 191437.5 | E139: 145700 | F139: 115012.5 | H139: 49 | I139: 315937.5 | J139: 224750 | K139: 168462.5 | L139: 128225 | M139: 101200 | O139: 49 | P139: 280037.5 | Q139: 199212.5 | R139: 149325 | S139: 113650 | T139: 89700 | V139: 49 | W139: 262075 | X139: 186437.5 | Y139: 139750 | Z139: 106362.5 | AA139: 83950 | AC139: 49 | AD139: 240537.5 | AE139: 171112.5 | AF139: 128262.5 | AG139: 97625 | AH139: 77050
A140: 50 | B140: 367225 | C140: 261237.5 | D140: 195825 | E140: 149037.5 | F140: 117637.5 | H140: 50 | I140: 323162.5 | J140: 229887.5 | K140: 172325 | L140: 131150 | M140: 103525 | O140: 50 | P140: 286437.5 | Q140: 203762.5 | R140: 152737.5 | S140: 116250 | T140: 91762.5 | V140: 50 | W140: 268075 | X140: 190700 | Y140: 142950 | Z140: 108800 | AA140: 85875 | AC140: 50 | AD140: 246050 | AE140: 175025 | AF140: 131200 | AG140: 99850 | AH140: 78812.5
A141: 51 | B141: 375637.5 | C141: 267212.5 | D141: 200300 | E141: 152450 | F141: 120325 | H141: 51 | I141: 330562.5 | J141: 235150 | K141: 176262.5 | L141: 134150 | M141: 105887.5 | O141: 51 | P141: 293000 | Q141: 208425 | R141: 156237.5 | S141: 118912.5 | T141: 93862.5 | V141: 51 | W141: 274212.5 | X141: 195062.5 | Y141: 146225 | Z141: 111287.5 | AA141: 87837.5 | AC141: 51 | AD141: 251675 | AE141: 179037.5 | AF141: 134200 | AG141: 102137.5 | AH141: 80625
A142: 52 | B142: 384225 | C142: 273325 | D142: 204887.5 | E142: 155937.5 | F142: 123087.5 | H142: 52 | I142: 338125 | J142: 240525 | K142: 180300 | L142: 137225 | M142: 108312.5 | O142: 52 | P142: 299700 | Q142: 213200 | R142: 159812.5 | S142: 121625 | T142: 96000 | V142: 52 | W142: 280487.5 | X142: 199525 | Y142: 149562.5 | Z142: 113837.5 | AA142: 89850 | AC142: 52 | AD142: 257437.5 | AE142: 183125 | AF142: 137275 | AG142: 104475 | AH142: 82462.5
A143: 53 | B143: 393025 | C143: 279587.5 | D143: 209575 | E143: 159500 | F143: 125900 | H143: 53 | I143: 345862.5 | J143: 246037.5 | K143: 184425 | L143: 140362.5 | M143: 110787.5 | O143: 53 | P143: 306562.5 | Q143: 218075 | R143: 163462.5 | S143: 124412.5 | T143: 98200 | V143: 53 | W143: 286912.5 | X143: 204100 | Y143: 152987.5 | Z143: 116437.5 | AA143: 91912.5 | AC143: 53 | AD143: 263325 | AE143: 187325 | AF143: 140412.5 | AG143: 106875 | AH143: 84350
A144: 54 | B144: 413450 | C144: 294112.5 | D144: 220462.5 | E144: 167800 | F144: 132450 | H144: 54 | I144: 363837.5 | J144: 258825 | K144: 194012.5 | L144: 147662.5 | M144: 116550 | O144: 54 | P144: 322487.5 | Q144: 229412.5 | R144: 171962.5 | S144: 130875 | T144: 103300 | V144: 54 | W144: 301812.5 | X144: 214700 | Y144: 160937.5 | Z144: 122487.5 | AA144: 96687.5 | AC144: 54 | AD144: 277012.5 | AE144: 197062.5 | AF144: 147712.5 | AG144: 112425 | AH144: 88737.5
A145: 55 | B145: 438050 | C145: 311625 | D145: 233587.5 | E145: 177787.5 | F145: 140325 | H145: 55 | I145: 385487.5 | J145: 274225 | K145: 205550 | L145: 156450 | M145: 123487.5 | O145: 55 | P145: 341687.5 | Q145: 243062.5 | R145: 182200 | S145: 138675 | T145: 109450 | V145: 55 | W145: 319775 | X145: 227487.5 | Y145: 170512.5 | Z145: 129775 | AA145: 102437.5 | AC145: 55 | AD145: 293500 | AE145: 208787.5 | AF145: 156500 | AG145: 119112.5 | AH145: 94025
A146: 56 | B146: 452425 | C146: 321837.5 | D146: 241250 | E146: 183612.5 | F146: 144925 | H146: 56 | I146: 398137.5 | J146: 283225 | K146: 212300 | L146: 161575 | M146: 127537.5 | O146: 56 | P146: 352887.5 | Q146: 251037.5 | R146: 188175 | S146: 143225 | T146: 113050 | V146: 56 | W146: 330275 | X146: 234950 | Y146: 176112.5 | Z146: 134037.5 | AA146: 105800 | AC146: 56 | AD146: 303125 | AE146: 215637.5 | AF146: 161637.5 | AG146: 123025 | AH146: 97100
A147: 57 | B147: 479350 | C147: 341000 | D147: 255612.5 | E147: 194537.5 | F147: 153550 | H147: 57 | I147: 421825 | J147: 300075 | K147: 224937.5 | L147: 171200 | M147: 135125 | O147: 57 | P147: 373900 | Q147: 265975 | R147: 199375 | S147: 151737.5 | T147: 119775 | V147: 57 | W147: 349925 | X147: 248925 | Y147: 186600 | Z147: 142012.5 | AA147: 112100 | AC147: 57 | AD147: 321162.5 | AE147: 228475 | AF147: 171262.5 | AG147: 130337.5 | AH147: 102887.5
A148: 58 | B148: 507887.5 | C148: 361287.5 | D148: 270825 | E148: 206125 | F148: 162700 | H148: 58 | I148: 446937.5 | J148: 317937.5 | K148: 238325 | L148: 181387.5 | M148: 143175 | O148: 58 | P148: 396150 | Q148: 281812.5 | R148: 211237.5 | S148: 160775 | T148: 126900 | V148: 58 | W148: 370750 | X148: 263750 | Y148: 197700 | Z148: 150462.5 | AA148: 118762.5 | AC148: 58 | AD148: 340287.5 | AE148: 242062.5 | AF148: 181450 | AG148: 138100 | AH148: 109000
A149: 59 | B149: 538112.5 | C149: 382800 | D149: 286937.5 | E149: 218387.5 | F149: 172375 | H149: 59 | I149: 473537.5 | J149: 336862.5 | K149: 252500 | L149: 192187.5 | M149: 151687.5 | O149: 59 | P149: 419725 | Q149: 298575 | R149: 223812.5 | S149: 170337.5 | T149: 134450 | V149: 59 | W149: 392825 | X149: 279437.5 | Y149: 209462.5 | Z149: 159425 | AA149: 125837.5 | AC149: 59 | AD149: 360537.5 | AE149: 256475 | AF149: 192250 | AG149: 146325 | AH149: 115487.5
A150: 60 | B150: 570137.5 | C150: 405575 | D150: 304012.5 | E150: 231387.5 | F150: 182637.5 | H150: 60 | I150: 501725 | J150: 356912.5 | K150: 267537.5 | L150: 203625 | M150: 160725 | O150: 60 | P150: 444712.5 | Q150: 316350 | R150: 237137.5 | S150: 180475 | T150: 142462.5 | V150: 60 | W150: 416200 | X150: 296075 | Y150: 221937.5 | Z150: 168912.5 | AA150: 133325 | AC150: 60 | AD150: 381987.5 | AE150: 271737.5 | AF150: 203687.5 | AG150: 155025 | AH150: 122362.5
A151: 61 | B151: 604075 | C151: 429712.5 | D151: 322112.5 | E151: 245162.5 | F151: 193512.5 | H151: 61 | I151: 531575 | J151: 378150 | K151: 283462.5 | L151: 215737.5 | M151: 170287.5 | O151: 61 | P151: 471175 | Q151: 335175 | R151: 251250 | S151: 191225 | T151: 150937.5 | V151: 61 | W151: 440975 | X151: 313700 | Y151: 235137.5 | Z151: 178962.5 | AA151: 141262.5 | AC151: 61 | AD151: 404725 | AE151: 287912.5 | AF151: 215812.5 | AG151: 164250 | AH151: 129650
A152: 62 | B152: 640025 | C152: 455287.5 | D152: 341275 | E152: 259750 | F152: 205025 | H152: 62 | I152: 563225 | J152: 400662.5 | K152: 300325 | L152: 228575 | M152: 180425 | O152: 62 | P152: 499212.5 | Q152: 355125 | R152: 266200 | S152: 202600 | T152: 159912.5 | V152: 62 | W152: 467212.5 | X152: 332362.5 | Y152: 249137.5 | Z152: 189612.5 | AA152: 149662.5 | AC152: 62 | AD152: 428812.5 | AE152: 305050 | AF152: 228662.5 | AG152: 174025 | AH152: 137362.5
A153: 63 | B153: 678112.5 | C153: 482387.5 | D153: 361587.5 | E153: 275212.5 | F153: 217225 | H153: 63 | I153: 596737.5 | J153: 424500 | K153: 318200 | L153: 242187.5 | M153: 191162.5 | O153: 63 | P153: 528925 | Q153: 376262.5 | R153: 282037.5 | S153: 214662.5 | T153: 169437.5 | V153: 63 | W153: 495025 | X153: 352150 | Y153: 263962.5 | Z153: 200900 | AA153: 158575 | AC153: 63 | AD153: 454337.5 | AE153: 323200 | AF153: 242262.5 | AG153: 184387.5 | AH153: 145537.5
A154: 64 | B154: 718475 | C154: 511100 | D154: 383112.5 | E154: 291587.5 | F154: 230150 | H154: 64 | I154: 632250 | J154: 449762.5 | K154: 337137.5 | L154: 256600 | M154: 202537.5 | O154: 64 | P154: 560412.5 | Q154: 398662.5 | R154: 298825 | S154: 227437.5 | T154: 179525 | V154: 64 | W154: 524487.5 | X154: 373100 | Y154: 279675 | Z154: 212862.5 | AA154: 168012.5 | AC154: 64 | AD154: 481375 | AE154: 342437.5 | AF154: 256687.5 | AG154: 195362.5 | AH154: 154200
A155: 65 | B155: 761237.5 | C155: 541525 | D155: 405912.5 | E155: 308937.5 | F155: 243850 | H155: 65 | I155: 669887.5 | J155: 476537.5 | K155: 357200 | L155: 271862.5 | M155: 214587.5 | O155: 65 | P155: 593762.5 | Q155: 422387.5 | R155: 316612.5 | S155: 240975 | T155: 190200 | V155: 65 | W155: 555700 | X155: 395312.5 | Y155: 296312.5 | Z155: 225525 | AA155: 178012.5 | AC155: 65 | AD155: 510025 | AE155: 362812.5 | AF155: 271962.5 | AG155: 206987.5 | AH155: 163375
A156: 66 | B156: 806537.5 | C156: 573750 | D156: 430075 | E156: 327325 | F156: 258362.5 | H156: 66 | I156: 709750 | J156: 504900 | K156: 378462.5 | L156: 288050 | M156: 227362.5 | O156: 66 | P156: 629100 | Q156: 447525 | R156: 335462.5 | S156: 255312.5 | T156: 201525 | V156: 66 | W156: 588775 | X156: 418837.5 | Y156: 313950 | Z156: 238950 | AA156: 188612.5 | AC156: 66 | AD156: 540375 | AE156: 384412.5 | AF156: 288150 | AG156: 219312.5 | AH156: 173100
A157: 67 | B157: 854537.5 | C157: 607900 | D157: 455675 | E157: 346812.5 | F157: 273737.5 | H157: 67 | I157: 752000 | J157: 534950 | K157: 400987.5 | L157: 305187.5 | M157: 240900 | O157: 67 | P157: 666537.5 | Q157: 474162.5 | R157: 355425 | S157: 270512.5 | T157: 213525 | V157: 67 | W157: 623812.5 | X157: 443762.5 | Y157: 332637.5 | Z157: 253175 | AA157: 199837.5 | AC157: 67 | AD157: 572537.5 | AE157: 407287.5 | AF157: 305300 | AG157: 232362.5 | AH157: 183412.5
A158: 68 | B158: 905400 | C158: 644075 | D158: 482787.5 | E158: 367450 | F158: 290037.5 | H158: 68 | I158: 796750 | J158: 566787.5 | K158: 424850 | L158: 323350 | M158: 255225 | O158: 68 | P158: 706212.5 | Q158: 502375 | R158: 376575 | S158: 286612.5 | T158: 226225 | V158: 68 | W158: 660937.5 | X158: 470175 | Y158: 352437.5 | Z158: 268237.5 | AA158: 211725 | AC158: 68 | AD158: 606612.5 | AE158: 431525 | AF158: 323475 | AG158: 246187.5 | AH158: 194325
A159: 69 | B159: 984100 | C159: 700062.5 | D159: 524750 | E159: 399387.5 | F159: 315250 | H159: 69 | I159: 866000 | J159: 616050 | K159: 461787.5 | L159: 351462.5 | M159: 277412.5 | O159: 69 | P159: 767600 | Q159: 546050 | R159: 409312.5 | S159: 311525 | T159: 245887.5 | V159: 69 | W159: 718387.5 | X159: 511037.5 | Y159: 383075 | Z159: 291550 | AA159: 230125 | AC159: 69 | AD159: 659350 | AE159: 469037.5 | AF159: 351587.5 | AG159: 267587.5 | AH159: 211212.5
A160: 70 | B160: 1042662.5 | C160: 741725 | D160: 555987.5 | E160: 423162.5 | F160: 334000 | H160: 70 | I160: 917550 | J160: 652712.5 | K160: 489262.5 | L160: 372375 | M160: 293925 | O160: 70 | P160: 813275 | Q160: 578537.5 | R160: 433662.5 | S160: 330062.5 | T160: 260525 | V160: 70 | W160: 761150 | X160: 541462.5 | Y160: 405875 | Z160: 308900 | AA160: 243825 | AC160: 70 | AD160: 698587.5 | AE160: 496950 | AF160: 372512.5 | AG160: 283512.5 | AH160: 223787.5
A161: 71 | B161: 1104725 | C161: 785862.5 | D161: 589075 | E161: 448337.5 | F161: 353887.5 | H161: 71 | I161: 972150 | J161: 691562.5 | K161: 518387.5 | L161: 394537.5 | M161: 311425 | O161: 71 | P161: 861687.5 | Q161: 612975 | R161: 459475 | S161: 349712.5 | T161: 276025 | V161: 71 | W161: 806450 | X161: 573687.5 | Y161: 430025 | Z161: 327287.5 | AA161: 258337.5 | AC161: 71 | AD161: 740162.5 | AE161: 526525 | AF161: 394675 | AG161: 300387.5 | AH161: 237100
A162: 72 | B162: 1170475 | C162: 832637.5 | D162: 624137.5 | E162: 475025 | F162: 374950 | H162: 72 | I162: 1030012.5 | J162: 732725 | K162: 549237.5 | L162: 418025 | M162: 329950 | O162: 72 | P162: 912962.5 | Q162: 649462.5 | R162: 486825 | S162: 370525 | T162: 292462.5 | V162: 72 | W162: 854437.5 | X162: 607825 | Y162: 455612.5 | Z162: 346775 | AA162: 273712.5 | AC162: 72 | AD162: 784212.5 | AE162: 557862.5 | AF162: 418175 | AG162: 318262.5 | AH162: 251212.5
A163: 73 | B163: 1240137.5 | C163: 882200 | D163: 661275 | E163: 503300 | F163: 397262.5 | H163: 73 | I163: 1091312.5 | J163: 776325 | K163: 581925 | L163: 442900 | M163: 349587.5 | O163: 73 | P163: 967300 | Q163: 688112.5 | R163: 515800 | S163: 392575 | T163: 309862.5 | V163: 73 | W163: 905300 | X163: 644000 | Y163: 482737.5 | Z163: 367412.5 | AA163: 290000 | AC163: 73 | AD163: 830887.5 | AE163: 591075 | AF163: 443062.5 | AG163: 337212.5 | AH163: 266162.5
A164: 74 | B164: 1313937.5 | C164: 934700 | D164: 700637.5 | E164: 533250 | F164: 420900 | H164: 74 | I164: 1156262.5 | J164: 822537.5 | K164: 616562.5 | L164: 469262.5 | M164: 370400 | O164: 74 | P164: 1024875 | Q164: 729062.5 | R164: 546500 | S164: 415937.5 | T164: 328312.5 | V164: 74 | W164: 959175 | X164: 682325 | Y164: 511462.5 | Z164: 389275 | AA164: 307262.5 | AC164: 74 | AD164: 880337.5 | AE164: 626250 | AF164: 469425 | AG164: 357275 | AH164: 282012.5
A165: 75 | B165: 1407225 | C165: 1001062.5 | D165: 750375 | E165: 571112.5 | F165: 450787.5 | H165: 75 | I165: 1238350 | J165: 880925 | K165: 660337.5 | L165: 502575 | M165: 396687.5 | O165: 75 | P165: 1097637.5 | Q165: 780825 | R165: 585300 | S165: 445462.5 | T165: 351612.5 | V165: 75 | W165: 1027275 | X165: 730775 | Y165: 547775 | Z165: 416912.5 | AA165: 329075 | AC165: 75 | AD165: 942837.5 | AE165: 670712.5 | AF165: 502750 | AG165: 382650 | AH165: 302025
A166: 76 | B166: 1487187.5 | C166: 1057950 | D166: 793025 | E166: 603562.5 | F166: 476400 | H166: 76 | I166: 1308725 | J166: 930987.5 | K166: 697862.5 | L166: 531137.5 | M166: 419237.5 | O166: 76 | P166: 1160012.5 | Q166: 825200 | R166: 618550 | S166: 470775 | T166: 371600 | V166: 76 | W166: 1085650 | X166: 772300 | Y166: 578900 | Z166: 440600 | AA166: 347775 | AC166: 76 | AD166: 996412.5 | AE166: 708825 | AF166: 531325 | AG166: 404387.5 | AH166: 319187.5
A167: 77 | B167: 1558275 | C167: 1108512.5 | D167: 830925 | E167: 632412.5 | F167: 499175 | H167: 77 | I167: 1371275 | J167: 975487.5 | K167: 731212.5 | L167: 556525 | M167: 439275 | O167: 77 | P167: 1215450 | Q167: 864637.5 | R167: 648125 | S167: 493287.5 | T167: 389350 | V167: 77 | W167: 1137537.5 | X167: 809212.5 | Y167: 606575 | Z167: 461662.5 | AA167: 364400 | AC167: 77 | AD167: 1044037.5 | AE167: 742700 | AF167: 556725 | AG167: 423712.5 | AH167: 334450
A168: 78 | B168: 1632750 | C168: 1161487.5 | D168: 870637.5 | E168: 662637.5 | F168: 523037.5 | H168: 78 | I168: 1436812.5 | J168: 1022112.5 | K168: 766162.5 | L168: 583125 | M168: 460275 | O168: 78 | P168: 1273537.5 | Q168: 905962.5 | R168: 679100 | S168: 516862.5 | T168: 407962.5 | V168: 78 | W168: 1191900 | X168: 847887.5 | Y168: 635562.5 | Z168: 483725 | AA168: 381812.5 | AC168: 78 | AD168: 1093937.5 | AE168: 778200 | AF168: 583325 | AG168: 443962.5 | AH168: 350437.5
A169: 79 | B169: 1710787.5 | C169: 1217000 | D169: 912250 | E169: 694312.5 | F169: 548025 | H169: 79 | I169: 1505487.5 | J169: 1070962.5 | K169: 802775 | L169: 610987.5 | M169: 482262.5 | O169: 79 | P169: 1334412.5 | Q169: 949262.5 | R169: 711550 | S169: 541562.5 | T169: 427462.5 | V169: 79 | W169: 1248875 | X169: 888412.5 | Y169: 665937.5 | Z169: 506850 | AA169: 400062.5 | AC169: 79 | AD169: 1146225 | AE169: 815387.5 | AF169: 611200 | AG169: 465187.5 | AH169: 367175
A170: 80 | B170: 1792550 | C170: 1275162.5 | D170: 955850 | E170: 727487.5 | F170: 574225 | H170: 80 | I170: 1577450 | J170: 1122150 | K170: 841150 | L170: 640200 | M170: 505312.5 | O170: 80 | P170: 1398187.5 | Q170: 994625 | R170: 745562.5 | S170: 567450 | T170: 447900 | V170: 80 | W170: 1308562.5 | X170: 930875 | Y170: 697775 | Z170: 531075 | AA170: 419187.5 | AC170: 80 | AD170: 1201012.5 | AE170: 854362.5 | AF170: 640425 | AG170: 487425 | AH170: 384725
A171: 81 | B171: 1878225 | C171: 1336112.5 | D171: 1001537.5 | E171: 762262.5 | F171: 601662.5 | H171: 81 | I171: 1652837.5 | J171: 1175775 | K171: 881350 | L171: 670787.5 | M171: 529462.5 | O171: 81 | P171: 1465012.5 | Q171: 1042175 | R171: 781200 | S171: 594562.5 | T171: 469300 | V171: 81 | W171: 1371100 | X171: 975362.5 | Y171: 731125 | Z171: 556450 | AA171: 439212.5 | AC171: 81 | AD171: 1258412.5 | AE171: 895200 | AF171: 671025 | AG171: 510712.5 | AH171: 403112.5
A172: 82 | B172: 1967987.5 | C172: 1399975 | D172: 1049400 | E172: 798700 | F172: 630425 | H172: 82 | I172: 1731837.5 | J172: 1231975 | K172: 923475 | L172: 702850 | M172: 554775 | O172: 82 | P172: 1535037.5 | Q172: 1091975 | R172: 818537.5 | S172: 622987.5 | T172: 491725 | V172: 82 | W172: 1436637.5 | X172: 1021975 | Y172: 766062.5 | Z172: 583050 | AA172: 460212.5 | AC172: 82 | AD172: 1318550 | AE172: 937987.5 | AF172: 703100 | AG172: 535125 | AH172: 422387.5
A173: 83 | B173: 2062050 | C173: 1466887.5 | D173: 1099562.5 | E173: 836875 | F173: 660550 | H173: 83 | I173: 1814600 | J173: 1290862.5 | K173: 967612.5 | L173: 736450 | M173: 581287.5 | O173: 83 | P173: 1608400 | Q173: 1144175 | R173: 857650 | S173: 652762.5 | T173: 515237.5 | V173: 83 | W173: 1505300 | X173: 1070825 | Y173: 802675 | Z173: 610912.5 | AA173: 482200 | AC173: 83 | AD173: 1381575 | AE173: 982812.5 | AF173: 736700 | AG173: 560700 | AH173: 442575
A174: 84 | B174: 2160612.5 | C174: 1536987.5 | D174: 1152112.5 | E174: 876862.5 | F174: 692125 | H174: 84 | I174: 1901337.5 | J174: 1352550 | K174: 1013850 | L174: 771637.5 | M174: 609075 | O174: 84 | P174: 1685275 | Q174: 1198850 | R174: 898650 | S174: 683950 | T174: 539862.5 | V174: 84 | W174: 1577250 | X174: 1122000 | Y174: 841037.5 | Z174: 640112.5 | AA174: 505250 | AC174: 84 | AD174: 1447612.5 | AE174: 1029787.5 | AF174: 771912.5 | AG174: 587500 | AH174: 463725

Sheet Tarifas Complete (hidden)
A1: Zona 1: Ciudad de México (D.F. y área metropolitana) y franja fronteriza norte | H1: Zona 2: Nuevo León, Sonora, Coahuila, Chihuahua, Tamaulipas, Baja California Norte y Baja California Sur | O1: Zona 3: Jalisco, Puebla, Morelos, Estado de México (excepto Área Metropolitana), Guerrero (Acapulco y Zihuatanejo), Hidalgo y Querétaro | V1: Zona 4: Sinaloa, Guanajuato, San Luis Potosí, Durango, Aguascalientes, Nayarit, Michoacán, Colima, Quintana Roo, Zacatecas | AC1: Zona 5: Guerrero (excepto Acapulco y Zihuatanejo), Veracruz, Chiapas, Tabasco, Campeche, Oaxaca, Tlaxcala, Yucatán
A2: Primas de riesgo expresadas en pesos mexicanos | H2: Primas de riesgo expresadas en pesos mexicanos | O2: Primas de riesgo expresadas en pesos mexicanos | V2: Primas de riesgo expresadas en pesos mexicanos | AC2: Primas de riesgo expresadas en pesos mexicanos
A3: Edad | B3: CW11 | C3: CW21 | D3: CW31 | E3: CW41 | F3: CW51 | H3: Edad | I3: CW12 | J3: CW22 | K3: CW32 | L3: CW42 | M3: CW52 | O3: Edad | P3: CW13 | Q3: CW23 | R3: CW33 | S3: CW43 | T3: CW53 | V3: Edad | W3: CW14 | X3: CW24 | Y3: CW34 | Z3: CW44 | AA3: CW54 | AC3: Edad | AD3: CW15 | AE3: CW25 | AF3: CW35 | AG3: CW45 | AH3: CW55
A4: 1 menor | B4: =B105*0.6 -> 36480 | C4: =C105*0.5 -> 22375 | D4: 16675 | E4: 12818.75 | F4: 9843.75 | H4: 1 menor | I4: =I105*0.6 -> 32145 | J4: =J105*0.5 -> 19712.5 | K4: =K105*0.5 -> 14687.5 | L4: =L105*0.5 -> 11293.75 | M4: =M105*0.5 -> 8668.75 | O4: 1 menor | P4: =P105*0.6 -> 28575 | Q4: =Q105*0.6 -> 21030 | R4: =R105*0.6 -> 15667.5 | S4: =S105*0.6 -> 12052.5 | T4: =T105*0.6 -> 9247.5 | V4: 1 menor | W4: =W105*0.6 -> 26505 | X4: =X105*0.6 -> 19507.5 | Y4: =Y105*0.6 -> 14535 | Z4: =Z105*0.6 -> 11175 | AA4: =AA105*0.6 -> 8580 | AC4: 1 menor | AD4: =AD105*0.6 -> 24435 | AE4: =AE105*0.6 -> 17985 | AF4: =AF105*0.6 -> 13395 | AG4: =AG105*0.6 -> 10305 | AH4: =AH105*0.6 -> 7912.5
A5: 2 menor | B5: 47906.25 | C5: 35256.25 | D5: 26268.75 | E5: 20200 | F5: 15506.25 | H5: 2 menores | I5: =I106*0.5 -> 42206.25 | J5: 31062.5 | K5: 23143.75 | L5: 17793.75 | M5: 13662.5 | O5: 2 menores | P5: =P106*0.5 -> 37518.75 | Q5: =Q106*0.6 -> 33135 | R5: 24690 | S5: 18982.5 | T5: 14572.5 | V5: 2 menores | W5: =W106*0.6 -> 41760 | X5: 30735 | Y5: 22897.5 | Z5: 17610 | AA5: 13522.5 | AC5: 2 menores | AD5: =AD106*0.6 -> 38497.5 | AE5: 28335 | AF5: 21112.5 | AG5: 16230 | AH5: 12465
A6: 3 menor | B6: 69893.75 | C6: 51443.75 | D6: 38325 | E6: 29475 | F6: 22625 | H6: 3 ó más menores | I6: 61575 | J6: 45325 | K6: 33768.75 | L6: 25968.75 | M6: 19937.5 | O6: 3 ó más menores | P6: 54743.75 | Q6: 48352.5 | R6: 36022.5 | S6: 27697.5 | T6: 21270 | V6: 3 ó más menores | W6: 60930 | X6: 44850 | Y6: 33412.5 | Z6: 25695 | AA6: 19725 | AC6: 3 ó más menores | AD6: 56167.5 | AE6: 41340 | AF6: 30802.5 | AG6: 23685 | AH6: 18187.5
A7: 18 | B7: 70131.25 | C7: 51618.75 | D7: 38456.25 | E7: 29575 | F7: 22706.25 | H7: 18 | I7: 61787.5 | J7: 45475 | K7: 33881.25 | L7: 26056.25 | M7: 20000 | O7: 18 | P7: 54931.25 | Q7: 48517.5 | R7: 36142.5 | S7: 27795 | T7: 21337.5 | V7: 18 | W7: 61140 | X7: 45000 | Y7: 33525 | Z7: 25777.5 | AA7: 19792.5 | AC7: 18 | AD7: 56362.5 | AE7: 41482.5 | AF7: 30907.5 | AG7: 23767.5 | AH7: 18247.5
A8: 19 | B8: 72343.75 | C8: 53250 | D8: 39675 | E8: 30506.25 | F8: 23418.75 | H8: 19 | I8: 63737.5 | J8: 46912.5 | K8: 34950 | L8: 26875 | M8: 20631.25 | O8: 19 | P8: 56662.5 | Q8: 50047.5 | R8: 37290 | S8: 28672.5 | T8: 22012.5 | V8: 19 | W8: 63067.5 | X8: 46417.5 | Y8: 34582.5 | Z8: 26595 | AA8: 20415 | AC8: 19 | AD8: 58140 | AE8: 42795 | AF8: 31882.5 | AG8: 24517.5 | AH8: 18825
A9: 20 | B9: 74631.25 | C9: 54931.25 | D9: 40925 | E9: 31468.75 | F9: 24162.5 | H9: 20 | I9: 65750 | J9: 48393.75 | K9: 36056.25 | L9: 27725 | M9: 21287.5 | O9: 20 | P9: 58450 | Q9: 51630 | R9: 38467.5 | S9: 29580 | T9: 22710 | V9: 20 | W9: 65062.5 | X9: 47887.5 | Y9: 35677.5 | Z9: 27435 | AA9: 21060 | AC9: 20 | AD9: 59977.5 | AE9: 44145 | AF9: 32887.5 | AG9: 25290 | AH9: 19417.5
A10: 21 | B10: 76987.5 | C10: 56662.5 | D10: 42218.75 | E10: 32462.5 | F10: 24925 | H10: 21 | I10: 67825 | J10: 49918.75 | K10: 37193.75 | L10: 28600 | M10: 21956.25 | O10: 21 | P10: 60300 | Q10: 53257.5 | R10: 39675 | S10: 30510 | T10: 23422.5 | V10: 21 | W10: 67117.5 | X10: 49395 | Y10: 36802.5 | Z10: 28297.5 | AA10: 21727.5 | AC10: 21 | AD10: 61867.5 | AE10: 45540 | AF10: 33930 | AG10: 26085 | AH10: 20032.5
A11: 22 | B11: 79412.5 | C11: 58450 | D11: 43550 | E11: 33487.5 | F11: 25712.5 | H11: 22 | I11: 69968.75 | J11: 51500 | K11: 38368.75 | L11: 29506.25 | M11: 22650 | O11: 22 | P11: 62200 | Q11: 54937.5 | R11: 40935 | S11: 31477.5 | T11: 24165 | V11: 22 | W11: 69232.5 | X11: 50955 | Y11: 37965 | Z11: 29197.5 | AA11: 22410 | AC11: 22 | AD11: 63825 | AE11: 46972.5 | AF11: 34995 | AG11: 26910 | AH11: 20662.5
A12: 23 | B12: 81925 | C12: 60300 | D12: 44925 | E12: 34543.75 | F12: 26518.75 | H12: 23 | I12: 72175 | J12: 53125 | K12: 39581.25 | L12: 30437.5 | M12: 23368.75 | O12: 23 | P12: 64162.5 | Q12: 56670 | R12: 42225 | S12: 32467.5 | T12: 24930 | V12: 23 | W12: 71415 | X12: 52567.5 | Y12: 39165 | Z12: 30112.5 | AA12: 23122.5 | AC12: 23 | AD12: 65835 | AE12: 48457.5 | AF12: 36105 | AG12: 27765 | AH12: 21315
A13: 24 | B13: 84506.25 | C13: 62200 | D13: 46343.75 | E13: 35637.5 | F13: 27356.25 | H13: 24 | I13: 74456.25 | J13: 54800 | K13: 40831.25 | L13: 31393.75 | M13: 24106.25 | O13: 24 | P13: 66187.5 | Q13: 58462.5 | R13: 43560 | S13: 33495 | T13: 25717.5 | V13: 24 | W13: 73672.5 | X13: 54225 | Y13: 40402.5 | Z13: 31065 | AA13: 23850 | AC13: 24 | AD13: 67912.5 | AE13: 49987.5 | AF13: 37245 | AG13: 28635 | AH13: 21990
A14: 25 | B14: 87175 | C14: 64162.5 | D14: 47806.25 | E14: 36762.5 | F14: 28225 | H14: 25 | I14: 76806.25 | J14: 56531.25 | K14: 42118.75 | L14: 32387.5 | M14: 24862.5 | O14: 25 | P14: 68281.25 | Q14: 60307.5 | R14: 44932.5 | S14: 34552.5 | T14: 26527.5 | V14: 25 | W14: 75997.5 | X14: 55935 | Y14: 41677.5 | Z14: 32047.5 | AA14: 24607.5 | AC14: 25 | AD14: 70057.5 | AE14: 51562.5 | AF14: 38415 | AG14: 29542.5 | AH14: 22680
A15: 26 | B15: 89931.25 | C15: 66187.5 | D15: 49312.5 | E15: 37918.75 | F15: 29112.5 | H15: 26 | I15: 79231.25 | J15: 58312.5 | K15: 43450 | L15: 33406.25 | M15: 25650 | O15: 26 | P15: 70437.5 | Q15: 62212.5 | R15: 46350 | S15: 35640 | T15: 27360 | V15: 26 | W15: 78397.5 | X15: 57705 | Y15: 42990 | Z15: 33060 | AA15: 25380 | AC15: 26 | AD15: 72270 | AE15: 53190 | AF15: 39630 | AG15: 30472.5 | AH15: 23400
A16: 27 | B16: 92768.75 | C16: 68281.25 | D16: 50868.75 | E16: 39118.75 | F16: 30031.25 | H16: 27 | I16: 81731.25 | J16: 60156.25 | K16: 44818.75 | L16: 34462.5 | M16: 26462.5 | O16: 27 | P16: 72656.25 | Q16: 64177.5 | R16: 47812.5 | S16: 36765 | T16: 28230 | V16: 27 | W16: 80872.5 | X16: 59527.5 | Y16: 44347.5 | Z16: 34102.5 | AA16: 26182.5 | AC16: 27 | AD16: 74550 | AE16: 54870 | AF16: 40882.5 | AG16: 31440 | AH16: 24135
A17: 28 | B17: 95700 | C17: 70437.5 | D17: 52475 | E17: 40356.25 | F17: 30981.25 | H17: 28 | I17: 84312.5 | J17: 62056.25 | K17: 46231.25 | L17: 35550 | M17: 27293.75 | O17: 28 | P17: 74950 | Q17: 66202.5 | R17: 49320 | S17: 37927.5 | T17: 29115 | V17: 28 | W17: 83430 | X17: 61402.5 | Y17: 45750 | Z17: 35182.5 | AA17: 27007.5 | AC17: 28 | AD17: 76905 | AE17: 56602.5 | AF17: 42172.5 | AG17: 32430 | AH17: 24900
A18: 29 | B18: 100418.75 | C18: 73912.5 | D18: 55068.75 | E18: 42343.75 | F18: 32512.5 | H18: 29 | I18: 88468.75 | J18: 65118.75 | K18: 48512.5 | L18: 37306.25 | M18: 28643.75 | O18: 29 | P18: 78650 | Q18: 69465 | R18: 51757.5 | S18: 39802.5 | T18: 30555 | V18: 29 | W18: 87547.5 | X18: 64432.5 | Y18: 48007.5 | Z18: 36915 | AA18: 28342.5 | AC18: 29 | AD18: 80700 | AE18: 59400 | AF18: 44257.5 | AG18: 34027.5 | AH18: 26130
A19: 30 | B19: 103587.5 | C19: 76243.75 | D19: 56806.25 | E19: 43681.25 | F19: 33537.5 | H19: 30 | I19: 91262.5 | J19: 67175 | K19: 50050 | L19: 38487.5 | M19: 29543.75 | O19: 30 | P19: 81137.5 | Q19: 71662.5 | R19: 53392.5 | S19: 41055 | T19: 31522.5 | V19: 30 | W19: 90307.5 | X19: 66472.5 | Y19: 49522.5 | Z19: 38077.5 | AA19: 29235 | AC19: 30 | AD19: 83250 | AE19: 61275 | AF19: 45652.5 | AG19: 35107.5 | AH19: 26947.5
A20: 31 | B20: =B121*0.5 -> 106862.5 | C20: 78650 | D20: 58600 | E20: 45062.5 | F20: 34593.75 | H20: 31 | I20: 94143.75 | J20: 69293.75 | K20: 51625 | L20: 39700 | M20: 30481.25 | O20: 31 | P20: 83700 | Q20: 73927.5 | R20: 55080 | S20: 42352.5 | T20: 32512.5 | V20: 31 | W20: 93157.5 | X20: 68565 | Y20: 51090 | Z20: 39285 | AA20: 30157.5 | AC20: 31 | AD20: 85875 | AE20: 63210 | AF20: 47092.5 | AG20: 36210 | AH20: 27802.5
A21: 32 | B21: 110237.5 | C21: 81137.5 | D21: 60450 | E21: 46481.25 | F21: 35687.5 | H21: 32 | I21: =I122*0.5 -> 97118.75 | J21: 71481.25 | K21: 53256.25 | L21: 40950 | M21: 31443.75 | O21: 32 | P21: 86337.5 | Q21: =Q122*0.6 -> 76260 | R21: 56812.5 | S21: 43687.5 | T21: 33540 | V21: 32 | W21: =W122*0.6 -> 96097.5 | X21: 70732.5 | Y21: 52702.5 | Z21: 40522.5 | AA21: 31110 | AC21: 32 | AD21: =AD122*0.6 -> 88590 | AE21: 65205 | AF21: 48577.5 | AG21: 37357.5 | AH21: 28680
A22: 33 | B22: 113712.5 | C22: 83700 | D22: 62356.25 | E22: 47950 | F22: 36812.5 | H22: 33 | I22: 100187.5 | J22: 73737.5 | K22: 54937.5 | L22: 42243.75 | M22: 32431.25 | O22: 33 | P22: 89062.5 | Q22: 78667.5 | R22: 58612.5 | S22: 45067.5 | T22: 34597.5 | V22: 33 | W22: 99135 | X22: 72967.5 | Y22: 54360 | Z22: 41805 | AA22: 32092.5 | AC22: 33 | AD22: 91387.5 | AE22: 67260 | AF22: 50115 | AG22: 38535 | AH22: 29587.5
A23: 34 | B23: 117306.25 | C23: 86337.5 | D23: 64325 | E23: 49462.5 | F23: 37975 | H23: 34 | I23: 103350 | J23: 76068.75 | K23: 56675 | L23: 43581.25 | M23: 33456.25 | O23: 34 | P23: 91875 | Q23: 81150 | R23: 60457.5 | S23: 46492.5 | T23: 35692.5 | V23: 34 | W23: 102262.5 | X23: 75270 | Y23: 56077.5 | Z23: 43125 | AA23: 33105 | AC23: 34 | AD23: 94267.5 | AE23: 69382.5 | AF23: 51697.5 | AG23: 39750 | AH23: 30517.5
A24: 35 | B24: 117912.5 | C24: 86787.5 | D24: 64662.5 | E24: 49718.75 | F24: 38175 | H24: 35 | I24: 103881.25 | J24: 76462.5 | K24: 56968.75 | L24: 43806.25 | M24: 33631.25 | O24: 35 | P24: 92350 | Q24: 81570 | R24: 60772.5 | S24: 46732.5 | T24: 35880 | V24: 35 | W24: 102795 | X24: 75660 | Y24: 56370 | Z24: 43342.5 | AA24: 33277.5 | AC24: 35 | AD24: 94762.5 | AE24: 69742.5 | AF24: 51960 | AG24: 39960 | AH24: 30675
A25: 36 | B25: 120612.5 | C25: 88775 | D25: 66137.5 | E25: 50856.25 | F25: 39043.75 | H25: 36 | I25: 106262.5 | J25: 78212.5 | K25: 58268.75 | L25: 44806.25 | M25: 34400 | O25: 36 | P25: 94468.75 | Q25: 83437.5 | R25: 62160 | S25: 47805 | T25: 36697.5 | V25: 36 | W25: 105150 | X25: 77392.5 | Y25: 57660 | Z25: 44340 | AA25: 34042.5 | AC25: 36 | AD25: 96930 | AE25: 71340 | AF25: 53152.5 | AG25: 40875 | AH25: 31380
A26: 37 | B26: 123368.75 | C26: 90806.25 | D26: 67656.25 | E26: 52025 | F26: 39937.5 | H26: 37 | I26: 108693.75 | J26: 80000 | K26: 59606.25 | L26: 45831.25 | M26: 35187.5 | O26: 37 | P26: 96625 | Q26: 85342.5 | R26: 63585 | S26: 48892.5 | T26: 37537.5 | V26: 37 | W26: 107550 | X26: 79162.5 | Y26: 58980 | Z26: 45352.5 | AA26: 34822.5 | AC26: 37 | AD26: 99142.5 | AE26: 72975 | AF26: 54367.5 | AG26: 41805 | AH26: 32100
A27: 38 | B27: 126193.75 | C27: 92881.25 | D27: 69200 | E27: 53212.5 | F27: 40856.25 | H27: 38 | I27: 111181.25 | J27: 81831.25 | K27: 60968.75 | L27: 46881.25 | M27: 35993.75 | O27: 38 | P27: 98837.5 | Q27: 87300 | R27: 65040 | S27: 50017.5 | T27: 38400 | V27: 38 | W27: 110010 | X27: 80970 | Y27: 60330 | Z27: 46387.5 | AA27: 35617.5 | AC27: 38 | AD27: 101415 | AE27: 74640 | AF27: 55612.5 | AG27: 42765 | AH27: 32835
A28: 39 | B28: 129081.25 | C28: 95006.25 | D28: 70787.5 | E28: 54431.25 | F28: 41787.5 | H28: 39 | I28: 113725 | J28: 83706.25 | K28: 62362.5 | L28: 47956.25 | M28: 36818.75 | O28: 39 | P28: 101100 | Q28: 89295 | R28: 66532.5 | S28: 51157.5 | T28: 39277.5 | V28: 39 | W28: 112530 | X28: 82830 | Y28: 61710 | Z28: 47452.5 | AA28: 36427.5 | AC28: 39 | AD28: 103732.5 | AE28: 76350 | AF28: 56887.5 | AG28: 43740 | AH28: 33585
A29: 40 | B29: 132037.5 | C29: 97181.25 | D29: 72406.25 | E29: 55675 | F29: 42743.75 | H29: 40 | I29: 116325 | J29: 85618.75 | K29: 63787.5 | L29: 49050 | M29: 37656.25 | O29: 40 | P29: 103412.5 | Q29: 91342.5 | R29: 68055 | S29: 52327.5 | T29: 40177.5 | V29: 40 | W29: 115110 | X29: 84720 | Y29: 63120 | Z29: 48540 | AA29: 37267.5 | AC29: 40 | AD29: 106110 | AE29: 78097.5 | AF29: 58185 | AG29: 44745 | AH29: 34350
A30: 41 | B30: 135056.25 | C30: 99406.25 | D30: 74062.5 | E30: 56950 | F30: 43725 | H30: 41 | I30: 118987.5 | J30: 87575 | K30: 65250 | L30: 50175 | M30: 38518.75 | O30: 41 | P30: 105781.25 | Q30: 93427.5 | R30: 69607.5 | S30: 53527.5 | T30: 41092.5 | V30: 41 | W30: 117742.5 | X30: 86662.5 | Y30: 64567.5 | Z30: 49650 | AA30: 38115 | AC30: 41 | AD30: 108540 | AE30: 79890 | AF30: 59520 | AG30: 45765 | AH30: 35137.5
A31: 42 | B31: 138150 | C31: 101681.25 | D31: 75756.25 | E31: 58256.25 | F31: 44725 | H31: 42 | I31: 121712.5 | J31: 89581.25 | K31: 66743.75 | L31: 51325 | M31: 39400 | O31: 42 | P31: 108200 | Q31: 95565 | R31: 71205 | S31: 54750 | T31: 42037.5 | V31: 42 | W31: 120435 | X31: 88642.5 | Y31: 66045 | Z31: 50782.5 | AA31: 38992.5 | AC31: 42 | AD31: 111022.5 | AE31: 81712.5 | AF31: 60877.5 | AG31: 46815 | AH31: 35940
A32: 43 | B32: 141306.25 | C32: 104006.25 | D32: 77487.5 | E32: 59587.5 | F32: 45750 | H32: 43 | I32: 124493.75 | J32: 91631.25 | K32: 68268.75 | L32: 52500 | M32: 40306.25 | O32: 43 | P32: 110675 | Q32: 97755 | R32: 72832.5 | S32: 56002.5 | T32: 42997.5 | V32: 43 | W32: 123187.5 | X32: 90675 | Y32: 67552.5 | Z32: 51945 | AA32: 39885 | AC32: 43 | AD32: 113557.5 | AE32: 83587.5 | AF32: 62272.5 | AG32: 47887.5 | AH32: 36765
A33: 44 | B33: 144543.75 | C33: 106387.5 | D33: 79262.5 | E33: 60950 | F33: 46793.75 | H33: 44 | I33: 127343.75 | J33: 93731.25 | K33: 69831.25 | L33: 53700 | M33: 41225 | O33: 44 | P33: 113212.5 | Q33: 99990 | R33: 74497.5 | S33: 57285 | T33: 43980 | V33: 44 | W33: 126007.5 | X33: 92745 | Y33: 69097.5 | Z33: 53137.5 | AA33: 40792.5 | AC33: 44 | AD33: 116160 | AE33: 85500 | AF33: 63697.5 | AG33: 48982.5 | AH33: 37605
A34: 45 | B34: 147850 | C34: 108825 | D34: 81075 | E34: 62343.75 | F34: 47862.5 | H34: 45 | I34: 130256.25 | J34: 95875 | K34: 71431.25 | L34: 54925 | M34: 42168.75 | O34: 45 | P34: 115800 | Q34: 102277.5 | R34: 76200 | S34: 58597.5 | T34: 44985 | V34: 45 | W34: 128895 | X34: 94867.5 | Y34: 70680 | Z34: 54352.5 | AA34: 41730 | AC34: 45 | AD34: 118815 | AE34: 87450 | AF34: 65160 | AG34: 50100 | AH34: 38467.5
A35: 46 | B35: 151231.25 | C35: 111312.5 | D35: 82931.25 | E35: 63775 | F35: 48962.5 | H35: 46 | I35: 133237.5 | J35: 98068.75 | K35: 73062.5 | L35: 56181.25 | M35: 43137.5 | O35: 46 | P35: 118450 | Q35: 104617.5 | R35: 77947.5 | S35: 59940 | T35: 46020 | V35: 46 | W35: 131842.5 | X35: 97042.5 | Y35: 72300 | Z35: 55597.5 | AA35: 42682.5 | AC35: 46 | AD35: 121537.5 | AE35: 89452.5 | AF35: 66645 | AG35: 51247.5 | AH35: 39345
A36: 47 | B36: =B137*0.5 -> 154693.75 | C36: 113856.25 | D36: 84831.25 | E36: 65231.25 | F36: 50081.25 | H36: 47 | I36: 136287.5 | J36: 100312.5 | K36: 74737.5 | L36: 57468.75 | M36: 44125 | O36: 47 | P36: 121162.5 | Q36: 107017.5 | R36: 79732.5 | S36: 61312.5 | T36: 47070 | V36: 47 | W36: 134857.5 | X36: 99262.5 | Y36: 73950 | Z36: 56865 | AA36: 43657.5 | AC36: 47 | AD36: 124320 | AE36: 91500 | AF36: 68175 | AG36: 52425 | AH36: 40245
A37: 48 | B37: 158231.25 | C37: 116462.5 | D37: 86768.75 | E37: 66725 | F37: 51225 | H37: 48 | I37: =I138*0.5 -> 139406.25 | J37: 102606.25 | K37: 76450 | L37: 58787.5 | M37: 45131.25 | O37: 48 | P37: 123931.25 | Q37: =Q138*0.6 -> 109462.5 | R37: 81555 | S37: 62715 | T37: 48150 | V37: 48 | W37: =W138*0.6 -> 137947.5 | X37: 101535 | Y37: 75645 | Z37: 58170 | AA37: 44655 | AC37: 48 | AD37: =AD138*0.6 -> 127162.5 | AE37: 93592.5 | AF37: 69735 | AG37: 53625 | AH37: 41167.5
A38: 49 | B38: 161856.25 | C38: 119131.25 | D38: 88756.25 | E38: 68250 | F38: 52400 | H38: 49 | I38: 142593.75 | J38: 104956.25 | K38: 78193.75 | L38: 60131.25 | M38: 46162.5 | O38: 49 | P38: 126768.75 | Q38: 111967.5 | R38: 83422.5 | S38: 64147.5 | T38: 49245 | V38: 49 | W38: 141105 | X38: 103852.5 | Y38: 77377.5 | Z38: 59497.5 | AA38: 45682.5 | AC38: 49 | AD38: 130072.5 | AE38: 95737.5 | AF38: 71325 | AG38: 54847.5 | AH38: 42112.5
A39: 50 | B39: 165556.25 | C39: 121856.25 | D39: 90787.5 | E39: 69812.5 | F39: 53600 | H39: 50 | I39: 145862.5 | J39: 107356.25 | K39: 79987.5 | L39: 61506.25 | M39: 47218.75 | O39: 50 | P39: 129668.75 | Q39: 114532.5 | R39: 85327.5 | S39: 65617.5 | T39: 50377.5 | V39: 50 | W39: 144330 | X39: 106230 | Y39: 79147.5 | Z39: 60862.5 | AA39: 46725 | AC39: 50 | AD39: 133050 | AE39: 97927.5 | AF39: 72960 | AG39: 56107.5 | AH39: 43072.5
A40: 51 | B40: 169350 | C40: 124643.75 | D40: 92862.5 | E40: 71412.5 | F40: 54825 | H40: 51 | I40: 149200 | J40: 109812.5 | K40: 81818.75 | L40: 62912.5 | M40: 48300 | O40: 51 | P40: 132637.5 | Q40: 117150 | R40: 87285 | S40: 67117.5 | T40: 51525 | V40: 51 | W40: 147630 | X40: 108660 | Y40: 80955 | Z40: 62257.5 | AA40: 47797.5 | AC40: 51 | AD40: 136095 | AE40: 100170 | AF40: 74632.5 | AG40: 57390 | AH40: 44062.5
A41: 52 | B41: 173225 | C41: 127493.75 | D41: 94993.75 | E41: 73043.75 | F41: 56081.25 | H41: 52 | I41: 152612.5 | J41: 112325 | K41: 83687.5 | L41: 64350 | M41: 49406.25 | O41: 52 | P41: 135675 | Q41: 119835 | R41: 89280 | S41: 68655 | T41: 52710 | V41: 52 | W41: 151012.5 | X41: 111150 | Y41: 82815 | Z41: 63675 | AA41: 48885 | AC41: 52 | AD41: 139207.5 | AE41: 102465 | AF41: 76335 | AG41: 58702.5 | AH41: 45067.5
A42: 53 | B42: 177187.5 | C42: 130412.5 | D42: 97162.5 | E42: 74712.5 | F42: 57362.5 | H42: 53 | I42: 156106.25 | J42: 114900 | K42: 85606.25 | L42: 65825 | M42: 50537.5 | O42: 53 | P42: 138775 | Q42: 122572.5 | R42: 91320 | S42: 70222.5 | T42: 53910 | V42: 53 | W42: 154470 | X42: 113692.5 | Y42: 84705 | Z42: 65137.5 | AA42: 50010 | AC42: 53 | AD42: 142395 | AE42: 104805 | AF42: 78082.5 | AG42: 60045 | AH42: 46095
A43: 54 | B43: 186393.75 | C43: 137193.75 | D43: 102212.5 | E43: 78600 | F43: 60343.75 | H43: 54 | I43: 164218.75 | J43: 120868.75 | K43: 90050 | L43: 69250 | M43: 53162.5 | O43: 54 | P43: 145987.5 | Q43: 128947.5 | R43: 96067.5 | S43: 73875 | T43: 56715 | V43: 54 | W43: 162495 | X43: 119602.5 | Y43: 89107.5 | Z43: 68520 | AA43: 52605 | AC43: 54 | AD43: 149797.5 | AE43: 110250 | AF43: 82140 | AG43: 63165 | AH43: 48495
A44: 55 | B44: 197487.5 | C44: 145356.25 | D44: 108300 | E44: 83275 | F44: 63937.5 | H44: 55 | I44: 173987.5 | J44: 128062.5 | K44: 95412.5 | L44: 73368.75 | M44: 56325 | O44: 55 | P44: 154681.25 | Q44: 136620 | R44: 101790 | S44: 78270 | T44: 60090 | V44: 55 | W44: 172170 | X44: 126720 | Y44: 94410 | Z44: 72600 | AA44: 55740 | AC44: 55 | AD44: 158707.5 | AE44: 116812.5 | AF44: 87030 | AG44: 66922.5 | AH44: 51382.5
A45: 56 | B45: 203968.75 | C45: 150125 | D45: 111850 | E45: 86006.25 | F45: 66031.25 | H45: 56 | I45: 179700 | J45: 132262.5 | K45: 98543.75 | L45: 75775 | M45: 58175 | O45: 56 | P45: 159756.25 | Q45: 141097.5 | R45: 105127.5 | S45: 80835 | T45: 62062.5 | V45: 56 | W45: 177817.5 | X45: 130875 | Y45: 97507.5 | Z45: 74977.5 | AA45: 57562.5 | AC45: 56 | AD45: 163912.5 | AE45: 120645 | AF45: 89887.5 | AG45: 69120 | AH45: 53070
A46: 57 | B46: 214306.25 | C46: 157737.5 | D46: 117518.75 | E46: 90368.75 | F46: 69381.25 | H46: 57 | I46: 188806.25 | J46: 138968.75 | K46: 103537.5 | L46: 79618.75 | M46: 61125 | O46: 57 | P46: 167850 | Q46: 148252.5 | R46: 110452.5 | S46: 84937.5 | T46: 65205 | V46: 57 | W46: 186825 | X46: 137512.5 | Y46: 102450 | Z46: 78780 | AA46: 60480 | AC46: 57 | AD46: 172222.5 | AE46: 126765 | AF46: 94440 | AG46: 72622.5 | AH46: 55755
A47: 58 | B47: 227062.5 | C47: 167125 | D47: 124512.5 | E47: 95743.75 | F47: 73506.25 | H47: 58 | I47: 200043.75 | J47: 147237.5 | K47: 109700 | L47: 84356.25 | M47: 64762.5 | O47: 58 | P47: 177843.75 | Q47: 157072.5 | R47: 117030 | S47: 89992.5 | T47: 69090 | V47: 58 | W47: 197947.5 | X47: 145695 | Y47: 108547.5 | Z47: 83467.5 | AA47: 64080 | AC47: 58 | AD47: 182475 | AE47: 134310 | AF47: 100065 | AG47: 76942.5 | AH47: 59077.5
A48: 59 | B48: 240575 | C48: 177068.75 | D48: 131925 | E48: 101443.75 | F48: 77881.25 | H48: 59 | I48: 211950 | J48: 156000 | K48: 116225 | L48: 89375 | M48: 68618.75 | O48: 59 | P48: 188425 | Q48: 166425 | R48: 123990 | S48: 95347.5 | T48: 73200 | V48: 59 | W48: 209730 | X48: 154365 | Y48: 115012.5 | Z48: 88440 | AA48: 67897.5 | AC48: 59 | AD48: 193335 | AE48: 142297.5 | AF48: 106020 | AG48: 81525 | AH48: 62587.5
A49: 60 | B49: 254893.75 | C49: 187606.25 | D49: 139775 | E49: 107481.25 | F49: 82518.75 | H49: 60 | I49: 224562.5 | J49: 165287.5 | K49: 123143.75 | L49: 94693.75 | M49: 72700 | O49: 60 | P49: 199637.5 | Q49: 176332.5 | R49: 131370 | S49: 101017.5 | T49: 77557.5 | V49: 60 | W49: 222210 | X49: 163552.5 | Y49: 121852.5 | Z49: 93705 | AA49: 71940 | AC49: 60 | AD49: 204840 | AE49: 150772.5 | AF49: 112327.5 | AG49: 86377.5 | AH49: 66315
A50: 61 | B50: 270062.5 | C50: 198775 | D50: 148093.75 | E50: 113881.25 | F50: 87431.25 | H50: 61 | I50: 237931.25 | J50: 175125 | K50: 130475 | L50: 100331.25 | M50: 77025 | O50: 61 | P50: 211525 | Q50: 186825 | R50: 139192.5 | S50: 107032.5 | T50: 82170 | V50: 61 | W50: 235432.5 | X50: 173287.5 | Y50: 129105 | Z50: 99277.5 | AA50: 76222.5 | AC50: 61 | AD50: 217035 | AE50: 159742.5 | AF50: 119017.5 | AG50: 91515 | AH50: 70260
A51: 62 | B51: 286137.5 | C51: 210606.25 | D51: 156912.5 | E51: 120656.25 | F51: 92631.25 | H51: 62 | I51: 252087.5 | J51: 185543.75 | K51: 138237.5 | L51: 106300 | M51: 81612.5 | O51: 62 | P51: 224112.5 | Q51: 197940 | R51: 147480 | S51: 113400 | T51: 87067.5 | V51: 62 | W51: 249450 | X51: 183600 | Y51: 136792.5 | Z51: 105187.5 | AA51: 80760 | AC51: 62 | AD51: 229950 | AE51: 169252.5 | AF51: 126097.5 | AG51: 96967.5 | AH51: 74445
A52: 63 | B52: =B153*0.5 -> 303162.5 | C52: 223137.5 | D52: 166250 | E52: 127837.5 | F52: 98143.75 | H52: 63 | I52: 267093.75 | J52: 196587.5 | K52: 146468.75 | L52: 112625 | M52: 86468.75 | O52: 63 | P52: 237450 | Q52: 209722.5 | R52: 156255 | S52: 120150 | T52: 92242.5 | V52: 63 | W52: 264292.5 | X52: 194527.5 | Y52: 144930 | Z52: 111450 | AA52: 85560 | AC52: 63 | AD52: 243637.5 | AE52: 179325 | AF52: 133605 | AG52: 102735 | AH52: 78877.5
A53: 64 | B53: 321206.25 | C53: 236418.75 | D53: 176143.75 | E53: 135450 | F53: 103987.5 | H53: 64 | I53: =I154*0.5 -> 282987.5 | J53: 208287.5 | K53: 155187.5 | L53: 119331.25 | M53: 91612.5 | O53: 64 | P53: 251581.25 | Q53: =Q154*0.6 -> 222202.5 | R53: 165555 | S53: 127305 | T53: 97740 | V53: 64 | W53: =W154*0.6 -> 280027.5 | X53: 206107.5 | Y53: 153555 | Z53: 118080 | AA53: 90652.5 | AC53: 64 | AD53: =AD154*0.6 -> 258135 | AE53: 189997.5 | AF53: 141555 | AG53: 108847.5 | AH53: 83565
A54: 65 | B54: 340325 | C54: 250487.5 | D54: 186625 | E54: 143506.25 | F54: 110175 | H54: 65 | I54: 299831.25 | J54: 220687.5 | K54: 164418.75 | L54: 126431.25 | M54: 97068.75 | O54: 65 | P54: 266556.25 | Q54: 235432.5 | R54: 175410 | S54: 134880 | T54: 103552.5 | V54: 65 | W54: 296692.5 | X54: 218370 | Y54: 162697.5 | Z54: 125107.5 | AA54: 96052.5 | AC54: 65 | AD54: 273502.5 | AE54: 201300 | AF54: 149977.5 | AG54: 115327.5 | AH54: 88545
A55: 66 | B55: 360581.25 | C55: 265400 | D55: 197731.25 | E55: 152050 | F55: 116737.5 | H55: 66 | I55: 317675 | J55: 233818.75 | K55: 174206.25 | L55: 133956.25 | M55: 102843.75 | O55: 66 | P55: 282418.75 | Q55: 249442.5 | R55: 185842.5 | S55: 142905 | T55: 109717.5 | V55: 66 | W55: 314347.5 | X55: 231367.5 | Y55: 172380 | Z55: 132555 | AA55: 101767.5 | AC55: 66 | AD55: 289777.5 | AE55: 213285 | AF55: 158910 | AG55: 122190 | AH55: 93810
A56: 67 | B56: 385250 | C56: 283556.25 | D56: 211262.5 | E56: 162450 | F56: 124718.75 | H56: 67 | I56: 339412.5 | J56: 249818.75 | K56: 186125 | L56: 143125 | M56: 109881.25 | O56: 67 | P56: 301743.75 | Q56: 266512.5 | R56: 198562.5 | S56: 152685 | T56: 117225 | V56: 67 | W56: 335857.5 | X56: 247200 | Y56: 184177.5 | Z56: 141622.5 | AA56: 108727.5 | AC56: 67 | AD56: 309600 | AE56: 227880 | AF56: 169777.5 | AG56: 130552.5 | AH56: 100230
A57: 68 | B57: 411637.5 | C57: 302981.25 | D57: 225731.25 | E57: 173581.25 | F57: 133262.5 | H57: 68 | I57: 362662.5 | J57: 266931.25 | K57: 198875 | L57: 152925 | M57: 117406.25 | O57: 68 | P57: 322412.5 | Q57: 284767.5 | R57: 212160 | S57: 163147.5 | T57: 125250 | V57: 68 | W57: 358860 | X57: 264135 | Y57: 196792.5 | Z57: 151327.5 | AA57: 116175 | AC57: 68 | AD57: 330810 | AE57: 243487.5 | AF57: 181410 | AG57: 139492.5 | AH57: 107100
A58: 69 | B58: 439868.75 | C58: 323756.25 | D58: 241212.5 | E58: 185481.25 | F58: 142400 | H58: 69 | I58: 387531.25 | J58: 285231.25 | K58: 212512.5 | L58: 163412.5 | M58: 125456.25 | O58: 69 | P58: 344518.75 | Q58: 304290 | R58: 226710 | S58: 174330 | T58: 133845 | V58: 69 | W58: 383467.5 | X58: 282247.5 | Y58: 210285 | Z58: 161700 | AA58: 124147.5 | AC58: 69 | AD58: 353497.5 | AE58: 260182.5 | AF58: 193845 | AG58: 149062.5 | AH58: 114442.5
A59: 70 | B59: 470062.5 | C59: 345981.25 | D59: 257768.75 | E59: 198218.75 | F59: 152181.25 | H59: 70 | I59: 414137.5 | J59: 304812.5 | K59: 227100 | L59: 174631.25 | M59: 134075 | O59: 70 | P59: 368168.75 | Q59: 325177.5 | R59: 242272.5 | S59: 186300 | T59: 143032.5 | V59: 70 | W59: 409792.5 | X59: 301620 | Y59: 224722.5 | Z59: 172800 | AA59: 132667.5 | AC59: 70 | AD59: 377760 | AE59: 278040 | AF59: 207157.5 | AG59: 159292.5 | AH59: 122295
A60: 71 | B60: 498043.75 | C60: 366575 | D60: 273112.5 | E60: 210012.5 | F60: 161237.5 | H60: 71 | I60: 438781.25 | J60: 322956.25 | K60: 240618.75 | L60: 185025 | M60: 142050 | O60: 71 | P60: 390081.25 | Q60: 344535 | R60: 256695 | S60: 197385 | T60: 151545 | V60: 71 | W60: 434182.5 | X60: 319575 | Y60: 238095 | Z60: 183082.5 | AA60: 140565 | AC60: 71 | AD60: 400245 | AE60: 294592.5 | AF60: 219487.5 | AG60: 168772.5 | AH60: 129577.5
A61: 72 | B61: 527681.25 | C61: 388387.5 | D61: 289368.75 | E61: 222512.5 | F61: 170831.25 | H61: 72 | I61: 464900 | J61: 342175 | K61: 254937.5 | L61: 196037.5 | M61: 150506.25 | O61: 72 | P61: 413300 | Q61: 365040 | R61: 271972.5 | S61: 209137.5 | T61: 160560 | V61: 72 | W61: 460027.5 | X61: 338595 | Y61: 252262.5 | Z61: 193980 | AA61: 148927.5 | AC61: 72 | AD61: 424065 | AE61: 312127.5 | AF61: 232545 | AG61: 178822.5 | AH61: 137287.5
A62: 73 | B62: 559087.5 | C62: 411506.25 | D62: 306587.5 | E62: 235756.25 | F62: 181000 | H62: 73 | I62: 492568.75 | J62: 362543.75 | K62: 270112.5 | L62: 207706.25 | M62: 159462.5 | O62: 73 | P62: 437893.75 | Q62: 386767.5 | R62: 288157.5 | S62: 221580 | T62: 170115 | V62: 73 | W62: 487402.5 | X62: 358740 | Y62: 267277.5 | Z62: 205530 | AA62: 157792.5 | AC62: 73 | AD62: 449302.5 | AE62: 330705 | AF62: 246390 | AG62: 189465 | AH62: 145455
A63: 74 | B63: 592362.5 | C63: 435993.75 | D63: 324837.5 | E63: 249787.5 | F63: 191768.75 | H63: 74 | I63: 521881.25 | J63: 384118.75 | K63: 286187.5 | L63: 220068.75 | M63: 168956.25 | O63: 74 | P63: 463956.25 | Q63: 409785 | R63: 305310 | S63: 234772.5 | T63: 180240 | V63: 74 | W63: 516412.5 | X63: 380092.5 | Y63: 283185 | Z63: 217762.5 | AA63: 167182.5 | AC63: 74 | AD63: 476047.5 | AE63: 350385 | AF63: 261052.5 | AG63: 200737.5 | AH63: 154117.5
A64: 75 | B64: 639887.5 | C64: 470975 | D64: 350900 | E64: 269825 | F64: 207156.25 | H64: 75 | I64: 563750 | J64: 414937.5 | K64: 309150 | L64: 237725 | M64: 182506.25 | O64: 75 | P64: 501181.25 | Q64: 442657.5 | R64: 329805 | S64: 253605 | T64: 194700 | V64: 75 | W64: 557842.5 | X64: 410587.5 | Y64: 305910 | Z64: 235230 | AA64: 180592.5 | AC64: 75 | AD64: 514237.5 | AE64: 378495 | AF64: 281992.5 | AG64: 216840 | AH64: 166477.5
A65: 76 | B65: 670468.75 | C65: 493487.5 | D65: 367668.75 | E65: 282725 | F65: 217056.25 | H65: 76 | I65: 590693.75 | J65: 434768.75 | K65: 323925 | L65: 249081.25 | M65: 191231.25 | O65: 76 | P65: 525131.25 | Q65: 463815 | R65: 345562.5 | S65: 265725 | T65: 204007.5 | V65: 76 | W65: 584505 | X65: 430215 | Y65: 320527.5 | Z65: 246472.5 | AA65: 189225 | AC65: 76 | AD65: 538815 | AE65: 396585 | AF65: 295470 | AG65: 227205 | AH65: 174435
A66: 77 | B66: 702512.5 | C66: 517068.75 | D66: 385243.75 | E66: 296237.5 | F66: 227431.25 | H66: 77 | I66: 618925 | J66: 455550 | K66: 339406.25 | L66: 260987.5 | M66: 200368.75 | O66: 77 | P66: 550231.25 | Q66: 485985 | R66: 362077.5 | S66: 278422.5 | T66: 213757.5 | V66: 77 | W66: 612442.5 | X66: 450772.5 | Y66: 335850 | Z66: 258255 | AA66: 198270 | AC66: 77 | AD66: 564570 | AE66: 415537.5 | AF66: 309592.5 | AG66: 238065 | AH66: 182775
A67: 78 | B67: 736087.5 | C67: 541787.5 | D67: 403656.25 | E67: 310393.75 | F67: 238300 | H67: 78 | I67: 648506.25 | J67: 477318.75 | K67: 355625 | L67: 273462.5 | M67: 209950 | O67: 78 | P67: 576531.25 | Q67: 509212.5 | R67: 379387.5 | S67: 291735 | T67: 223972.5 | V67: 78 | W67: 641707.5 | X67: 472320 | Y67: 351900 | Z67: 270600 | AA67: 207750 | AC67: 78 | AD67: 591547.5 | AE67: 435397.5 | AF67: 324390 | AG67: 249442.5 | AH67: 191505
A68: 79 | B68: =B169*0.5 -> 771268.75 | C68: 567681.25 | D68: 422943.75 | E68: 325231.25 | F68: 249693.75 | H68: 79 | I68: 679506.25 | J68: 500137.5 | K68: 372625 | L68: 286531.25 | M68: 219981.25 | O68: 79 | P68: 604087.5 | Q68: 533550 | R68: 397515 | S68: 305677.5 | T68: 234682.5 | V68: 79 | W68: 672382.5 | X68: 494895 | Y68: 368715 | Z68: 283530 | AA68: 217680 | AC68: 79 | AD68: 619822.5 | AE68: 456210 | AF68: 339892.5 | AG68: 261367.5 | AH68: 200662.5
A69: 80 | B69: 808137.5 | C69: 594812.5 | D69: 443162.5 | E69: 340775 | F69: 261625 | H69: 80 | I69: =I170*0.5 -> 711981.25 | J69: 524037.5 | K69: 390431.25 | L69: 300225 | M69: 230493.75 | O69: 80 | P69: =P170*0.5 -> 632956.25 | Q69: =Q170*0.6 -> 559050 | R69: 416520 | S69: 320287.5 | T69: 245895 | V69: 80 | W69: =W170*0.6 -> 704520 | X69: 518542.5 | Y69: 386340 | Z69: 297082.5 | AA69: 228082.5 | AC69: 80 | AD69: =AD170*0.6 -> 649447.5 | AE69: 478012.5 | AF69: 356145 | AG69: 273855 | AH69: 210255
A70: 81 | B70: 846756.25 | C70: 623237.5 | D70: 464343.75 | E70: 357062.5 | F70: 274131.25 | H70: 81 | I70: 746006.25 | J70: 549087.5 | K70: 409093.75 | L70: 314575 | M70: 241512.5 | O70: 81 | P70: 663206.25 | Q70: 585772.5 | R70: 436425 | S70: 335595 | T70: 257647.5 | V70: 81 | W70: 738187.5 | X70: 543330 | Y70: 404805 | Z70: 311280 | AA70: 238980 | AC70: 81 | AD70: 680490 | AE70: 500857.5 | AF70: 373162.5 | AG70: 286950 | AH70: 220297.5
A71: 82 | B71: 887231.25 | C71: 653025 | D71: 486537.5 | E71: 374125 | F71: 287231.25 | H71: 82 | I71: 781662.5 | J71: 575325 | K71: 428643.75 | L71: 329612.5 | M71: 253056.25 | O71: 82 | P71: 694906.25 | Q71: 613770 | R71: 457282.5 | S71: 351630 | T71: 269962.5 | V71: 82 | W71: 773467.5 | X71: 569295 | Y71: 424155 | Z71: 326160 | AA71: 250402.5 | AC71: 82 | AD71: 713010 | AE71: 524797.5 | AF71: 390997.5 | AG71: 300660 | AH71: 230827.5
A72: 83 | B72: 929631.25 | C72: 684237.5 | D72: 509787.5 | E72: 392006.25 | F72: 300962.5 | H72: 83 | I72: 819025 | J72: 602825 | K72: 449131.25 | L72: 345362.5 | M72: 265150 | O72: 83 | P72: 728118.75 | Q72: 643102.5 | R72: 479137.5 | S72: 368437.5 | T72: 282862.5 | V72: 83 | W72: 810435 | X72: 596505 | Y72: 444427.5 | Z72: 341745 | AA72: 262372.5 | AC72: 83 | AD72: 747090 | AE72: 549877.5 | AF72: 409687.5 | AG72: 315030 | AH72: 241860
A73: 84 | B73: 974062.5 | C73: 716937.5 | D73: 534150 | E73: 410743.75 | F73: 315343.75 | H73: 84 | I73: 858168.75 | J73: 631637.5 | K73: 470600 | L73: 361868.75 | M73: 277825 | O73: 84 | P73: 762918.75 | Q73: 673837.5 | R73: 502042.5 | S73: 386047.5 | T73: 296385 | V73: 84 | W73: 849172.5 | X73: 625020 | Y73: 465667.5 | Z73: 358080 | AA73: 274912.5 | AC73: 84 | AD73: 782797.5 | AE73: 576165 | AF73: 429270 | AG73: 330090 | AH73: 253425
A95: ANNUAL RATES - START FROM HERE
A102: Zona 1: Ciudad de México (D.F. y área metropolitana) y franja fronteriza norte | H102: Zona 2: Nuevo León, Sonora, Coahuila, Chihuahua, Tamaulipas, Baja California Norte y Baja California Sur | O102: Zona 3: Jalisco, Puebla, Morelos, Estado de México (excepto Área Metropolitana), Guerrero (Acapulco y Zihuatanejo), Hidalgo y Querétaro | V102: Zona 4: Sinaloa, Guanajuato, San Luis Potosí, Durango, Aguascalientes, Nayarit, Michoacán, Colima, Quintana Roo, Zacatecas | AC102: Zona 5: Guerrero (excepto Acapulco y Zihuatanejo), Veracruz, Chiapas, Tabasco, Campeche, Oaxaca, Tlaxcala, Yucatán
A103: Primas de tarifa expresadas en pesos mexicanos | H103: Primas de tarifa expresadas en pesos mexicanos | O103: Primas de tarifa expresadas en pesos mexicanos | V103: Primas de tarifa expresadas en pesos mexicanos | AC103: Primas de tarifa expresadas en pesos mexicanos
A104: Edad | B104: CW21 | C104: CW31 | D104: CW41 | E104: CW51 | F104: CW61 | H104: Edad | I104: CW22 | J104: CW32 | K104: CW42 | L104: CW52 | M104: CW62 | O104: Edad | P104: CW23 | Q104: CW33 | R104: CW43 | S104: CW53 | T104: CW63 | V104: Edad | W104: CW24 | X104: CW34 | Y104: CW44 | Z104: CW54 | AA104: CW64 | AC104: Edad | AD104: CW25 | AE104: CW35 | AF104: CW45 | AG104: CW55 | AH104: CW65
A105: 1 menor | B105: 60800 | C105: 44750 | D105: 33350 | E105: 25637.5 | F105: 19687.5 | H105: 1 menor | I105: 53575 | J105: 39425 | K105: 29375 | L105: 22587.5 | M105: 17337.5 | O105: 1 menor | P105: 47625 | Q105: 35050 | R105: 26112.5 | S105: 20087.5 | T105: 15412.5 | V105: 1 menor | W105: 44175 | X105: 32512.5 | Y105: 24225 | Z105: 18625 | AA105: 14300 | AC105: 1 menor | AD105: 40725 | AE105: 29975 | AF105: 22325 | AG105: 17175 | AH105: 13187.5
A106: 2 menor | B106: 95812.5 | C106: 70512.5 | D106: 52537.5 | E106: 40400 | F106: 31012.5 | H106: 2 menores | I106: 84412.5 | J106: 62125 | K106: 46287.5 | L106: 35587.5 | M106: 27325 | O106: 2 menores | P106: 75037.5 | Q106: 55225 | R106: 41150 | S106: 31637.5 | T106: 24287.5 | V106: 2 menores | W106: 69600 | X106: 51225 | Y106: 38162.5 | Z106: 29350 | AA106: 22537.5 | AC106: 2 menores | AD106: 64162.5 | AE106: 47225 | AF106: 35187.5 | AG106: 27050 | AH106: 20775
A107: 3 menor | B107: 139787.5 | C107: 102887.5 | D107: 76650 | E107: 58950 | F107: 45250 | H107: 3 ó más menores | I107: 123150 | J107: 90650 | K107: 67537.5 | L107: 51937.5 | M107: 39875 | O107: 3 ó más menores | P107: 109487.5 | Q107: 80587.5 | R107: 60037.5 | S107: 46162.5 | T107: 35450 | V107: 3 ó más menores | W107: 101550 | X107: 74750 | Y107: 55687.5 | Z107: 42825 | AA107: 32875 | AC107: 3 ó más menores | AD107: 93612.5 | AE107: 68900 | AF107: 51337.5 | AG107: 39475 | AH107: 30312.5
A108: 18 | B108: 140262.5 | C108: 103237.5 | D108: 76912.5 | E108: 59150 | F108: 45412.5 | H108: 18 | I108: 123575 | J108: 90950 | K108: 67762.5 | L108: 52112.5 | M108: 40000 | O108: 18 | P108: 109862.5 | Q108: 80862.5 | R108: 60237.5 | S108: 46325 | T108: 35562.5 | V108: 18 | W108: 101900 | X108: 75000 | Y108: 55875 | Z108: 42962.5 | AA108: 32987.5 | AC108: 18 | AD108: 93937.5 | AE108: 69137.5 | AF108: 51512.5 | AG108: 39612.5 | AH108: 30412.5
A109: 19 | B109: 144687.5 | C109: 106500 | D109: 79350 | E109: 61012.5 | F109: 46837.5 | H109: 19 | I109: 127475 | J109: 93825 | K109: 69900 | L109: 53750 | M109: 41262.5 | O109: 19 | P109: 113325 | Q109: 83412.5 | R109: 62150 | S109: 47787.5 | T109: 36687.5 | V109: 19 | W109: 105112.5 | X109: 77362.5 | Y109: 57637.5 | Z109: 44325 | AA109: 34025 | AC109: 19 | AD109: 96900 | AE109: 71325 | AF109: 53137.5 | AG109: 40862.5 | AH109: 31375
A110: 20 | B110: 149262.5 | C110: 109862.5 | D110: 81850 | E110: 62937.5 | F110: 48325 | H110: 20 | I110: 131500 | J110: 96787.5 | K110: 72112.5 | L110: 55450 | M110: 42575 | O110: 20 | P110: 116900 | Q110: 86050 | R110: 64112.5 | S110: 49300 | T110: 37850 | V110: 20 | W110: 108437.5 | X110: 79812.5 | Y110: 59462.5 | Z110: 45725 | AA110: 35100 | AC110: 20 | AD110: 99962.5 | AE110: 73575 | AF110: 54812.5 | AG110: 42150 | AH110: 32362.5
A111: 21 | B111: 153975 | C111: 113325 | D111: 84437.5 | E111: 64925 | F111: 49850 | H111: 21 | I111: 135650 | J111: 99837.5 | K111: 74387.5 | L111: 57200 | M111: 43912.5 | O111: 21 | P111: 120600 | Q111: 88762.5 | R111: 66125 | S111: 50850 | T111: 39037.5 | V111: 21 | W111: 111862.5 | X111: 82325 | Y111: 61337.5 | Z111: 47162.5 | AA111: 36212.5 | AC111: 21 | AD111: 103112.5 | AE111: 75900 | AF111: 56550 | AG111: 43475 | AH111: 33387.5
A112: 22 | B112: 158825 | C112: 116900 | D112: 87100 | E112: 66975 | F112: 51425 | H112: 22 | I112: 139937.5 | J112: 103000 | K112: 76737.5 | L112: 59012.5 | M112: 45300 | O112: 22 | P112: 124400 | Q112: 91562.5 | R112: 68225 | S112: 52462.5 | T112: 40275 | V112: 22 | W112: 115387.5 | X112: 84925 | Y112: 63275 | Z112: 48662.5 | AA112: 37350 | AC112: 22 | AD112: 106375 | AE112: 78287.5 | AF112: 58325 | AG112: 44850 | AH112: 34437.5
A113: 23 | B113: 163850 | C113: 120600 | D113: 89850 | E113: 69087.5 | F113: 53037.5 | H113: 23 | I113: 144350 | J113: 106250 | K113: 79162.5 | L113: 60875 | M113: 46737.5 | O113: 23 | P113: 128325 | Q113: 94450 | R113: 70375 | S113: 54112.5 | T113: 41550 | V113: 23 | W113: 119025 | X113: 87612.5 | Y113: 65275 | Z113: 50187.5 | AA113: 38537.5 | AC113: 23 | AD113: 109725 | AE113: 80762.5 | AF113: 60175 | AG113: 46275 | AH113: 35525
A114: 24 | B114: 169012.5 | C114: 124400 | D114: 92687.5 | E114: 71275 | F114: 54712.5 | H114: 24 | I114: 148912.5 | J114: 109600 | K114: 81662.5 | L114: 62787.5 | M114: 48212.5 | O114: 24 | P114: 132375 | Q114: 97437.5 | R114: 72600 | S114: 55825 | T114: 42862.5 | V114: 24 | W114: 122787.5 | X114: 90375 | Y114: 67337.5 | Z114: 51775 | AA114: 39750 | AC114: 24 | AD114: 113187.5 | AE114: 83312.5 | AF114: 62075 | AG114: 47725 | AH114: 36650
A115: 25 | B115: 174350 | C115: 128325 | D115: 95612.5 | E115: 73525 | F115: 56450 | H115: 25 | I115: 153612.5 | J115: 113062.5 | K115: 84237.5 | L115: 64775 | M115: 49725 | O115: 25 | P115: 136562.5 | Q115: 100512.5 | R115: 74887.5 | S115: 57587.5 | T115: 44212.5 | V115: 25 | W115: 126662.5 | X115: 93225 | Y115: 69462.5 | Z115: 53412.5 | AA115: 41012.5 | AC115: 25 | AD115: 116762.5 | AE115: 85937.5 | AF115: 64025 | AG115: 49237.5 | AH115: 37800
A116: 26 | B116: 179862.5 | C116: 132375 | D116: 98625 | E116: 75837.5 | F116: 58225 | H116: 26 | I116: 158462.5 | J116: 116625 | K116: 86900 | L116: 66812.5 | M116: 51300 | O116: 26 | P116: 140875 | Q116: 103687.5 | R116: 77250 | S116: 59400 | T116: 45600 | V116: 26 | W116: 130662.5 | X116: 96175 | Y116: 71650 | Z116: 55100 | AA116: 42300 | AC116: 26 | AD116: 120450 | AE116: 88650 | AF116: 66050 | AG116: 50787.5 | AH116: 39000
A117: 27 | B117: 185537.5 | C117: 136562.5 | D117: 101737.5 | E117: 78237.5 | F117: 60062.5 | H117: 27 | I117: 163462.5 | J117: 120312.5 | K117: 89637.5 | L117: 68925 | M117: 52925 | O117: 27 | P117: 145312.5 | Q117: 106962.5 | R117: 79687.5 | S117: 61275 | T117: 47050 | V117: 27 | W117: 134787.5 | X117: 99212.5 | Y117: 73912.5 | Z117: 56837.5 | AA117: 43637.5 | AC117: 27 | AD117: 124250 | AE117: 91450 | AF117: 68137.5 | AG117: 52400 | AH117: 40225
A118: 28 | B118: 191400 | C118: 140875 | D118: 104950 | E118: 80712.5 | F118: 61962.5 | H118: 28 | I118: 168625 | J118: 124112.5 | K118: 92462.5 | L118: 71100 | M118: 54587.5 | O118: 28 | P118: 149900 | Q118: 110337.5 | R118: 82200 | S118: 63212.5 | T118: 48525 | V118: 28 | W118: 139050 | X118: 102337.5 | Y118: 76250 | Z118: 58637.5 | AA118: 45012.5 | AC118: 28 | AD118: 128175 | AE118: 94337.5 | AF118: 70287.5 | AG118: 54050 | AH118: 41500
A119: 29 | B119: 200837.5 | C119: 147825 | D119: 110137.5 | E119: 84687.5 | F119: 65025 | H119: 29 | I119: 176937.5 | J119: 130237.5 | K119: 97025 | L119: 74612.5 | M119: 57287.5 | O119: 29 | P119: 157300 | Q119: 115775 | R119: 86262.5 | S119: 66337.5 | T119: 50925 | V119: 29 | W119: 145912.5 | X119: 107387.5 | Y119: 80012.5 | Z119: 61525 | AA119: 47237.5 | AC119: 29 | AD119: 134500 | AE119: 99000 | AF119: 73762.5 | AG119: 56712.5 | AH119: 43550
A120: 30 | B120: 207175 | C120: 152487.5 | D120: 113612.5 | E120: 87362.5 | F120: 67075 | H120: 30 | I120: 182525 | J120: 134350 | K120: 100100 | L120: 76975 | M120: 59087.5 | O120: 30 | P120: 162275 | Q120: 119437.5 | R120: 88987.5 | S120: 68425 | T120: 52537.5 | V120: 30 | W120: 150512.5 | X120: 110787.5 | Y120: 82537.5 | Z120: 63462.5 | AA120: 48725 | AC120: 30 | AD120: 138750 | AE120: 102125 | AF120: 76087.5 | AG120: 58512.5 | AH120: 44912.5
A121: 31 | B121: 213725 | C121: 157300 | D121: 117200 | E121: 90125 | F121: 69187.5 | H121: 31 | I121: 188287.5 | J121: 138587.5 | K121: 103250 | L121: 79400 | M121: 60962.5 | O121: 31 | P121: 167400 | Q121: 123212.5 | R121: 91800 | S121: 70587.5 | T121: 54187.5 | V121: 31 | W121: 155262.5 | X121: 114275 | Y121: 85150 | Z121: 65475 | AA121: 50262.5 | AC121: 31 | AD121: 143125 | AE121: 105350 | AF121: 78487.5 | AG121: 60350 | AH121: 46337.5
A122: 32 | B122: 220475 | C122: 162275 | D122: 120900 | E122: 92962.5 | F122: 71375 | H122: 32 | I122: 194237.5 | J122: 142962.5 | K122: 106512.5 | L122: 81900 | M122: 62887.5 | O122: 32 | P122: 172675 | Q122: 127100 | R122: 94687.5 | S122: 72812.5 | T122: 55900 | V122: 32 | W122: 160162.5 | X122: 117887.5 | Y122: 87837.5 | Z122: 67537.5 | AA122: 51850 | AC122: 32 | AD122: 147650 | AE122: 108675 | AF122: 80962.5 | AG122: 62262.5 | AH122: 47800
A123: 33 | B123: 227425 | C123: 167400 | D123: 124712.5 | E123: 95900 | F123: 73625 | H123: 33 | I123: 200375 | J123: 147475 | K123: 109875 | L123: 84487.5 | M123: 64862.5 | O123: 33 | P123: 178125 | Q123: 131112.5 | R123: 97687.5 | S123: 75112.5 | T123: 57662.5 | V123: 33 | W123: 165225 | X123: 121612.5 | Y123: 90600 | Z123: 69675 | AA123: 53487.5 | AC123: 33 | AD123: 152312.5 | AE123: 112100 | AF123: 83525 | AG123: 64225 | AH123: 49312.5
A124: 34 | B124: 234612.5 | C124: 172675 | D124: 128650 | E124: 98925 | F124: 75950 | H124: 34 | I124: 206700 | J124: 152137.5 | K124: 113350 | L124: 87162.5 | M124: 66912.5 | O124: 34 | P124: 183750 | Q124: 135250 | R124: 100762.5 | S124: 77487.5 | T124: 59487.5 | V124: 34 | W124: 170437.5 | X124: 125450 | Y124: 93462.5 | Z124: 71875 | AA124: 55175 | AC124: 34 | AD124: 157112.5 | AE124: 115637.5 | AF124: 86162.5 | AG124: 66250 | AH124: 50862.5
A125: 35 | B125: 235825 | C125: 173575 | D125: 129325 | E125: 99437.5 | F125: 76350 | H125: 35 | I125: 207762.5 | J125: 152925 | K125: 113937.5 | L125: 87612.5 | M125: 67262.5 | O125: 35 | P125: 184700 | Q125: 135950 | R125: 101287.5 | S125: 77887.5 | T125: 59800 | V125: 35 | W125: 171325 | X125: 126100 | Y125: 93950 | Z125: 72237.5 | AA125: 55462.5 | AC125: 35 | AD125: 157937.5 | AE125: 116237.5 | AF125: 86600 | AG125: 66600 | AH125: 51125
A126: 36 | B126: 241225 | C126: 177550 | D126: 132275 | E126: 101712.5 | F126: 78087.5 | H126: 36 | I126: 212525 | J126: 156425 | K126: 116537.5 | L126: 89612.5 | M126: 68800 | O126: 36 | P126: 188937.5 | Q126: 139062.5 | R126: 103600 | S126: 79675 | T126: 61162.5 | V126: 36 | W126: 175250 | X126: 128987.5 | Y126: 96100 | Z126: 73900 | AA126: 56737.5 | AC126: 36 | AD126: 161550 | AE126: 118900 | AF126: 88587.5 | AG126: 68125 | AH126: 52300
A127: 37 | B127: 246737.5 | C127: 181612.5 | D127: 135312.5 | E127: 104050 | F127: 79875 | H127: 37 | I127: 217387.5 | J127: 160000 | K127: 119212.5 | L127: 91662.5 | M127: 70375 | O127: 37 | P127: 193250 | Q127: 142237.5 | R127: 105975 | S127: 81487.5 | T127: 62562.5 | V127: 37 | W127: 179250 | X127: 131937.5 | Y127: 98300 | Z127: 75587.5 | AA127: 58037.5 | AC127: 37 | AD127: 165237.5 | AE127: 121625 | AF127: 90612.5 | AG127: 69675 | AH127: 53500
A128: 38 | B128: 252387.5 | C128: 185762.5 | D128: 138400 | E128: 106425 | F128: 81712.5 | H128: 38 | I128: 222362.5 | J128: 163662.5 | K128: 121937.5 | L128: 93762.5 | M128: 71987.5 | O128: 38 | P128: 197675 | Q128: 145500 | R128: 108400 | S128: 83362.5 | T128: 64000 | V128: 38 | W128: 183350 | X128: 134950 | Y128: 100550 | Z128: 77312.5 | AA128: 59362.5 | AC128: 38 | AD128: 169025 | AE128: 124400 | AF128: 92687.5 | AG128: 71275 | AH128: 54725
A129: 39 | B129: 258162.5 | C129: 190012.5 | D129: 141575 | E129: 108862.5 | F129: 83575 | H129: 39 | I129: 227450 | J129: 167412.5 | K129: 124725 | L129: 95912.5 | M129: 73637.5 | O129: 39 | P129: 202200 | Q129: 148825 | R129: 110887.5 | S129: 85262.5 | T129: 65462.5 | V129: 39 | W129: 187550 | X129: 138050 | Y129: 102850 | Z129: 79087.5 | AA129: 60712.5 | AC129: 39 | AD129: 172887.5 | AE129: 127250 | AF129: 94812.5 | AG129: 72900 | AH129: 55975
A130: 40 | B130: 264075 | C130: 194362.5 | D130: 144812.5 | E130: 111350 | F130: 85487.5 | H130: 40 | I130: 232650 | J130: 171237.5 | K130: 127575 | L130: 98100 | M130: 75312.5 | O130: 40 | P130: 206825 | Q130: 152237.5 | R130: 113425 | S130: 87212.5 | T130: 66962.5 | V130: 40 | W130: 191850 | X130: 141200 | Y130: 105200 | Z130: 80900 | AA130: 62112.5 | AC130: 40 | AD130: 176850 | AE130: 130162.5 | AF130: 96975 | AG130: 74575 | AH130: 57250
A131: 41 | B131: 270112.5 | C131: 198812.5 | D131: 148125 | E131: 113900 | F131: 87450 | H131: 41 | I131: 237975 | J131: 175150 | K131: 130500 | L131: 100350 | M131: 77037.5 | O131: 41 | P131: 211562.5 | Q131: 155712.5 | R131: 116012.5 | S131: 89212.5 | T131: 68487.5 | V131: 41 | W131: 196237.5 | X131: 144437.5 | Y131: 107612.5 | Z131: 82750 | AA131: 63525 | AC131: 41 | AD131: 180900 | AE131: 133150 | AF131: 99200 | AG131: 76275 | AH131: 58562.5
A132: 42 | B132: 276300 | C132: 203362.5 | D132: 151512.5 | E132: 116512.5 | F132: 89450 | H132: 42 | I132: 243425 | J132: 179162.5 | K132: 133487.5 | L132: 102650 | M132: 78800 | O132: 42 | P132: 216400 | Q132: 159275 | R132: 118675 | S132: 91250 | T132: 70062.5 | V132: 42 | W132: 200725 | X132: 147737.5 | Y132: 110075 | Z132: 84637.5 | AA132: 64987.5 | AC132: 42 | AD132: 185037.5 | AE132: 136187.5 | AF132: 101462.5 | AG132: 78025 | AH132: 59900
A133: 43 | B133: 282612.5 | C133: 208012.5 | D133: 154975 | E133: 119175 | F133: 91500 | H133: 43 | I133: 248987.5 | J133: 183262.5 | K133: 136537.5 | L133: 105000 | M133: 80612.5 | O133: 43 | P133: 221350 | Q133: 162925 | R133: 121387.5 | S133: 93337.5 | T133: 71662.5 | V133: 43 | W133: 205312.5 | X133: 151125 | Y133: 112587.5 | Z133: 86575 | AA133: 66475 | AC133: 43 | AD133: 189262.5 | AE133: 139312.5 | AF133: 103787.5 | AG133: 79812.5 | AH133: 61275
A134: 44 | B134: 289087.5 | C134: 212775 | D134: 158525 | E134: 121900 | F134: 93587.5 | H134: 44 | I134: 254687.5 | J134: 187462.5 | K134: 139662.5 | L134: 107400 | M134: 82450 | O134: 44 | P134: 226425 | Q134: 166650 | R134: 124162.5 | S134: 95475 | T134: 73300 | V134: 44 | W134: 210012.5 | X134: 154575 | Y134: 115162.5 | Z134: 88562.5 | AA134: 67987.5 | AC134: 44 | AD134: 193600 | AE134: 142500 | AF134: 106162.5 | AG134: 81637.5 | AH134: 62675
A135: 45 | B135: 295700 | C135: 217650 | D135: 162150 | E135: 124687.5 | F135: 95725 | H135: 45 | I135: 260512.5 | J135: 191750 | K135: 142862.5 | L135: 109850 | M135: 84337.5 | O135: 45 | P135: 231600 | Q135: 170462.5 | R135: 127000 | S135: 97662.5 | T135: 74975 | V135: 45 | W135: 214825 | X135: 158112.5 | Y135: 117800 | Z135: 90587.5 | AA135: 69550 | AC135: 45 | AD135: 198025 | AE135: 145750 | AF135: 108600 | AG135: 83500 | AH135: 64112.5
A136: 46 | B136: 302462.5 | C136: 222625 | D136: 165862.5 | E136: 127550 | F136: 97925 | H136: 46 | I136: 266475 | J136: 196137.5 | K136: 146125 | L136: 112362.5 | M136: 86275 | O136: 46 | P136: 236900 | Q136: 174362.5 | R136: 129912.5 | S136: 99900 | T136: 76700 | V136: 46 | W136: 219737.5 | X136: 161737.5 | Y136: 120500 | Z136: 92662.5 | AA136: 71137.5 | AC136: 46 | AD136: 202562.5 | AE136: 149087.5 | AF136: 111075 | AG136: 85412.5 | AH136: 65575
A137: 47 | B137: 309387.5 | C137: 227712.5 | D137: 169662.5 | E137: 130462.5 | F137: 100162.5 | H137: 47 | I137: 272575 | J137: 200625 | K137: 149475 | L137: 114937.5 | M137: 88250 | O137: 47 | P137: 242325 | Q137: 178362.5 | R137: 132887.5 | S137: 102187.5 | T137: 78450 | V137: 47 | W137: 224762.5 | X137: 165437.5 | Y137: 123250 | Z137: 94775 | AA137: 72762.5 | AC137: 47 | AD137: 207200 | AE137: 152500 | AF137: 113625 | AG137: 87375 | AH137: 67075
A138: 48 | B138: 316462.5 | C138: 232925 | D138: 173537.5 | E138: 133450 | F138: 102450 | H138: 48 | I138: 278812.5 | J138: 205212.5 | K138: 152900 | L138: 117575 | M138: 90262.5 | O138: 48 | P138: 247862.5 | Q138: 182437.5 | R138: 135925 | S138: 104525 | T138: 80250 | V138: 48 | W138: 229912.5 | X138: 169225 | Y138: 126075 | Z138: 96950 | AA138: 74425 | AC138: 48 | AD138: 211937.5 | AE138: 155987.5 | AF138: 116225 | AG138: 89375 | AH138: 68612.5
A139: 49 | B139: 323712.5 | C139: 238262.5 | D139: 177512.5 | E139: 136500 | F139: 104800 | H139: 49 | I139: 285187.5 | J139: 209912.5 | K139: 156387.5 | L139: 120262.5 | M139: 92325 | O139: 49 | P139: 253537.5 | Q139: 186612.5 | R139: 139037.5 | S139: 106912.5 | T139: 82075 | V139: 49 | W139: 235175 | X139: 173087.5 | Y139: 128962.5 | Z139: 99162.5 | AA139: 76137.5 | AC139: 49 | AD139: 216787.5 | AE139: 159562.5 | AF139: 118875 | AG139: 91412.5 | AH139: 70187.5
A140: 50 | B140: 331112.5 | C140: 243712.5 | D140: 181575 | E140: 139625 | F140: 107200 | H140: 50 | I140: 291725 | J140: 214712.5 | K140: 159975 | L140: 123012.5 | M140: 94437.5 | O140: 50 | P140: 259337.5 | Q140: 190887.5 | R140: 142212.5 | S140: 109362.5 | T140: 83962.5 | V140: 50 | W140: 240550 | X140: 177050 | Y140: 131912.5 | Z140: 101437.5 | AA140: 77875 | AC140: 50 | AD140: 221750 | AE140: 163212.5 | AF140: 121600 | AG140: 93512.5 | AH140: 71787.5
A141: 51 | B141: 338700 | C141: 249287.5 | D141: 185725 | E141: 142825 | F141: 109650 | H141: 51 | I141: 298400 | J141: 219625 | K141: 163637.5 | L141: 125825 | M141: 96600 | O141: 51 | P141: 265275 | Q141: 195250 | R141: 145475 | S141: 111862.5 | T141: 85875 | V141: 51 | W141: 246050 | X141: 181100 | Y141: 134925 | Z141: 103762.5 | AA141: 79662.5 | AC141: 51 | AD141: 226825 | AE141: 166950 | AF141: 124387.5 | AG141: 95650 | AH141: 73437.5
A142: 52 | B142: 346450 | C142: 254987.5 | D142: 189987.5 | E142: 146087.5 | F142: 112162.5 | H142: 52 | I142: 305225 | J142: 224650 | K142: 167375 | L142: 128700 | M142: 98812.5 | O142: 52 | P142: 271350 | Q142: 199725 | R142: 148800 | S142: 114425 | T142: 87850 | V142: 52 | W142: 251687.5 | X142: 185250 | Y142: 138025 | Z142: 106125 | AA142: 81475 | AC142: 52 | AD142: 232012.5 | AE142: 170775 | AF142: 127225 | AG142: 97837.5 | AH142: 75112.5
A143: 53 | B143: 354375 | C143: 260825 | D143: 194325 | E143: 149425 | F143: 114725 | H143: 53 | I143: 312212.5 | J143: 229800 | K143: 171212.5 | L143: 131650 | M143: 101075 | O143: 53 | P143: 277550 | Q143: 204287.5 | R143: 152200 | S143: 117037.5 | T143: 89850 | V143: 53 | W143: 257450 | X143: 189487.5 | Y143: 141175 | Z143: 108562.5 | AA143: 83350 | AC143: 53 | AD143: 237325 | AE143: 174675 | AF143: 130137.5 | AG143: 100075 | AH143: 76825
A144: 54 | B144: 372787.5 | C144: 274387.5 | D144: 204425 | E144: 157200 | F144: 120687.5 | H144: 54 | I144: 328437.5 | J144: 241737.5 | K144: 180100 | L144: 138500 | M144: 106325 | O144: 54 | P144: 291975 | Q144: 214912.5 | R144: 160112.5 | S144: 123125 | T144: 94525 | V144: 54 | W144: 270825 | X144: 199337.5 | Y144: 148512.5 | Z144: 114200 | AA144: 87675 | AC144: 54 | AD144: 249662.5 | AE144: 183750 | AF144: 136900 | AG144: 105275 | AH144: 80825
A145: 55 | B145: 394975 | C145: 290712.5 | D145: 216600 | E145: 166550 | F145: 127875 | H145: 55 | I145: 347975 | J145: 256125 | K145: 190825 | L145: 146737.5 | M145: 112650 | O145: 55 | P145: 309362.5 | Q145: 227700 | R145: 169650 | S145: 130450 | T145: 100150 | V145: 55 | W145: 286950 | X145: 211200 | Y145: 157350 | Z145: 121000 | AA145: 92900 | AC145: 55 | AD145: 264512.5 | AE145: 194687.5 | AF145: 145050 | AG145: 111537.5 | AH145: 85637.5
A146: 56 | B146: 407937.5 | C146: 300250 | D146: 223700 | E146: 172012.5 | F146: 132062.5 | H146: 56 | I146: 359400 | J146: 264525 | K146: 197087.5 | L146: 151550 | M146: 116350 | O146: 56 | P146: 319512.5 | Q146: 235162.5 | R146: 175212.5 | S146: 134725 | T146: 103437.5 | V146: 56 | W146: 296362.5 | X146: 218125 | Y146: 162512.5 | Z146: 124962.5 | AA146: 95937.5 | AC146: 56 | AD146: 273187.5 | AE146: 201075 | AF146: 149812.5 | AG146: 115200 | AH146: 88450
A147: 57 | B147: 428612.5 | C147: 315475 | D147: 235037.5 | E147: 180737.5 | F147: 138762.5 | H147: 57 | I147: 377612.5 | J147: 277937.5 | K147: 207075 | L147: 159237.5 | M147: 122250 | O147: 57 | P147: 335700 | Q147: 247087.5 | R147: 184087.5 | S147: 141562.5 | T147: 108675 | V147: 57 | W147: 311375 | X147: 229187.5 | Y147: 170750 | Z147: 131300 | AA147: 100800 | AC147: 57 | AD147: 287037.5 | AE147: 211275 | AF147: 157400 | AG147: 121037.5 | AH147: 92925
A148: 58 | B148: 454125 | C148: 334250 | D148: 249025 | E148: 191487.5 | F148: 147012.5 | H148: 58 | I148: 400087.5 | J148: 294475 | K148: 219400 | L148: 168712.5 | M148: 129525 | O148: 58 | P148: 355687.5 | Q148: 261787.5 | R148: 195050 | S148: 149987.5 | T148: 115150 | V148: 58 | W148: 329912.5 | X148: 242825 | Y148: 180912.5 | Z148: 139112.5 | AA148: 106800 | AC148: 58 | AD148: 304125 | AE148: 223850 | AF148: 166775 | AG148: 128237.5 | AH148: 98462.5
A149: 59 | B149: 481150 | C149: 354137.5 | D149: 263850 | E149: 202887.5 | F149: 155762.5 | H149: 59 | I149: 423900 | J149: 312000 | K149: 232450 | L149: 178750 | M149: 137237.5 | O149: 59 | P149: 376850 | Q149: 277375 | R149: 206650 | S149: 158912.5 | T149: 122000 | V149: 59 | W149: 349550 | X149: 257275 | Y149: 191687.5 | Z149: 147400 | AA149: 113162.5 | AC149: 59 | AD149: 322225 | AE149: 237162.5 | AF149: 176700 | AG149: 135875 | AH149: 104312.5
A150: 60 | B150: 509787.5 | C150: 375212.5 | D150: 279550 | E150: 214962.5 | F150: 165037.5 | H150: 60 | I150: 449125 | J150: 330575 | K150: 246287.5 | L150: 189387.5 | M150: 145400 | O150: 60 | P150: 399275 | Q150: 293887.5 | R150: 218950 | S150: 168362.5 | T150: 129262.5 | V150: 60 | W150: 370350 | X150: 272587.5 | Y150: 203087.5 | Z150: 156175 | AA150: 119900 | AC150: 60 | AD150: 341400 | AE150: 251287.5 | AF150: 187212.5 | AG150: 143962.5 | AH150: 110525
A151: 61 | B151: 540125 | C151: 397550 | D151: 296187.5 | E151: 227762.5 | F151: 174862.5 | H151: 61 | I151: 475862.5 | J151: 350250 | K151: 260950 | L151: 200662.5 | M151: 154050 | O151: 61 | P151: 423050 | Q151: 311375 | R151: 231987.5 | S151: 178387.5 | T151: 136950 | V151: 61 | W151: 392387.5 | X151: 288812.5 | Y151: 215175 | Z151: 165462.5 | AA151: 127037.5 | AC151: 61 | AD151: 361725 | AE151: 266237.5 | AF151: 198362.5 | AG151: 152525 | AH151: 117100
A152: 62 | B152: 572275 | C152: 421212.5 | D152: 313825 | E152: 241312.5 | F152: 185262.5 | H152: 62 | I152: 504175 | J152: 371087.5 | K152: 276475 | L152: 212600 | M152: 163225 | O152: 62 | P152: 448225 | Q152: 329900 | R152: 245800 | S152: 189000 | T152: 145112.5 | V152: 62 | W152: 415750 | X152: 306000 | Y152: 227987.5 | Z152: 175312.5 | AA152: 134600 | AC152: 62 | AD152: 383250 | AE152: 282087.5 | AF152: 210162.5 | AG152: 161612.5 | AH152: 124075
A153: 63 | B153: 606325 | C153: 446275 | D153: 332500 | E153: 255675 | F153: 196287.5 | H153: 63 | I153: 534187.5 | J153: 393175 | K153: 292937.5 | L153: 225250 | M153: 172937.5 | O153: 63 | P153: 474900 | Q153: 349537.5 | R153: 260425 | S153: 200250 | T153: 153737.5 | V153: 63 | W153: 440487.5 | X153: 324212.5 | Y153: 241550 | Z153: 185750 | AA153: 142600 | AC153: 63 | AD153: 406062.5 | AE153: 298875 | AF153: 222675 | AG153: 171225 | AH153: 131462.5
A154: 64 | B154: 642412.5 | C154: 472837.5 | D154: 352287.5 | E154: 270900 | F154: 207975 | H154: 64 | I154: 565975 | J154: 416575 | K154: 310375 | L154: 238662.5 | M154: 183225 | O154: 64 | P154: 503162.5 | Q154: 370337.5 | R154: 275925 | S154: 212175 | T154: 162900 | V154: 64 | W154: 466712.5 | X154: 343512.5 | Y154: 255925 | Z154: 196800 | AA154: 151087.5 | AC154: 64 | AD154: 430225 | AE154: 316662.5 | AF154: 235925 | AG154: 181412.5 | AH154: 139275
A155: 65 | B155: 680650 | C155: 500975 | D155: 373250 | E155: 287012.5 | F155: 220350 | H155: 65 | I155: 599662.5 | J155: 441375 | K155: 328837.5 | L155: 252862.5 | M155: 194137.5 | O155: 65 | P155: 533112.5 | Q155: 392387.5 | R155: 292350 | S155: 224800 | T155: 172587.5 | V155: 65 | W155: 494487.5 | X155: 363950 | Y155: 271162.5 | Z155: 208512.5 | AA155: 160087.5 | AC155: 65 | AD155: 455837.5 | AE155: 335500 | AF155: 249962.5 | AG155: 192212.5 | AH155: 147575
A156: 66 | B156: 721162.5 | C156: 530800 | D156: 395462.5 | E156: 304100 | F156: 233475 | H156: 66 | I156: 635350 | J156: 467637.5 | K156: 348412.5 | L156: 267912.5 | M156: 205687.5 | O156: 66 | P156: 564837.5 | Q156: 415737.5 | R156: 309737.5 | S156: 238175 | T156: 182862.5 | V156: 66 | W156: 523912.5 | X156: 385612.5 | Y156: 287300 | Z156: 220925 | AA156: 169612.5 | AC156: 66 | AD156: 482962.5 | AE156: 355475 | AF156: 264850 | AG156: 203650 | AH156: 156350
A157: 67 | B157: 770500 | C157: 567112.5 | D157: 422525 | E157: 324900 | F157: 249437.5 | H157: 67 | I157: 678825 | J157: 499637.5 | K157: 372250 | L157: 286250 | M157: 219762.5 | O157: 67 | P157: 603487.5 | Q157: 444187.5 | R157: 330937.5 | S157: 254475 | T157: 195375 | V157: 67 | W157: 559762.5 | X157: 412000 | Y157: 306962.5 | Z157: 236037.5 | AA157: 181212.5 | AC157: 67 | AD157: 516000 | AE157: 379800 | AF157: 282962.5 | AG157: 217587.5 | AH157: 167050
A158: 68 | B158: 823275 | C158: 605962.5 | D158: 451462.5 | E158: 347162.5 | F158: 266525 | H158: 68 | I158: 725325 | J158: 533862.5 | K158: 397750 | L158: 305850 | M158: 234812.5 | O158: 68 | P158: 644825 | Q158: 474612.5 | R158: 353600 | S158: 271912.5 | T158: 208750 | V158: 68 | W158: 598100 | X158: 440225 | Y158: 327987.5 | Z158: 252212.5 | AA158: 193625 | AC158: 68 | AD158: 551350 | AE158: 405812.5 | AF158: 302350 | AG158: 232487.5 | AH158: 178500
A159: 69 | B159: 879737.5 | C159: 647512.5 | D159: 482425 | E159: 370962.5 | F159: 284800 | H159: 69 | I159: 775062.5 | J159: 570462.5 | K159: 425025 | L159: 326825 | M159: 250912.5 | O159: 69 | P159: 689037.5 | Q159: 507150 | R159: 377850 | S159: 290550 | T159: 223075 | V159: 69 | W159: 639112.5 | X159: 470412.5 | Y159: 350475 | Z159: 269500 | AA159: 206912.5 | AC159: 69 | AD159: 589162.5 | AE159: 433637.5 | AF159: 323075 | AG159: 248437.5 | AH159: 190737.5
A160: 70 | B160: 940125 | C160: 691962.5 | D160: 515537.5 | E160: 396437.5 | F160: 304362.5 | H160: 70 | I160: 828275 | J160: 609625 | K160: 454200 | L160: 349262.5 | M160: 268150 | O160: 70 | P160: 736337.5 | Q160: 541962.5 | R160: 403787.5 | S160: 310500 | T160: 238387.5 | V160: 70 | W160: 682987.5 | X160: 502700 | Y160: 374537.5 | Z160: 288000 | AA160: 221112.5 | AC160: 70 | AD160: 629600 | AE160: 463400 | AF160: 345262.5 | AG160: 265487.5 | AH160: 203825
A161: 71 | B161: 996087.5 | C161: 733150 | D161: 546225 | E161: 420025 | F161: 322475 | H161: 71 | I161: 877562.5 | J161: 645912.5 | K161: 481237.5 | L161: 370050 | M161: 284100 | O161: 71 | P161: 780162.5 | Q161: 574225 | R161: 427825 | S161: 328975 | T161: 252575 | V161: 71 | W161: 723637.5 | X161: 532625 | Y161: 396825 | Z161: 305137.5 | AA161: 234275 | AC161: 71 | AD161: 667075 | AE161: 490987.5 | AF161: 365812.5 | AG161: 281287.5 | AH161: 215962.5
A162: 72 | B162: 1055362.5 | C162: 776775 | D162: 578737.5 | E162: 445025 | F162: 341662.5 | H162: 72 | I162: 929800 | J162: 684350 | K162: 509875 | L162: 392075 | M162: 301012.5 | O162: 72 | P162: 826600 | Q162: 608400 | R162: 453287.5 | S162: 348562.5 | T162: 267600 | V162: 72 | W162: 766712.5 | X162: 564325 | Y162: 420437.5 | Z162: 323300 | AA162: 248212.5 | AC162: 72 | AD162: 706775 | AE162: 520212.5 | AF162: 387575 | AG162: 298037.5 | AH162: 228812.5
A163: 73 | B163: 1118175 | C163: 823012.5 | D163: 613175 | E163: 471512.5 | F163: 362000 | H163: 73 | I163: 985137.5 | J163: 725087.5 | K163: 540225 | L163: 415412.5 | M163: 318925 | O163: 73 | P163: 875787.5 | Q163: 644612.5 | R163: 480262.5 | S163: 369300 | T163: 283525 | V163: 73 | W163: 812337.5 | X163: 597900 | Y163: 445462.5 | Z163: 342550 | AA163: 262987.5 | AC163: 73 | AD163: 748837.5 | AE163: 551175 | AF163: 410650 | AG163: 315775 | AH163: 242425
A164: 74 | B164: 1184725 | C164: 871987.5 | D164: 649675 | E164: 499575 | F164: 383537.5 | H164: 74 | I164: 1043762.5 | J164: 768237.5 | K164: 572375 | L164: 440137.5 | M164: 337912.5 | O164: 74 | P164: 927912.5 | Q164: 682975 | R164: 508850 | S164: 391287.5 | T164: 300400 | V164: 74 | W164: 860687.5 | X164: 633487.5 | Y164: 471975 | Z164: 362937.5 | AA164: 278637.5 | AC164: 74 | AD164: 793412.5 | AE164: 583975 | AF164: 435087.5 | AG164: 334562.5 | AH164: 256862.5
A165: 75 | B165: 1279775 | C165: 941950 | D165: 701800 | E165: 539650 | F165: 414312.5 | H165: 75 | I165: 1127500 | J165: 829875 | K165: 618300 | L165: 475450 | M165: 365012.5 | O165: 75 | P165: 1002362.5 | Q165: 737762.5 | R165: 549675 | S165: 422675 | T165: 324500 | V165: 75 | W165: 929737.5 | X165: 684312.5 | Y165: 509850 | Z165: 392050 | AA165: 300987.5 | AC165: 75 | AD165: 857062.5 | AE165: 630825 | AF165: 469987.5 | AG165: 361400 | AH165: 277462.5
A166: 76 | B166: 1340937.5 | C166: 986975 | D166: 735337.5 | E166: 565450 | F166: 434112.5 | H166: 76 | I166: 1181387.5 | J166: 869537.5 | K166: 647850 | L166: 498162.5 | M166: 382462.5 | O166: 76 | P166: 1050262.5 | Q166: 773025 | R166: 575937.5 | S166: 442875 | T166: 340012.5 | V166: 76 | W166: 974175 | X166: 717025 | Y166: 534212.5 | Z166: 410787.5 | AA166: 315375 | AC166: 76 | AD166: 898025 | AE166: 660975 | AF166: 492450 | AG166: 378675 | AH166: 290725
A167: 77 | B167: 1405025 | C167: 1034137.5 | D167: 770487.5 | E167: 592475 | F167: 454862.5 | H167: 77 | I167: 1237850 | J167: 911100 | K167: 678812.5 | L167: 521975 | M167: 400737.5 | O167: 77 | P167: 1100462.5 | Q167: 809975 | R167: 603462.5 | S167: 464037.5 | T167: 356262.5 | V167: 77 | W167: 1020737.5 | X167: 751287.5 | Y167: 559750 | Z167: 430425 | AA167: 330450 | AC167: 77 | AD167: 940950 | AE167: 692562.5 | AF167: 515987.5 | AG167: 396775 | AH167: 304625
A168: 78 | B168: 1472175 | C168: 1083575 | D168: 807312.5 | E168: 620787.5 | F168: 476600 | H168: 78 | I168: 1297012.5 | J168: 954637.5 | K168: 711250 | L168: 546925 | M168: 419900 | O168: 78 | P168: 1153062.5 | Q168: 848687.5 | R168: 632312.5 | S168: 486225 | T168: 373287.5 | V168: 78 | W168: 1069512.5 | X168: 787200 | Y168: 586500 | Z168: 451000 | AA168: 346250 | AC168: 78 | AD168: 985912.5 | AE168: 725662.5 | AF168: 540650 | AG168: 415737.5 | AH168: 319175
A169: 79 | B169: 1542537.5 | C169: 1135362.5 | D169: 845887.5 | E169: 650462.5 | F169: 499387.5 | H169: 79 | I169: 1359012.5 | J169: 1000275 | K169: 745250 | L169: 573062.5 | M169: 439962.5 | O169: 79 | P169: 1208175 | Q169: 889250 | R169: 662525 | S169: 509462.5 | T169: 391137.5 | V169: 79 | W169: 1120637.5 | X169: 824825 | Y169: 614525 | Z169: 472550 | AA169: 362800 | AC169: 79 | AD169: 1033037.5 | AE169: 760350 | AF169: 566487.5 | AG169: 435612.5 | AH169: 334437.5
A170: 80 | B170: 1616275 | C170: 1189625 | D170: 886325 | E170: 681550 | F170: 523250 | H170: 80 | I170: 1423962.5 | J170: 1048075 | K170: 780862.5 | L170: 600450 | M170: 460987.5 | O170: 80 | P170: 1265912.5 | Q170: 931750 | R170: 694200 | S170: 533812.5 | T170: 409825 | V170: 80 | W170: 1174200 | X170: 864237.5 | Y170: 643900 | Z170: 495137.5 | AA170: 380137.5 | AC170: 80 | AD170: 1082412.5 | AE170: 796687.5 | AF170: 593575 | AG170: 456425 | AH170: 350425
A171: 81 | B171: 1693512.5 | C171: 1246475 | D171: 928687.5 | E171: 714125 | F171: 548262.5 | H171: 81 | I171: 1492012.5 | J171: 1098175 | K171: 818187.5 | L171: 629150 | M171: 483025 | O171: 81 | P171: 1326412.5 | Q171: 976287.5 | R171: 727375 | S171: 559325 | T171: 429412.5 | V171: 81 | W171: 1230312.5 | X171: 905550 | Y171: 674675 | Z171: 518800 | AA171: 398300 | AC171: 81 | AD171: 1134150 | AE171: 834762.5 | AF171: 621937.5 | AG171: 478250 | AH171: 367162.5
A172: 82 | B172: 1774462.5 | C172: 1306050 | D172: 973075 | E172: 748250 | F172: 574462.5 | H172: 82 | I172: 1563325 | J172: 1150650 | K172: 857287.5 | L172: 659225 | M172: 506112.5 | O172: 82 | P172: 1389812.5 | Q172: 1022950 | R172: 762137.5 | S172: 586050 | T172: 449937.5 | V172: 82 | W172: 1289112.5 | X172: 948825 | Y172: 706925 | Z172: 543600 | AA172: 417337.5 | AC172: 82 | AD172: 1188350 | AE172: 874662.5 | AF172: 651662.5 | AG172: 501100 | AH172: 384712.5
A173: 83 | B173: 1859262.5 | C173: 1368475 | D173: 1019575 | E173: 784012.5 | F173: 601925 | H173: 83 | I173: 1638050 | J173: 1205650 | K173: 898262.5 | L173: 690725 | M173: 530300 | O173: 83 | P173: 1456237.5 | Q173: 1071837.5 | R173: 798562.5 | S173: 614062.5 | T173: 471437.5 | V173: 83 | W173: 1350725 | X173: 994175 | Y173: 740712.5 | Z173: 569575 | AA173: 437287.5 | AC173: 83 | AD173: 1245150 | AE173: 916462.5 | AF173: 682812.5 | AG173: 525050 | AH173: 403100
A174: 84 | B174: 1948125 | C174: 1433875 | D174: 1068300 | E174: 821487.5 | F174: 630687.5 | H174: 84 | I174: 1716337.5 | J174: 1263275 | K174: 941200 | L174: 723737.5 | M174: 555650 | O174: 84 | P174: 1525837.5 | Q174: 1123062.5 | R174: 836737.5 | S174: 643412.5 | T174: 493975 | V174: 84 | W174: 1415287.5 | X174: 1041700 | Y174: 776112.5 | Z174: 596800 | AA174: 458187.5 | AC174: 84 | AD174: 1304662.5 | AE174: 960275 | AF174: 715450 | AG174: 550150 | AH174: 422375

Sheet Tarifas Advantage (hidden)
A1: Zona 1: Ciudad de México (D.F. y área metropolitana) y franja fronteriza norte | H1: Zona 2: Nuevo León, Sonora, Coahuila, Chihuahua, Tamaulipas, Baja California Norte y Baja California Sur | O1: Zona 3: Jalisco, Puebla, Morelos, Estado de México (excepto Área Metropolitana), Quintana Roo, Guerrero (Acapulco y Zihuatanejo), Hidalgo y Querétaro | V1: Zona 4: Sinaloa, Guanajuato, San Luis Potosí, Durango, Aguascalientes, Nayarit, Michoacán, Colima, Zacatecas | AC1: Zona 5: Guerrero (excepto Acapulco y Zihuatanejo), Veracruz, Chiapas, Tabasco, Campeche, Oaxaca, Tlaxcala, Yucatán
A2: Primas de riesgo expresadas en pesos mexicanos | H2: Primas de riesgo expresadas en pesos mexicanos | O2: Primas de riesgo expresadas en pesos mexicanos | V2: Primas de riesgo expresadas en pesos mexicanos | AC2: Primas de riesgo expresadas en pesos mexicanos
A3: Edad | B3: AW21 | C3: AW31 | D3: AW41 | E3: AW51 | F3: AW61 | H3: Edad | I3: AW22 | J3: AW32 | K3: AW42 | L3: AW52 | M3: AW62 | O3: Edad | P3: AW23 | Q3: AW33 | R3: AW43 | S3: AW53 | T3: AW63 | V3: Edad | W3: AW24 | X3: AW34 | Y3: AW44 | Z3: AW54 | AA3: AW64 | AC3: Edad | AD3: AW25 | AE3: AW35 | AF3: AW45 | AG3: AW55 | AH3: AW65
A4: 1 menor | B4: =B105*0.6 -> 29452.5 | C4: =C105*0.6 -> 22462.5 | D4: =D105*0.6 -> 17707.5 | E4: =E105*0.6 -> 14032.5 | F4: =F105*0.6 -> 10275 | H4: 1 menor | I4: =I105*0.6 -> 25920 | J4: =J105*0.6 -> 19770 | K4: =K105*0.6 -> 15585 | L4: =L105*0.6 -> 12345 | M4: =M105*0.6 -> 9045 | O4: 1 menor | P4: =P105*0.6 -> 23272.5 | Q4: =Q105*0.6 -> 17745 | R4: =R105*0.6 -> 13987.5 | S4: =S105*0.6 -> 11085 | T4: =T105*0.6 -> 8115 | V4: 1 menor | W4: =W105*0.6 -> 21502.5 | X4: =X105*0.6 -> 16402.5 | Y4: =Y105*0.6 -> 12922.5 | Z4: =Z105*0.6 -> 10245 | AA4: =AA105*0.6 -> 7500 | AC4: 1 menor | AD4: =AD105*0.6 -> 20032.5 | AE4: =AE105*0.6 -> 15277.5 | AF4: =AF105*0.6 -> 12037.5 | AG4: =AG105*0.6 -> 9540 | AH4: =AH105*0.6 -> 6990
A5: 2 menor | B5: =B106*0.6 -> 46410 | C5: =C106*0.6 -> 35400 | D5: 27900 | E5: 22102.5 | F5: 16185 | H5: 2 menores | I5: =I106*0.6 -> 40837.5 | J5: 31147.5 | K5: 24547.5 | L5: 19455 | M5: 14242.5 | O5: 2 menores | P5: =P106*0.6 -> 36667.5 | Q5: 27967.5 | R5: 22042.5 | S5: 17460 | T5: 12787.5 | V5: 2 menores | W5: =W106*0.6 -> 33877.5 | X5: 25837.5 | Y5: 20362.5 | Z5: 16140 | AA5: 11820 | AC5: 2 menores | AD5: =AD106*0.6 -> 31560 | AE5: 24067.5 | AF5: 18967.5 | AG5: 15030 | AH5: 11010
A6: 3 menor | B6: =B107*0.6 -> 67717.5 | C6: 51645 | D6: 40702.5 | E6: 32250 | F6: 23617.5 | H6: 3 ó más menores | I6: 59587.5 | J6: 45450 | K6: 35820 | L6: 28380 | M6: 20782.5 | O6: 3 ó más menores | P6: 53497.5 | Q6: 40800 | R6: 32160 | S6: 25477.5 | T6: 18660 | V6: 3 ó más menores | W6: 49432.5 | X6: 37702.5 | Y6: 29715 | Z6: 23542.5 | AA6: 17242.5 | AC6: 3 ó más menores | AD6: 46042.5 | AE6: 35122.5 | AF6: 27682.5 | AG6: 21930 | AH6: 16065
A7: 18 | B7: =B108*0.6 -> 67942.5 | C7: 51825 | D7: 40845 | E7: 32362.5 | F7: 23700 | H7: 18 | I7: 59790 | J7: 45607.5 | K7: 35940 | L7: 28477.5 | M7: 20857.5 | O7: 18 | P7: 53677.5 | Q7: 40942.5 | R7: 32265 | S7: 25567.5 | T7: 18720 | V7: 18 | W7: 49597.5 | X7: 37830 | Y7: 29812.5 | Z7: 23625 | AA7: 17302.5 | AC7: 18 | AD7: 46200 | AE7: 35242.5 | AF7: 27772.5 | AG7: 22005 | AH7: 16117.5
A8: 19 | B8: =B109*0.6 -> 70087.5 | C8: 53460 | D8: 42135 | E8: 33382.5 | F8: 24450 | H8: 19 | I8: 61680 | J8: 47040 | K8: 37080 | L8: 29377.5 | M8: 21517.5 | O8: 19 | P8: 55372.5 | Q8: 42232.5 | R8: 33285 | S8: 26370 | T8: 19312.5 | V8: 19 | W8: 51165 | X8: 39022.5 | Y8: 30757.5 | Z8: 24367.5 | AA8: 17850 | AC8: 19 | AD8: 47662.5 | AE8: 36352.5 | AF8: 28650 | AG8: 22702.5 | AH8: 16627.5
A9: 20 | B9: =B110*0.6 -> 72300 | C9: 55147.5 | D9: 43462.5 | E9: 34440 | F9: 25222.5 | H9: 20 | I9: 63622.5 | J9: 48532.5 | K9: 38250 | L9: 30307.5 | M9: 22192.5 | O9: 20 | P9: 57120 | Q9: 43567.5 | R9: 34335 | S9: 27202.5 | T9: 19927.5 | V9: 20 | W9: 52777.5 | X9: 40260 | Y9: 31725 | Z9: 25140 | AA9: 18412.5 | AC9: 20 | AD9: 49162.5 | AE9: 37500 | AF9: 29557.5 | AG9: 23415 | AH9: 17152.5
A10: 21 | B10: 74587.5 | C10: 56887.5 | D10: 44835 | E10: 35520 | F10: 26017.5 | H10: 21 | I10: 65632.5 | J10: 50062.5 | K10: 39457.5 | L10: 31260 | M10: 22897.5 | O10: 21 | P10: 58920 | Q10: 44940 | R10: 35422.5 | S10: 28065 | T10: 20550 | V10: 21 | W10: 54450 | X10: 41527.5 | Y10: 32730 | Z10: 25935 | AA10: 18990 | AC10: 21 | AD10: 50715 | AE10: 38685 | AF10: 30487.5 | AG10: 24157.5 | AH10: 17692.5
A11: 22 | B11: 76942.5 | C11: 58680 | D11: 46252.5 | E11: 36645 | F11: 26835 | H11: 22 | I11: 67710 | J11: 51645 | K11: 40702.5 | L11: 32250 | M11: 23617.5 | O11: 22 | P11: 60780 | Q11: 46357.5 | R11: 36540 | S11: 28950 | T11: 21202.5 | V11: 22 | W11: 56167.5 | X11: 42840 | Y11: 33765 | Z11: 26752.5 | AA11: 19590 | AC11: 22 | AD11: 52320 | AE11: 39907.5 | AF11: 31447.5 | AG11: 24915 | AH11: 18247.5
A12: 23 | B12: 79365 | C12: 60540 | D12: 47707.5 | E12: 37800 | F12: 27682.5 | H12: 23 | I12: 69847.5 | J12: 53272.5 | K12: 41985 | L12: 33262.5 | M12: 24360 | O12: 23 | P12: 62700 | Q12: 47820 | R12: 37695 | S12: 29865 | T12: 21870 | V12: 23 | W12: 57937.5 | X12: 44190 | Y12: 34830 | Z12: 27592.5 | AA12: 20212.5 | AC12: 23 | AD12: 53970 | AE12: 41167.5 | AF12: 32445 | AG12: 25702.5 | AH12: 18825
A13: 24 | B13: 81877.5 | C13: 62445 | D13: 49215 | E13: 38992.5 | F13: 28560 | H13: 24 | I13: 72052.5 | J13: 54952.5 | K13: 43312.5 | L13: 34312.5 | M13: 25132.5 | O13: 24 | P13: 64680 | Q13: 49335 | R13: 38880 | S13: 30810 | T13: 22560 | V13: 24 | W13: 59767.5 | X13: 45585 | Y13: 35925 | Z13: 28470 | AA13: 20850 | AC13: 24 | AD13: 55672.5 | AE13: 42465 | AF13: 33465 | AG13: 26520 | AH13: 19417.5
A14: 25 | B14: 84457.5 | C14: 64417.5 | D14: 50767.5 | E14: 40230 | F14: 29460 | H14: 25 | I14: 74325 | J14: 56685 | K14: 44677.5 | L14: 35400 | M14: 25927.5 | O14: 25 | P14: 66720 | Q14: 50887.5 | R14: 40110 | S14: 31777.5 | T14: 23272.5 | V14: 25 | W14: 61657.5 | X14: 47025 | Y14: 37065 | Z14: 29362.5 | AA14: 21510 | AC14: 25 | AD14: 57435 | AE14: 43807.5 | AF14: 34522.5 | AG14: 27352.5 | AH14: 20032.5
A15: 26 | B15: 87127.5 | C15: 66450 | D15: 52372.5 | E15: 41497.5 | F15: 30390 | H15: 26 | I15: 76672.5 | J15: 58477.5 | K15: 46087.5 | L15: 36517.5 | M15: 26745 | O15: 26 | P15: 68827.5 | Q15: 52500 | R15: 41377.5 | S15: 32782.5 | T15: 24007.5 | V15: 26 | W15: 63600 | X15: 48510 | Y15: 38235 | Z15: 30292.5 | AA15: 22185 | AC15: 26 | AD15: 59242.5 | AE15: 45187.5 | AF15: 35610 | AG15: 28215 | AH15: 20662.5
A16: 27 | B16: 89872.5 | C16: 68550 | D16: 54030 | E16: 42810 | F16: 31350 | H16: 27 | I16: 79087.5 | J16: 60322.5 | K16: 47542.5 | L16: 37672.5 | M16: 27585 | O16: 27 | P16: 71002.5 | Q16: 54157.5 | R16: 42682.5 | S16: 33817.5 | T16: 24765 | V16: 27 | W16: 65610 | X16: 50040 | Y16: 39442.5 | Z16: 31245 | AA16: 22882.5 | AC16: 27 | AD16: 61117.5 | AE16: 46612.5 | AF16: 36735 | AG16: 29107.5 | AH16: 21315
A17: 28 | B17: 92715 | C17: 70717.5 | D17: 55732.5 | E17: 44160 | F17: 32340 | H17: 28 | I17: 81585 | J17: 62227.5 | K17: 49042.5 | L17: 38857.5 | M17: 28462.5 | O17: 28 | P17: 73245 | Q17: 55867.5 | R17: 44025 | S17: 34882.5 | T17: 25545 | V17: 28 | W17: 67680 | X17: 51622.5 | Y17: 40687.5 | Z17: 32235 | AA17: 23610 | AC17: 28 | AD17: 63045 | AE17: 48082.5 | AF17: 37897.5 | AG17: 30030 | AH17: 21990
A18: 29 | B18: 95640 | C18: 72945 | D18: 57495 | E18: 45555 | F18: 33360 | H18: 29 | I18: 84165 | J18: 64192.5 | K18: 50595 | L18: 40087.5 | M18: 29355 | O18: 29 | P18: 75555 | Q18: 57630 | R18: 45420 | S18: 35985 | T18: 26355 | V18: 29 | W18: 69817.5 | X18: 53250 | Y18: 41970 | Z18: 33255 | AA18: 24352.5 | AC18: 29 | AD18: 65032.5 | AE18: 49605 | AF18: 39097.5 | AG18: 30975 | AH18: 22687.5
A19: 30 | B19: 98662.5 | C19: 75247.5 | D19: 59310 | E19: 46987.5 | F19: 34417.5 | H19: 30 | I19: 86820 | J19: 66217.5 | K19: 52192.5 | L19: 41355 | M19: 30285 | O19: 30 | P19: 77940 | Q19: 59445 | R19: 46852.5 | S19: 37125 | T19: 27187.5 | V19: 30 | W19: 72022.5 | X19: 54930 | Y19: 43297.5 | Z19: 34305 | AA19: 25125 | AC19: 30 | AD19: 67087.5 | AE19: 51172.5 | AF19: 40327.5 | AG19: 31950 | AH19: 23400
A20: 31 | B20: 101775 | C20: 77625 | D20: 61177.5 | E20: 48472.5 | F20: 35497.5 | H20: 31 | I20: 89565 | J20: 68310 | K20: 53835 | L20: 42660 | M20: 31237.5 | O20: 31 | P20: 80400 | Q20: 61327.5 | R20: 48330 | S20: 38295 | T20: 28042.5 | V20: 31 | W20: 74295 | X20: 56670 | Y20: 44662.5 | Z20: 35385 | AA20: 25912.5 | AC20: 31 | AD20: 69210 | AE20: 52785 | AF20: 41602.5 | AG20: 32962.5 | AH20: 24142.5
A21: 32 | B21: =B122*0.6 -> 104985 | C21: 80077.5 | D21: 63112.5 | E21: 50002.5 | F21: 36622.5 | H21: 32 | I21: =I122*0.6 -> 92392.5 | J21: 70470 | K21: 55537.5 | L21: 44002.5 | M21: 32227.5 | O21: 32 | P21: =P122*0.6 -> 82942.5 | Q21: 63262.5 | R21: 49860 | S21: 39502.5 | T21: 28927.5 | V21: 32 | W21: =W122*0.6 -> 76642.5 | X21: 58455 | Y21: 46072.5 | Z21: 36502.5 | AA21: 26730 | AC21: 32 | AD21: =AD122*0.6 -> 71392.5 | AE21: 54450 | AF21: 42915 | AG21: 34005 | AH21: 24900
A22: 33 | B22: 108300 | C22: 82605 | D22: 65100 | E22: 51585 | F22: 37777.5 | H22: 33 | I22: 95302.5 | J22: 72690 | K22: 57292.5 | L22: 45390 | M22: 33247.5 | O22: 33 | P22: 85560 | Q22: 65257.5 | R22: 51435 | S22: 40747.5 | T22: 29842.5 | V22: 33 | W22: 79057.5 | X22: 60300 | Y22: 47527.5 | Z22: 37657.5 | AA22: 27577.5 | AC22: 33 | AD22: 73642.5 | AE22: 56175 | AF22: 44272.5 | AG22: 35077.5 | AH22: 25687.5
A23: 34 | B23: 111720 | C23: 85215 | D23: 67155 | E23: 53212.5 | F23: 38970 | H23: 34 | I23: 98317.5 | J23: 74985 | K23: 59100 | L23: 46822.5 | M23: 34290 | O23: 34 | P23: 88260 | Q23: 67320 | R23: 53055 | S23: 42037.5 | T23: 30787.5 | V23: 34 | W23: 81555 | X23: 62205 | Y23: 49027.5 | Z23: 38842.5 | AA23: 28447.5 | AC23: 34 | AD23: 75967.5 | AE23: 57945 | AF23: 45667.5 | AG23: 36180 | AH23: 26497.5
A24: 35 | B24: 112297.5 | C24: 85657.5 | D24: 67507.5 | E24: 53490 | F24: 39172.5 | H24: 35 | I24: 98827.5 | J24: 75375 | K24: 59407.5 | L24: 47070 | M24: 34470 | O24: 35 | P24: 88717.5 | Q24: 67665 | R24: 53332.5 | S24: 42255 | T24: 30945 | V24: 35 | W24: 81982.5 | X24: 62527.5 | Y24: 49282.5 | Z24: 39045 | AA24: 28597.5 | AC24: 35 | AD24: 76365 | AE24: 58245 | AF24: 45907.5 | AG24: 36375 | AH24: 26640
A25: 36 | B25: 114870 | C25: 87615 | D25: 69052.5 | E25: 54712.5 | F25: 40065 | H25: 36 | I25: 101085 | J25: 77100 | K25: 60765 | L25: 48142.5 | M25: 35257.5 | O25: 36 | P25: 90750 | Q25: 69217.5 | R25: 54547.5 | S25: 43222.5 | T25: 31657.5 | V25: 36 | W25: 83857.5 | X25: 63960 | Y25: 50407.5 | Z25: 39937.5 | AA25: 29250 | AC25: 36 | AD25: 78112.5 | AE25: 59580 | AF25: 46957.5 | AG25: 37200 | AH25: 27247.5
A26: 37 | B26: 117495 | C26: 89617.5 | D26: 70635 | E26: 55965 | F26: 40987.5 | H26: 37 | I26: 103395 | J26: 78862.5 | K26: 62152.5 | L26: 49245 | M26: 36067.5 | O26: 37 | P26: 92827.5 | Q26: 70800 | R26: 55800 | S26: 44212.5 | T26: 32377.5 | V26: 37 | W26: 85777.5 | X26: 65422.5 | Y26: 51562.5 | Z26: 40852.5 | AA26: 29917.5 | AC26: 37 | AD26: 79897.5 | AE26: 60937.5 | AF26: 48030 | AG26: 38055 | AH26: 27870
A27: 38 | B27: 120187.5 | C27: 91672.5 | D27: 72247.5 | E27: 57240 | F27: 41925 | H27: 38 | I27: 105765 | J27: 80670 | K27: 63577.5 | L27: 50377.5 | M27: 36892.5 | O27: 38 | P27: 94950 | Q27: 72420 | R27: 57075 | S27: 45225 | T27: 33120 | V27: 38 | W27: 87735 | X27: 66922.5 | Y27: 52740 | Z27: 41790 | AA27: 30607.5 | AC27: 38 | AD27: 81727.5 | AE27: 62332.5 | AF27: 49125 | AG27: 38925 | AH27: 28507.5
A28: 39 | B28: 122940 | C28: 93765 | D28: 73897.5 | E28: 58552.5 | F28: 42885 | H28: 39 | I28: 108187.5 | J28: 82515 | K28: 65032.5 | L28: 51525 | M28: 37740 | O28: 39 | P28: 97117.5 | Q28: 74077.5 | R28: 58380 | S28: 46260 | T28: 33877.5 | V28: 39 | W28: 89745 | X28: 68452.5 | Y28: 53947.5 | Z28: 42742.5 | AA28: 31305 | AC28: 39 | AD28: 83595 | AE28: 63765 | AF28: 50250 | AG28: 39817.5 | AH28: 29160
A29: 40 | B29: 125752.5 | C29: 95910 | D29: 75592.5 | E29: 59895 | F29: 43867.5 | H29: 40 | I29: 110662.5 | J29: 84405 | K29: 66525 | L29: 52710 | M29: 38602.5 | O29: 40 | P29: 99345 | Q29: 75772.5 | R29: 59715 | S29: 47317.5 | T29: 34650 | V29: 40 | W29: 91800 | X29: 70020 | Y29: 55185 | Z29: 43725 | AA29: 32017.5 | AC29: 40 | AD29: 85507.5 | AE29: 65220 | AF29: 51405 | AG29: 40725 | AH29: 29827.5
A30: 41 | B30: 128625 | C30: 98107.5 | D30: 77325 | E30: 61267.5 | F30: 44865 | H30: 41 | I30: 113190 | J30: 86332.5 | K30: 68040 | L30: 53910 | M30: 39480 | O30: 41 | P30: 101617.5 | Q30: 77505 | R30: 61087.5 | S30: 48397.5 | T30: 35445 | V30: 41 | W30: 93900 | X30: 71617.5 | Y30: 56445 | Z30: 44722.5 | AA30: 32752.5 | AC30: 41 | AD30: 87465 | AE30: 66712.5 | AF30: 52582.5 | AG30: 41662.5 | AH30: 30510
A31: 42 | B31: 131572.5 | C31: 100350 | D31: 79095 | E31: 62662.5 | F31: 45892.5 | H31: 42 | I31: 115785 | J31: 88312.5 | K31: 69600 | L31: 55147.5 | M31: 40387.5 | O31: 42 | P31: 103942.5 | Q31: 79282.5 | R31: 62482.5 | S31: 49507.5 | T31: 36255 | V31: 42 | W31: 96045 | X31: 73260 | Y31: 57735 | Z31: 45750 | AA31: 33502.5 | AC31: 42 | AD31: 89467.5 | AE31: 68242.5 | AF31: 53782.5 | AG31: 42615 | AH31: 31207.5
A32: 43 | B32: 134580 | C32: 102652.5 | D32: 80902.5 | E32: 64102.5 | F32: 46942.5 | H32: 43 | I32: 118432.5 | J32: 90330 | K32: 71190 | L32: 56407.5 | M32: 41310 | O32: 43 | P32: 106320 | Q32: 81090 | R32: 63915 | S32: 50640 | T32: 37087.5 | V32: 43 | W32: 98242.5 | X32: 74932.5 | Y32: 59055 | Z32: 46792.5 | AA32: 34267.5 | AC32: 43 | AD32: 91515 | AE32: 69802.5 | AF32: 55012.5 | AG32: 43590 | AH32: 31920
A33: 44 | B33: 137662.5 | C33: 105000 | D33: 82755 | E33: 65565 | F33: 48022.5 | H33: 44 | I33: 121140 | J33: 92400 | K33: 72825 | L33: 57697.5 | M33: 42255 | O33: 44 | P33: 108750 | Q33: 82950 | R33: 65377.5 | S33: 51795 | T33: 37935 | V33: 44 | W33: 100492.5 | X33: 76650 | Y33: 60412.5 | Z33: 47865 | AA33: 35055 | AC33: 44 | AD33: 93607.5 | AE33: 71400 | AF33: 56272.5 | AG33: 44587.5 | AH33: 32655
A34: 45 | B34: 140812.5 | C34: 107400 | D34: 84645 | E34: 67065 | F34: 49117.5 | H34: 45 | I34: 123915 | J34: 94515 | K34: 74490 | L34: 59017.5 | M34: 43222.5 | O34: 45 | P34: 111240 | Q34: 84847.5 | R34: 66870 | S34: 52980 | T34: 38805 | V34: 45 | W34: 102795 | X34: 78405 | Y34: 61792.5 | Z34: 48960 | AA34: 35857.5 | AC34: 45 | AD34: 95752.5 | AE34: 73035 | AF34: 57562.5 | AG34: 45607.5 | AH34: 33397.5
A35: 46 | B35: 144037.5 | C35: 109860 | D35: 86580 | E35: 68602.5 | F35: 50242.5 | H35: 46 | I35: 126750 | J35: 96675 | K35: 76192.5 | L35: 60367.5 | M35: 44212.5 | O35: 46 | P35: 113790 | Q35: 86790 | R35: 68400 | S35: 54195 | T35: 39690 | V35: 46 | W35: 105142.5 | X35: 80197.5 | Y35: 63202.5 | Z35: 50077.5 | AA35: 36675 | AC35: 46 | AD35: 97942.5 | AE35: 74707.5 | AF35: 58875 | AG35: 46650 | AH35: 34162.5
A36: 47 | B36: 147330 | C36: 112372.5 | D36: 88567.5 | E36: 70170 | F36: 51390 | H36: 47 | I36: 129652.5 | J36: 98887.5 | K36: 77940 | L36: 61755 | M36: 45225 | O36: 47 | P36: 116392.5 | Q36: 88777.5 | R36: 69967.5 | S36: 55432.5 | T36: 40597.5 | V36: 47 | W36: 107550 | X36: 82035 | Y36: 64650 | Z36: 51225 | AA36: 37515 | AC36: 47 | AD36: 100185 | AE36: 76410 | AF36: 60225 | AG36: 47715 | AH36: 34950
A37: 48 | B37: =B138*0.6 -> 150705 | C37: 114945 | D37: 90592.5 | E37: 71775 | F37: 52567.5 | H37: 48 | I37: =I138*0.6 -> 132615 | J37: 101152.5 | K37: 79717.5 | L37: 63165 | M37: 46260 | O37: 48 | P37: =P138*0.6 -> 119055 | Q37: 90810 | R37: 71565 | S37: 56707.5 | T37: 41527.5 | V37: 48 | W37: =W138*0.6 -> 110010 | X37: 83910 | Y37: 66135 | Z37: 52395 | AA37: 38377.5 | AC37: 48 | AD37: =AD138*0.6 -> 102480 | AE37: 78165 | AF37: 61605 | AG37: 48810 | AH37: 35745
A38: 49 | B38: 154147.5 | C38: 117577.5 | D38: 92662.5 | E38: 73417.5 | F38: 53767.5 | H38: 49 | I38: 135652.5 | J38: 103462.5 | K38: 81547.5 | L38: 64612.5 | M38: 47317.5 | O38: 49 | P38: 121777.5 | Q38: 92887.5 | R38: 73207.5 | S38: 58005 | T38: 42480 | V38: 49 | W38: 112530 | X38: 85830 | Y38: 67642.5 | Z38: 53595 | AA38: 39255 | AC38: 49 | AD38: 104820 | AE38: 79950 | AF38: 63015 | AG38: 49927.5 | AH38: 36562.5
A39: 50 | B39: 157680 | C39: 120262.5 | D39: 94785 | E39: 75097.5 | F39: 54997.5 | H39: 50 | I39: 138757.5 | J39: 105832.5 | K39: 83407.5 | L39: 66090 | M39: 48397.5 | O39: 50 | P39: 124567.5 | Q39: 95010 | R39: 74880 | S39: 59332.5 | T39: 43447.5 | V39: 50 | W39: 115102.5 | X39: 87795 | Y39: 69195 | Z39: 54825 | AA39: 40147.5 | AC39: 50 | AD39: 107220 | AE39: 81780 | AF39: 64455 | AG39: 51067.5 | AH39: 37402.5
A40: 51 | B40: 161287.5 | C40: 123015 | D40: 96952.5 | E40: 76815 | F40: 56257.5 | H40: 51 | I40: 141930 | J40: 108255 | K40: 85320 | L40: 67597.5 | M40: 49507.5 | O40: 51 | P40: 127417.5 | Q40: 97185 | R40: 76590 | S40: 60690 | T40: 44445 | V40: 51 | W40: 117742.5 | X40: 89805 | Y40: 70777.5 | Z40: 56077.5 | AA40: 41070 | AC40: 51 | AD40: 109672.5 | AE40: 83655 | AF40: 65925 | AG40: 52237.5 | AH40: 38257.5
A41: 52 | B41: 164977.5 | C41: 125835 | D41: 99172.5 | E41: 78577.5 | F41: 57547.5 | H41: 52 | I41: 145177.5 | J41: 110730 | K41: 87270 | L41: 69150 | M41: 50640 | O41: 52 | P41: 130335 | Q41: 99405 | R41: 78345 | S41: 62077.5 | T41: 45465 | V41: 52 | W41: 120435 | X41: 91860 | Y41: 72397.5 | Z41: 57360 | AA41: 42007.5 | AC41: 52 | AD41: 112185 | AE41: 85567.5 | AF41: 67440 | AG41: 53430 | AH41: 39135
A42: 53 | B42: 168750 | C42: 128715 | D42: 101445 | E42: 80377.5 | F42: 58860 | H42: 53 | I42: 148500 | J42: 113265 | K42: 89265 | L42: 70732.5 | M42: 51802.5 | O42: 53 | P42: 133312.5 | Q42: 101685 | R42: 80137.5 | S42: 63495 | T42: 46500 | V42: 53 | W42: 123187.5 | X42: 93960 | Y42: 74055 | Z42: 58672.5 | AA42: 42967.5 | AC42: 53 | AD42: 114750 | AE42: 87525 | AF42: 68977.5 | AG42: 54652.5 | AH42: 40027.5
A43: 54 | B43: 177525 | C43: 135405 | D43: 106710 | E43: 84555 | F43: 61920 | H43: 54 | I43: 156217.5 | J43: 119152.5 | K43: 93907.5 | L43: 74407.5 | M43: 54495 | O43: 54 | P43: 140242.5 | Q43: 106965 | R43: 84307.5 | S43: 66795 | T43: 48922.5 | V43: 54 | W43: 129592.5 | X43: 98842.5 | Y43: 77902.5 | Z43: 61725 | AA43: 45202.5 | AC43: 54 | AD43: 120712.5 | AE43: 92070 | AF43: 72562.5 | AG43: 57495 | AH43: 42105
A44: 55 | B44: 188085 | C44: 143460 | D44: 113062.5 | E44: 89587.5 | F44: 65610 | H44: 55 | I44: 165517.5 | J44: 126247.5 | K44: 99495 | L44: 78832.5 | M44: 57735 | O44: 55 | P44: 148590 | Q44: 113332.5 | R44: 89325 | S44: 70770 | T44: 51832.5 | V44: 55 | W44: 137302.5 | X44: 104722.5 | Y44: 82537.5 | Z44: 65400 | AA44: 47895 | AC44: 55 | AD44: 127897.5 | AE44: 97552.5 | AF44: 76882.5 | AG44: 60915 | AH44: 44610
A45: 56 | B45: 194257.5 | C45: 148170 | D45: 116775 | E45: 92520 | F45: 67762.5 | H45: 56 | I45: 170947.5 | J45: 130387.5 | K45: 102765 | L45: 81420 | M45: 59632.5 | O45: 56 | P45: 153465 | Q45: 117052.5 | R45: 92250 | S45: 73095 | T45: 53527.5 | V45: 56 | W45: 141810 | X45: 108165 | Y45: 85245 | Z45: 67545 | AA45: 49462.5 | AC45: 56 | AD45: 132097.5 | AE45: 100755 | AF45: 79410 | AG45: 62917.5 | AH45: 46080
A46: 57 | B46: 205822.5 | C46: 156982.5 | D46: 123727.5 | E46: 98032.5 | F46: 71790 | H46: 57 | I46: 181125 | J46: 138150 | K46: 108877.5 | L46: 86265 | M46: 63180 | O46: 57 | P46: 162600 | Q46: 124020 | R46: 97740 | S46: 77445 | T46: 56715 | V46: 57 | W46: 150247.5 | X46: 114600 | Y46: 90315 | Z46: 71565 | AA46: 52410 | AC46: 57 | AD46: 139957.5 | AE46: 106747.5 | AF46: 84135 | AG46: 66660 | AH46: 48817.5
A47: 58 | B47: 218070 | C47: 166327.5 | D47: 131085 | E47: 103867.5 | F47: 76065 | H47: 58 | I47: 191902.5 | J47: 146370 | K47: 115357.5 | L47: 91402.5 | M47: 66937.5 | O47: 58 | P47: 172275 | Q47: 131400 | R47: 103560 | S47: 82050 | T47: 60090 | V47: 58 | W47: 159195 | X47: 121417.5 | Y47: 95692.5 | Z47: 75817.5 | AA47: 55530 | AC47: 58 | AD47: 148290 | AE47: 113100 | AF47: 89137.5 | AG47: 70627.5 | AH47: 51727.5
A48: 59 | B48: 231052.5 | C48: 176227.5 | D48: 138892.5 | E48: 110047.5 | F48: 80595 | H48: 59 | I48: 203325 | J48: 155077.5 | K48: 122220 | L48: 96840 | M48: 70920 | O48: 59 | P48: 182527.5 | Q48: 139222.5 | R48: 109725 | S48: 86932.5 | T48: 63667.5 | V48: 59 | W48: 168667.5 | X48: 128647.5 | Y48: 101392.5 | Z48: 80332.5 | AA48: 58830 | AC48: 59 | AD48: 157110 | AE48: 119835 | AF48: 94447.5 | AG48: 74827.5 | AH48: 54802.5
A49: 60 | B49: 244800 | C49: 186712.5 | D49: 147157.5 | E49: 116595 | F49: 85387.5 | H49: 60 | I49: 215422.5 | J49: 164310 | K49: 129495 | L49: 102600 | M49: 75142.5 | O49: 60 | P49: 193395 | Q49: 147502.5 | R49: 116250 | S49: 92107.5 | T49: 67455 | V49: 60 | W49: 178702.5 | X49: 136305 | Y49: 107422.5 | Z49: 85117.5 | AA49: 62332.5 | AC49: 60 | AD49: 166462.5 | AE49: 126967.5 | AF49: 100065 | AG49: 79282.5 | AH49: 58065
A50: 61 | B50: 259372.5 | C50: 197827.5 | D50: 155917.5 | E50: 123532.5 | F50: 90472.5 | H50: 61 | I50: 228247.5 | J50: 174090 | K50: 137205 | L50: 108712.5 | M50: 79612.5 | O50: 61 | P50: 204900 | Q50: 156285 | R50: 123172.5 | S50: 97590 | T50: 71475 | V50: 61 | W50: 189337.5 | X50: 144412.5 | Y50: 113820 | Z50: 90180 | AA50: 66045 | AC50: 61 | AD50: 176370 | AE50: 134520 | AF50: 106020 | AG50: 84000 | AH50: 61522.5
A51: 62 | B51: 274807.5 | C51: 209602.5 | D51: 165195 | E51: 130890 | F51: 95857.5 | H51: 62 | I51: 241830 | J51: 184447.5 | K51: 145372.5 | L51: 115177.5 | M51: 84352.5 | O51: 62 | P51: 217095 | Q51: 165585 | R51: 130500 | S51: 103402.5 | T51: 75727.5 | V51: 62 | W51: 200610 | X51: 153007.5 | Y51: 120592.5 | Z51: 95550 | AA51: 69975 | AC51: 62 | AD51: 186870 | AE51: 142530 | AF51: 112335 | AG51: 89002.5 | AH51: 65182.5
A52: 63 | B52: 291165 | C52: 222075 | D52: 175027.5 | E52: 138675 | F52: 101565 | H52: 63 | I52: 256222.5 | J52: 195427.5 | K52: 154020 | L52: 122032.5 | M52: 89377.5 | O52: 63 | P52: 230017.5 | Q52: 175440 | R52: 138270 | S52: 109552.5 | T52: 80235 | V52: 63 | W52: 212550 | X52: 162112.5 | Y52: 127770 | Z52: 101235 | AA52: 74137.5 | AC52: 63 | AD52: 197992.5 | AE52: 151012.5 | AF52: 119017.5 | AG52: 94297.5 | AH52: 69060
A53: 64 | B53: =B154*0.6 -> 308490 | C53: 235297.5 | D53: 185445 | E53: 146932.5 | F53: 107610 | H53: 64 | I53: =I154*0.6 -> 271470 | J53: 207060 | K53: 163192.5 | L53: 129300 | M53: 94695 | O53: 64 | P53: =P154*0.6 -> 243705 | Q53: 185880 | R53: 146497.5 | S53: 116077.5 | T53: 85012.5 | V53: 64 | W53: =W154*0.6 -> 225195 | X53: 171765 | Y53: 135375 | Z53: 107257.5 | AA53: 78555 | AC53: 64 | AD53: =AD154*0.6 -> 209775 | AE53: 159997.5 | AF53: 126097.5 | AG53: 99915 | AH53: 73170
A54: 65 | B54: 326850 | C54: 249300 | D54: 196477.5 | E54: 155677.5 | F54: 114015 | H54: 65 | I54: 287632.5 | J54: 219382.5 | K54: 172905 | L54: 136995 | M54: 100327.5 | O54: 65 | P54: 258210 | Q54: 196942.5 | R54: 155220 | S54: 122985 | T54: 90067.5 | V54: 65 | W54: 238605 | X54: 181987.5 | Y54: 143430 | Z54: 113640 | AA54: 83227.5 | AC54: 65 | AD54: 222262.5 | AE54: 169522.5 | AF54: 133605 | AG54: 105862.5 | AH54: 77527.5
A55: 66 | B55: 346305 | C55: 264135 | D55: 208170 | E55: 164940 | F55: 120795 | H55: 66 | I55: 304747.5 | J55: 232440 | K55: 183195 | L55: 145147.5 | M55: 106305 | O55: 66 | P55: 273577.5 | Q55: 208665 | R55: 164460 | S55: 130305 | T55: 95430 | V55: 66 | W55: 252802.5 | X55: 192817.5 | Y55: 151965 | Z55: 120405 | AA55: 88185 | AC55: 66 | AD55: 235485 | AE55: 179610 | AF55: 141555 | AG55: 112162.5 | AH55: 82140
A56: 67 | B56: 366915 | C56: 279855 | D56: 220560 | E56: 174757.5 | F56: 127987.5 | H56: 67 | I56: 322882.5 | J56: 246270 | K56: 194092.5 | L56: 153787.5 | M56: 112627.5 | O56: 67 | P56: 289860 | Q56: 221085 | R56: 174247.5 | S56: 138060 | T56: 101107.5 | V56: 67 | W56: 267847.5 | X56: 204292.5 | Y56: 161010 | Z56: 127575 | AA56: 93427.5 | AC56: 67 | AD56: 249502.5 | AE56: 190305 | AF56: 149985 | AG56: 118837.5 | AH56: 87030
A57: 68 | B57: 388755 | C57: 296512.5 | D57: 233692.5 | E57: 185160 | F57: 135600 | H57: 68 | I57: 342105 | J57: 260932.5 | K57: 205650 | L57: 162937.5 | M57: 119332.5 | O57: 68 | P57: 307117.5 | Q57: 234247.5 | R57: 184612.5 | S57: 146272.5 | T57: 107130 | V57: 68 | W57: 283792.5 | X57: 216450 | Y57: 170595 | Z57: 135165 | AA57: 98992.5 | AC57: 68 | AD57: 264352.5 | AE57: 201630 | AF57: 158910 | AG57: 125910 | AH57: 92212.5
A58: 69 | B58: 422542.5 | C58: 322282.5 | D58: 254002.5 | E58: 201255 | F58: 147390 | H58: 69 | I58: 371835 | J58: 283612.5 | K58: 223522.5 | L58: 177105 | M58: 129705 | O58: 69 | P58: 333810 | Q58: 254602.5 | R58: 200662.5 | S58: 158985 | T58: 116437.5 | V58: 69 | W58: 308460 | X58: 235267.5 | Y58: 185422.5 | Z58: 146910 | AA58: 107595 | AC58: 69 | AD58: 287332.5 | AE58: 219150 | AF58: 172717.5 | AG58: 136852.5 | AH58: 100222.5
A59: 70 | B59: 447690 | C59: 341467.5 | D59: 269115 | E59: 213232.5 | F59: 156165 | H59: 70 | I59: 393967.5 | J59: 300487.5 | K59: 236827.5 | L59: 187642.5 | M59: 137422.5 | O59: 70 | P59: 353677.5 | Q59: 269760 | R59: 212602.5 | S59: 168450 | T59: 123367.5 | V59: 70 | W59: 326812.5 | X59: 249270 | Y59: 196455 | Z59: 155655 | AA59: 114000 | AC59: 70 | AD59: 304432.5 | AE59: 232192.5 | AF59: 183000 | AG59: 144997.5 | AH59: 106192.5
A60: 71 | B60: 474337.5 | C60: 361785 | D60: 285135 | E60: 225922.5 | F60: 165457.5 | H60: 71 | I60: 417412.5 | J60: 318375 | K60: 250920 | L60: 198810 | M60: 145605 | O60: 71 | P60: 374722.5 | Q60: 285810 | R60: 225255 | S60: 178477.5 | T60: 130710 | V60: 71 | W60: 346267.5 | X60: 264105 | Y60: 208147.5 | Z60: 164925 | AA60: 120780 | AC60: 71 | AD60: 322545 | AE60: 246015 | AF60: 193890 | AG60: 153622.5 | AH60: 112507.5
A61: 72 | B61: 502567.5 | C61: 383317.5 | D61: 302107.5 | E61: 239362.5 | F61: 175305 | H61: 72 | I61: 442260 | J61: 337320 | K61: 265852.5 | L61: 210645 | M61: 154267.5 | O61: 72 | P61: 397027.5 | Q61: 302820 | R61: 238665 | S61: 189097.5 | T61: 138487.5 | V61: 72 | W61: 366870 | X61: 279825 | Y61: 220537.5 | Z61: 174735 | AA61: 127972.5 | AC61: 72 | AD61: 341745 | AE61: 260655 | AF61: 205432.5 | AG61: 162765 | AH61: 119205
A62: 73 | B62: 532477.5 | C62: 406132.5 | D62: 320085 | E62: 253612.5 | F62: 185737.5 | H62: 73 | I62: 468577.5 | J62: 357397.5 | K62: 281677.5 | L62: 223177.5 | M62: 163447.5 | O62: 73 | P62: 420660 | Q62: 320842.5 | R62: 252870 | S62: 200355 | T62: 146730 | V62: 73 | W62: 388710 | X62: 296475 | Y62: 233662.5 | Z62: 185137.5 | AA62: 135585 | AC62: 73 | AD62: 362085 | AE62: 276172.5 | AF62: 217657.5 | AG62: 172455 | AH62: 126300
A63: 74 | B63: 564165 | C63: 430305 | D63: 339135 | E63: 268702.5 | F63: 196792.5 | H63: 74 | I63: 496470 | J63: 378667.5 | K63: 298440 | L63: 236460 | M63: 173175 | O63: 74 | P63: 445695 | Q63: 339945 | R63: 267915 | S63: 212280 | T63: 155467.5 | V63: 74 | W63: 411840 | X63: 314122.5 | Y63: 247567.5 | Z63: 196155 | AA63: 143655 | AC63: 74 | AD63: 383632.5 | AE63: 292605 | AF63: 230610 | AG63: 182722.5 | AH63: 133815
A64: 75 | B64: 604222.5 | C64: 460852.5 | D64: 363210 | E64: 287782.5 | F64: 210765 | H64: 75 | I64: 531712.5 | J64: 405555 | K64: 319627.5 | L64: 253245 | M64: 185467.5 | O64: 75 | P64: 477337.5 | Q64: 364072.5 | R64: 286935 | S64: 227347.5 | T64: 166500 | V64: 75 | W64: 441082.5 | X64: 336420 | Y64: 265147.5 | Z64: 210082.5 | AA64: 153855 | AC64: 75 | AD64: 410872.5 | AE64: 313380 | AF64: 246982.5 | AG64: 195690 | AH64: 143317.5
A65: 76 | B65: 633097.5 | C65: 482880 | D65: 380572.5 | E65: 301537.5 | F65: 220837.5 | H65: 76 | I65: 557130 | J65: 424935 | K65: 334905 | L65: 265350 | M65: 194332.5 | O65: 76 | P65: 500152.5 | Q65: 381472.5 | R65: 300652.5 | S65: 238215 | T65: 174457.5 | V65: 76 | W65: 462165 | X65: 352500 | Y65: 277815 | Z65: 220125 | AA65: 161212.5 | AC65: 76 | AD65: 430507.5 | AE65: 328357.5 | AF65: 258787.5 | AG65: 205042.5 | AH65: 150165
A66: 77 | B66: 663360 | C66: 505957.5 | D66: 398760 | E66: 315945 | F66: 231390 | H66: 77 | I66: 583755 | J66: 445245 | K66: 350910 | L66: 278032.5 | M66: 203625 | O66: 77 | P66: 524055 | Q66: 399705 | R66: 315022.5 | S66: 249600 | T66: 182797.5 | V66: 77 | W66: 484252.5 | X66: 369352.5 | Y66: 291097.5 | Z66: 230640 | AA66: 168915 | AC66: 77 | AD66: 451080 | AE66: 344055 | AF66: 271155 | AG66: 214845 | AH66: 157342.5
A67: 78 | B67: 695062.5 | C67: 530145 | D67: 417817.5 | E67: 331050 | F67: 242452.5 | H67: 78 | I67: 611655 | J67: 466522.5 | K67: 367680 | L67: 291322.5 | M67: 213352.5 | O67: 78 | P67: 549097.5 | Q67: 418815 | R67: 330075 | S67: 261532.5 | T67: 191535 | V67: 78 | W67: 507397.5 | X67: 387000 | Y67: 305010 | Z67: 241665 | AA67: 176985 | AC67: 78 | AD67: 472642.5 | AE67: 360495 | AF67: 284115 | AG67: 225112.5 | AH67: 164865
A68: 79 | B68: 728280 | C68: 555480 | D68: 437790 | E68: 346875 | F68: 254040 | H68: 79 | I68: 640890 | J68: 488820 | K68: 385252.5 | L68: 305250 | M68: 223552.5 | O68: 79 | P68: 575347.5 | Q68: 438832.5 | R68: 345855 | S68: 274027.5 | T68: 200692.5 | V68: 79 | W68: 531645 | X68: 405502.5 | Y68: 319590 | Z68: 253215 | AA68: 185445 | AC68: 79 | AD68: 495232.5 | AE68: 377730 | AF68: 297697.5 | AG68: 235875 | AH68: 172747.5
A69: 80 | B69: =B170*0.6 -> 763095 | C69: 582030 | D69: 458715 | E69: 363450 | F69: 266182.5 | H69: 80 | I69: =I170*0.6 -> 671520 | J69: 512182.5 | K69: 403665 | L69: 319837.5 | M69: 234240 | O69: 80 | P69: =P170*0.6 -> 602842.5 | Q69: 459802.5 | R69: 362385 | S69: 287122.5 | T69: 210285 | V69: 80 | W69: =W170*0.6 -> 557055 | X69: 424882.5 | Y69: 334860 | Z69: 265320 | AA69: 194310 | AC69: 80 | AD69: =AD170*0.6 -> 518902.5 | AE69: 395782.5 | AF69: 311925 | AG69: 247147.5 | AH69: 181005
A70: 81 | B70: 799560 | C70: 609847.5 | D70: 480637.5 | E70: 380820 | F70: 278902.5 | H70: 81 | I70: 703612.5 | J70: 536662.5 | K70: 422962.5 | L70: 335122.5 | M70: 245430 | O70: 81 | P70: 631657.5 | Q70: 481777.5 | R70: 379702.5 | S70: 300847.5 | T70: 220335 | V70: 81 | W70: 583680 | X70: 445185 | Y70: 350865 | Z70: 278002.5 | AA70: 203595 | AC70: 81 | AD70: 543705 | AE70: 414697.5 | AF70: 326835 | AG70: 258960 | AH70: 189652.5
A71: 82 | B71: 837780 | C71: 638992.5 | D71: 503610 | E71: 399022.5 | F71: 292230 | H71: 82 | I71: 737242.5 | J71: 562312.5 | K71: 443175 | L71: 351142.5 | M71: 257160 | O71: 82 | P71: 661845 | Q71: 504802.5 | R71: 397852.5 | S71: 315225 | T71: 230865 | V71: 82 | W71: 611580 | X71: 466462.5 | Y71: 367635 | Z71: 291285 | AA71: 213330 | AC71: 82 | AD71: 569692.5 | AE71: 434512.5 | AF71: 342457.5 | AG71: 271335 | AH71: 198720
A72: 83 | B72: 877822.5 | C72: 669532.5 | D72: 527677.5 | E72: 418095 | F72: 306195 | H72: 83 | I72: 772477.5 | J72: 589192.5 | K72: 464355 | L72: 367920 | M72: 269452.5 | O72: 83 | P72: 693480 | Q72: 528930 | R72: 416865 | S72: 330292.5 | T72: 241897.5 | V72: 83 | W72: 640807.5 | X72: 488760 | Y72: 385207.5 | Z72: 305205 | AA72: 223522.5 | AC72: 83 | AD72: 596917.5 | AE72: 455280 | AF72: 358822.5 | AG72: 284302.5 | AH72: 208215
A73: 84 | B73: 919777.5 | C73: 701535 | D73: 552900 | E73: 438075 | F73: 320835 | H73: 84 | I73: 809400 | J73: 617347.5 | K73: 486555 | L73: 385507.5 | M73: 282330 | O73: 84 | P73: 726622.5 | Q73: 554212.5 | R73: 436792.5 | S73: 346080 | T73: 253455 | V73: 84 | W73: 671437.5 | X73: 512122.5 | Y73: 403620 | Z73: 319792.5 | AA73: 234210 | AC73: 84 | AD73: 625447.5 | AE73: 477045 | AF73: 375975 | AG73: 297892.5 | AH73: 218167.5
A98: Annual Rates
A99: Copy Annual Rates from here
A102: Zona 1: Ciudad de México (D.F. y área metropolitana) y franja fronteriza | H102: Zona 2: Nuevo León, Sonora, Coahuila, Chihuahua, Tamaulipas, Baja California Norte y Baja California Sur | O102: Zona 3: Jalisco, Puebla, Morelos, Estado de México (excepto Área Metropolitana), Quintana Roo, Guerrero (Acapulco y Zihuatanejo), Hidalgo y Querétaro | V102: Zona 4: Sinaloa, Guanajuato, San Luis Potosí, Durango, Aguascalientes, Nayarit, Michoacán, Colima, Zacatecas | AC102: Zona 5: Guerrero (excepto Acapulco y Zihuatanejo), Veracruz, Chiapas, Tabasco, Campeche, Oaxaca, Tlaxcala, Yucatán
A103: Primas de tarifa expresadas en pesos mexicanos | H103: Primas de tarifa expresadas en pesos mexicanos | O103: Primas de tarifa expresadas en pesos mexicanos | V103: Primas de tarifa expresadas en pesos mexicanos | AC103: Primas de tarifa expresadas en pesos mexicanos
A104: Edad | B104: AW21 | C104: AW31 | D104: AW41 | E104: AW51 | F104: AW61 | H104: Edad | I104: AW22 | J104: AW32 | K104: AW42 | L104: AW52 | M104: AW62 | O104: Edad | P104: AW23 | Q104: AW33 | R104: AW43 | S104: AW53 | T104: AW63 | V104: Edad | W104: AW24 | X104: AW34 | Y104: AW44 | Z104: AW54 | AA104: AW64 | AC104: Edad | AD104: AW25 | AE104: AW35 | AF104: AW45 | AG104: AW55 | AH104: AW65
A105: 1 menor | B105: 49087.5 | C105: 37437.5 | D105: 29512.5 | E105: 23387.5 | F105: 17125 | H105: 1 menor | I105: 43200 | J105: 32950 | K105: 25975 | L105: 20575 | M105: 15075 | O105: 1 menor | P105: 38787.5 | Q105: 29575 | R105: 23312.5 | S105: 18475 | T105: 13525 | V105: 1 menor | W105: 35837.5 | X105: 27337.5 | Y105: 21537.5 | Z105: 17075 | AA105: 12500 | AC105: 1 menor | AD105: 33387.5 | AE105: 25462.5 | AF105: 20062.5 | AG105: 15900 | AH105: 11650
A106: 2 menor | B106: 77350 | C106: 59000 | D106: 46500 | E106: 36837.5 | F106: 26975 | H106: 2 menores | I106: 68062.5 | J106: 51912.5 | K106: 40912.5 | L106: 32425 | M106: 23737.5 | O106: 2 menores | P106: 61112.5 | Q106: 46612.5 | R106: 36737.5 | S106: 29100 | T106: 21312.5 | V106: 2 menores | W106: 56462.5 | X106: 43062.5 | Y106: 33937.5 | Z106: 26900 | AA106: 19700 | AC106: 2 menores | AD106: 52600 | AE106: 40112.5 | AF106: 31612.5 | AG106: 25050 | AH106: 18350
A107: 3 menor | B107: 112862.5 | C107: 86075 | D107: 67837.5 | E107: 53750 | F107: 39362.5 | H107: 3 ó más menores | I107: 99312.5 | J107: 75750 | K107: 59700 | L107: 47300 | M107: 34637.5 | O107: 3 ó más menores | P107: 89162.5 | Q107: 68000 | R107: 53600 | S107: 42462.5 | T107: 31100 | V107: 3 ó más menores | W107: 82387.5 | X107: 62837.5 | Y107: 49525 | Z107: 39237.5 | AA107: 28737.5 | AC107: 3 ó más menores | AD107: 76737.5 | AE107: 58537.5 | AF107: 46137.5 | AG107: 36550 | AH107: 26775
A108: 18 | B108: 113237.5 | C108: 86375 | D108: 68075 | E108: 53937.5 | F108: 39500 | H108: 18 | I108: 99650 | J108: 76012.5 | K108: 59900 | L108: 47462.5 | M108: 34762.5 | O108: 18 | P108: 89462.5 | Q108: 68237.5 | R108: 53775 | S108: 42612.5 | T108: 31200 | V108: 18 | W108: 82662.5 | X108: 63050 | Y108: 49687.5 | Z108: 39375 | AA108: 28837.5 | AC108: 18 | AD108: 77000 | AE108: 58737.5 | AF108: 46287.5 | AG108: 36675 | AH108: 26862.5
A109: 19 | B109: 116812.5 | C109: 89100 | D109: 70225 | E109: 55637.5 | F109: 40750 | H109: 19 | I109: 102800 | J109: 78400 | K109: 61800 | L109: 48962.5 | M109: 35862.5 | O109: 19 | P109: 92287.5 | Q109: 70387.5 | R109: 55475 | S109: 43950 | T109: 32187.5 | V109: 19 | W109: 85275 | X109: 65037.5 | Y109: 51262.5 | Z109: 40612.5 | AA109: 29750 | AC109: 19 | AD109: 79437.5 | AE109: 60587.5 | AF109: 47750 | AG109: 37837.5 | AH109: 27712.5
A110: 20 | B110: 120500 | C110: 91912.5 | D110: 72437.5 | E110: 57400 | F110: 42037.5 | H110: 20 | I110: 106037.5 | J110: 80887.5 | K110: 63750 | L110: 50512.5 | M110: 36987.5 | O110: 20 | P110: 95200 | Q110: 72612.5 | R110: 57225 | S110: 45337.5 | T110: 33212.5 | V110: 20 | W110: 87962.5 | X110: 67100 | Y110: 52875 | Z110: 41900 | AA110: 30687.5 | AC110: 20 | AD110: 81937.5 | AE110: 62500 | AF110: 49262.5 | AG110: 39025 | AH110: 28587.5
A111: 21 | B111: 124312.5 | C111: 94812.5 | D111: 74725 | E111: 59200 | F111: 43362.5 | H111: 21 | I111: 109387.5 | J111: 83437.5 | K111: 65762.5 | L111: 52100 | M111: 38162.5 | O111: 21 | P111: 98200 | Q111: 74900 | R111: 59037.5 | S111: 46775 | T111: 34250 | V111: 21 | W111: 90750 | X111: 69212.5 | Y111: 54550 | Z111: 43225 | AA111: 31650 | AC111: 21 | AD111: 84525 | AE111: 64475 | AF111: 50812.5 | AG111: 40262.5 | AH111: 29487.5
A112: 22 | B112: 128237.5 | C112: 97800 | D112: 77087.5 | E112: 61075 | F112: 44725 | H112: 22 | I112: 112850 | J112: 86075 | K112: 67837.5 | L112: 53750 | M112: 39362.5 | O112: 22 | P112: 101300 | Q112: 77262.5 | R112: 60900 | S112: 48250 | T112: 35337.5 | V112: 22 | W112: 93612.5 | X112: 71400 | Y112: 56275 | Z112: 44587.5 | AA112: 32650 | AC112: 22 | AD112: 87200 | AE112: 66512.5 | AF112: 52412.5 | AG112: 41525 | AH112: 30412.5
A113: 23 | B113: 132275 | C113: 100900 | D113: 79512.5 | E113: 63000 | F113: 46137.5 | H113: 23 | I113: 116412.5 | J113: 88787.5 | K113: 69975 | L113: 55437.5 | M113: 40600 | O113: 23 | P113: 104500 | Q113: 79700 | R113: 62825 | S113: 49775 | T113: 36450 | V113: 23 | W113: 96562.5 | X113: 73650 | Y113: 58050 | Z113: 45987.5 | AA113: 33687.5 | AC113: 23 | AD113: 89950 | AE113: 68612.5 | AF113: 54075 | AG113: 42837.5 | AH113: 31375
A114: 24 | B114: 136462.5 | C114: 104075 | D114: 82025 | E114: 64987.5 | F114: 47600 | H114: 24 | I114: 120087.5 | J114: 91587.5 | K114: 72187.5 | L114: 57187.5 | M114: 41887.5 | O114: 24 | P114: 107800 | Q114: 82225 | R114: 64800 | S114: 51350 | T114: 37600 | V114: 24 | W114: 99612.5 | X114: 75975 | Y114: 59875 | Z114: 47450 | AA114: 34750 | AC114: 24 | AD114: 92787.5 | AE114: 70775 | AF114: 55775 | AG114: 44200 | AH114: 32362.5
A115: 25 | B115: 140762.5 | C115: 107362.5 | D115: 84612.5 | E115: 67050 | F115: 49100 | H115: 25 | I115: 123875 | J115: 94475 | K115: 74462.5 | L115: 59000 | M115: 43212.5 | O115: 25 | P115: 111200 | Q115: 84812.5 | R115: 66850 | S115: 52962.5 | T115: 38787.5 | V115: 25 | W115: 102762.5 | X115: 78375 | Y115: 61775 | Z115: 48937.5 | AA115: 35850 | AC115: 25 | AD115: 95725 | AE115: 73012.5 | AF115: 57537.5 | AG115: 45587.5 | AH115: 33387.5
A116: 26 | B116: 145212.5 | C116: 110750 | D116: 87287.5 | E116: 69162.5 | F116: 50650 | H116: 26 | I116: 127787.5 | J116: 97462.5 | K116: 76812.5 | L116: 60862.5 | M116: 44575 | O116: 26 | P116: 114712.5 | Q116: 87500 | R116: 68962.5 | S116: 54637.5 | T116: 40012.5 | V116: 26 | W116: 106000 | X116: 80850 | Y116: 63725 | Z116: 50487.5 | AA116: 36975 | AC116: 26 | AD116: 98737.5 | AE116: 75312.5 | AF116: 59350 | AG116: 47025 | AH116: 34437.5
A117: 27 | B117: 149787.5 | C117: 114250 | D117: 90050 | E117: 71350 | F117: 52250 | H117: 27 | I117: 131812.5 | J117: 100537.5 | K117: 79237.5 | L117: 62787.5 | M117: 45975 | O117: 27 | P117: 118337.5 | Q117: 90262.5 | R117: 71137.5 | S117: 56362.5 | T117: 41275 | V117: 27 | W117: 109350 | X117: 83400 | Y117: 65737.5 | Z117: 52075 | AA117: 38137.5 | AC117: 27 | AD117: 101862.5 | AE117: 77687.5 | AF117: 61225 | AG117: 48512.5 | AH117: 35525
A118: 28 | B118: 154525 | C118: 117862.5 | D118: 92887.5 | E118: 73600 | F118: 53900 | H118: 28 | I118: 135975 | J118: 103712.5 | K118: 81737.5 | L118: 64762.5 | M118: 47437.5 | O118: 28 | P118: 122075 | Q118: 93112.5 | R118: 73375 | S118: 58137.5 | T118: 42575 | V118: 28 | W118: 112800 | X118: 86037.5 | Y118: 67812.5 | Z118: 53725 | AA118: 39350 | AC118: 28 | AD118: 105075 | AE118: 80137.5 | AF118: 63162.5 | AG118: 50050 | AH118: 36650
A119: 29 | B119: 159400 | C119: 121575 | D119: 95825 | E119: 75925 | F119: 55600 | H119: 29 | I119: 140275 | J119: 106987.5 | K119: 84325 | L119: 66812.5 | M119: 48925 | O119: 29 | P119: 125925 | Q119: 96050 | R119: 75700 | S119: 59975 | T119: 43925 | V119: 29 | W119: 116362.5 | X119: 88750 | Y119: 69950 | Z119: 55425 | AA119: 40587.5 | AC119: 29 | AD119: 108387.5 | AE119: 82675 | AF119: 65162.5 | AG119: 51625 | AH119: 37812.5
A120: 30 | B120: 164437.5 | C120: 125412.5 | D120: 98850 | E120: 78312.5 | F120: 57362.5 | H120: 30 | I120: 144700 | J120: 110362.5 | K120: 86987.5 | L120: 68925 | M120: 50475 | O120: 30 | P120: 129900 | Q120: 99075 | R120: 78087.5 | S120: 61875 | T120: 45312.5 | V120: 30 | W120: 120037.5 | X120: 91550 | Y120: 72162.5 | Z120: 57175 | AA120: 41875 | AC120: 30 | AD120: 111812.5 | AE120: 85287.5 | AF120: 67212.5 | AG120: 53250 | AH120: 39000
A121: 31 | B121: 169625 | C121: 129375 | D121: 101962.5 | E121: 80787.5 | F121: 59162.5 | H121: 31 | I121: 149275 | J121: 113850 | K121: 89725 | L121: 71100 | M121: 52062.5 | O121: 31 | P121: 134000 | Q121: 102212.5 | R121: 80550 | S121: 63825 | T121: 46737.5 | V121: 31 | W121: 123825 | X121: 94450 | Y121: 74437.5 | Z121: 58975 | AA121: 43187.5 | AC121: 31 | AD121: 115350 | AE121: 87975 | AF121: 69337.5 | AG121: 54937.5 | AH121: 40237.5
A122: 32 | B122: 174975 | C122: 133462.5 | D122: 105187.5 | E122: 83337.5 | F122: 61037.5 | H122: 32 | I122: 153987.5 | J122: 117450 | K122: 92562.5 | L122: 73337.5 | M122: 53712.5 | O122: 32 | P122: 138237.5 | Q122: 105437.5 | R122: 83100 | S122: 65837.5 | T122: 48212.5 | V122: 32 | W122: 127737.5 | X122: 97425 | Y122: 76787.5 | Z122: 60837.5 | AA122: 44550 | AC122: 32 | AD122: 118987.5 | AE122: 90750 | AF122: 71525 | AG122: 56675 | AH122: 41500
A123: 33 | B123: 180500 | C123: 137675 | D123: 108500 | E123: 85975 | F123: 62962.5 | H123: 33 | I123: 158837.5 | J123: 121150 | K123: 95487.5 | L123: 75650 | M123: 55412.5 | O123: 33 | P123: 142600 | Q123: 108762.5 | R123: 85725 | S123: 67912.5 | T123: 49737.5 | V123: 33 | W123: 131762.5 | X123: 100500 | Y123: 79212.5 | Z123: 62762.5 | AA123: 45962.5 | AC123: 33 | AD123: 122737.5 | AE123: 93625 | AF123: 73787.5 | AG123: 58462.5 | AH123: 42812.5
A124: 34 | B124: 186200 | C124: 142025 | D124: 111925 | E124: 88687.5 | F124: 64950 | H124: 34 | I124: 163862.5 | J124: 124975 | K124: 98500 | L124: 78037.5 | M124: 57150 | O124: 34 | P124: 147100 | Q124: 112200 | R124: 88425 | S124: 70062.5 | T124: 51312.5 | V124: 34 | W124: 135925 | X124: 103675 | Y124: 81712.5 | Z124: 64737.5 | AA124: 47412.5 | AC124: 34 | AD124: 126612.5 | AE124: 96575 | AF124: 76112.5 | AG124: 60300 | AH124: 44162.5
A125: 35 | B125: 187162.5 | C125: 142762.5 | D125: 112512.5 | E125: 89150 | F125: 65287.5 | H125: 35 | I125: 164712.5 | J125: 125625 | K125: 99012.5 | L125: 78450 | M125: 57450 | O125: 35 | P125: 147862.5 | Q125: 112775 | R125: 88887.5 | S125: 70425 | T125: 51575 | V125: 35 | W125: 136637.5 | X125: 104212.5 | Y125: 82137.5 | Z125: 65075 | AA125: 47662.5 | AC125: 35 | AD125: 127275 | AE125: 97075 | AF125: 76512.5 | AG125: 60625 | AH125: 44400
A126: 36 | B126: 191450 | C126: 146025 | D126: 115087.5 | E126: 91187.5 | F126: 66775 | H126: 36 | I126: 168475 | J126: 128500 | K126: 101275 | L126: 80237.5 | M126: 58762.5 | O126: 36 | P126: 151250 | Q126: 115362.5 | R126: 90912.5 | S126: 72037.5 | T126: 52762.5 | V126: 36 | W126: 139762.5 | X126: 106600 | Y126: 84012.5 | Z126: 66562.5 | AA126: 48750 | AC126: 36 | AD126: 130187.5 | AE126: 99300 | AF126: 78262.5 | AG126: 62000 | AH126: 45412.5
A127: 37 | B127: 195825 | C127: 149362.5 | D127: 117725 | E127: 93275 | F127: 68312.5 | H127: 37 | I127: 172325 | J127: 131437.5 | K127: 103587.5 | L127: 82075 | M127: 60112.5 | O127: 37 | P127: 154712.5 | Q127: 118000 | R127: 93000 | S127: 73687.5 | T127: 53962.5 | V127: 37 | W127: 142962.5 | X127: 109037.5 | Y127: 85937.5 | Z127: 68087.5 | AA127: 49862.5 | AC127: 37 | AD127: 133162.5 | AE127: 101562.5 | AF127: 80050 | AG127: 63425 | AH127: 46450
A128: 38 | B128: 200312.5 | C128: 152787.5 | D128: 120412.5 | E128: 95400 | F128: 69875 | H128: 38 | I128: 176275 | J128: 134450 | K128: 105962.5 | L128: 83962.5 | M128: 61487.5 | O128: 38 | P128: 158250 | Q128: 120700 | R128: 95125 | S128: 75375 | T128: 55200 | V128: 38 | W128: 146225 | X128: 111537.5 | Y128: 87900 | Z128: 69650 | AA128: 51012.5 | AC128: 38 | AD128: 136212.5 | AE128: 103887.5 | AF128: 81875 | AG128: 64875 | AH128: 47512.5
A129: 39 | B129: 204900 | C129: 156275 | D129: 123162.5 | E129: 97587.5 | F129: 71475 | H129: 39 | I129: 180312.5 | J129: 137525 | K129: 108387.5 | L129: 85875 | M129: 62900 | O129: 39 | P129: 161862.5 | Q129: 123462.5 | R129: 97300 | S129: 77100 | T129: 56462.5 | V129: 39 | W129: 149575 | X129: 114087.5 | Y129: 89912.5 | Z129: 71237.5 | AA129: 52175 | AC129: 39 | AD129: 139325 | AE129: 106275 | AF129: 83750 | AG129: 66362.5 | AH129: 48600
A130: 40 | B130: 209587.5 | C130: 159850 | D130: 125987.5 | E130: 99825 | F130: 73112.5 | H130: 40 | I130: 184437.5 | J130: 140675 | K130: 110875 | L130: 87850 | M130: 64337.5 | O130: 40 | P130: 165575 | Q130: 126287.5 | R130: 99525 | S130: 78862.5 | T130: 57750 | V130: 40 | W130: 153000 | X130: 116700 | Y130: 91975 | Z130: 72875 | AA130: 53362.5 | AC130: 40 | AD130: 142512.5 | AE130: 108700 | AF130: 85675 | AG130: 67875 | AH130: 49712.5
A131: 41 | B131: 214375 | C131: 163512.5 | D131: 128875 | E131: 102112.5 | F131: 74775 | H131: 41 | I131: 188650 | J131: 143887.5 | K131: 113400 | L131: 89850 | M131: 65800 | O131: 41 | P131: 169362.5 | Q131: 129175 | R131: 101812.5 | S131: 80662.5 | T131: 59075 | V131: 41 | W131: 156500 | X131: 119362.5 | Y131: 94075 | Z131: 74537.5 | AA131: 54587.5 | AC131: 41 | AD131: 145775 | AE131: 111187.5 | AF131: 87637.5 | AG131: 69437.5 | AH131: 50850
A132: 42 | B132: 219287.5 | C132: 167250 | D132: 131825 | E132: 104437.5 | F132: 76487.5 | H132: 42 | I132: 192975 | J132: 147187.5 | K132: 116000 | L132: 91912.5 | M132: 67312.5 | O132: 42 | P132: 173237.5 | Q132: 132137.5 | R132: 104137.5 | S132: 82512.5 | T132: 60425 | V132: 42 | W132: 160075 | X132: 122100 | Y132: 96225 | Z132: 76250 | AA132: 55837.5 | AC132: 42 | AD132: 149112.5 | AE132: 113737.5 | AF132: 89637.5 | AG132: 71025 | AH132: 52012.5
A133: 43 | B133: 224300 | C133: 171087.5 | D133: 134837.5 | E133: 106837.5 | F133: 78237.5 | H133: 43 | I133: 197387.5 | J133: 150550 | K133: 118650 | L133: 94012.5 | M133: 68850 | O133: 43 | P133: 177200 | Q133: 135150 | R133: 106525 | S133: 84400 | T133: 61812.5 | V133: 43 | W133: 163737.5 | X133: 124887.5 | Y133: 98425 | Z133: 77987.5 | AA133: 57112.5 | AC133: 43 | AD133: 152525 | AE133: 116337.5 | AF133: 91687.5 | AG133: 72650 | AH133: 53200
A134: 44 | B134: 229437.5 | C134: 175000 | D134: 137925 | E134: 109275 | F134: 80037.5 | H134: 44 | I134: 201900 | J134: 154000 | K134: 121375 | L134: 96162.5 | M134: 70425 | O134: 44 | P134: 181250 | Q134: 138250 | R134: 108962.5 | S134: 86325 | T134: 63225 | V134: 44 | W134: 167487.5 | X134: 127750 | Y134: 100687.5 | Z134: 79775 | AA134: 58425 | AC134: 44 | AD134: 156012.5 | AE134: 119000 | AF134: 93787.5 | AG134: 74312.5 | AH134: 54425
A135: 45 | B135: 234687.5 | C135: 179000 | D135: 141075 | E135: 111775 | F135: 81862.5 | H135: 45 | I135: 206525 | J135: 157525 | K135: 124150 | L135: 98362.5 | M135: 72037.5 | O135: 45 | P135: 185400 | Q135: 141412.5 | R135: 111450 | S135: 88300 | T135: 64675 | V135: 45 | W135: 171325 | X135: 130675 | Y135: 102987.5 | Z135: 81600 | AA135: 59762.5 | AC135: 45 | AD135: 159587.5 | AE135: 121725 | AF135: 95937.5 | AG135: 76012.5 | AH135: 55662.5
A136: 46 | B136: 240062.5 | C136: 183100 | D136: 144300 | E136: 114337.5 | F136: 83737.5 | H136: 46 | I136: 211250 | J136: 161125 | K136: 126987.5 | L136: 100612.5 | M136: 73687.5 | O136: 46 | P136: 189650 | Q136: 144650 | R136: 114000 | S136: 90325 | T136: 66150 | V136: 46 | W136: 175237.5 | X136: 133662.5 | Y136: 105337.5 | Z136: 83462.5 | AA136: 61125 | AC136: 46 | AD136: 163237.5 | AE136: 124512.5 | AF136: 98125 | AG136: 77750 | AH136: 56937.5
A137: 47 | B137: 245550 | C137: 187287.5 | D137: 147612.5 | E137: 116950 | F137: 85650 | H137: 47 | I137: 216087.5 | J137: 164812.5 | K137: 129900 | L137: 102925 | M137: 75375 | O137: 47 | P137: 193987.5 | Q137: 147962.5 | R137: 116612.5 | S137: 92387.5 | T137: 67662.5 | V137: 47 | W137: 179250 | X137: 136725 | Y137: 107750 | Z137: 85375 | AA137: 62525 | AC137: 47 | AD137: 166975 | AE137: 127350 | AF137: 100375 | AG137: 79525 | AH137: 58250
A138: 48 | B138: 251175 | C138: 191575 | D138: 150987.5 | E138: 119625 | F138: 87612.5 | H138: 48 | I138: 221025 | J138: 168587.5 | K138: 132862.5 | L138: 105275 | M138: 77100 | O138: 48 | P138: 198425 | Q138: 151350 | R138: 119275 | S138: 94512.5 | T138: 69212.5 | V138: 48 | W138: 183350 | X138: 139850 | Y138: 110225 | Z138: 87325 | AA138: 63962.5 | AC138: 48 | AD138: 170800 | AE138: 130275 | AF138: 102675 | AG138: 81350 | AH138: 59575
A139: 49 | B139: 256912.5 | C139: 195962.5 | D139: 154437.5 | E139: 122362.5 | F139: 89612.5 | H139: 49 | I139: 226087.5 | J139: 172437.5 | K139: 135912.5 | L139: 107687.5 | M139: 78862.5 | O139: 49 | P139: 202962.5 | Q139: 154812.5 | R139: 122012.5 | S139: 96675 | T139: 70800 | V139: 49 | W139: 187550 | X139: 143050 | Y139: 112737.5 | Z139: 89325 | AA139: 65425 | AC139: 49 | AD139: 174700 | AE139: 133250 | AF139: 105025 | AG139: 83212.5 | AH139: 60937.5
A140: 50 | B140: 262800 | C140: 200437.5 | D140: 157975 | E140: 125162.5 | F140: 91662.5 | H140: 50 | I140: 231262.5 | J140: 176387.5 | K140: 139012.5 | L140: 110150 | M140: 80662.5 | O140: 50 | P140: 207612.5 | Q140: 158350 | R140: 124800 | S140: 98887.5 | T140: 72412.5 | V140: 50 | W140: 191837.5 | X140: 146325 | Y140: 115325 | Z140: 91375 | AA140: 66912.5 | AC140: 50 | AD140: 178700 | AE140: 136300 | AF140: 107425 | AG140: 85112.5 | AH140: 62337.5
A141: 51 | B141: 268812.5 | C141: 205025 | D141: 161587.5 | E141: 128025 | F141: 93762.5 | H141: 51 | I141: 236550 | J141: 180425 | K141: 142200 | L141: 112662.5 | M141: 82512.5 | O141: 51 | P141: 212362.5 | Q141: 161975 | R141: 127650 | S141: 101150 | T141: 74075 | V141: 51 | W141: 196237.5 | X141: 149675 | Y141: 117962.5 | Z141: 93462.5 | AA141: 68450 | AC141: 51 | AD141: 182787.5 | AE141: 139425 | AF141: 109875 | AG141: 87062.5 | AH141: 63762.5
A142: 52 | B142: 274962.5 | C142: 209725 | D142: 165287.5 | E142: 130962.5 | F142: 95912.5 | H142: 52 | I142: 241962.5 | J142: 184550 | K142: 145450 | L142: 115250 | M142: 84400 | O142: 52 | P142: 217225 | Q142: 165675 | R142: 130575 | S142: 103462.5 | T142: 75775 | V142: 52 | W142: 200725 | X142: 153100 | Y142: 120662.5 | Z142: 95600 | AA142: 70012.5 | AC142: 52 | AD142: 186975 | AE142: 142612.5 | AF142: 112400 | AG142: 89050 | AH142: 65225
A143: 53 | B143: 281250 | C143: 214525 | D143: 169075 | E143: 133962.5 | F143: 98100 | H143: 53 | I143: 247500 | J143: 188775 | K143: 148775 | L143: 117887.5 | M143: 86337.5 | O143: 53 | P143: 222187.5 | Q143: 169475 | R143: 133562.5 | S143: 105825 | T143: 77500 | V143: 53 | W143: 205312.5 | X143: 156600 | Y143: 123425 | Z143: 97787.5 | AA143: 71612.5 | AC143: 53 | AD143: 191250 | AE143: 145875 | AF143: 114962.5 | AG143: 91087.5 | AH143: 66712.5
A144: 54 | B144: 295875 | C144: 225675 | D144: 177850 | E144: 140925 | F144: 103200 | H144: 54 | I144: 260362.5 | J144: 198587.5 | K144: 156512.5 | L144: 124012.5 | M144: 90825 | O144: 54 | P144: 233737.5 | Q144: 178275 | R144: 140512.5 | S144: 111325 | T144: 81537.5 | V144: 54 | W144: 215987.5 | X144: 164737.5 | Y144: 129837.5 | Z144: 102875 | AA144: 75337.5 | AC144: 54 | AD144: 201187.5 | AE144: 153450 | AF144: 120937.5 | AG144: 95825 | AH144: 70175
A145: 55 | B145: 313475 | C145: 239100 | D145: 188437.5 | E145: 149312.5 | F145: 109350 | H145: 55 | I145: 275862.5 | J145: 210412.5 | K145: 165825 | L145: 131387.5 | M145: 96225 | O145: 55 | P145: 247650 | Q145: 188887.5 | R145: 148875 | S145: 117950 | T145: 86387.5 | V145: 55 | W145: 228837.5 | X145: 174537.5 | Y145: 137562.5 | Z145: 109000 | AA145: 79825 | AC145: 55 | AD145: 213162.5 | AE145: 162587.5 | AF145: 128137.5 | AG145: 101525 | AH145: 74350
A146: 56 | B146: 323762.5 | C146: 246950 | D146: 194625 | E146: 154200 | F146: 112937.5 | H146: 56 | I146: 284912.5 | J146: 217312.5 | K146: 171275 | L146: 135700 | M146: 99387.5 | O146: 56 | P146: 255775 | Q146: 195087.5 | R146: 153750 | S146: 121825 | T146: 89212.5 | V146: 56 | W146: 236350 | X146: 180275 | Y146: 142075 | Z146: 112575 | AA146: 82437.5 | AC146: 56 | AD146: 220162.5 | AE146: 167925 | AF146: 132350 | AG146: 104862.5 | AH146: 76800
A147: 57 | B147: 343037.5 | C147: 261637.5 | D147: 206212.5 | E147: 163387.5 | F147: 119650 | H147: 57 | I147: 301875 | J147: 230250 | K147: 181462.5 | L147: 143775 | M147: 105300 | O147: 57 | P147: 271000 | Q147: 206700 | R147: 162900 | S147: 129075 | T147: 94525 | V147: 57 | W147: 250412.5 | X147: 191000 | Y147: 150525 | Z147: 119275 | AA147: 87350 | AC147: 57 | AD147: 233262.5 | AE147: 177912.5 | AF147: 140225 | AG147: 111100 | AH147: 81362.5
A148: 58 | B148: 363450 | C148: 277212.5 | D148: 218475 | E148: 173112.5 | F148: 126775 | H148: 58 | I148: 319837.5 | J148: 243950 | K148: 192262.5 | L148: 152337.5 | M148: 111562.5 | O148: 58 | P148: 287125 | Q148: 219000 | R148: 172600 | S148: 136750 | T148: 100150 | V148: 58 | W148: 265325 | X148: 202362.5 | Y148: 159487.5 | Z148: 126362.5 | AA148: 92550 | AC148: 58 | AD148: 247150 | AE148: 188500 | AF148: 148562.5 | AG148: 117712.5 | AH148: 86212.5
A149: 59 | B149: 385087.5 | C149: 293712.5 | D149: 231487.5 | E149: 183412.5 | F149: 134325 | H149: 59 | I149: 338875 | J149: 258462.5 | K149: 203700 | L149: 161400 | M149: 118200 | O149: 59 | P149: 304212.5 | Q149: 232037.5 | R149: 182875 | S149: 144887.5 | T149: 106112.5 | V149: 59 | W149: 281112.5 | X149: 214412.5 | Y149: 168987.5 | Z149: 133887.5 | AA149: 98050 | AC149: 59 | AD149: 261850 | AE149: 199725 | AF149: 157412.5 | AG149: 124712.5 | AH149: 91337.5
A150: 60 | B150: 408000 | C150: 311187.5 | D150: 245262.5 | E150: 194325 | F150: 142312.5 | H150: 60 | I150: 359037.5 | J150: 273850 | K150: 215825 | L150: 171000 | M150: 125237.5 | O150: 60 | P150: 322325 | Q150: 245837.5 | R150: 193750 | S150: 153512.5 | T150: 112425 | V150: 60 | W150: 297837.5 | X150: 227175 | Y150: 179037.5 | Z150: 141862.5 | AA150: 103887.5 | AC150: 60 | AD150: 277437.5 | AE150: 211612.5 | AF150: 166775 | AG150: 132137.5 | AH150: 96775
A151: 61 | B151: 432287.5 | C151: 329712.5 | D151: 259862.5 | E151: 205887.5 | F151: 150787.5 | H151: 61 | I151: 380412.5 | J151: 290150 | K151: 228675 | L151: 181187.5 | M151: 132687.5 | O151: 61 | P151: 341500 | Q151: 260475 | R151: 205287.5 | S151: 162650 | T151: 119125 | V151: 61 | W151: 315562.5 | X151: 240687.5 | Y151: 189700 | Z151: 150300 | AA151: 110075 | AC151: 61 | AD151: 293950 | AE151: 224200 | AF151: 176700 | AG151: 140000 | AH151: 102537.5
A152: 62 | B152: 458012.5 | C152: 349337.5 | D152: 275325 | E152: 218150 | F152: 159762.5 | H152: 62 | I152: 403050 | J152: 307412.5 | K152: 242287.5 | L152: 191962.5 | M152: 140587.5 | O152: 62 | P152: 361825 | Q152: 275975 | R152: 217500 | S152: 172337.5 | T152: 126212.5 | V152: 62 | W152: 334350 | X152: 255012.5 | Y152: 200987.5 | Z152: 159250 | AA152: 116625 | AC152: 62 | AD152: 311450 | AE152: 237550 | AF152: 187225 | AG152: 148337.5 | AH152: 108637.5
A153: 63 | B153: 485275 | C153: 370125 | D153: 291712.5 | E153: 231125 | F153: 169275 | H153: 63 | I153: 427037.5 | J153: 325712.5 | K153: 256700 | L153: 203387.5 | M153: 148962.5 | O153: 63 | P153: 383362.5 | Q153: 292400 | R153: 230450 | S153: 182587.5 | T153: 133725 | V153: 63 | W153: 354250 | X153: 270187.5 | Y153: 212950 | Z153: 168725 | AA153: 123562.5 | AC153: 63 | AD153: 329987.5 | AE153: 251687.5 | AF153: 198362.5 | AG153: 157162.5 | AH153: 115100
A154: 64 | B154: 514150 | C154: 392162.5 | D154: 309075 | E154: 244887.5 | F154: 179350 | H154: 64 | I154: 452450 | J154: 345100 | K154: 271987.5 | L154: 215500 | M154: 157825 | O154: 64 | P154: 406175 | Q154: 309800 | R154: 244162.5 | S154: 193462.5 | T154: 141687.5 | V154: 64 | W154: 375325 | X154: 286275 | Y154: 225625 | Z154: 178762.5 | AA154: 130925 | AC154: 64 | AD154: 349625 | AE154: 266662.5 | AF154: 210162.5 | AG154: 166525 | AH154: 121950
A155: 65 | B155: 544750 | C155: 415500 | D155: 327462.5 | E155: 259462.5 | F155: 190025 | H155: 65 | I155: 479387.5 | J155: 365637.5 | K155: 288175 | L155: 228325 | M155: 167212.5 | O155: 65 | P155: 430350 | Q155: 328237.5 | R155: 258700 | S155: 204975 | T155: 150112.5 | V155: 65 | W155: 397675 | X155: 303312.5 | Y155: 239050 | Z155: 189400 | AA155: 138712.5 | AC155: 65 | AD155: 370437.5 | AE155: 282537.5 | AF155: 222675 | AG155: 176437.5 | AH155: 129212.5
A156: 66 | B156: 577175 | C156: 440225 | D156: 346950 | E156: 274900 | F156: 201325 | H156: 66 | I156: 507912.5 | J156: 387400 | K156: 305325 | L156: 241912.5 | M156: 177175 | O156: 66 | P156: 455962.5 | Q156: 347775 | R156: 274100 | S156: 217175 | T156: 159050 | V156: 66 | W156: 421337.5 | X156: 321362.5 | Y156: 253275 | Z156: 200675 | AA156: 146975 | AC156: 66 | AD156: 392475 | AE156: 299350 | AF156: 235925 | AG156: 186937.5 | AH156: 136900
A157: 67 | B157: 611525 | C157: 466425 | D157: 367600 | E157: 291262.5 | F157: 213312.5 | H157: 67 | I157: 538137.5 | J157: 410450 | K157: 323487.5 | L157: 256312.5 | M157: 187712.5 | O157: 67 | P157: 483100 | Q157: 368475 | R157: 290412.5 | S157: 230100 | T157: 168512.5 | V157: 67 | W157: 446412.5 | X157: 340487.5 | Y157: 268350 | Z157: 212625 | AA157: 155712.5 | AC157: 67 | AD157: 415837.5 | AE157: 317175 | AF157: 249975 | AG157: 198062.5 | AH157: 145050
A158: 68 | B158: 647925 | C158: 494187.5 | D158: 389487.5 | E158: 308600 | F158: 226000 | H158: 68 | I158: 570175 | J158: 434887.5 | K158: 342750 | L158: 271562.5 | M158: 198887.5 | O158: 68 | P158: 511862.5 | Q158: 390412.5 | R158: 307687.5 | S158: 243787.5 | T158: 178550 | V158: 68 | W158: 472987.5 | X158: 360750 | Y158: 284325 | Z158: 225275 | AA158: 164987.5 | AC158: 68 | AD158: 440587.5 | AE158: 336050 | AF158: 264850 | AG158: 209850 | AH158: 153687.5
A159: 69 | B159: 704237.5 | C159: 537137.5 | D159: 423337.5 | E159: 335425 | F159: 245650 | H159: 69 | I159: 619725 | J159: 472687.5 | K159: 372537.5 | L159: 295175 | M159: 216175 | O159: 69 | P159: 556350 | Q159: 424337.5 | R159: 334437.5 | S159: 264975 | T159: 194062.5 | V159: 69 | W159: 514100 | X159: 392112.5 | Y159: 309037.5 | Z159: 244850 | AA159: 179325 | AC159: 69 | AD159: 478887.5 | AE159: 365250 | AF159: 287862.5 | AG159: 228087.5 | AH159: 167037.5
A160: 70 | B160: 746150 | C160: 569112.5 | D160: 448525 | E160: 355387.5 | F160: 260275 | H160: 70 | I160: 656612.5 | J160: 500812.5 | K160: 394712.5 | L160: 312737.5 | M160: 229037.5 | O160: 70 | P160: 589462.5 | Q160: 449600 | R160: 354337.5 | S160: 280750 | T160: 205612.5 | V160: 70 | W160: 544687.5 | X160: 415450 | Y160: 327425 | Z160: 259425 | AA160: 190000 | AC160: 70 | AD160: 507387.5 | AE160: 386987.5 | AF160: 305000 | AG160: 241662.5 | AH160: 176987.5
A161: 71 | B161: 790562.5 | C161: 602975 | D161: 475225 | E161: 376537.5 | F161: 275762.5 | H161: 71 | I161: 695687.5 | J161: 530625 | K161: 418200 | L161: 331350 | M161: 242675 | O161: 71 | P161: 624537.5 | Q161: 476350 | R161: 375425 | S161: 297462.5 | T161: 217850 | V161: 71 | W161: 577112.5 | X161: 440175 | Y161: 346912.5 | Z161: 274875 | AA161: 201300 | AC161: 71 | AD161: 537575 | AE161: 410025 | AF161: 323150 | AG161: 256037.5 | AH161: 187512.5
A162: 72 | B162: 837612.5 | C162: 638862.5 | D162: 503512.5 | E162: 398937.5 | F162: 292175 | H162: 72 | I162: 737100 | J162: 562200 | K162: 443087.5 | L162: 351075 | M162: 257112.5 | O162: 72 | P162: 661712.5 | Q162: 504700 | R162: 397775 | S162: 315162.5 | T162: 230812.5 | V162: 72 | W162: 611450 | X162: 466375 | Y162: 367562.5 | Z162: 291225 | AA162: 213287.5 | AC162: 72 | AD162: 569575 | AE162: 434425 | AF162: 342387.5 | AG162: 271275 | AH162: 198675
A163: 73 | B163: 887462.5 | C163: 676887.5 | D163: 533475 | E163: 422687.5 | F163: 309562.5 | H163: 73 | I163: 780962.5 | J163: 595662.5 | K163: 469462.5 | L163: 371962.5 | M163: 272412.5 | O163: 73 | P163: 701100 | Q163: 534737.5 | R163: 421450 | S163: 333925 | T163: 244550 | V163: 73 | W163: 647850 | X163: 494125 | Y163: 389437.5 | Z163: 308562.5 | AA163: 225975 | AC163: 73 | AD163: 603475 | AE163: 460287.5 | AF163: 362762.5 | AG163: 287425 | AH163: 210500
A164: 74 | B164: 940275 | C164: 717175 | D164: 565225 | E164: 447837.5 | F164: 327987.5 | H164: 74 | I164: 827450 | J164: 631112.5 | K164: 497400 | L164: 394100 | M164: 288625 | O164: 74 | P164: 742825 | Q164: 566575 | R164: 446525 | S164: 353800 | T164: 259112.5 | V164: 74 | W164: 686400 | X164: 523537.5 | Y164: 412612.5 | Z164: 326925 | AA164: 239425 | AC164: 74 | AD164: 639387.5 | AE164: 487675 | AF164: 384350 | AG164: 304537.5 | AH164: 223025
A165: 75 | B165: 1007037.5 | C165: 768087.5 | D165: 605350 | E165: 479637.5 | F165: 351275 | H165: 75 | I165: 886187.5 | J165: 675925 | K165: 532712.5 | L165: 422075 | M165: 309112.5 | O165: 75 | P165: 795562.5 | Q165: 606787.5 | R165: 478225 | S165: 378912.5 | T165: 277500 | V165: 75 | W165: 735137.5 | X165: 560700 | Y165: 441912.5 | Z165: 350137.5 | AA165: 256425 | AC165: 75 | AD165: 684787.5 | AE165: 522300 | AF165: 411637.5 | AG165: 326150 | AH165: 238862.5
A166: 76 | B166: 1055162.5 | C166: 804800 | D166: 634287.5 | E166: 502562.5 | F166: 368062.5 | H166: 76 | I166: 928550 | J166: 708225 | K166: 558175 | L166: 442250 | M166: 323887.5 | O166: 76 | P166: 833587.5 | Q166: 635787.5 | R166: 501087.5 | S166: 397025 | T166: 290762.5 | V166: 76 | W166: 770275 | X166: 587500 | Y166: 463025 | Z166: 366875 | AA166: 268687.5 | AC166: 76 | AD166: 717512.5 | AE166: 547262.5 | AF166: 431312.5 | AG166: 341737.5 | AH166: 250275
A167: 77 | B167: 1105600 | C167: 843262.5 | D167: 664600 | E167: 526575 | F167: 385650 | H167: 77 | I167: 972925 | J167: 742075 | K167: 584850 | L167: 463387.5 | M167: 339375 | O167: 77 | P167: 873425 | Q167: 666175 | R167: 525037.5 | S167: 416000 | T167: 304662.5 | V167: 77 | W167: 807087.5 | X167: 615587.5 | Y167: 485162.5 | Z167: 384400 | AA167: 281525 | AC167: 77 | AD167: 751800 | AE167: 573425 | AF167: 451925 | AG167: 358075 | AH167: 262237.5
A168: 78 | B168: 1158437.5 | C168: 883575 | D168: 696362.5 | E168: 551750 | F168: 404087.5 | H168: 78 | I168: 1019425 | J168: 777537.5 | K168: 612800 | L168: 485537.5 | M168: 355587.5 | O168: 78 | P168: 915162.5 | Q168: 698025 | R168: 550125 | S168: 435887.5 | T168: 319225 | V168: 78 | W168: 845662.5 | X168: 645000 | Y168: 508350 | Z168: 402775 | AA168: 294975 | AC168: 78 | AD168: 787737.5 | AE168: 600825 | AF168: 473525 | AG168: 375187.5 | AH168: 274775
A169: 79 | B169: 1213800 | C169: 925800 | D169: 729650 | E169: 578125 | F169: 423400 | H169: 79 | I169: 1068150 | J169: 814700 | K169: 642087.5 | L169: 508750 | M169: 372587.5 | O169: 79 | P169: 958912.5 | Q169: 731387.5 | R169: 576425 | S169: 456712.5 | T169: 334487.5 | V169: 79 | W169: 886075 | X169: 675837.5 | Y169: 532650 | Z169: 422025 | AA169: 309075 | AC169: 79 | AD169: 825387.5 | AE169: 629550 | AF169: 496162.5 | AG169: 393125 | AH169: 287912.5
A170: 80 | B170: 1271825 | C170: 970050 | D170: 764525 | E170: 605750 | F170: 443637.5 | H170: 80 | I170: 1119200 | J170: 853637.5 | K170: 672775 | L170: 533062.5 | M170: 390400 | O170: 80 | P170: 1004737.5 | Q170: 766337.5 | R170: 603975 | S170: 478537.5 | T170: 350475 | V170: 80 | W170: 928425 | X170: 708137.5 | Y170: 558100 | Z170: 442200 | AA170: 323850 | AC170: 80 | AD170: 864837.5 | AE170: 659637.5 | AF170: 519875 | AG170: 411912.5 | AH170: 301675
A171: 81 | B171: 1332600 | C171: 1016412.5 | D171: 801062.5 | E171: 634700 | F171: 464837.5 | H171: 81 | I171: 1172687.5 | J171: 894437.5 | K171: 704937.5 | L171: 558537.5 | M171: 409050 | O171: 81 | P171: 1052762.5 | Q171: 802962.5 | R171: 632837.5 | S171: 501412.5 | T171: 367225 | V171: 81 | W171: 972800 | X171: 741975 | Y171: 584775 | Z171: 463337.5 | AA171: 339325 | AC171: 81 | AD171: 906175 | AE171: 691162.5 | AF171: 544725 | AG171: 431600 | AH171: 316087.5
A172: 82 | B172: 1396300 | C172: 1064987.5 | D172: 839350 | E172: 665037.5 | F172: 487050 | H172: 82 | I172: 1228737.5 | J172: 937187.5 | K172: 738625 | L172: 585237.5 | M172: 428600 | O172: 82 | P172: 1103075 | Q172: 841337.5 | R172: 663087.5 | S172: 525375 | T172: 384775 | V172: 82 | W172: 1019300 | X172: 777437.5 | Y172: 612725 | Z172: 485475 | AA172: 355550 | AC172: 82 | AD172: 949487.5 | AE172: 724187.5 | AF172: 570762.5 | AG172: 452225 | AH172: 331200
A173: 83 | B173: 1463037.5 | C173: 1115887.5 | D173: 879462.5 | E173: 696825 | F173: 510325 | H173: 83 | I173: 1287462.5 | J173: 981987.5 | K173: 773925 | L173: 613200 | M173: 449087.5 | O173: 83 | P173: 1155800 | Q173: 881550 | R173: 694775 | S173: 550487.5 | T173: 403162.5 | V173: 83 | W173: 1068012.5 | X173: 814600 | Y173: 642012.5 | Z173: 508675 | AA173: 372537.5 | AC173: 83 | AD173: 994862.5 | AE173: 758800 | AF173: 598037.5 | AG173: 473837.5 | AH173: 347025
A174: 84 | B174: 1532962.5 | C174: 1169225 | D174: 921500 | E174: 730125 | F174: 534725 | H174: 84 | I174: 1349000 | J174: 1028912.5 | K174: 810925 | L174: 642512.5 | M174: 470550 | O174: 84 | P174: 1211037.5 | Q174: 923687.5 | R174: 727987.5 | S174: 576800 | T174: 422425 | V174: 84 | W174: 1119062.5 | X174: 853537.5 | Y174: 672700 | Z174: 532987.5 | AA174: 390350 | AC174: 84 | AD174: 1042412.5 | AE174: 795075 | AF174: 626625 | AG174: 496487.5 | AH174: 363612.5

Sheet Tarifas Secure (hidden)
A1: Zona 1: Ciudad de México (D.F. y área metropolitana) y franja fronteriza norte | H1: Zona 2: Nuevo León, Sonora, Coahuila, Chihuahua, Tamaulipas, Baja California Norte y Baja California Sur | O1: Zona 3: Jalisco, Puebla, Morelos, Estado de México (excepto Área Metropolitana), Quintana Roo, Guerrero (Acapulco y Zihuatanejo), Hidalgo y Querétaro | V1: Zona 4: Sinaloa, Guanajuato, San Luis Potosí, Durango, Aguascalientes, Nayarit, Michoacán, Colima, Zacatecas | AC1: Zona 5: Guerrero (excepto Acapulco y Zihuatanejo), Veracruz, Chiapas, Tabasco, Campeche, Oaxaca, Tlaxcala, Yucatán
A2: Primas de riesgo expresadas en pesos mexicanos | H2: Primas de riesgo expresadas en pesos mexicanos | O2: Primas de riesgo expresadas en pesos mexicanos | V2: Primas de riesgo expresadas en pesos mexicanos | AC2: Primas de riesgo expresadas en pesos mexicanos
A3: Edad | B3: SE21 | C3: SE31 | D3: SE41 | E3: SE51 | F3: SE61 | H3: Edad | I3: SE22 | J3: SE32 | K3: SE42 | L3: SE52 | M3: SE62 | O3: Edad | P3: SE23 | Q3: SE33 | R3: SE43 | S3: SE53 | T3: SE63 | V3: Edad | W3: SE24 | X3: SE34 | Y3: SE44 | Z3: SE54 | AA3: SE64 | AC3: Edad | AD3: SE25 | AE3: SE35 | AF3: SE45 | AG3: SE55 | AH3: SE65
A4: 1 menor | B4: =B105*0.6 -> 20962.5 | C4: =C105*0.6 -> 16830 | D4: =D105*0.6 -> 10942.5 | E4: =E105*0.6 -> 9127.5 | F4: =F105*0.6 -> 7590 | G4: =(B4*5%)+B4 -> 22010.625 | H4: 1 menor | I4: =I105*0.6 -> 18652.5 | J4: =J105*0.6 -> 14977.5 | K4: =K105*0.6 -> 9735 | L4: =L105*0.6 -> 8122.5 | M4: =M105*0.6 -> 6757.5 | O4: 1 menor | P4: =P105*0.6 -> 16980 | Q4: =Q105*0.6 -> 13635 | R4: =R105*0.6 -> 8865 | S4: =S105*0.6 -> 7395 | T4: =T105*0.6 -> 6150 | V4: 1 menor | W4: =W105*0.6 -> 15300 | X4: =X105*0.6 -> 12285 | Y4: =Y105*0.6 -> 7987.5 | Z4: =Z105*0.6 -> 6667.5 | AA4: =AA105*0.6 -> 5542.5 | AC4: 1 menor | AD4: =AD105*0.6 -> 14040 | AE4: =AE105*0.6 -> 11280 | AF4: =AF105*0.6 -> 7327.5 | AG4: =AG105*0.6 -> 6120 | AH4: =AH105*0.6 -> 5085
A5: 2 menor | B5: =B106*0.6 -> 33022.5 | C5: =C106*0.6 -> 26520 | D5: 17242.5 | E5: 14385 | F5: 11955 | H5: 2 menores | I5: =I106*0.6 -> 29392.5 | J5: 23602.5 | K5: 15345 | L5: 12802.5 | M5: 10642.5 | O5: 2 menores | P5: =P106*0.6 -> 26752.5 | Q5: 21480 | R5: 13965 | S5: 11655 | T5: 9690 | V5: 2 menores | W5: =W106*0.6 -> 24105 | X5: 19357.5 | Y5: 12585 | Z5: 10500 | AA5: 8730 | AC5: 2 menores | AD5: =AD106*0.6 -> 22125 | AE5: 17767.5 | AF5: 11550 | AG5: 9637.5 | AH5: 8010
A6: 3 menor | B6: 48180 | C6: 38700 | D6: 25155 | E6: 20985 | F6: 17445 | H6: 3 ó más menores | I6: 42885 | J6: 34440 | K6: 22387.5 | L6: 18675 | M6: 15532.5 | O6: 3 ó más menores | P6: 39030 | Q6: 31342.5 | R6: 20370 | S6: 17002.5 | T6: 14130 | V6: 3 ó más menores | W6: 35175 | X6: 28245 | Y6: 18360 | Z6: 15322.5 | AA6: 12735 | AC6: 3 ó más menores | AD6: 32280 | AE6: 25927.5 | AF6: 16852.5 | AG6: 14062.5 | AH6: 11692.5
A7: 18 | B7: 48345 | C7: 38827.5 | D7: 25237.5 | E7: 21060 | F7: 17505 | H7: 18 | I7: 43027.5 | J7: 34560 | K7: 22462.5 | L7: 18742.5 | M7: 15585 | O7: 18 | P7: 39165 | Q7: 31447.5 | R7: 20445 | S7: 17055 | T7: 14182.5 | V7: 18 | W7: 35295 | X7: 28342.5 | Y7: 18420 | Z7: 15375 | AA7: 12780 | AC7: 18 | AD7: 32392.5 | AE7: 26017.5 | AF7: 16912.5 | AG7: 14107.5 | AH7: 11730
A8: 19 | B8: 49875 | C8: 40050 | D8: 26032.5 | E8: 21720 | F8: 18060 | H8: 19 | I8: 44385 | J8: 35647.5 | K8: 23167.5 | L8: 19335 | M8: 16072.5 | O8: 19 | P8: 40395 | Q8: 32445 | R8: 21090 | S8: 17595 | T8: 14625 | V8: 19 | W8: 36405 | X8: 29235 | Y8: 19005 | Z8: 15855 | AA8: 13185 | AC8: 19 | AD8: 33412.5 | AE8: 26835 | AF8: 17445 | AG8: 14557.5 | AH8: 12097.5
A9: 20 | B9: 51450 | C9: 41317.5 | D9: 26857.5 | E9: 22410 | F9: 18630 | H9: 20 | I9: 45787.5 | J9: 36772.5 | K9: 23902.5 | L9: 19942.5 | M9: 16582.5 | O9: 20 | P9: 41670 | Q9: 33465 | R9: 21750 | S9: 18150 | T9: 15090 | V9: 20 | W9: 37560 | X9: 30165 | Y9: 19605 | Z9: 16357.5 | AA9: 13597.5 | AC9: 20 | AD9: 34470 | AE9: 27682.5 | AF9: 17992.5 | AG9: 15015 | AH9: 12480
A10: 21 | B10: 53527.5 | C10: 42990 | D10: 27945 | E10: 23317.5 | F10: 19387.5 | H10: 21 | I10: 47640 | J10: 38257.5 | K10: 24870 | L10: 20752.5 | M10: 17250 | O10: 21 | P10: 43357.5 | Q10: 34822.5 | R10: 22635 | S10: 18885 | T10: 15705 | V10: 21 | W10: 39075 | X10: 31380 | Y10: 20400 | Z10: 17017.5 | AA10: 14152.5 | AC10: 21 | AD10: 35865 | AE10: 28800 | AF10: 18720 | AG10: 15622.5 | AH10: 12990
A11: 22 | B11: 55222.5 | C11: 44347.5 | D11: 28822.5 | E11: 24052.5 | F11: 19995 | H11: 22 | I11: 49147.5 | J11: 39465 | K11: 25657.5 | L11: 21405 | M11: 17797.5 | O11: 22 | P11: 44730 | Q11: 35917.5 | R11: 23347.5 | S11: 19485 | T11: 16200 | V11: 22 | W11: 40312.5 | X11: 32370 | Y11: 21045 | Z11: 17557.5 | AA11: 14595 | AC11: 22 | AD11: 36997.5 | AE11: 29715 | AF11: 19312.5 | AG11: 16117.5 | AH11: 13395
A12: 23 | B12: 56962.5 | C12: 45750 | D12: 29737.5 | E12: 24810 | F12: 20625 | H12: 23 | I12: 50700 | J12: 40717.5 | K12: 26467.5 | L12: 22080 | M12: 18360 | O12: 23 | P12: 46140 | Q12: 37057.5 | R12: 24082.5 | S12: 20100 | T12: 16710 | V12: 23 | W12: 41580 | X12: 33397.5 | Y12: 21705 | Z12: 18112.5 | AA12: 15060 | AC12: 23 | AD12: 38167.5 | AE12: 30652.5 | AF12: 19920 | AG12: 16620 | AH12: 13822.5
A13: 24 | B13: 58762.5 | C13: 47190 | D13: 30675 | E13: 25597.5 | F13: 21277.5 | H13: 24 | I13: 52297.5 | J13: 42000 | K13: 27300 | L13: 22777.5 | M13: 18937.5 | O13: 24 | P13: 47595 | Q13: 38227.5 | R13: 24847.5 | S13: 20730 | T13: 17235 | V13: 24 | W13: 42892.5 | X13: 34447.5 | Y13: 22395 | Z13: 18682.5 | AA13: 15532.5 | AC13: 24 | AD13: 39367.5 | AE13: 31620 | AF13: 20550 | AG13: 17145 | AH13: 14257.5
A14: 25 | B14: 60615 | C14: 48682.5 | D14: 31642.5 | E14: 26400 | F14: 21952.5 | H14: 25 | I14: 53947.5 | J14: 43327.5 | K14: 28162.5 | L14: 23497.5 | M14: 19537.5 | O14: 25 | P14: 49102.5 | Q14: 39435 | R14: 25627.5 | S14: 21390 | T14: 17782.5 | V14: 25 | W14: 44250 | X14: 35535 | Y14: 23100 | Z14: 19275 | AA14: 16020 | AC14: 25 | AD14: 40612.5 | AE14: 32617.5 | AF14: 21202.5 | AG14: 17692.5 | AH14: 14707.5
A15: 26 | B15: 62527.5 | C15: 50220 | D15: 32640 | E15: 27240 | F15: 22642.5 | H15: 26 | I15: 55650 | J15: 44692.5 | K15: 29047.5 | L15: 24240 | M15: 20152.5 | O15: 26 | P15: 50647.5 | Q15: 40680 | R15: 26437.5 | S15: 22065 | T15: 18345 | V15: 26 | W15: 45645 | X15: 36660 | Y15: 23827.5 | Z15: 19882.5 | AA15: 16530 | AC15: 26 | AD15: 41895 | AE15: 33645 | AF15: 21870 | AG15: 18247.5 | AH15: 15172.5
A16: 27 | B16: 64507.5 | C16: 51802.5 | D16: 33675 | E16: 28095 | F16: 23355 | H16: 27 | I16: 57405 | J16: 46102.5 | K16: 29970 | L16: 25005 | M16: 20790 | O16: 27 | P16: 52245 | Q16: 41962.5 | R16: 27277.5 | S16: 22755 | T16: 18922.5 | V16: 27 | W16: 47085 | X16: 37815 | Y16: 24577.5 | Z16: 20512.5 | AA16: 17055 | AC16: 27 | AD16: 43215 | AE16: 34710 | AF16: 22560 | AG16: 18825 | AH16: 15652.5
A17: 28 | B17: 66540 | C17: 53437.5 | D17: 34732.5 | E17: 28980 | F17: 24097.5 | H17: 28 | I17: 59220 | J17: 47557.5 | K17: 30915 | L17: 25792.5 | M17: 21442.5 | O17: 28 | P17: 53895 | Q17: 43282.5 | R17: 28132.5 | S17: 23475 | T17: 19515 | V17: 28 | W17: 48577.5 | X17: 39007.5 | Y17: 25357.5 | Z17: 21157.5 | AA17: 17587.5 | AC17: 28 | AD17: 44580 | AE17: 35805 | AF17: 23272.5 | AG17: 19417.5 | AH17: 16147.5
A18: 29 | B18: 68640 | C18: 55125 | D18: 35835 | E18: 29895 | F18: 24855 | H18: 29 | I18: 61087.5 | J18: 49065 | K18: 31890 | L18: 26610 | M18: 22125 | O18: 29 | P18: 55597.5 | Q18: 44655 | R18: 29025 | S18: 24217.5 | T18: 20130 | V18: 29 | W18: 50107.5 | X18: 40245 | Y18: 26160 | Z18: 21825 | AA18: 18142.5 | AC18: 29 | AD18: 45990 | AE18: 36937.5 | AF18: 24007.5 | AG18: 20032.5 | AH18: 16650
A19: 30 | B19: 70807.5 | C19: 56865 | D19: 36960 | E19: 30840 | F19: 25642.5 | H19: 30 | I19: 63022.5 | J19: 50610 | K19: 32895 | L19: 27450 | M19: 22822.5 | O19: 30 | P19: 57352.5 | Q19: 46065 | R19: 29940 | S19: 24982.5 | T19: 20767.5 | V19: 30 | W19: 51690 | X19: 41512.5 | Y19: 26985 | Z19: 22515 | AA19: 18720 | AC19: 30 | AD19: 47445 | AE19: 38100 | AF19: 24765 | AG19: 20662.5 | AH19: 17182.5
A20: 31 | B20: 73042.5 | C20: 58665 | D20: 38130 | E20: 31815 | F20: 26452.5 | H20: 31 | I20: 65010 | J20: 52207.5 | K20: 33937.5 | L20: 28312.5 | M20: 23542.5 | O20: 31 | P20: 59167.5 | Q20: 47512.5 | R20: 30885 | S20: 25770 | T20: 21427.5 | V20: 31 | W20: 53325 | X20: 42825 | Y20: 27832.5 | Z20: 23227.5 | AA20: 19312.5 | AC20: 31 | AD20: 48937.5 | AE20: 39300 | AF20: 25545 | AG20: 21315 | AH20: 17722.5
A21: 32 | B21: 75352.5 | C21: =C122*0.6 -> 60510 | D21: 39330 | E21: 32820 | F21: 27285 | H21: 32 | I21: =I122*0.6 -> 67065 | J21: 53857.5 | K21: 35010 | L21: 29212.5 | M21: 24285 | O21: 32 | P21: =P122*0.6 -> 61035 | Q21: 49012.5 | R21: 31860 | S21: 26587.5 | T21: 22102.5 | V21: 32 | W21: =W122*0.6 -> 55005 | X21: 44175 | Y21: 28710 | Z21: 23955 | AA21: 19920 | AC21: 32 | AD21: =AD122*0.6 -> 50482.5 | AE21: 40545 | AF21: 26355 | AG21: 21990 | AH21: 18285
A22: 33 | B22: 77730 | C22: 62422.5 | D22: 40575 | E22: 33855 | F22: 28147.5 | H22: 33 | I22: 69180 | J22: 55560 | K22: 36112.5 | L22: 30135 | M22: 25050 | O22: 33 | P22: 62962.5 | Q22: 50565 | R22: 32865 | S22: 27420 | T22: 22800 | V22: 33 | W22: 56745 | X22: 45570 | Y22: 29617.5 | Z22: 24712.5 | AA22: 20550 | AC22: 33 | AD22: 52080 | AE22: 41827.5 | AF22: 27187.5 | AG22: 22680 | AH22: 18855
A23: 34 | B23: 80182.5 | C23: 64395 | D23: 41857.5 | E23: 34927.5 | F23: 29032.5 | H23: 34 | I23: 71362.5 | J23: 57315 | K23: 37252.5 | L23: 31080 | M23: 25845 | O23: 34 | P23: 64950 | Q23: 52162.5 | R23: 33900 | S23: 28290 | T23: 23520 | V23: 34 | W23: 58530 | X23: 47010 | Y23: 30555 | Z23: 25492.5 | AA23: 21195 | AC23: 34 | AD23: 53722.5 | AE23: 43147.5 | AF23: 28042.5 | AG23: 23400 | AH23: 19455
A24: 35 | B24: 80595 | C24: 64725 | D24: 42075 | E24: 35107.5 | F24: 29190 | H24: 35 | I24: 71730 | J24: 57607.5 | K24: 37447.5 | L24: 31245 | M24: 25972.5 | O24: 35 | P24: 65287.5 | Q24: 52432.5 | R24: 34080 | S24: 28432.5 | T24: 23640 | V24: 35 | W24: 58837.5 | X24: 47250 | Y24: 30712.5 | Z24: 25627.5 | AA24: 21307.5 | AC24: 35 | AD24: 54000 | AE24: 43365 | AF24: 28192.5 | AG24: 23520 | AH24: 19552.5
A25: 36 | B25: 82440 | C25: 66210 | D25: 43035 | E25: 35910 | F25: 29857.5 | H25: 36 | I25: 73372.5 | J25: 58927.5 | K25: 38302.5 | L25: 31957.5 | M25: 26572.5 | O25: 36 | P25: 66780 | Q25: 53632.5 | R25: 34860 | S25: 29085 | T25: 24180 | V25: 36 | W25: 60180 | X25: 48330 | Y25: 31417.5 | Z25: 26212.5 | AA25: 21795 | AC25: 36 | AD25: 55237.5 | AE25: 44362.5 | AF25: 28837.5 | AG25: 24060 | AH25: 20002.5
A26: 37 | B26: 84330 | C26: 67725 | D26: 44017.5 | E26: 36727.5 | F26: 30540 | H26: 37 | I26: 75052.5 | J26: 60277.5 | K26: 39180 | L26: 32692.5 | M26: 27180 | O26: 37 | P26: 68310 | Q26: 54855 | R26: 35655 | S26: 29752.5 | T26: 24735 | V26: 37 | W26: 61560 | X26: 49440 | Y26: 32137.5 | Z26: 26812.5 | AA26: 22290 | AC26: 37 | AD26: 56497.5 | AE26: 45375 | AF26: 29497.5 | AG26: 24607.5 | AH26: 20460
A27: 38 | B27: 86257.5 | C27: 69277.5 | D27: 45030 | E27: 37575 | F27: 31237.5 | H27: 38 | I27: 76770 | J27: 61657.5 | K27: 40072.5 | L27: 33435 | M27: 27802.5 | O27: 38 | P27: 69870 | Q27: 56115 | R27: 36472.5 | S27: 30435 | T27: 25305 | V27: 38 | W27: 62970 | X27: 50572.5 | Y27: 32872.5 | Z27: 27427.5 | AA27: 22800 | AC27: 38 | AD27: 57795 | AE27: 46410 | AF27: 30172.5 | AG27: 25170 | AH27: 20925
A28: 39 | B28: 88230 | C28: 70860 | D28: 46057.5 | E28: 38430 | F28: 31950 | H28: 39 | I28: 78525 | J28: 63067.5 | K28: 40995 | L28: 34207.5 | M28: 28440 | O28: 39 | P28: 71467.5 | Q28: 57397.5 | R28: 37305 | S28: 31132.5 | T28: 25882.5 | V28: 39 | W28: 64410 | X28: 51727.5 | Y28: 33622.5 | Z28: 28057.5 | AA28: 23325 | AC28: 39 | AD28: 59115 | AE28: 47475 | AF28: 30862.5 | AG28: 25747.5 | AH28: 21405
A29: 40 | B29: 90255 | C29: 72480 | D29: 47115 | E29: 39307.5 | F29: 32685 | H29: 40 | I29: 80325 | J29: 64507.5 | K29: 41932.5 | L29: 34987.5 | M29: 29085 | O29: 40 | P29: 73102.5 | Q29: 58710 | R29: 38160 | S29: 31845 | T29: 26475 | V29: 40 | W29: 65887.5 | X29: 52912.5 | Y29: 34395 | Z29: 28695 | AA29: 23857.5 | AC29: 40 | AD29: 60465 | AE29: 48562.5 | AF29: 31567.5 | AG29: 26340 | AH29: 21900
A30: 41 | B30: 92317.5 | C30: 74137.5 | D30: 48187.5 | E30: 40207.5 | F30: 33427.5 | H30: 41 | I30: 82162.5 | J30: 65985 | K30: 42892.5 | L30: 35790 | M30: 29752.5 | O30: 41 | P30: 74775 | Q30: 60052.5 | R30: 39037.5 | S30: 32572.5 | T30: 27075 | V30: 41 | W30: 67395 | X30: 54120 | Y30: 35182.5 | Z30: 29355 | AA30: 24405 | AC30: 41 | AD30: 61852.5 | AE30: 49672.5 | AF30: 32287.5 | AG30: 26940 | AH30: 22395
A31: 42 | B31: 94432.5 | C31: 75840 | D31: 49290 | E31: 41130 | F31: 34192.5 | H31: 42 | I31: 84045 | J31: 67492.5 | K31: 43875 | L31: 36607.5 | M31: 30435 | O31: 42 | P31: 76485 | Q31: 61425 | R31: 39930 | S31: 33315 | T31: 27697.5 | V31: 42 | W31: 68932.5 | X31: 55357.5 | Y31: 35985 | Z31: 30022.5 | AA31: 24960 | AC31: 42 | AD31: 63270 | AE31: 50812.5 | AF31: 33030 | AG31: 27555 | AH31: 22912.5
A32: 43 | B32: 96592.5 | C32: 77572.5 | D32: 50422.5 | E32: 42075 | F32: 34980 | H32: 43 | I32: 85965 | J32: 69037.5 | K32: 44872.5 | L32: 37440 | M32: 31132.5 | O32: 43 | P32: 78240 | Q32: 62835 | R32: 40845 | S32: 34080 | T32: 28335 | V32: 43 | W32: 70515 | X32: 56625 | Y32: 36810 | Z32: 30712.5 | AA32: 25530 | AC32: 43 | AD32: 64717.5 | AE32: 51975 | AF32: 33780 | AG32: 28185 | AH32: 23437.5
A33: 44 | B33: 98797.5 | C33: 79350 | D33: 51577.5 | E33: 43035 | F33: 35775 | H33: 44 | I33: 87930 | J33: 70620 | K33: 45900 | L33: 38302.5 | M33: 31845 | O33: 44 | P33: 80025 | Q33: 64267.5 | R33: 41775 | S33: 34860 | T33: 28980 | V33: 44 | W33: 72127.5 | X33: 57922.5 | Y33: 37650 | Z33: 31417.5 | AA33: 26115 | AC33: 44 | AD33: 66195 | AE33: 53160 | AF33: 34552.5 | AG33: 28830 | AH33: 23970
A34: 45 | B34: 101062.5 | C34: 81165 | D34: 52755 | E34: 44017.5 | F34: 36600 | H34: 45 | I34: 89947.5 | J34: 72232.5 | K34: 46950 | L34: 39180 | M34: 32572.5 | O34: 45 | P34: 81862.5 | Q34: 65745 | R34: 42735 | S34: 35655 | T34: 29640 | V34: 45 | W34: 73777.5 | X34: 59250 | Y34: 38512.5 | Z34: 32137.5 | AA34: 26715 | AC34: 45 | AD34: 67710 | AE34: 54375 | AF34: 35347.5 | AG34: 29490 | AH34: 24517.5
A35: 46 | B35: 103372.5 | C35: 83017.5 | D35: 53962.5 | E35: 45030 | F35: 37432.5 | H35: 46 | I35: 92002.5 | J35: 73890 | K35: 48030 | L35: 40072.5 | M35: 33315 | O35: 46 | P35: 83730 | Q35: 67245 | R35: 43710 | S35: 36472.5 | T35: 30322.5 | V35: 46 | W35: 75465 | X35: 60607.5 | Y35: 39390 | Z35: 32872.5 | AA35: 27330 | AC35: 46 | AD35: 69262.5 | AE35: 55620 | AF35: 36157.5 | AG35: 30165 | AH35: 25080
A36: 47 | B36: 105742.5 | C36: 84922.5 | D36: 55200 | E36: 46057.5 | F36: 38287.5 | H36: 47 | I36: 94110 | J36: 75577.5 | K36: 49125 | L36: 40987.5 | M36: 34080 | O36: 47 | P36: 85650 | Q36: 68782.5 | R36: 44707.5 | S36: 37305 | T36: 31012.5 | V36: 47 | W36: 77190 | X36: 61995 | Y36: 40297.5 | Z36: 33622.5 | AA36: 27952.5 | AC36: 47 | AD36: 70845 | AE36: 56895 | AF36: 36982.5 | AG36: 30855 | AH36: 25657.5
A37: 48 | B37: 108157.5 | C37: =C138*0.6 -> 86865 | D37: 56460 | E37: 47107.5 | F37: 39165 | H37: 48 | I37: =I138*0.6 -> 96262.5 | J37: 77310 | K37: 50250 | L37: 41925 | M37: 34860 | O37: 48 | P37: =P138*0.6 -> 87607.5 | Q37: 70357.5 | R37: 45735 | S37: 38160 | T37: 31725 | V37: 48 | W37: =W138*0.6 -> 78960 | X37: 63412.5 | Y37: 41220 | Z37: 34387.5 | AA37: 28590 | AC37: 48 | AD37: =AD138*0.6 -> 72465 | AE37: 58200 | AF37: 37830 | AG37: 31567.5 | AH37: 26242.5
A38: 49 | B38: 110632.5 | C38: 88852.5 | D38: 57750 | E38: 48187.5 | F38: 40065 | H38: 49 | I38: 98467.5 | J38: 79080 | K38: 51397.5 | L38: 42885 | M38: 35655 | O38: 49 | P38: 89617.5 | Q38: 71970 | R38: 46777.5 | S38: 39030 | T38: 32452.5 | V38: 49 | W38: 80760 | X38: 64860 | Y38: 42157.5 | Z38: 35175 | AA38: 29242.5 | AC38: 49 | AD38: 74122.5 | AE38: 59527.5 | AF38: 38692.5 | AG38: 32287.5 | AH38: 26842.5
A39: 50 | B39: 113167.5 | C39: 90885 | D39: 59077.5 | E39: 49290 | F39: 40980 | H39: 50 | I39: 100717.5 | J39: 80887.5 | K39: 52575 | L39: 43867.5 | M39: 36472.5 | O39: 50 | P39: 91665 | Q39: 73612.5 | R39: 47850 | S39: 39930 | T39: 33195 | V39: 50 | W39: 82612.5 | X39: 66345 | Y39: 43125 | Z39: 35985 | AA39: 29917.5 | AC39: 50 | AD39: 75825 | AE39: 60892.5 | AF39: 39577.5 | AG39: 33022.5 | AH39: 27457.5
A40: 51 | B40: 115755 | C40: 92962.5 | D40: 60427.5 | E40: 50422.5 | F40: 41917.5 | H40: 51 | I40: 103020 | J40: 82740 | K40: 53782.5 | L40: 44872.5 | M40: 37305 | O40: 51 | P40: 93765 | Q40: 75300 | R40: 48945 | S40: 40837.5 | T40: 33952.5 | V40: 51 | W40: 84502.5 | X40: 67860 | Y40: 44115 | Z40: 36810 | AA40: 30600 | AC40: 51 | AD40: 77557.5 | AE40: 62287.5 | AF40: 40485 | AG40: 33780 | AH40: 28087.5
A41: 52 | B41: 118402.5 | C41: 95092.5 | D41: 61807.5 | E41: 51570 | F41: 42877.5 | H41: 52 | I41: 105382.5 | J41: 84630 | K41: 55012.5 | L41: 45900 | M41: 38160 | O41: 52 | P41: 95910 | Q41: 77025 | R41: 50062.5 | S41: 41775 | T41: 34732.5 | V41: 52 | W41: 86437.5 | X41: 69420 | Y41: 45120 | Z41: 37650 | AA41: 31297.5 | AC41: 52 | AD41: 79335 | AE41: 63712.5 | AF41: 41415 | AG41: 34552.5 | AH41: 28725
A42: 53 | B42: 121117.5 | C42: 97267.5 | D42: 63225 | E42: 52755 | F42: 43860 | H42: 53 | I42: 107790 | J42: 86565 | K42: 56265 | L42: 46950 | M42: 39030 | O42: 53 | P42: 98100 | Q42: 78787.5 | R42: 51210 | S42: 42727.5 | T42: 35527.5 | V42: 53 | W42: 88410 | X42: 71002.5 | Y42: 46155 | Z42: 38512.5 | AA42: 32017.5 | AC42: 53 | AD42: 81150 | AE42: 65167.5 | AF42: 42360 | AG42: 35347.5 | AH42: 29385
A43: 54 | B43: 127410 | C43: 102322.5 | D43: 66510 | E43: 55492.5 | F43: 46140 | H43: 54 | I43: 113392.5 | J43: 91065 | K43: 59190 | L43: 49387.5 | M43: 41062.5 | O43: 54 | P43: 103200 | Q43: 82882.5 | R43: 53872.5 | S43: 44955 | T43: 37372.5 | V43: 54 | W43: 93007.5 | X43: 74692.5 | Y43: 48555 | Z43: 40515 | AA43: 33682.5 | AC43: 54 | AD43: 85365 | AE43: 68557.5 | AF43: 44565 | AG43: 37185 | AH43: 30915
A44: 55 | B44: 134992.5 | C44: 108412.5 | D44: 70470 | E44: 58800 | F44: 48885 | H44: 55 | I44: 120142.5 | J44: 96487.5 | K44: 62715 | L44: 52327.5 | M44: 43507.5 | O44: 55 | P44: 109342.5 | Q44: 87810 | R44: 57075 | S44: 47625 | T44: 39592.5 | V44: 55 | W44: 98542.5 | X44: 79140 | Y44: 51442.5 | Z44: 42922.5 | AA44: 35685 | AC44: 55 | AD44: 90442.5 | AE44: 72637.5 | AF44: 47212.5 | AG44: 39397.5 | AH44: 32752.5
A45: 56 | B45: 138255 | C45: 111037.5 | D45: 72172.5 | E45: 60217.5 | F45: 50070 | H45: 56 | I45: 123052.5 | J45: 98820 | K45: 64230 | L45: 53595 | M45: 44557.5 | O45: 56 | P45: 111990 | Q45: 89940 | R45: 58462.5 | S45: 48780 | T45: 40552.5 | V45: 56 | W45: 100927.5 | X45: 81052.5 | Y45: 52687.5 | Z45: 43965 | AA45: 36547.5 | AC45: 56 | AD45: 92632.5 | AE45: 74392.5 | AF45: 48352.5 | AG45: 40350 | AH45: 33547.5
A46: 57 | B46: 146490 | C46: 117645 | D46: 76470 | E46: 63802.5 | F46: 53047.5 | H46: 57 | I46: 130372.5 | J46: 104700 | K46: 68055 | L46: 56790 | M46: 47212.5 | O46: 57 | P46: 118657.5 | Q46: 95295 | R46: 61942.5 | S46: 51682.5 | T46: 42967.5 | V46: 57 | W46: 106935 | X46: 85882.5 | Y46: 55822.5 | Z46: 46575 | AA46: 38722.5 | AC46: 57 | AD46: 98145 | AE46: 78825 | AF46: 51232.5 | AG46: 42750 | AH46: 35542.5
A47: 58 | B47: 155205 | C47: 124642.5 | D47: 81022.5 | E47: 67605 | F47: 56205 | H47: 58 | I47: 138135 | J47: 110932.5 | K47: 72105 | L47: 60165 | M47: 50017.5 | O47: 58 | P47: 125715 | Q47: 100965 | R47: 65625 | S47: 54757.5 | T47: 45525 | V47: 58 | W47: 113302.5 | X47: 90990 | Y47: 59145 | Z47: 49350 | AA47: 41025 | AC47: 58 | AD47: 103987.5 | AE47: 83512.5 | AF47: 54285 | AG47: 45292.5 | AH47: 37657.5
A48: 59 | B48: 164445 | C48: 132060 | D48: 85845 | E48: 71625 | F48: 59550 | H48: 59 | I48: 146355 | J48: 117540 | K48: 76395 | L48: 63750 | M48: 52995 | O48: 59 | P48: 133200 | Q48: 106972.5 | R48: 69532.5 | S48: 58020 | T48: 48232.5 | V48: 59 | W48: 120045 | X48: 96405 | Y48: 62662.5 | Z48: 52290 | AA48: 43470 | AC48: 59 | AD48: 110175 | AE48: 88485 | AF48: 57510 | AG48: 47992.5 | AH48: 39900
A49: 60 | B49: 174232.5 | C49: 139920 | D49: 90952.5 | E49: 75892.5 | F49: 63090 | H49: 60 | I49: 155062.5 | J49: 124530 | K49: 80947.5 | L49: 67545 | M49: 56152.5 | O49: 60 | P49: 141127.5 | Q49: 113340 | R49: 73672.5 | S49: 61470 | T49: 51105 | V49: 60 | W49: 127185 | X49: 102142.5 | Y49: 66390 | Z49: 55402.5 | AA49: 46057.5 | AC49: 60 | AD49: 116737.5 | AE49: 93750 | AF49: 60937.5 | AG49: 50842.5 | AH49: 42270
A50: 61 | B50: 184597.5 | C50: 148252.5 | D50: 96360 | E50: 80407.5 | F50: 66847.5 | H50: 61 | I50: 164295 | J50: 131940 | K50: 85762.5 | L50: 71557.5 | M50: 59497.5 | O50: 61 | P50: 149527.5 | Q50: 120082.5 | R50: 78052.5 | S50: 65130 | T50: 54150 | V50: 61 | W50: 134760 | X50: 108225 | Y50: 70342.5 | Z50: 58695 | AA50: 48795 | AC50: 61 | AD50: 123682.5 | AE50: 99330 | AF50: 64560 | AG50: 53872.5 | AH50: 44790
A51: 62 | B51: 195585 | C51: 157072.5 | D51: 102097.5 | E51: 85192.5 | F51: 70822.5 | H51: 62 | I51: 174075 | J51: 139800 | K51: 90870 | L51: 75817.5 | M51: 63037.5 | O51: 62 | P51: 158422.5 | Q51: 127230 | R51: 82702.5 | S51: 69007.5 | T51: 57367.5 | V51: 62 | W51: 142777.5 | X51: 114667.5 | Y51: 74535 | Z51: 62190 | AA51: 51705 | AC51: 62 | AD51: 131040 | AE51: 105240 | AF51: 68407.5 | AG51: 57075 | AH51: 47452.5
A52: 63 | B52: 207225 | C52: 166425 | D52: 108172.5 | E52: 90262.5 | F52: 75045 | H52: 63 | I52: 184432.5 | J52: 148117.5 | K52: 96277.5 | L52: 80332.5 | M52: 66787.5 | O52: 63 | P52: 167857.5 | Q52: 134805 | R52: 87622.5 | S52: 73110 | T52: 60780 | V52: 63 | W52: 151275 | X52: 121492.5 | Y52: 78967.5 | Z52: 65887.5 | AA52: 54780 | AC52: 63 | AD52: 138840 | AE52: 111502.5 | AF52: 72480 | AG52: 60472.5 | AH52: 50280
A53: 64 | B53: 219562.5 | C53: =C154*0.6 -> 176325 | D53: 114615 | E53: 95632.5 | F53: 79507.5 | H53: 64 | I53: =I154*0.6 -> 195405 | J53: 156930 | K53: 102007.5 | L53: 85110 | M53: 70762.5 | O53: 64 | P53: =P154*0.6 -> 177847.5 | Q53: 142822.5 | R53: 92835 | S53: 77460 | T53: 64402.5 | V53: 64 | W53: =W154*0.6 -> 160282.5 | X53: 128722.5 | Y53: 83670 | Z53: 69810 | AA53: 58042.5 | AC53: 64 | AD53: =AD154*0.6 -> 147105 | AE53: 118140 | AF53: 76792.5 | AG53: 64072.5 | AH53: 53272.5
A54: 65 | B54: 232627.5 | C54: 186825 | D54: 121432.5 | E54: 101325 | F54: 84240 | H54: 65 | I54: 207037.5 | J54: 166275 | K54: 108075 | L54: 90180 | M54: 74970 | O54: 65 | P54: 188430 | Q54: 151327.5 | R54: 98362.5 | S54: 82072.5 | T54: 68235 | V54: 65 | W54: 169815 | X54: 136380 | Y54: 88650 | Z54: 73965 | AA54: 61492.5 | AC54: 65 | AD54: 155857.5 | AE54: 125175 | AF54: 81360 | AG54: 67890 | AH54: 56437.5
A55: 66 | B55: 248542.5 | C55: 199605 | D55: 129742.5 | E55: 108255 | F55: 90000 | H55: 66 | I55: 221205 | J55: 177645 | K55: 115470 | L55: 96352.5 | M55: 80100 | O55: 66 | P55: 201322.5 | Q55: 161677.5 | R55: 105090 | S55: 87690 | T55: 72900 | V55: 66 | W55: 181440 | X55: 145710 | Y55: 94710 | Z55: 79027.5 | AA55: 65700 | AC55: 66 | AD55: 166522.5 | AE55: 133732.5 | AF55: 86925 | AG55: 72532.5 | AH55: 60300
A56: 67 | B56: 265567.5 | C56: 213277.5 | D56: 138630 | E56: 115672.5 | F56: 96165 | H56: 67 | I56: 236355 | J56: 189817.5 | K56: 123382.5 | L56: 102952.5 | M56: 85590 | O56: 67 | P56: 215107.5 | Q56: 172755 | R56: 112290 | S56: 93697.5 | T56: 77895 | V56: 67 | W56: 193867.5 | X56: 155692.5 | Y56: 101197.5 | Z56: 84442.5 | AA56: 70200 | AC56: 67 | AD56: 177930 | AE56: 142897.5 | AF56: 92880 | AG56: 77497.5 | AH56: 64432.5
A57: 68 | B57: 283777.5 | C57: 227902.5 | D57: 148140 | E57: 123607.5 | F57: 102765 | H57: 68 | I57: 252562.5 | J57: 202830 | K57: 131842.5 | L57: 110010 | M57: 91455 | O57: 68 | P57: 229860 | Q57: 184597.5 | R57: 119992.5 | S57: 100117.5 | T57: 83235 | V57: 68 | W57: 207157.5 | X57: 166365 | Y57: 108142.5 | Z57: 90232.5 | AA57: 75015 | AC57: 68 | AD57: 190132.5 | AE57: 152692.5 | AF57: 99255 | AG57: 82815 | AH57: 68850
A58: 69 | B58: 303262.5 | C58: 243547.5 | D58: 158302.5 | E58: 132090 | F58: 109815 | H58: 69 | I58: 269902.5 | J58: 216757.5 | K58: 140895 | L58: 117562.5 | M58: 97740 | O58: 69 | P58: 245640 | Q58: 197272.5 | R58: 128227.5 | S58: 106995 | T58: 88950 | V58: 69 | W58: 221377.5 | X58: 177787.5 | Y58: 115560 | Z58: 96427.5 | AA58: 80167.5 | AC58: 69 | AD58: 203182.5 | AE58: 163177.5 | AF58: 106065 | AG58: 88500 | AH58: 73575
